Workbook

Sheet Introduktion

Sheet Køle-fryseskabe
B2: TCO-værktøj til tilbudsevaluering
B3: Køle- og fryseskabe til husholdninger
B7: 4 Tilbudsgiver: Oplysninger om produktet
C8: Produktets navn | D8: Egen reference | E8: PRODUKT 1 | G8: PRODUKT 2 | I8: PRODUKT 3 | K8: PRODUKT 4 | M8: PRODUKT 5 | O8: PRODUKT 6 | Q8: PRODUKT 7 | S8: PRODUKT 8
C9: Produktbeskrivelse | D9: Egen reference
C10: Varenr. | D10: Egen reference
C11: Investeringsomkostninger
C12: Indkøbspris | D12: kr./produkt
C13: Installationsomkostninger jf. kravspecifikation | D13: kr./produkt
C15: Driftsomkostninger
C16: Skabets indvendige volumen | D16: m3/produkt
C17: Elforbrug | D17: kWh/24timer/produkt
C19: Service, vedligehold og løbende omkostninger
C20: Pris på serviceaftale jf. kravspecifikation | D20: kr./år/produkt
C21: Evt. betaling for leje, leasing, licens eller abonnement jf. kravspecifikation | D21: kr./år/produkt
C23: Efterbrug
C24: Bliver produktet taget tilbage uden mulighed for gensalg og uden omkostninger? | D24: ja/nej | E24: Nej | G24: =$E$24 -> Nej | I24: =$E$24 -> Nej | K24: =$E$24 -> Nej | M24: =$E$24 -> Nej | O24: =$E$24 -> Nej | Q24: =$E$24 -> Nej | S24: =$E$24 -> Nej
B28: 3 Ordregiver: Værdisætning af samfundsøkonomiske omkostninger ved eksterne virkninger på miljøet
C29: Skal de eksterne virkninger på miljøet inkluderes i denne TCO-beregning? | E29: Ja | G29: =$E$29 -> Ja | I29: =$E$29 -> Ja | K29: =$E$29 -> Ja | M29: =$E$29 -> Ja | O29: =$E$29 -> Ja | Q29: =$E$29 -> Ja | S29: =$E$29 -> Ja
C31: Anvendelse af standard-CO2-emissionsfaktor for elforbrug? | D31: Ja/nej | E31: Ja | G31: =$E31 -> Ja | I31: =$E31 -> Ja | K31: =$E31 -> Ja | M31: =$E31 -> Ja | O31: =$E31 -> Ja | Q31: =$E31 -> Ja | S31: =$E31 -> Ja
C32: Standard-CO2-emissionsfaktor for elforbrug | D32: kg CO2e/kWh | E32: =VLOOKUP(E51,Fremskrivninger!$A$9:$L$38,12) -> 0.089 | G32: =$E32 -> 0.089 | I32: =$E32 -> 0.089 | K32: =$E32 -> 0.089 | M32: =$E32 -> 0.089 | O32: =$E32 -> 0.089 | Q32: =$E32 -> 0.089 | S32: =$E32 -> 0.089
C33: Egen CO2-emissionsfaktor for elforbrug | D33: kg CO2e/kWh | E33: 0 | G33: =$E33 -> 0 | I33: =$E33 -> 0 | K33: =$E33 -> 0 | M33: =$E33 -> 0 | O33: =$E33 -> 0 | Q33: =$E33 -> 0 | S33: =$E33 -> 0
C35: Anvendelse af standard-værdisætning af samfundsøkonomiske omkostninger? | E35: Ja | G35: =$E$35 -> Ja | I35: =$E$35 -> Ja | K35: =$E$35 -> Ja | M35: =$E$35 -> Ja | O35: =$E$35 -> Ja | Q35: =$E$35 -> Ja | S35: =$E$35 -> Ja
C36: Standard-værdisætning | D36: kr./tons CO2e | E36: 1500 | G36: =$E$36 -> 1500 | I36: =$E$36 -> 1500 | K36: =$E$36 -> 1500 | M36: =$E$36 -> 1500 | O36: =$E$36 -> 1500 | Q36: =$E$36 -> 1500 | S36: =$E$36 -> 1500
C37: Egen værdisætning | D37: kr./tons CO2e | G37: =$E$37 -> 0 | I37: =$E$37 -> 0 | K37: =$E$37 -> 0 | M37: =$E$37 -> 0 | O37: =$E$37 -> 0 | Q37: =$E$37 -> 0 | S37: =$E$37 -> 0
B41: 2 Ordregiver: Oplysninger om brugen
C42: Antal | D42: stk. | G42: =$E42 -> 0 | I42: =$E42 -> 0 | K42: =$E42 -> 0 | M42: =$E42 -> 0 | O42: =$E42 -> 0 | Q42: =$E42 -> 0 | S42: =$E42 -> 0
C43: Antal brugsdage pr. år | D43: antal dage | G43: =$E43 -> 0 | I43: 0 | K43: 0 | M43: 0 | O43: 0 | Q43: 0 | S43: 0
C45: Længde af serviceaftale-periode jf. kravsspecifikation | D45: antal år | G45: 0 | I45: 0 | K45: 0 | M45: 0 | O45: 0 | Q45: 0 | S45: 0
C46: Længde af leasingaftale-periode jf. kravspecifikation | D46: antal år | G46: 0 | I46: 0 | K46: 0 | M46: 0 | O46: 0 | Q46: 0 | S46: 0
B50: 1 Ordregiver: Baggrundsdata
C51: 1. år for brugsperiode | D51: årstal | E51: 2021 | G51: 2021 | I51: 2021 | K51: 2021 | M51: 2021 | O51: 2021 | Q51: 2021 | S51: 2021
C52: TCO-evalueringsperiode | D52: år | G52: =$E$52 -> 0 | I52: =$E$52 -> 0 | K52: =$E$52 -> 0 | M52: =$E$52 -> 0 | O52: =$E$52 -> 0 | Q52: =$E$52 -> 0 | S52: =$E$52 -> 0
C54: Anvendelse af standardelpriser med gennemsnitlig fremskrivning? | D54: Ja/nej | E54: Ja | G54: =$E$54 -> Ja | I54: =$E$54 -> Ja | K54: =$E$54 -> Ja | M54: =$E$54 -> Ja | O54: =$E$54 -> Ja | Q54: =$E$54 -> Ja | S54: =$E$54 -> Ja
C55: Standard elpris | D55: kr./kWh | E55: =VLOOKUP(E51,Fremskrivninger!A8:D37,3) -> 1.851 | G55: =$E$55 -> 1.851 | I55: =$E$55 -> 1.851 | K55: =$E$55 -> 1.851 | M55: =$E$55 -> 1.851 | O55: =$E$55 -> 1.851 | Q55: =$E$55 -> 1.851 | S55: =$E$55 -> 1.851
C56: Standard elprisstigning (årligt, ud over inflation) | D56: %/år | E56: 0.0167 | G56: =$E$56 -> 0.0167 | I56: =$E$56 -> 0.0167 | K56: =$E$56 -> 0.0167 | M56: =$E$56 -> 0.0167 | O56: =$E$56 -> 0.0167 | Q56: =$E$56 -> 0.0167 | S56: =$E$56 -> 0.0167
C57: Egen elpris | D57: kr./kWh | G57: =$E$57 -> 0 | I57: =$E$57 -> 0 | K57: =$E$57 -> 0 | M57: =$E$57 -> 0 | O57: =$E$57 -> 0 | Q57: =$E$57 -> 0 | S57: =$E$57 -> 0
C58: Egen elprisstigning (årligt, ud over inflation) | D58: %/år | G58: =$E$58 -> 0 | I58: =$E$58 -> 0 | K58: =$E$58 -> 0 | M58: =$E$58 -> 0 | O58: =$E$58 -> 0 | Q58: =$E$58 -> 0 | S58: =$E$58 -> 0
C60: Diskonteringsrente | D60: %/år | E60: 0.035 | G60: =$E$60 -> 0.035 | I60: =$E$60 -> 0.035 | K60: =$E$60 -> 0.035 | M60: =$E$60 -> 0.035 | O60: =$E$60 -> 0.035 | Q60: =$E$60 -> 0.035 | S60: =$E$60 -> 0.035
C61: Intern service omkostning - service & support | D61: kr./stk/år
C63: Efterbrug
C64: Efterbrugsindtægts (gensalgspris) andel af investering | D64: %
C65: Efterbrugsomkostninger (transport, lønomkostninger mv.) | D65: kr./stk
B69: 5 Resultat
C71: Investeringsomkostning | D71: kr. | E71: =(E12+E13)*E42 -> 0 | G71: =(G12+G13)*G42 -> 0 | I71: =(I12+I13)*I42 -> 0 | K71: =(K12+K13)*K42 -> 0 | M71: =(M12+M13)*M42 -> 0 | O71: =(O12+O13)*O42 -> 0 | Q71: =(Q12+Q13)*Q42 -> 0 | S71: =(S12+S13)*S42 -> 0
C72: Driftsomkostning i alt | D72: kr. | E72: =SUMIFS('IB - Køle-fryseskabe'!E4:E23,'IB - Køle-fryseskabe'!$B$4:$B$23,"<="&E52) -> 0 | G72: =SUMIFS('IB - Køle-fryseskabe'!G4:G23,'IB - Køle-fryseskabe'!$B$4:$B$23,"<="&G52) -> 0 | I72: =SUMIFS('IB - Køle-fryseskabe'!I4:I23,'IB - Køle-fryseskabe'!$B$4:$B$23,"<="&I52) -> 0 | K72: =SUMIFS('IB - Køle-fryseskabe'!K4:K23,'IB - Køle-fryseskabe'!$B$4:$B$23,"<="&K52) -> 0 | M72: =SUMIFS('IB - Køle-fryseskabe'!M4:M23,'IB - Køle-fryseskabe'!$B$4:$B$23,"<="&M52) -> 0 | O72: =SUMIFS('IB - Køle-fryseskabe'!O4:O23,'IB - Køle-fryseskabe'!$B$4:$B$23,"<="&O52) -> 0 | Q72: =SUMIFS('IB - Køle-fryseskabe'!Q4:Q23,'IB - Køle-fryseskabe'!$B$4:$B$23,"<="&Q52) -> 0 | S72: =SUMIFS('IB - Køle-fryseskabe'!S4:S23,'IB - Køle-fryseskabe'!$B$4:$B$23,"<="&S52) -> 0
C73: Service, vedligehold og løbende omkostninger i alt | D73: kr. | E73: =SUMIFS('IB - Køle-fryseskabe'!E49:E68,'IB - Køle-fryseskabe'!$B$49:$B$68,"<="&E52) -> 0 | G73: =SUMIFS('IB - Køle-fryseskabe'!G49:G68,'IB - Køle-fryseskabe'!$B$49:$B$68,"<="&G52) -> 0 | I73: =SUMIFS('IB - Køle-fryseskabe'!I49:I68,'IB - Køle-fryseskabe'!$B$49:$B$68,"<="&I52) -> 0 | K73: =SUMIFS('IB - Køle-fryseskabe'!K49:K68,'IB - Køle-fryseskabe'!$B$49:$B$68,"<="&K52) -> 0 | M73: =SUMIFS('IB - Køle-fryseskabe'!M49:M68,'IB - Køle-fryseskabe'!$B$49:$B$68,"<="&M52) -> 0 | O73: =SUMIFS('IB - Køle-fryseskabe'!O49:O68,'IB - Køle-fryseskabe'!$B$49:$B$68,"<="&O52) -> 0 | Q73: =SUMIFS('IB - Køle-fryseskabe'!Q49:Q68,'IB - Køle-fryseskabe'!$B$49:$B$68,"<="&Q52) -> 0 | S73: =SUMIFS('IB - Køle-fryseskabe'!S49:S68,'IB - Køle-fryseskabe'!$B$49:$B$68,"<="&S52) -> 0
C74: =IF(AND(E24="ja",G24="ja",I24="ja",K24="ja",M24="ja",O24="ja",Q24="ja",S24="ja"),"",C63&", omkostninger og indtægter i alt") -> Efterbrug, omkostninger og indtægter i alt | D74: =IF(C74="","","kr.") -> kr. | E74: =IF($D$74="",0,IF(E24="ja","",(IF(E24="nej",-E64*E12+E65,0))*E42*(1+E60)^-E52)) -> 0 | G74: =IF($D$74="",0,IF(G24="ja","",(IF(G24="nej",-G64*G12+G65,0))*G42*(1+G60)^-G52)) -> 0 | I74: =IF($D$74="",0,IF(I24="ja","",(IF(I24="nej",-I64*I12+I65,0))*I42*(1+I60)^-I52)) -> 0 | K74: =IF($D$74="",0,IF(K24="ja","",(IF(K24="nej",-K64*K12+K65,0))*K42*(1+K60)^-K52)) -> 0 | M74: =IF($D$74="",0,IF(M24="ja","",(IF(M24="nej",-M64*M12+M65,0))*M42*(1+M60)^-M52)) -> 0 | O74: =IF($D$74="",0,IF(O24="ja","",(IF(O24="nej",-O64*O12+O65,0))*O42*(1+O60)^-O52)) -> 0 | Q74: =IF($D$74="",0,IF(Q24="ja","",(IF(Q24="nej",-Q64*Q12+Q65,0))*Q42*(1+Q60)^-Q52)) -> 0 | S74: =IF($D$74="",0,IF(S24="ja","",(IF(S24="nej",-S64*S12+S65,0))*S42*(1+S60)^-S52)) -> 0
C75: =IF(E29="nej","","Samfundsøkonomiske omkostninger af eksterne virkninger på miljøet") -> Samfundsøkonomiske omkostninger af eksterne virkninger på miljøet | D75: =IF(C75="","","kr.") -> kr. | E75: =IF(E29="nej","",SUMIFS('IB - Køle-fryseskabe'!E$142:E$161,'IB - Køle-fryseskabe'!$C$142:$C$161,"<="&E52)) -> 0 | G75: =IF(G29="nej","",SUMIFS('IB - Køle-fryseskabe'!G$142:G$161,'IB - Køle-fryseskabe'!$C$142:$C$161,"<="&G52)) -> 0 | I75: =IF(I29="nej","",SUMIFS('IB - Køle-fryseskabe'!I$142:I$161,'IB - Køle-fryseskabe'!$C$142:$C$161,"<="&I52)) -> 0 | K75: =IF(K29="nej","",SUMIFS('IB - Køle-fryseskabe'!K$142:K$161,'IB - Køle-fryseskabe'!$C$142:$C$161,"<="&K52)) -> 0 | M75: =IF(M29="nej","",SUMIFS('IB - Køle-fryseskabe'!M$142:M$161,'IB - Køle-fryseskabe'!$C$142:$C$161,"<="&M52)) -> 0 | O75: =IF(O29="nej","",SUMIFS('IB - Køle-fryseskabe'!O$142:O$161,'IB - Køle-fryseskabe'!$C$142:$C$161,"<="&O52)) -> 0 | Q75: =IF(Q29="nej","",SUMIFS('IB - Køle-fryseskabe'!Q$142:Q$161,'IB - Køle-fryseskabe'!$C$142:$C$161,"<="&Q52)) -> 0 | S75: =IF(S29="nej","",SUMIFS('IB - Køle-fryseskabe'!S$142:S$161,'IB - Køle-fryseskabe'!$C$142:$C$161,"<="&S52)) -> 0
C77: Samlet TCO | D77: kr. | E77: =SUM(E71:E75) -> 0 | G77: =SUM(G71:G75) -> 0 | I77: =SUM(I71:I75) -> 0 | K77: =SUM(K71:K75) -> 0 | M77: =SUM(M71:M75) -> 0 | O77: =SUM(O71:O75) -> 0 | Q77: =SUM(Q71:Q75) -> 0 | S77: =SUM(S71:S75) -> 0
C78: Årlige gennemsnitlige omkostninger | D78: kr./år | E78: =IFERROR(PMT(E60,E52,-(E77)),0) -> 0 | G78: =IFERROR(PMT(G60,G52,-(G77)),0) -> 0 | I78: =IFERROR(PMT(I60,I52,-(I77)),0) -> 0 | K78: =IFERROR(PMT(K60,K52,-(K77)),0) -> 0 | M78: =IFERROR(PMT(M60,M52,-(M77)),0) -> 0 | O78: =IFERROR(PMT(O60,O52,-(O77)),0) -> 0 | Q78: =IFERROR(PMT(Q60,Q52,-(Q77)),0) -> 0 | S78: =IFERROR(PMT(S60,S52,-(S77)),0) -> 0
C80: =IF(E29="ja","Samlede eksterne virkninger på miljøet fra brugsfasen","") -> Samlede eksterne virkninger på miljøet fra brugsfasen | D80: =IF(C80="","","tons CO2e") -> tons CO2e | E80: =IF(E29="ja",SUMIFS('IB - Køle-fryseskabe'!E119:E138,'IB - Køle-fryseskabe'!$B$119:$B$138,"<="&'Køle-fryseskabe'!E52),"") -> 0 | G80: =IF(G29="ja",SUMIFS('IB - Køle-fryseskabe'!G119:G138,'IB - Køle-fryseskabe'!$B$119:$B$138,"<="&'Køle-fryseskabe'!G52),"") -> 0 | I80: =IF(I29="ja",SUMIFS('IB - Køle-fryseskabe'!I119:I138,'IB - Køle-fryseskabe'!$B$119:$B$138,"<="&'Køle-fryseskabe'!I52),"") -> 0 | K80: =IF(K29="ja",SUMIFS('IB - Køle-fryseskabe'!K119:K138,'IB - Køle-fryseskabe'!$B$119:$B$138,"<="&'Køle-fryseskabe'!K52),"") -> 0 | M80: =IF(M29="ja",SUMIFS('IB - Køle-fryseskabe'!M119:M138,'IB - Køle-fryseskabe'!$B$119:$B$138,"<="&'Køle-fryseskabe'!M52),"") -> 0 | O80: =IF(O29="ja",SUMIFS('IB - Køle-fryseskabe'!O119:O138,'IB - Køle-fryseskabe'!$B$119:$B$138,"<="&'Køle-fryseskabe'!O52),"") -> 0 | Q80: =IF(Q29="ja",SUMIFS('IB - Køle-fryseskabe'!Q119:Q138,'IB - Køle-fryseskabe'!$B$119:$B$138,"<="&'Køle-fryseskabe'!Q52),"") -> 0 | S80: =IF(S29="ja",SUMIFS('IB - Køle-fryseskabe'!S119:S138,'IB - Køle-fryseskabe'!$B$119:$B$138,"<="&'Køle-fryseskabe'!S52),"") -> 0
E127: ='IB - Køle-fryseskabe'!E27 -> 0 | G127: ='IB - Køle-fryseskabe'!G27 -> 0 | I127: ='IB - Køle-fryseskabe'!I27 -> 0 | K127: ='IB - Køle-fryseskabe'!K27 -> 0 | M127: ='IB - Køle-fryseskabe'!M27 -> 0 | O127: ='IB - Køle-fryseskabe'!O27 -> 0 | Q127: ='IB - Køle-fryseskabe'!Q27 -> 0 | S127: ='IB - Køle-fryseskabe'!S27 -> 0
E128: ='IB - Køle-fryseskabe'!E28 -> 0 | G128: ='IB - Køle-fryseskabe'!G28 -> 0 | I128: ='IB - Køle-fryseskabe'!I28 -> 0 | K128: ='IB - Køle-fryseskabe'!K28 -> 0 | M128: ='IB - Køle-fryseskabe'!M28 -> 0 | O128: ='IB - Køle-fryseskabe'!O28 -> 0 | Q128: ='IB - Køle-fryseskabe'!Q28 -> 0 | S128: ='IB - Køle-fryseskabe'!S28 -> 0
E129: ='IB - Køle-fryseskabe'!E29 -> 0 | G129: ='IB - Køle-fryseskabe'!G29 -> 0 | I129: ='IB - Køle-fryseskabe'!I29 -> 0 | K129: ='IB - Køle-fryseskabe'!K29 -> 0 | M129: ='IB - Køle-fryseskabe'!M29 -> 0 | O129: ='IB - Køle-fryseskabe'!O29 -> 0 | Q129: ='IB - Køle-fryseskabe'!Q29 -> 0 | S129: ='IB - Køle-fryseskabe'!S29 -> 0
E130: ='IB - Køle-fryseskabe'!E30 -> 0 | G130: ='IB - Køle-fryseskabe'!G30 -> 0 | I130: ='IB - Køle-fryseskabe'!I30 -> 0 | K130: ='IB - Køle-fryseskabe'!K30 -> 0 | M130: ='IB - Køle-fryseskabe'!M30 -> 0 | O130: ='IB - Køle-fryseskabe'!O30 -> 0 | Q130: ='IB - Køle-fryseskabe'!Q30 -> 0 | S130: ='IB - Køle-fryseskabe'!S30 -> 0
E131: ='IB - Køle-fryseskabe'!E31 -> 0 | G131: ='IB - Køle-fryseskabe'!G31 -> 0 | I131: ='IB - Køle-fryseskabe'!I31 -> 0 | K131: ='IB - Køle-fryseskabe'!K31 -> 0 | M131: ='IB - Køle-fryseskabe'!M31 -> 0 | O131: ='IB - Køle-fryseskabe'!O31 -> 0 | Q131: ='IB - Køle-fryseskabe'!Q31 -> 0 | S131: ='IB - Køle-fryseskabe'!S31 -> 0
E132: ='IB - Køle-fryseskabe'!E32 -> 0 | G132: ='IB - Køle-fryseskabe'!G32 -> 0 | I132: ='IB - Køle-fryseskabe'!I32 -> 0 | K132: ='IB - Køle-fryseskabe'!K32 -> 0 | M132: ='IB - Køle-fryseskabe'!M32 -> 0 | O132: ='IB - Køle-fryseskabe'!O32 -> 0 | Q132: ='IB - Køle-fryseskabe'!Q32 -> 0 | S132: ='IB - Køle-fryseskabe'!S32 -> 0
E133: ='IB - Køle-fryseskabe'!E33 -> 0 | G133: ='IB - Køle-fryseskabe'!G33 -> 0 | I133: ='IB - Køle-fryseskabe'!I33 -> 0 | K133: ='IB - Køle-fryseskabe'!K33 -> 0 | M133: ='IB - Køle-fryseskabe'!M33 -> 0 | O133: ='IB - Køle-fryseskabe'!O33 -> 0 | Q133: ='IB - Køle-fryseskabe'!Q33 -> 0 | S133: ='IB - Køle-fryseskabe'!S33 -> 0
E134: ='IB - Køle-fryseskabe'!E34 -> 0 | G134: ='IB - Køle-fryseskabe'!G34 -> 0 | I134: ='IB - Køle-fryseskabe'!I34 -> 0 | K134: ='IB - Køle-fryseskabe'!K34 -> 0 | M134: ='IB - Køle-fryseskabe'!M34 -> 0 | O134: ='IB - Køle-fryseskabe'!O34 -> 0 | Q134: ='IB - Køle-fryseskabe'!Q34 -> 0 | S134: ='IB - Køle-fryseskabe'!S34 -> 0
E135: ='IB - Køle-fryseskabe'!E35 -> 0 | G135: ='IB - Køle-fryseskabe'!G35 -> 0 | I135: ='IB - Køle-fryseskabe'!I35 -> 0 | K135: ='IB - Køle-fryseskabe'!K35 -> 0 | M135: ='IB - Køle-fryseskabe'!M35 -> 0 | O135: ='IB - Køle-fryseskabe'!O35 -> 0 | Q135: ='IB - Køle-fryseskabe'!Q35 -> 0 | S135: ='IB - Køle-fryseskabe'!S35 -> 0
E136: ='IB - Køle-fryseskabe'!E36 -> 0 | G136: ='IB - Køle-fryseskabe'!G36 -> 0 | I136: ='IB - Køle-fryseskabe'!I36 -> 0 | K136: ='IB - Køle-fryseskabe'!K36 -> 0 | M136: ='IB - Køle-fryseskabe'!M36 -> 0 | O136: ='IB - Køle-fryseskabe'!O36 -> 0 | Q136: ='IB - Køle-fryseskabe'!Q36 -> 0 | S136: ='IB - Køle-fryseskabe'!S36 -> 0
E137: ='IB - Køle-fryseskabe'!E37 -> 0 | G137: ='IB - Køle-fryseskabe'!G37 -> 0 | I137: ='IB - Køle-fryseskabe'!I37 -> 0 | K137: ='IB - Køle-fryseskabe'!K37 -> 0 | M137: ='IB - Køle-fryseskabe'!M37 -> 0 | O137: ='IB - Køle-fryseskabe'!O37 -> 0 | Q137: ='IB - Køle-fryseskabe'!Q37 -> 0 | S137: ='IB - Køle-fryseskabe'!S37 -> 0
E138: ='IB - Køle-fryseskabe'!E38 -> 0 | G138: ='IB - Køle-fryseskabe'!G38 -> 0 | I138: ='IB - Køle-fryseskabe'!I38 -> 0 | K138: ='IB - Køle-fryseskabe'!K38 -> 0 | M138: ='IB - Køle-fryseskabe'!M38 -> 0 | O138: ='IB - Køle-fryseskabe'!O38 -> 0 | Q138: ='IB - Køle-fryseskabe'!Q38 -> 0 | S138: ='IB - Køle-fryseskabe'!S38 -> 0
E139: ='IB - Køle-fryseskabe'!E39 -> 0 | G139: ='IB - Køle-fryseskabe'!G39 -> 0 | I139: ='IB - Køle-fryseskabe'!I39 -> 0 | K139: ='IB - Køle-fryseskabe'!K39 -> 0 | M139: ='IB - Køle-fryseskabe'!M39 -> 0 | O139: ='IB - Køle-fryseskabe'!O39 -> 0 | Q139: ='IB - Køle-fryseskabe'!Q39 -> 0 | S139: ='IB - Køle-fryseskabe'!S39 -> 0
E140: ='IB - Køle-fryseskabe'!E40 -> 0 | G140: ='IB - Køle-fryseskabe'!G40 -> 0 | I140: ='IB - Køle-fryseskabe'!I40 -> 0 | K140: ='IB - Køle-fryseskabe'!K40 -> 0 | M140: ='IB - Køle-fryseskabe'!M40 -> 0 | O140: ='IB - Køle-fryseskabe'!O40 -> 0 | Q140: ='IB - Køle-fryseskabe'!Q40 -> 0 | S140: ='IB - Køle-fryseskabe'!S40 -> 0
E141: ='IB - Køle-fryseskabe'!E41 -> 0 | G141: ='IB - Køle-fryseskabe'!G41 -> 0 | I141: ='IB - Køle-fryseskabe'!I41 -> 0 | K141: ='IB - Køle-fryseskabe'!K41 -> 0 | M141: ='IB - Køle-fryseskabe'!M41 -> 0 | O141: ='IB - Køle-fryseskabe'!O41 -> 0 | Q141: ='IB - Køle-fryseskabe'!Q41 -> 0 | S141: ='IB - Køle-fryseskabe'!S41 -> 0
E142: ='IB - Køle-fryseskabe'!E42 -> 0 | G142: ='IB - Køle-fryseskabe'!G42 -> 0 | I142: ='IB - Køle-fryseskabe'!I42 -> 0 | K142: ='IB - Køle-fryseskabe'!K42 -> 0 | M142: ='IB - Køle-fryseskabe'!M42 -> 0 | O142: ='IB - Køle-fryseskabe'!O42 -> 0 | Q142: ='IB - Køle-fryseskabe'!Q42 -> 0 | S142: ='IB - Køle-fryseskabe'!S42 -> 0
E143: ='IB - Køle-fryseskabe'!E43 -> 0 | G143: ='IB - Køle-fryseskabe'!G43 -> 0 | I143: ='IB - Køle-fryseskabe'!I43 -> 0 | K143: ='IB - Køle-fryseskabe'!K43 -> 0 | M143: ='IB - Køle-fryseskabe'!M43 -> 0 | O143: ='IB - Køle-fryseskabe'!O43 -> 0 | Q143: ='IB - Køle-fryseskabe'!Q43 -> 0 | S143: ='IB - Køle-fryseskabe'!S43 -> 0
E144: ='IB - Køle-fryseskabe'!E44 -> 0 | G144: ='IB - Køle-fryseskabe'!G44 -> 0 | I144: ='IB - Køle-fryseskabe'!I44 -> 0 | K144: ='IB - Køle-fryseskabe'!K44 -> 0 | M144: ='IB - Køle-fryseskabe'!M44 -> 0 | O144: ='IB - Køle-fryseskabe'!O44 -> 0 | Q144: ='IB - Køle-fryseskabe'!Q44 -> 0 | S144: ='IB - Køle-fryseskabe'!S44 -> 0
E145: ='IB - Køle-fryseskabe'!E45 -> 0 | G145: ='IB - Køle-fryseskabe'!G45 -> 0 | I145: ='IB - Køle-fryseskabe'!I45 -> 0 | K145: ='IB - Køle-fryseskabe'!K45 -> 0 | M145: ='IB - Køle-fryseskabe'!M45 -> 0 | O145: ='IB - Køle-fryseskabe'!O45 -> 0 | Q145: ='IB - Køle-fryseskabe'!Q45 -> 0 | S145: ='IB - Køle-fryseskabe'!S45 -> 0
C147: ='IB - Køle-fryseskabe'!A94 -> Gennemsnitlige årlige omkostninger (Grafer) | E147: ='IB - Køle-fryseskabe'!E95 -> PRODUKT 1 | G147: ='IB - Køle-fryseskabe'!G95 -> PRODUKT 2 | I147: ='IB - Køle-fryseskabe'!I95 -> PRODUKT 3 | K147: ='IB - Køle-fryseskabe'!K95 -> PRODUKT 4 | M147: ='IB - Køle-fryseskabe'!M95 -> PRODUKT 5 | O147: ='IB - Køle-fryseskabe'!O95 -> PRODUKT 6 | Q147: ='IB - Køle-fryseskabe'!Q95 -> PRODUKT 7 | S147: ='IB - Køle-fryseskabe'!S95 -> PRODUKT 8
E148: ='IB - Køle-fryseskabe'!E96 -> 0 | G148: ='IB - Køle-fryseskabe'!G96 -> 0 | I148: ='IB - Køle-fryseskabe'!I96 -> 0 | K148: ='IB - Køle-fryseskabe'!K96 -> 0 | M148: ='IB - Køle-fryseskabe'!M96 -> 0 | O148: ='IB - Køle-fryseskabe'!O96 -> 0 | Q148: ='IB - Køle-fryseskabe'!Q96 -> 0 | S148: ='IB - Køle-fryseskabe'!S96 -> 0
E149: ='IB - Køle-fryseskabe'!E97 -> 0 | G149: ='IB - Køle-fryseskabe'!G97 -> 0 | I149: ='IB - Køle-fryseskabe'!I97 -> 0 | K149: ='IB - Køle-fryseskabe'!K97 -> 0 | M149: ='IB - Køle-fryseskabe'!M97 -> 0 | O149: ='IB - Køle-fryseskabe'!O97 -> 0 | Q149: ='IB - Køle-fryseskabe'!Q97 -> 0 | S149: ='IB - Køle-fryseskabe'!S97 -> 0
E150: ='IB - Køle-fryseskabe'!E98 -> 0 | G150: ='IB - Køle-fryseskabe'!G98 -> 0 | I150: ='IB - Køle-fryseskabe'!I98 -> 0 | K150: ='IB - Køle-fryseskabe'!K98 -> 0 | M150: ='IB - Køle-fryseskabe'!M98 -> 0 | O150: ='IB - Køle-fryseskabe'!O98 -> 0 | Q150: ='IB - Køle-fryseskabe'!Q98 -> 0 | S150: ='IB - Køle-fryseskabe'!S98 -> 0
E151: ='IB - Køle-fryseskabe'!E99 -> 0 | G151: ='IB - Køle-fryseskabe'!G99 -> 0 | I151: ='IB - Køle-fryseskabe'!I99 -> 0 | K151: ='IB - Køle-fryseskabe'!K99 -> 0 | M151: ='IB - Køle-fryseskabe'!M99 -> 0 | O151: ='IB - Køle-fryseskabe'!O99 -> 0 | Q151: ='IB - Køle-fryseskabe'!Q99 -> 0 | S151: ='IB - Køle-fryseskabe'!S99 -> 0
E152: ='IB - Køle-fryseskabe'!E100 -> 0 | G152: ='IB - Køle-fryseskabe'!G100 -> 0 | I152: ='IB - Køle-fryseskabe'!I100 -> 0 | K152: ='IB - Køle-fryseskabe'!K100 -> 0 | M152: ='IB - Køle-fryseskabe'!M100 -> 0 | O152: ='IB - Køle-fryseskabe'!O100 -> 0 | Q152: ='IB - Køle-fryseskabe'!Q100 -> 0 | S152: ='IB - Køle-fryseskabe'!S100 -> 0
E153: ='IB - Køle-fryseskabe'!E101 -> 0 | G153: ='IB - Køle-fryseskabe'!G101 -> 0 | I153: ='IB - Køle-fryseskabe'!I101 -> 0 | K153: ='IB - Køle-fryseskabe'!K101 -> 0 | M153: ='IB - Køle-fryseskabe'!M101 -> 0 | O153: ='IB - Køle-fryseskabe'!O101 -> 0 | Q153: ='IB - Køle-fryseskabe'!Q101 -> 0 | S153: ='IB - Køle-fryseskabe'!S101 -> 0
E154: ='IB - Køle-fryseskabe'!E102 -> 0 | G154: ='IB - Køle-fryseskabe'!G102 -> 0 | I154: ='IB - Køle-fryseskabe'!I102 -> 0 | K154: ='IB - Køle-fryseskabe'!K102 -> 0 | M154: ='IB - Køle-fryseskabe'!M102 -> 0 | O154: ='IB - Køle-fryseskabe'!O102 -> 0 | Q154: ='IB - Køle-fryseskabe'!Q102 -> 0 | S154: ='IB - Køle-fryseskabe'!S102 -> 0
E155: ='IB - Køle-fryseskabe'!E103 -> 0 | G155: ='IB - Køle-fryseskabe'!G103 -> 0 | I155: ='IB - Køle-fryseskabe'!I103 -> 0 | K155: ='IB - Køle-fryseskabe'!K103 -> 0 | M155: ='IB - Køle-fryseskabe'!M103 -> 0 | O155: ='IB - Køle-fryseskabe'!O103 -> 0 | Q155: ='IB - Køle-fryseskabe'!Q103 -> 0 | S155: ='IB - Køle-fryseskabe'!S103 -> 0
E156: ='IB - Køle-fryseskabe'!E104 -> 0 | G156: ='IB - Køle-fryseskabe'!G104 -> 0 | I156: ='IB - Køle-fryseskabe'!I104 -> 0 | K156: ='IB - Køle-fryseskabe'!K104 -> 0 | M156: ='IB - Køle-fryseskabe'!M104 -> 0 | O156: ='IB - Køle-fryseskabe'!O104 -> 0 | Q156: ='IB - Køle-fryseskabe'!Q104 -> 0 | S156: ='IB - Køle-fryseskabe'!S104 -> 0
E157: ='IB - Køle-fryseskabe'!E105 -> 0 | G157: ='IB - Køle-fryseskabe'!G105 -> 0 | I157: ='IB - Køle-fryseskabe'!I105 -> 0 | K157: ='IB - Køle-fryseskabe'!K105 -> 0 | M157: ='IB - Køle-fryseskabe'!M105 -> 0 | O157: ='IB - Køle-fryseskabe'!O105 -> 0 | Q157: ='IB - Køle-fryseskabe'!Q105 -> 0 | S157: ='IB - Køle-fryseskabe'!S105 -> 0
E158: ='IB - Køle-fryseskabe'!E106 -> 0 | G158: ='IB - Køle-fryseskabe'!G106 -> 0 | I158: ='IB - Køle-fryseskabe'!I106 -> 0 | K158: ='IB - Køle-fryseskabe'!K106 -> 0 | M158: ='IB - Køle-fryseskabe'!M106 -> 0 | O158: ='IB - Køle-fryseskabe'!O106 -> 0 | Q158: ='IB - Køle-fryseskabe'!Q106 -> 0 | S158: ='IB - Køle-fryseskabe'!S106 -> 0
E159: ='IB - Køle-fryseskabe'!E107 -> 0 | G159: ='IB - Køle-fryseskabe'!G107 -> 0 | I159: ='IB - Køle-fryseskabe'!I107 -> 0 | K159: ='IB - Køle-fryseskabe'!K107 -> 0 | M159: ='IB - Køle-fryseskabe'!M107 -> 0 | O159: ='IB - Køle-fryseskabe'!O107 -> 0 | Q159: ='IB - Køle-fryseskabe'!Q107 -> 0 | S159: ='IB - Køle-fryseskabe'!S107 -> 0
E160: ='IB - Køle-fryseskabe'!E108 -> 0 | G160: ='IB - Køle-fryseskabe'!G108 -> 0 | I160: ='IB - Køle-fryseskabe'!I108 -> 0 | K160: ='IB - Køle-fryseskabe'!K108 -> 0 | M160: ='IB - Køle-fryseskabe'!M108 -> 0 | O160: ='IB - Køle-fryseskabe'!O108 -> 0 | Q160: ='IB - Køle-fryseskabe'!Q108 -> 0 | S160: ='IB - Køle-fryseskabe'!S108 -> 0
E161: ='IB - Køle-fryseskabe'!E109 -> 0 | G161: ='IB - Køle-fryseskabe'!G109 -> 0 | I161: ='IB - Køle-fryseskabe'!I109 -> 0 | K161: ='IB - Køle-fryseskabe'!K109 -> 0 | M161: ='IB - Køle-fryseskabe'!M109 -> 0 | O161: ='IB - Køle-fryseskabe'!O109 -> 0 | Q161: ='IB - Køle-fryseskabe'!Q109 -> 0 | S161: ='IB - Køle-fryseskabe'!S109 -> 0
E162: ='IB - Køle-fryseskabe'!E110 -> 0 | G162: ='IB - Køle-fryseskabe'!G110 -> 0 | I162: ='IB - Køle-fryseskabe'!I110 -> 0 | K162: ='IB - Køle-fryseskabe'!K110 -> 0 | M162: ='IB - Køle-fryseskabe'!M110 -> 0 | O162: ='IB - Køle-fryseskabe'!O110 -> 0 | Q162: ='IB - Køle-fryseskabe'!Q110 -> 0 | S162: ='IB - Køle-fryseskabe'!S110 -> 0
E163: ='IB - Køle-fryseskabe'!E111 -> 0 | G163: ='IB - Køle-fryseskabe'!G111 -> 0 | I163: ='IB - Køle-fryseskabe'!I111 -> 0 | K163: ='IB - Køle-fryseskabe'!K111 -> 0 | M163: ='IB - Køle-fryseskabe'!M111 -> 0 | O163: ='IB - Køle-fryseskabe'!O111 -> 0 | Q163: ='IB - Køle-fryseskabe'!Q111 -> 0 | S163: ='IB - Køle-fryseskabe'!S111 -> 0
E164: ='IB - Køle-fryseskabe'!E112 -> 0 | G164: ='IB - Køle-fryseskabe'!G112 -> 0 | I164: ='IB - Køle-fryseskabe'!I112 -> 0 | K164: ='IB - Køle-fryseskabe'!K112 -> 0 | M164: ='IB - Køle-fryseskabe'!M112 -> 0 | O164: ='IB - Køle-fryseskabe'!O112 -> 0 | Q164: ='IB - Køle-fryseskabe'!Q112 -> 0 | S164: ='IB - Køle-fryseskabe'!S112 -> 0
E165: ='IB - Køle-fryseskabe'!E113 -> 0 | G165: ='IB - Køle-fryseskabe'!G113 -> 0 | I165: ='IB - Køle-fryseskabe'!I113 -> 0 | K165: ='IB - Køle-fryseskabe'!K113 -> 0 | M165: ='IB - Køle-fryseskabe'!M113 -> 0 | O165: ='IB - Køle-fryseskabe'!O113 -> 0 | Q165: ='IB - Køle-fryseskabe'!Q113 -> 0 | S165: ='IB - Køle-fryseskabe'!S113 -> 0
E166: ='IB - Køle-fryseskabe'!E114 -> 0 | G166: ='IB - Køle-fryseskabe'!G114 -> 0 | I166: ='IB - Køle-fryseskabe'!I114 -> 0 | K166: ='IB - Køle-fryseskabe'!K114 -> 0 | M166: ='IB - Køle-fryseskabe'!M114 -> 0 | O166: ='IB - Køle-fryseskabe'!O114 -> 0 | Q166: ='IB - Køle-fryseskabe'!Q114 -> 0 | S166: ='IB - Køle-fryseskabe'!S114 -> 0
E167: ='IB - Køle-fryseskabe'!E115 -> 0 | G167: ='IB - Køle-fryseskabe'!G115 -> 0 | I167: ='IB - Køle-fryseskabe'!I115 -> 0 | K167: ='IB - Køle-fryseskabe'!K115 -> 0 | M167: ='IB - Køle-fryseskabe'!M115 -> 0 | O167: ='IB - Køle-fryseskabe'!O115 -> 0 | Q167: ='IB - Køle-fryseskabe'!Q115 -> 0 | S167: ='IB - Køle-fryseskabe'!S115 -> 0

Sheet IB - Køle-fryseskabe (hidden)
B2: Driftsomkostninger | E2: PRODUKT 1 | G2: PRODUKT 2 | I2: PRODUKT 3 | K2: PRODUKT 4 | M2: PRODUKT 5 | O2: PRODUKT 6 | Q2: PRODUKT 7 | S2: PRODUKT 8
B3: År indeks | C3: Elpris
B4: 1 | C4: =IF('Køle-fryseskabe'!$E$54="ja",'Køle-fryseskabe'!$E$55,'Køle-fryseskabe'!$E$57) -> 1.851 | E4: =((IF($B4<='Køle-fryseskabe'!E$46,'Køle-fryseskabe'!E$21,0)*'Køle-fryseskabe'!E$42+'Køle-fryseskabe'!E$17*'Køle-fryseskabe'!E$42*'Køle-fryseskabe'!E$43*$C4)*((1+'Køle-fryseskabe'!E$60)^-$B4)) -> 0 | G4: =((IF($B4<='Køle-fryseskabe'!G$46,'Køle-fryseskabe'!G$21,0)*'Køle-fryseskabe'!G$42+'Køle-fryseskabe'!G$17*'Køle-fryseskabe'!G$42*'Køle-fryseskabe'!G$43*$C4)*((1+'Køle-fryseskabe'!G$60)^-$B4)) -> 0 | I4: =((IF($B4<='Køle-fryseskabe'!I$46,'Køle-fryseskabe'!I$21,0)*'Køle-fryseskabe'!I$42+'Køle-fryseskabe'!I$17*'Køle-fryseskabe'!I$42*'Køle-fryseskabe'!I$43*$C4)*((1+'Køle-fryseskabe'!I$60)^-$B4)) -> 0 | K4: =((IF($B4<='Køle-fryseskabe'!K$46,'Køle-fryseskabe'!K$21,0)*'Køle-fryseskabe'!K$42+'Køle-fryseskabe'!K$17*'Køle-fryseskabe'!K$42*'Køle-fryseskabe'!K$43*$C4)*((1+'Køle-fryseskabe'!K$60)^-$B4)) -> 0 | M4: =((IF($B4<='Køle-fryseskabe'!M$46,'Køle-fryseskabe'!M$21,0)*'Køle-fryseskabe'!M$42+'Køle-fryseskabe'!M$17*'Køle-fryseskabe'!M$42*'Køle-fryseskabe'!M$43*$C4)*((1+'Køle-fryseskabe'!M$60)^-$B4)) -> 0 | O4: =((IF($B4<='Køle-fryseskabe'!O$46,'Køle-fryseskabe'!O$21,0)*'Køle-fryseskabe'!O$42+'Køle-fryseskabe'!O$17*'Køle-fryseskabe'!O$42*'Køle-fryseskabe'!O$43*$C4)*((1+'Køle-fryseskabe'!O$60)^-$B4)) -> 0 | Q4: =((IF($B4<='Køle-fryseskabe'!Q$46,'Køle-fryseskabe'!Q$21,0)*'Køle-fryseskabe'!Q$42+'Køle-fryseskabe'!Q$17*'Køle-fryseskabe'!Q$42*'Køle-fryseskabe'!Q$43*$C4)*((1+'Køle-fryseskabe'!Q$60)^-$B4)) -> 0 | S4: =((IF($B4<='Køle-fryseskabe'!S$46,'Køle-fryseskabe'!S$21,0)*'Køle-fryseskabe'!S$42+'Køle-fryseskabe'!S$17*'Køle-fryseskabe'!S$42*'Køle-fryseskabe'!S$43*$C4)*((1+'Køle-fryseskabe'!S$60)^-$B4)) -> 0
B5: =B4+1 -> 2 | C5: =((C4-Fremskrivninger!E9)*(1+IF('Køle-fryseskabe'!$E$54="ja",'Køle-fryseskabe'!$E$56,'Køle-fryseskabe'!$E$58))+Fremskrivninger!E9) -> 1.8593834 | E5: =((IF($B5<='Køle-fryseskabe'!E$46,'Køle-fryseskabe'!E$21,0)*'Køle-fryseskabe'!E$42+'Køle-fryseskabe'!E$17*'Køle-fryseskabe'!E$42*'Køle-fryseskabe'!E$43*$C5)*((1+'Køle-fryseskabe'!E$60)^-$B5)) -> 0 | G5: =((IF($B5<='Køle-fryseskabe'!G$46,'Køle-fryseskabe'!G$21,0)*'Køle-fryseskabe'!G$42+'Køle-fryseskabe'!G$17*'Køle-fryseskabe'!G$42*'Køle-fryseskabe'!G$43*$C5)*((1+'Køle-fryseskabe'!G$60)^-$B5)) -> 0 | I5: =((IF($B5<='Køle-fryseskabe'!I$46,'Køle-fryseskabe'!I$21,0)*'Køle-fryseskabe'!I$42+'Køle-fryseskabe'!I$17*'Køle-fryseskabe'!I$42*'Køle-fryseskabe'!I$43*$C5)*((1+'Køle-fryseskabe'!I$60)^-$B5)) -> 0 | K5: =((IF($B5<='Køle-fryseskabe'!K$46,'Køle-fryseskabe'!K$21,0)*'Køle-fryseskabe'!K$42+'Køle-fryseskabe'!K$17*'Køle-fryseskabe'!K$42*'Køle-fryseskabe'!K$43*$C5)*((1+'Køle-fryseskabe'!K$60)^-$B5)) -> 0 | M5: =((IF($B5<='Køle-fryseskabe'!M$46,'Køle-fryseskabe'!M$21,0)*'Køle-fryseskabe'!M$42+'Køle-fryseskabe'!M$17*'Køle-fryseskabe'!M$42*'Køle-fryseskabe'!M$43*$C5)*((1+'Køle-fryseskabe'!M$60)^-$B5)) -> 0 | O5: =((IF($B5<='Køle-fryseskabe'!O$46,'Køle-fryseskabe'!O$21,0)*'Køle-fryseskabe'!O$42+'Køle-fryseskabe'!O$17*'Køle-fryseskabe'!O$42*'Køle-fryseskabe'!O$43*$C5)*((1+'Køle-fryseskabe'!O$60)^-$B5)) -> 0 | Q5: =((IF($B5<='Køle-fryseskabe'!Q$46,'Køle-fryseskabe'!Q$21,0)*'Køle-fryseskabe'!Q$42+'Køle-fryseskabe'!Q$17*'Køle-fryseskabe'!Q$42*'Køle-fryseskabe'!Q$43*$C5)*((1+'Køle-fryseskabe'!Q$60)^-$B5)) -> 0 | S5: =((IF($B5<='Køle-fryseskabe'!S$46,'Køle-fryseskabe'!S$21,0)*'Køle-fryseskabe'!S$42+'Køle-fryseskabe'!S$17*'Køle-fryseskabe'!S$42*'Køle-fryseskabe'!S$43*$C5)*((1+'Køle-fryseskabe'!S$60)^-$B5)) -> 0
B6: 3 | C6: =((C5-Fremskrivninger!E10)*(1+IF('Køle-fryseskabe'!$E$54="ja",'Køle-fryseskabe'!$E$56,'Køle-fryseskabe'!$E$58))+Fremskrivninger!E10) -> 1.868942203 | E6: =((IF($B6<='Køle-fryseskabe'!E$46,'Køle-fryseskabe'!E$21,0)*'Køle-fryseskabe'!E$42+'Køle-fryseskabe'!E$17*'Køle-fryseskabe'!E$42*'Køle-fryseskabe'!E$43*$C6)*((1+'Køle-fryseskabe'!E$60)^-$B6)) -> 0 | G6: =((IF($B6<='Køle-fryseskabe'!G$46,'Køle-fryseskabe'!G$21,0)*'Køle-fryseskabe'!G$42+'Køle-fryseskabe'!G$17*'Køle-fryseskabe'!G$42*'Køle-fryseskabe'!G$43*$C6)*((1+'Køle-fryseskabe'!G$60)^-$B6)) -> 0 | I6: =((IF($B6<='Køle-fryseskabe'!I$46,'Køle-fryseskabe'!I$21,0)*'Køle-fryseskabe'!I$42+'Køle-fryseskabe'!I$17*'Køle-fryseskabe'!I$42*'Køle-fryseskabe'!I$43*$C6)*((1+'Køle-fryseskabe'!I$60)^-$B6)) -> 0 | K6: =((IF($B6<='Køle-fryseskabe'!K$46,'Køle-fryseskabe'!K$21,0)*'Køle-fryseskabe'!K$42+'Køle-fryseskabe'!K$17*'Køle-fryseskabe'!K$42*'Køle-fryseskabe'!K$43*$C6)*((1+'Køle-fryseskabe'!K$60)^-$B6)) -> 0 | M6: =((IF($B6<='Køle-fryseskabe'!M$46,'Køle-fryseskabe'!M$21,0)*'Køle-fryseskabe'!M$42+'Køle-fryseskabe'!M$17*'Køle-fryseskabe'!M$42*'Køle-fryseskabe'!M$43*$C6)*((1+'Køle-fryseskabe'!M$60)^-$B6)) -> 0 | O6: =((IF($B6<='Køle-fryseskabe'!O$46,'Køle-fryseskabe'!O$21,0)*'Køle-fryseskabe'!O$42+'Køle-fryseskabe'!O$17*'Køle-fryseskabe'!O$42*'Køle-fryseskabe'!O$43*$C6)*((1+'Køle-fryseskabe'!O$60)^-$B6)) -> 0 | Q6: =((IF($B6<='Køle-fryseskabe'!Q$46,'Køle-fryseskabe'!Q$21,0)*'Køle-fryseskabe'!Q$42+'Køle-fryseskabe'!Q$17*'Køle-fryseskabe'!Q$42*'Køle-fryseskabe'!Q$43*$C6)*((1+'Køle-fryseskabe'!Q$60)^-$B6)) -> 0 | S6: =((IF($B6<='Køle-fryseskabe'!S$46,'Køle-fryseskabe'!S$21,0)*'Køle-fryseskabe'!S$42+'Køle-fryseskabe'!S$17*'Køle-fryseskabe'!S$42*'Køle-fryseskabe'!S$43*$C6)*((1+'Køle-fryseskabe'!S$60)^-$B6)) -> 0
B7: 4 | C7: =((C6-Fremskrivninger!E11)*(1+IF('Køle-fryseskabe'!$E$54="ja",'Køle-fryseskabe'!$E$56,'Køle-fryseskabe'!$E$58))+Fremskrivninger!E11) -> 1.878660638 | E7: =((IF($B7<='Køle-fryseskabe'!E$46,'Køle-fryseskabe'!E$21,0)*'Køle-fryseskabe'!E$42+'Køle-fryseskabe'!E$17*'Køle-fryseskabe'!E$42*'Køle-fryseskabe'!E$43*$C7)*((1+'Køle-fryseskabe'!E$60)^-$B7)) -> 0 | G7: =((IF($B7<='Køle-fryseskabe'!G$46,'Køle-fryseskabe'!G$21,0)*'Køle-fryseskabe'!G$42+'Køle-fryseskabe'!G$17*'Køle-fryseskabe'!G$42*'Køle-fryseskabe'!G$43*$C7)*((1+'Køle-fryseskabe'!G$60)^-$B7)) -> 0 | I7: =((IF($B7<='Køle-fryseskabe'!I$46,'Køle-fryseskabe'!I$21,0)*'Køle-fryseskabe'!I$42+'Køle-fryseskabe'!I$17*'Køle-fryseskabe'!I$42*'Køle-fryseskabe'!I$43*$C7)*((1+'Køle-fryseskabe'!I$60)^-$B7)) -> 0 | K7: =((IF($B7<='Køle-fryseskabe'!K$46,'Køle-fryseskabe'!K$21,0)*'Køle-fryseskabe'!K$42+'Køle-fryseskabe'!K$17*'Køle-fryseskabe'!K$42*'Køle-fryseskabe'!K$43*$C7)*((1+'Køle-fryseskabe'!K$60)^-$B7)) -> 0 | M7: =((IF($B7<='Køle-fryseskabe'!M$46,'Køle-fryseskabe'!M$21,0)*'Køle-fryseskabe'!M$42+'Køle-fryseskabe'!M$17*'Køle-fryseskabe'!M$42*'Køle-fryseskabe'!M$43*$C7)*((1+'Køle-fryseskabe'!M$60)^-$B7)) -> 0 | O7: =((IF($B7<='Køle-fryseskabe'!O$46,'Køle-fryseskabe'!O$21,0)*'Køle-fryseskabe'!O$42+'Køle-fryseskabe'!O$17*'Køle-fryseskabe'!O$42*'Køle-fryseskabe'!O$43*$C7)*((1+'Køle-fryseskabe'!O$60)^-$B7)) -> 0 | Q7: =((IF($B7<='Køle-fryseskabe'!Q$46,'Køle-fryseskabe'!Q$21,0)*'Køle-fryseskabe'!Q$42+'Køle-fryseskabe'!Q$17*'Køle-fryseskabe'!Q$42*'Køle-fryseskabe'!Q$43*$C7)*((1+'Køle-fryseskabe'!Q$60)^-$B7)) -> 0 | S7: =((IF($B7<='Køle-fryseskabe'!S$46,'Køle-fryseskabe'!S$21,0)*'Køle-fryseskabe'!S$42+'Køle-fryseskabe'!S$17*'Køle-fryseskabe'!S$42*'Køle-fryseskabe'!S$43*$C7)*((1+'Køle-fryseskabe'!S$60)^-$B7)) -> 0
B8: 5 | C8: =((C7-Fremskrivninger!E12)*(1+IF('Køle-fryseskabe'!$E$54="ja",'Køle-fryseskabe'!$E$56,'Køle-fryseskabe'!$E$58))+Fremskrivninger!E12) -> 1.88854137 | E8: =((IF($B8<='Køle-fryseskabe'!E$46,'Køle-fryseskabe'!E$21,0)*'Køle-fryseskabe'!E$42+'Køle-fryseskabe'!E$17*'Køle-fryseskabe'!E$42*'Køle-fryseskabe'!E$43*$C8)*((1+'Køle-fryseskabe'!E$60)^-$B8)) -> 0 | G8: =((IF($B8<='Køle-fryseskabe'!G$46,'Køle-fryseskabe'!G$21,0)*'Køle-fryseskabe'!G$42+'Køle-fryseskabe'!G$17*'Køle-fryseskabe'!G$42*'Køle-fryseskabe'!G$43*$C8)*((1+'Køle-fryseskabe'!G$60)^-$B8)) -> 0 | I8: =((IF($B8<='Køle-fryseskabe'!I$46,'Køle-fryseskabe'!I$21,0)*'Køle-fryseskabe'!I$42+'Køle-fryseskabe'!I$17*'Køle-fryseskabe'!I$42*'Køle-fryseskabe'!I$43*$C8)*((1+'Køle-fryseskabe'!I$60)^-$B8)) -> 0 | K8: =((IF($B8<='Køle-fryseskabe'!K$46,'Køle-fryseskabe'!K$21,0)*'Køle-fryseskabe'!K$42+'Køle-fryseskabe'!K$17*'Køle-fryseskabe'!K$42*'Køle-fryseskabe'!K$43*$C8)*((1+'Køle-fryseskabe'!K$60)^-$B8)) -> 0 | M8: =((IF($B8<='Køle-fryseskabe'!M$46,'Køle-fryseskabe'!M$21,0)*'Køle-fryseskabe'!M$42+'Køle-fryseskabe'!M$17*'Køle-fryseskabe'!M$42*'Køle-fryseskabe'!M$43*$C8)*((1+'Køle-fryseskabe'!M$60)^-$B8)) -> 0 | O8: =((IF($B8<='Køle-fryseskabe'!O$46,'Køle-fryseskabe'!O$21,0)*'Køle-fryseskabe'!O$42+'Køle-fryseskabe'!O$17*'Køle-fryseskabe'!O$42*'Køle-fryseskabe'!O$43*$C8)*((1+'Køle-fryseskabe'!O$60)^-$B8)) -> 0 | Q8: =((IF($B8<='Køle-fryseskabe'!Q$46,'Køle-fryseskabe'!Q$21,0)*'Køle-fryseskabe'!Q$42+'Køle-fryseskabe'!Q$17*'Køle-fryseskabe'!Q$42*'Køle-fryseskabe'!Q$43*$C8)*((1+'Køle-fryseskabe'!Q$60)^-$B8)) -> 0 | S8: =((IF($B8<='Køle-fryseskabe'!S$46,'Køle-fryseskabe'!S$21,0)*'Køle-fryseskabe'!S$42+'Køle-fryseskabe'!S$17*'Køle-fryseskabe'!S$42*'Køle-fryseskabe'!S$43*$C8)*((1+'Køle-fryseskabe'!S$60)^-$B8)) -> 0
B9: 6 | C9: =((C8-Fremskrivninger!E13)*(1+IF('Køle-fryseskabe'!$E$54="ja",'Køle-fryseskabe'!$E$56,'Køle-fryseskabe'!$E$58))+Fremskrivninger!E13) -> 1.898587111 | E9: =((IF($B9<='Køle-fryseskabe'!E$46,'Køle-fryseskabe'!E$21,0)*'Køle-fryseskabe'!E$42+'Køle-fryseskabe'!E$17*'Køle-fryseskabe'!E$42*'Køle-fryseskabe'!E$43*$C9)*((1+'Køle-fryseskabe'!E$60)^-$B9)) -> 0 | G9: =((IF($B9<='Køle-fryseskabe'!G$46,'Køle-fryseskabe'!G$21,0)*'Køle-fryseskabe'!G$42+'Køle-fryseskabe'!G$17*'Køle-fryseskabe'!G$42*'Køle-fryseskabe'!G$43*$C9)*((1+'Køle-fryseskabe'!G$60)^-$B9)) -> 0 | I9: =((IF($B9<='Køle-fryseskabe'!I$46,'Køle-fryseskabe'!I$21,0)*'Køle-fryseskabe'!I$42+'Køle-fryseskabe'!I$17*'Køle-fryseskabe'!I$42*'Køle-fryseskabe'!I$43*$C9)*((1+'Køle-fryseskabe'!I$60)^-$B9)) -> 0 | K9: =((IF($B9<='Køle-fryseskabe'!K$46,'Køle-fryseskabe'!K$21,0)*'Køle-fryseskabe'!K$42+'Køle-fryseskabe'!K$17*'Køle-fryseskabe'!K$42*'Køle-fryseskabe'!K$43*$C9)*((1+'Køle-fryseskabe'!K$60)^-$B9)) -> 0 | M9: =((IF($B9<='Køle-fryseskabe'!M$46,'Køle-fryseskabe'!M$21,0)*'Køle-fryseskabe'!M$42+'Køle-fryseskabe'!M$17*'Køle-fryseskabe'!M$42*'Køle-fryseskabe'!M$43*$C9)*((1+'Køle-fryseskabe'!M$60)^-$B9)) -> 0 | O9: =((IF($B9<='Køle-fryseskabe'!O$46,'Køle-fryseskabe'!O$21,0)*'Køle-fryseskabe'!O$42+'Køle-fryseskabe'!O$17*'Køle-fryseskabe'!O$42*'Køle-fryseskabe'!O$43*$C9)*((1+'Køle-fryseskabe'!O$60)^-$B9)) -> 0 | Q9: =((IF($B9<='Køle-fryseskabe'!Q$46,'Køle-fryseskabe'!Q$21,0)*'Køle-fryseskabe'!Q$42+'Køle-fryseskabe'!Q$17*'Køle-fryseskabe'!Q$42*'Køle-fryseskabe'!Q$43*$C9)*((1+'Køle-fryseskabe'!Q$60)^-$B9)) -> 0 | S9: =((IF($B9<='Køle-fryseskabe'!S$46,'Køle-fryseskabe'!S$21,0)*'Køle-fryseskabe'!S$42+'Køle-fryseskabe'!S$17*'Køle-fryseskabe'!S$42*'Køle-fryseskabe'!S$43*$C9)*((1+'Køle-fryseskabe'!S$60)^-$B9)) -> 0
B10: 7 | C10: =((C9-Fremskrivninger!E14)*(1+IF('Køle-fryseskabe'!$E$54="ja",'Køle-fryseskabe'!$E$56,'Køle-fryseskabe'!$E$58))+Fremskrivninger!E14) -> 1.908800616 | E10: =((IF($B10<='Køle-fryseskabe'!E$46,'Køle-fryseskabe'!E$21,0)*'Køle-fryseskabe'!E$42+'Køle-fryseskabe'!E$17*'Køle-fryseskabe'!E$42*'Køle-fryseskabe'!E$43*$C10)*((1+'Køle-fryseskabe'!E$60)^-$B10)) -> 0 | G10: =((IF($B10<='Køle-fryseskabe'!G$46,'Køle-fryseskabe'!G$21,0)*'Køle-fryseskabe'!G$42+'Køle-fryseskabe'!G$17*'Køle-fryseskabe'!G$42*'Køle-fryseskabe'!G$43*$C10)*((1+'Køle-fryseskabe'!G$60)^-$B10)) -> 0 | I10: =((IF($B10<='Køle-fryseskabe'!I$46,'Køle-fryseskabe'!I$21,0)*'Køle-fryseskabe'!I$42+'Køle-fryseskabe'!I$17*'Køle-fryseskabe'!I$42*'Køle-fryseskabe'!I$43*$C10)*((1+'Køle-fryseskabe'!I$60)^-$B10)) -> 0 | K10: =((IF($B10<='Køle-fryseskabe'!K$46,'Køle-fryseskabe'!K$21,0)*'Køle-fryseskabe'!K$42+'Køle-fryseskabe'!K$17*'Køle-fryseskabe'!K$42*'Køle-fryseskabe'!K$43*$C10)*((1+'Køle-fryseskabe'!K$60)^-$B10)) -> 0 | M10: =((IF($B10<='Køle-fryseskabe'!M$46,'Køle-fryseskabe'!M$21,0)*'Køle-fryseskabe'!M$42+'Køle-fryseskabe'!M$17*'Køle-fryseskabe'!M$42*'Køle-fryseskabe'!M$43*$C10)*((1+'Køle-fryseskabe'!M$60)^-$B10)) -> 0 | O10: =((IF($B10<='Køle-fryseskabe'!O$46,'Køle-fryseskabe'!O$21,0)*'Køle-fryseskabe'!O$42+'Køle-fryseskabe'!O$17*'Køle-fryseskabe'!O$42*'Køle-fryseskabe'!O$43*$C10)*((1+'Køle-fryseskabe'!O$60)^-$B10)) -> 0 | Q10: =((IF($B10<='Køle-fryseskabe'!Q$46,'Køle-fryseskabe'!Q$21,0)*'Køle-fryseskabe'!Q$42+'Køle-fryseskabe'!Q$17*'Køle-fryseskabe'!Q$42*'Køle-fryseskabe'!Q$43*$C10)*((1+'Køle-fryseskabe'!Q$60)^-$B10)) -> 0 | S10: =((IF($B10<='Køle-fryseskabe'!S$46,'Køle-fryseskabe'!S$21,0)*'Køle-fryseskabe'!S$42+'Køle-fryseskabe'!S$17*'Køle-fryseskabe'!S$42*'Køle-fryseskabe'!S$43*$C10)*((1+'Køle-fryseskabe'!S$60)^-$B10)) -> 0
B11: 8 | C11: =((C10-Fremskrivninger!E15)*(1+IF('Køle-fryseskabe'!$E$54="ja",'Køle-fryseskabe'!$E$56,'Køle-fryseskabe'!$E$58))+Fremskrivninger!E15) -> 1.919184686 | E11: =((IF($B11<='Køle-fryseskabe'!E$46,'Køle-fryseskabe'!E$21,0)*'Køle-fryseskabe'!E$42+'Køle-fryseskabe'!E$17*'Køle-fryseskabe'!E$42*'Køle-fryseskabe'!E$43*$C11)*((1+'Køle-fryseskabe'!E$60)^-$B11)) -> 0 | G11: =((IF($B11<='Køle-fryseskabe'!G$46,'Køle-fryseskabe'!G$21,0)*'Køle-fryseskabe'!G$42+'Køle-fryseskabe'!G$17*'Køle-fryseskabe'!G$42*'Køle-fryseskabe'!G$43*$C11)*((1+'Køle-fryseskabe'!G$60)^-$B11)) -> 0 | I11: =((IF($B11<='Køle-fryseskabe'!I$46,'Køle-fryseskabe'!I$21,0)*'Køle-fryseskabe'!I$42+'Køle-fryseskabe'!I$17*'Køle-fryseskabe'!I$42*'Køle-fryseskabe'!I$43*$C11)*((1+'Køle-fryseskabe'!I$60)^-$B11)) -> 0 | K11: =((IF($B11<='Køle-fryseskabe'!K$46,'Køle-fryseskabe'!K$21,0)*'Køle-fryseskabe'!K$42+'Køle-fryseskabe'!K$17*'Køle-fryseskabe'!K$42*'Køle-fryseskabe'!K$43*$C11)*((1+'Køle-fryseskabe'!K$60)^-$B11)) -> 0 | M11: =((IF($B11<='Køle-fryseskabe'!M$46,'Køle-fryseskabe'!M$21,0)*'Køle-fryseskabe'!M$42+'Køle-fryseskabe'!M$17*'Køle-fryseskabe'!M$42*'Køle-fryseskabe'!M$43*$C11)*((1+'Køle-fryseskabe'!M$60)^-$B11)) -> 0 | O11: =((IF($B11<='Køle-fryseskabe'!O$46,'Køle-fryseskabe'!O$21,0)*'Køle-fryseskabe'!O$42+'Køle-fryseskabe'!O$17*'Køle-fryseskabe'!O$42*'Køle-fryseskabe'!O$43*$C11)*((1+'Køle-fryseskabe'!O$60)^-$B11)) -> 0 | Q11: =((IF($B11<='Køle-fryseskabe'!Q$46,'Køle-fryseskabe'!Q$21,0)*'Køle-fryseskabe'!Q$42+'Køle-fryseskabe'!Q$17*'Køle-fryseskabe'!Q$42*'Køle-fryseskabe'!Q$43*$C11)*((1+'Køle-fryseskabe'!Q$60)^-$B11)) -> 0 | S11: =((IF($B11<='Køle-fryseskabe'!S$46,'Køle-fryseskabe'!S$21,0)*'Køle-fryseskabe'!S$42+'Køle-fryseskabe'!S$17*'Køle-fryseskabe'!S$42*'Køle-fryseskabe'!S$43*$C11)*((1+'Køle-fryseskabe'!S$60)^-$B11)) -> 0
B12: 9 | C12: =((C11-Fremskrivninger!E16)*(1+IF('Køle-fryseskabe'!$E$54="ja",'Køle-fryseskabe'!$E$56,'Køle-fryseskabe'!$E$58))+Fremskrivninger!E16) -> 1.92974217 | E12: =((IF($B12<='Køle-fryseskabe'!E$46,'Køle-fryseskabe'!E$21,0)*'Køle-fryseskabe'!E$42+'Køle-fryseskabe'!E$17*'Køle-fryseskabe'!E$42*'Køle-fryseskabe'!E$43*$C12)*((1+'Køle-fryseskabe'!E$60)^-$B12)) -> 0 | G12: =((IF($B12<='Køle-fryseskabe'!G$46,'Køle-fryseskabe'!G$21,0)*'Køle-fryseskabe'!G$42+'Køle-fryseskabe'!G$17*'Køle-fryseskabe'!G$42*'Køle-fryseskabe'!G$43*$C12)*((1+'Køle-fryseskabe'!G$60)^-$B12)) -> 0 | I12: =((IF($B12<='Køle-fryseskabe'!I$46,'Køle-fryseskabe'!I$21,0)*'Køle-fryseskabe'!I$42+'Køle-fryseskabe'!I$17*'Køle-fryseskabe'!I$42*'Køle-fryseskabe'!I$43*$C12)*((1+'Køle-fryseskabe'!I$60)^-$B12)) -> 0 | K12: =((IF($B12<='Køle-fryseskabe'!K$46,'Køle-fryseskabe'!K$21,0)*'Køle-fryseskabe'!K$42+'Køle-fryseskabe'!K$17*'Køle-fryseskabe'!K$42*'Køle-fryseskabe'!K$43*$C12)*((1+'Køle-fryseskabe'!K$60)^-$B12)) -> 0 | M12: =((IF($B12<='Køle-fryseskabe'!M$46,'Køle-fryseskabe'!M$21,0)*'Køle-fryseskabe'!M$42+'Køle-fryseskabe'!M$17*'Køle-fryseskabe'!M$42*'Køle-fryseskabe'!M$43*$C12)*((1+'Køle-fryseskabe'!M$60)^-$B12)) -> 0 | O12: =((IF($B12<='Køle-fryseskabe'!O$46,'Køle-fryseskabe'!O$21,0)*'Køle-fryseskabe'!O$42+'Køle-fryseskabe'!O$17*'Køle-fryseskabe'!O$42*'Køle-fryseskabe'!O$43*$C12)*((1+'Køle-fryseskabe'!O$60)^-$B12)) -> 0 | Q12: =((IF($B12<='Køle-fryseskabe'!Q$46,'Køle-fryseskabe'!Q$21,0)*'Køle-fryseskabe'!Q$42+'Køle-fryseskabe'!Q$17*'Køle-fryseskabe'!Q$42*'Køle-fryseskabe'!Q$43*$C12)*((1+'Køle-fryseskabe'!Q$60)^-$B12)) -> 0 | S12: =((IF($B12<='Køle-fryseskabe'!S$46,'Køle-fryseskabe'!S$21,0)*'Køle-fryseskabe'!S$42+'Køle-fryseskabe'!S$17*'Køle-fryseskabe'!S$42*'Køle-fryseskabe'!S$43*$C12)*((1+'Køle-fryseskabe'!S$60)^-$B12)) -> 0
B13: 10 | C13: =((C12-Fremskrivninger!E17)*(1+IF('Køle-fryseskabe'!$E$54="ja",'Køle-fryseskabe'!$E$56,'Køle-fryseskabe'!$E$58))+Fremskrivninger!E17) -> 1.940475965 | E13: =((IF($B13<='Køle-fryseskabe'!E$46,'Køle-fryseskabe'!E$21,0)*'Køle-fryseskabe'!E$42+'Køle-fryseskabe'!E$17*'Køle-fryseskabe'!E$42*'Køle-fryseskabe'!E$43*$C13)*((1+'Køle-fryseskabe'!E$60)^-$B13)) -> 0 | G13: =((IF($B13<='Køle-fryseskabe'!G$46,'Køle-fryseskabe'!G$21,0)*'Køle-fryseskabe'!G$42+'Køle-fryseskabe'!G$17*'Køle-fryseskabe'!G$42*'Køle-fryseskabe'!G$43*$C13)*((1+'Køle-fryseskabe'!G$60)^-$B13)) -> 0 | I13: =((IF($B13<='Køle-fryseskabe'!I$46,'Køle-fryseskabe'!I$21,0)*'Køle-fryseskabe'!I$42+'Køle-fryseskabe'!I$17*'Køle-fryseskabe'!I$42*'Køle-fryseskabe'!I$43*$C13)*((1+'Køle-fryseskabe'!I$60)^-$B13)) -> 0 | K13: =((IF($B13<='Køle-fryseskabe'!K$46,'Køle-fryseskabe'!K$21,0)*'Køle-fryseskabe'!K$42+'Køle-fryseskabe'!K$17*'Køle-fryseskabe'!K$42*'Køle-fryseskabe'!K$43*$C13)*((1+'Køle-fryseskabe'!K$60)^-$B13)) -> 0 | M13: =((IF($B13<='Køle-fryseskabe'!M$46,'Køle-fryseskabe'!M$21,0)*'Køle-fryseskabe'!M$42+'Køle-fryseskabe'!M$17*'Køle-fryseskabe'!M$42*'Køle-fryseskabe'!M$43*$C13)*((1+'Køle-fryseskabe'!M$60)^-$B13)) -> 0 | O13: =((IF($B13<='Køle-fryseskabe'!O$46,'Køle-fryseskabe'!O$21,0)*'Køle-fryseskabe'!O$42+'Køle-fryseskabe'!O$17*'Køle-fryseskabe'!O$42*'Køle-fryseskabe'!O$43*$C13)*((1+'Køle-fryseskabe'!O$60)^-$B13)) -> 0 | Q13: =((IF($B13<='Køle-fryseskabe'!Q$46,'Køle-fryseskabe'!Q$21,0)*'Køle-fryseskabe'!Q$42+'Køle-fryseskabe'!Q$17*'Køle-fryseskabe'!Q$42*'Køle-fryseskabe'!Q$43*$C13)*((1+'Køle-fryseskabe'!Q$60)^-$B13)) -> 0 | S13: =((IF($B13<='Køle-fryseskabe'!S$46,'Køle-fryseskabe'!S$21,0)*'Køle-fryseskabe'!S$42+'Køle-fryseskabe'!S$17*'Køle-fryseskabe'!S$42*'Køle-fryseskabe'!S$43*$C13)*((1+'Køle-fryseskabe'!S$60)^-$B13)) -> 0
B14: 11 | C14: =((C13-Fremskrivninger!E18)*(1+IF('Køle-fryseskabe'!$E$54="ja",'Køle-fryseskabe'!$E$56,'Køle-fryseskabe'!$E$58))+Fremskrivninger!E18) -> 1.951389013 | E14: =((IF($B14<='Køle-fryseskabe'!E$46,'Køle-fryseskabe'!E$21,0)*'Køle-fryseskabe'!E$42+'Køle-fryseskabe'!E$17*'Køle-fryseskabe'!E$42*'Køle-fryseskabe'!E$43*$C14)*((1+'Køle-fryseskabe'!E$60)^-$B14)) -> 0 | G14: =((IF($B14<='Køle-fryseskabe'!G$46,'Køle-fryseskabe'!G$21,0)*'Køle-fryseskabe'!G$42+'Køle-fryseskabe'!G$17*'Køle-fryseskabe'!G$42*'Køle-fryseskabe'!G$43*$C14)*((1+'Køle-fryseskabe'!G$60)^-$B14)) -> 0 | I14: =((IF($B14<='Køle-fryseskabe'!I$46,'Køle-fryseskabe'!I$21,0)*'Køle-fryseskabe'!I$42+'Køle-fryseskabe'!I$17*'Køle-fryseskabe'!I$42*'Køle-fryseskabe'!I$43*$C14)*((1+'Køle-fryseskabe'!I$60)^-$B14)) -> 0 | K14: =((IF($B14<='Køle-fryseskabe'!K$46,'Køle-fryseskabe'!K$21,0)*'Køle-fryseskabe'!K$42+'Køle-fryseskabe'!K$17*'Køle-fryseskabe'!K$42*'Køle-fryseskabe'!K$43*$C14)*((1+'Køle-fryseskabe'!K$60)^-$B14)) -> 0 | M14: =((IF($B14<='Køle-fryseskabe'!M$46,'Køle-fryseskabe'!M$21,0)*'Køle-fryseskabe'!M$42+'Køle-fryseskabe'!M$17*'Køle-fryseskabe'!M$42*'Køle-fryseskabe'!M$43*$C14)*((1+'Køle-fryseskabe'!M$60)^-$B14)) -> 0 | O14: =((IF($B14<='Køle-fryseskabe'!O$46,'Køle-fryseskabe'!O$21,0)*'Køle-fryseskabe'!O$42+'Køle-fryseskabe'!O$17*'Køle-fryseskabe'!O$42*'Køle-fryseskabe'!O$43*$C14)*((1+'Køle-fryseskabe'!O$60)^-$B14)) -> 0 | Q14: =((IF($B14<='Køle-fryseskabe'!Q$46,'Køle-fryseskabe'!Q$21,0)*'Køle-fryseskabe'!Q$42+'Køle-fryseskabe'!Q$17*'Køle-fryseskabe'!Q$42*'Køle-fryseskabe'!Q$43*$C14)*((1+'Køle-fryseskabe'!Q$60)^-$B14)) -> 0 | S14: =((IF($B14<='Køle-fryseskabe'!S$46,'Køle-fryseskabe'!S$21,0)*'Køle-fryseskabe'!S$42+'Køle-fryseskabe'!S$17*'Køle-fryseskabe'!S$42*'Køle-fryseskabe'!S$43*$C14)*((1+'Køle-fryseskabe'!S$60)^-$B14)) -> 0
B15: 12 | C15: =((C14-Fremskrivninger!E19)*(1+IF('Køle-fryseskabe'!$E$54="ja",'Køle-fryseskabe'!$E$56,'Køle-fryseskabe'!$E$58))+Fremskrivninger!E19) -> 1.96248431 | E15: =((IF($B15<='Køle-fryseskabe'!E$46,'Køle-fryseskabe'!E$21,0)*'Køle-fryseskabe'!E$42+'Køle-fryseskabe'!E$17*'Køle-fryseskabe'!E$42*'Køle-fryseskabe'!E$43*$C15)*((1+'Køle-fryseskabe'!E$60)^-$B15)) -> 0 | G15: =((IF($B15<='Køle-fryseskabe'!G$46,'Køle-fryseskabe'!G$21,0)*'Køle-fryseskabe'!G$42+'Køle-fryseskabe'!G$17*'Køle-fryseskabe'!G$42*'Køle-fryseskabe'!G$43*$C15)*((1+'Køle-fryseskabe'!G$60)^-$B15)) -> 0 | I15: =((IF($B15<='Køle-fryseskabe'!I$46,'Køle-fryseskabe'!I$21,0)*'Køle-fryseskabe'!I$42+'Køle-fryseskabe'!I$17*'Køle-fryseskabe'!I$42*'Køle-fryseskabe'!I$43*$C15)*((1+'Køle-fryseskabe'!I$60)^-$B15)) -> 0 | K15: =((IF($B15<='Køle-fryseskabe'!K$46,'Køle-fryseskabe'!K$21,0)*'Køle-fryseskabe'!K$42+'Køle-fryseskabe'!K$17*'Køle-fryseskabe'!K$42*'Køle-fryseskabe'!K$43*$C15)*((1+'Køle-fryseskabe'!K$60)^-$B15)) -> 0 | M15: =((IF($B15<='Køle-fryseskabe'!M$46,'Køle-fryseskabe'!M$21,0)*'Køle-fryseskabe'!M$42+'Køle-fryseskabe'!M$17*'Køle-fryseskabe'!M$42*'Køle-fryseskabe'!M$43*$C15)*((1+'Køle-fryseskabe'!M$60)^-$B15)) -> 0 | O15: =((IF($B15<='Køle-fryseskabe'!O$46,'Køle-fryseskabe'!O$21,0)*'Køle-fryseskabe'!O$42+'Køle-fryseskabe'!O$17*'Køle-fryseskabe'!O$42*'Køle-fryseskabe'!O$43*$C15)*((1+'Køle-fryseskabe'!O$60)^-$B15)) -> 0 | Q15: =((IF($B15<='Køle-fryseskabe'!Q$46,'Køle-fryseskabe'!Q$21,0)*'Køle-fryseskabe'!Q$42+'Køle-fryseskabe'!Q$17*'Køle-fryseskabe'!Q$42*'Køle-fryseskabe'!Q$43*$C15)*((1+'Køle-fryseskabe'!Q$60)^-$B15)) -> 0 | S15: =((IF($B15<='Køle-fryseskabe'!S$46,'Køle-fryseskabe'!S$21,0)*'Køle-fryseskabe'!S$42+'Køle-fryseskabe'!S$17*'Køle-fryseskabe'!S$42*'Køle-fryseskabe'!S$43*$C15)*((1+'Køle-fryseskabe'!S$60)^-$B15)) -> 0
B16: 13 | C16: =((C15-Fremskrivninger!E20)*(1+IF('Køle-fryseskabe'!$E$54="ja",'Køle-fryseskabe'!$E$56,'Køle-fryseskabe'!$E$58))+Fremskrivninger!E20) -> 1.973764898 | E16: =((IF($B16<='Køle-fryseskabe'!E$46,'Køle-fryseskabe'!E$21,0)*'Køle-fryseskabe'!E$42+'Køle-fryseskabe'!E$17*'Køle-fryseskabe'!E$42*'Køle-fryseskabe'!E$43*$C16)*((1+'Køle-fryseskabe'!E$60)^-$B16)) -> 0 | G16: =((IF($B16<='Køle-fryseskabe'!G$46,'Køle-fryseskabe'!G$21,0)*'Køle-fryseskabe'!G$42+'Køle-fryseskabe'!G$17*'Køle-fryseskabe'!G$42*'Køle-fryseskabe'!G$43*$C16)*((1+'Køle-fryseskabe'!G$60)^-$B16)) -> 0 | I16: =((IF($B16<='Køle-fryseskabe'!I$46,'Køle-fryseskabe'!I$21,0)*'Køle-fryseskabe'!I$42+'Køle-fryseskabe'!I$17*'Køle-fryseskabe'!I$42*'Køle-fryseskabe'!I$43*$C16)*((1+'Køle-fryseskabe'!I$60)^-$B16)) -> 0 | K16: =((IF($B16<='Køle-fryseskabe'!K$46,'Køle-fryseskabe'!K$21,0)*'Køle-fryseskabe'!K$42+'Køle-fryseskabe'!K$17*'Køle-fryseskabe'!K$42*'Køle-fryseskabe'!K$43*$C16)*((1+'Køle-fryseskabe'!K$60)^-$B16)) -> 0 | M16: =((IF($B16<='Køle-fryseskabe'!M$46,'Køle-fryseskabe'!M$21,0)*'Køle-fryseskabe'!M$42+'Køle-fryseskabe'!M$17*'Køle-fryseskabe'!M$42*'Køle-fryseskabe'!M$43*$C16)*((1+'Køle-fryseskabe'!M$60)^-$B16)) -> 0 | O16: =((IF($B16<='Køle-fryseskabe'!O$46,'Køle-fryseskabe'!O$21,0)*'Køle-fryseskabe'!O$42+'Køle-fryseskabe'!O$17*'Køle-fryseskabe'!O$42*'Køle-fryseskabe'!O$43*$C16)*((1+'Køle-fryseskabe'!O$60)^-$B16)) -> 0 | Q16: =((IF($B16<='Køle-fryseskabe'!Q$46,'Køle-fryseskabe'!Q$21,0)*'Køle-fryseskabe'!Q$42+'Køle-fryseskabe'!Q$17*'Køle-fryseskabe'!Q$42*'Køle-fryseskabe'!Q$43*$C16)*((1+'Køle-fryseskabe'!Q$60)^-$B16)) -> 0 | S16: =((IF($B16<='Køle-fryseskabe'!S$46,'Køle-fryseskabe'!S$21,0)*'Køle-fryseskabe'!S$42+'Køle-fryseskabe'!S$17*'Køle-fryseskabe'!S$42*'Køle-fryseskabe'!S$43*$C16)*((1+'Køle-fryseskabe'!S$60)^-$B16)) -> 0
B17: 14 | C17: =((C16-Fremskrivninger!E21)*(1+IF('Køle-fryseskabe'!$E$54="ja",'Køle-fryseskabe'!$E$56,'Køle-fryseskabe'!$E$58))+Fremskrivninger!E21) -> 1.985233872 | E17: =((IF($B17<='Køle-fryseskabe'!E$46,'Køle-fryseskabe'!E$21,0)*'Køle-fryseskabe'!E$42+'Køle-fryseskabe'!E$17*'Køle-fryseskabe'!E$42*'Køle-fryseskabe'!E$43*$C17)*((1+'Køle-fryseskabe'!E$60)^-$B17)) -> 0 | G17: =((IF($B17<='Køle-fryseskabe'!G$46,'Køle-fryseskabe'!G$21,0)*'Køle-fryseskabe'!G$42+'Køle-fryseskabe'!G$17*'Køle-fryseskabe'!G$42*'Køle-fryseskabe'!G$43*$C17)*((1+'Køle-fryseskabe'!G$60)^-$B17)) -> 0 | I17: =((IF($B17<='Køle-fryseskabe'!I$46,'Køle-fryseskabe'!I$21,0)*'Køle-fryseskabe'!I$42+'Køle-fryseskabe'!I$17*'Køle-fryseskabe'!I$42*'Køle-fryseskabe'!I$43*$C17)*((1+'Køle-fryseskabe'!I$60)^-$B17)) -> 0 | K17: =((IF($B17<='Køle-fryseskabe'!K$46,'Køle-fryseskabe'!K$21,0)*'Køle-fryseskabe'!K$42+'Køle-fryseskabe'!K$17*'Køle-fryseskabe'!K$42*'Køle-fryseskabe'!K$43*$C17)*((1+'Køle-fryseskabe'!K$60)^-$B17)) -> 0 | M17: =((IF($B17<='Køle-fryseskabe'!M$46,'Køle-fryseskabe'!M$21,0)*'Køle-fryseskabe'!M$42+'Køle-fryseskabe'!M$17*'Køle-fryseskabe'!M$42*'Køle-fryseskabe'!M$43*$C17)*((1+'Køle-fryseskabe'!M$60)^-$B17)) -> 0 | O17: =((IF($B17<='Køle-fryseskabe'!O$46,'Køle-fryseskabe'!O$21,0)*'Køle-fryseskabe'!O$42+'Køle-fryseskabe'!O$17*'Køle-fryseskabe'!O$42*'Køle-fryseskabe'!O$43*$C17)*((1+'Køle-fryseskabe'!O$60)^-$B17)) -> 0 | Q17: =((IF($B17<='Køle-fryseskabe'!Q$46,'Køle-fryseskabe'!Q$21,0)*'Køle-fryseskabe'!Q$42+'Køle-fryseskabe'!Q$17*'Køle-fryseskabe'!Q$42*'Køle-fryseskabe'!Q$43*$C17)*((1+'Køle-fryseskabe'!Q$60)^-$B17)) -> 0 | S17: =((IF($B17<='Køle-fryseskabe'!S$46,'Køle-fryseskabe'!S$21,0)*'Køle-fryseskabe'!S$42+'Køle-fryseskabe'!S$17*'Køle-fryseskabe'!S$42*'Køle-fryseskabe'!S$43*$C17)*((1+'Køle-fryseskabe'!S$60)^-$B17)) -> 0
B18: 15 | C18: =((C17-Fremskrivninger!E22)*(1+IF('Køle-fryseskabe'!$E$54="ja",'Køle-fryseskabe'!$E$56,'Køle-fryseskabe'!$E$58))+Fremskrivninger!E22) -> 1.996894377 | E18: =((IF($B18<='Køle-fryseskabe'!E$46,'Køle-fryseskabe'!E$21,0)*'Køle-fryseskabe'!E$42+'Køle-fryseskabe'!E$17*'Køle-fryseskabe'!E$42*'Køle-fryseskabe'!E$43*$C18)*((1+'Køle-fryseskabe'!E$60)^-$B18)) -> 0 | G18: =((IF($B18<='Køle-fryseskabe'!G$46,'Køle-fryseskabe'!G$21,0)*'Køle-fryseskabe'!G$42+'Køle-fryseskabe'!G$17*'Køle-fryseskabe'!G$42*'Køle-fryseskabe'!G$43*$C18)*((1+'Køle-fryseskabe'!G$60)^-$B18)) -> 0 | I18: =((IF($B18<='Køle-fryseskabe'!I$46,'Køle-fryseskabe'!I$21,0)*'Køle-fryseskabe'!I$42+'Køle-fryseskabe'!I$17*'Køle-fryseskabe'!I$42*'Køle-fryseskabe'!I$43*$C18)*((1+'Køle-fryseskabe'!I$60)^-$B18)) -> 0 | K18: =((IF($B18<='Køle-fryseskabe'!K$46,'Køle-fryseskabe'!K$21,0)*'Køle-fryseskabe'!K$42+'Køle-fryseskabe'!K$17*'Køle-fryseskabe'!K$42*'Køle-fryseskabe'!K$43*$C18)*((1+'Køle-fryseskabe'!K$60)^-$B18)) -> 0 | M18: =((IF($B18<='Køle-fryseskabe'!M$46,'Køle-fryseskabe'!M$21,0)*'Køle-fryseskabe'!M$42+'Køle-fryseskabe'!M$17*'Køle-fryseskabe'!M$42*'Køle-fryseskabe'!M$43*$C18)*((1+'Køle-fryseskabe'!M$60)^-$B18)) -> 0 | O18: =((IF($B18<='Køle-fryseskabe'!O$46,'Køle-fryseskabe'!O$21,0)*'Køle-fryseskabe'!O$42+'Køle-fryseskabe'!O$17*'Køle-fryseskabe'!O$42*'Køle-fryseskabe'!O$43*$C18)*((1+'Køle-fryseskabe'!O$60)^-$B18)) -> 0 | Q18: =((IF($B18<='Køle-fryseskabe'!Q$46,'Køle-fryseskabe'!Q$21,0)*'Køle-fryseskabe'!Q$42+'Køle-fryseskabe'!Q$17*'Køle-fryseskabe'!Q$42*'Køle-fryseskabe'!Q$43*$C18)*((1+'Køle-fryseskabe'!Q$60)^-$B18)) -> 0 | S18: =((IF($B18<='Køle-fryseskabe'!S$46,'Køle-fryseskabe'!S$21,0)*'Køle-fryseskabe'!S$42+'Køle-fryseskabe'!S$17*'Køle-fryseskabe'!S$42*'Køle-fryseskabe'!S$43*$C18)*((1+'Køle-fryseskabe'!S$60)^-$B18)) -> 0
B19: 16 | C19: =((C18-Fremskrivninger!E23)*(1+IF('Køle-fryseskabe'!$E$54="ja",'Køle-fryseskabe'!$E$56,'Køle-fryseskabe'!$E$58))+Fremskrivninger!E23) -> 2.008749613 | E19: =((IF($B19<='Køle-fryseskabe'!E$46,'Køle-fryseskabe'!E$21,0)*'Køle-fryseskabe'!E$42+'Køle-fryseskabe'!E$17*'Køle-fryseskabe'!E$42*'Køle-fryseskabe'!E$43*$C19)*((1+'Køle-fryseskabe'!E$60)^-$B19)) -> 0 | G19: =((IF($B19<='Køle-fryseskabe'!G$46,'Køle-fryseskabe'!G$21,0)*'Køle-fryseskabe'!G$42+'Køle-fryseskabe'!G$17*'Køle-fryseskabe'!G$42*'Køle-fryseskabe'!G$43*$C19)*((1+'Køle-fryseskabe'!G$60)^-$B19)) -> 0 | I19: =((IF($B19<='Køle-fryseskabe'!I$46,'Køle-fryseskabe'!I$21,0)*'Køle-fryseskabe'!I$42+'Køle-fryseskabe'!I$17*'Køle-fryseskabe'!I$42*'Køle-fryseskabe'!I$43*$C19)*((1+'Køle-fryseskabe'!I$60)^-$B19)) -> 0 | K19: =((IF($B19<='Køle-fryseskabe'!K$46,'Køle-fryseskabe'!K$21,0)*'Køle-fryseskabe'!K$42+'Køle-fryseskabe'!K$17*'Køle-fryseskabe'!K$42*'Køle-fryseskabe'!K$43*$C19)*((1+'Køle-fryseskabe'!K$60)^-$B19)) -> 0 | M19: =((IF($B19<='Køle-fryseskabe'!M$46,'Køle-fryseskabe'!M$21,0)*'Køle-fryseskabe'!M$42+'Køle-fryseskabe'!M$17*'Køle-fryseskabe'!M$42*'Køle-fryseskabe'!M$43*$C19)*((1+'Køle-fryseskabe'!M$60)^-$B19)) -> 0 | O19: =((IF($B19<='Køle-fryseskabe'!O$46,'Køle-fryseskabe'!O$21,0)*'Køle-fryseskabe'!O$42+'Køle-fryseskabe'!O$17*'Køle-fryseskabe'!O$42*'Køle-fryseskabe'!O$43*$C19)*((1+'Køle-fryseskabe'!O$60)^-$B19)) -> 0 | Q19: =((IF($B19<='Køle-fryseskabe'!Q$46,'Køle-fryseskabe'!Q$21,0)*'Køle-fryseskabe'!Q$42+'Køle-fryseskabe'!Q$17*'Køle-fryseskabe'!Q$42*'Køle-fryseskabe'!Q$43*$C19)*((1+'Køle-fryseskabe'!Q$60)^-$B19)) -> 0 | S19: =((IF($B19<='Køle-fryseskabe'!S$46,'Køle-fryseskabe'!S$21,0)*'Køle-fryseskabe'!S$42+'Køle-fryseskabe'!S$17*'Køle-fryseskabe'!S$42*'Køle-fryseskabe'!S$43*$C19)*((1+'Køle-fryseskabe'!S$60)^-$B19)) -> 0
B20: 17 | C20: =((C19-Fremskrivninger!E24)*(1+IF('Køle-fryseskabe'!$E$54="ja",'Køle-fryseskabe'!$E$56,'Køle-fryseskabe'!$E$58))+Fremskrivninger!E24) -> 2.020802832 | E20: =((IF($B20<='Køle-fryseskabe'!E$46,'Køle-fryseskabe'!E$21,0)*'Køle-fryseskabe'!E$42+'Køle-fryseskabe'!E$17*'Køle-fryseskabe'!E$42*'Køle-fryseskabe'!E$43*$C20)*((1+'Køle-fryseskabe'!E$60)^-$B20)) -> 0 | G20: =((IF($B20<='Køle-fryseskabe'!G$46,'Køle-fryseskabe'!G$21,0)*'Køle-fryseskabe'!G$42+'Køle-fryseskabe'!G$17*'Køle-fryseskabe'!G$42*'Køle-fryseskabe'!G$43*$C20)*((1+'Køle-fryseskabe'!G$60)^-$B20)) -> 0 | I20: =((IF($B20<='Køle-fryseskabe'!I$46,'Køle-fryseskabe'!I$21,0)*'Køle-fryseskabe'!I$42+'Køle-fryseskabe'!I$17*'Køle-fryseskabe'!I$42*'Køle-fryseskabe'!I$43*$C20)*((1+'Køle-fryseskabe'!I$60)^-$B20)) -> 0 | K20: =((IF($B20<='Køle-fryseskabe'!K$46,'Køle-fryseskabe'!K$21,0)*'Køle-fryseskabe'!K$42+'Køle-fryseskabe'!K$17*'Køle-fryseskabe'!K$42*'Køle-fryseskabe'!K$43*$C20)*((1+'Køle-fryseskabe'!K$60)^-$B20)) -> 0 | M20: =((IF($B20<='Køle-fryseskabe'!M$46,'Køle-fryseskabe'!M$21,0)*'Køle-fryseskabe'!M$42+'Køle-fryseskabe'!M$17*'Køle-fryseskabe'!M$42*'Køle-fryseskabe'!M$43*$C20)*((1+'Køle-fryseskabe'!M$60)^-$B20)) -> 0 | O20: =((IF($B20<='Køle-fryseskabe'!O$46,'Køle-fryseskabe'!O$21,0)*'Køle-fryseskabe'!O$42+'Køle-fryseskabe'!O$17*'Køle-fryseskabe'!O$42*'Køle-fryseskabe'!O$43*$C20)*((1+'Køle-fryseskabe'!O$60)^-$B20)) -> 0 | Q20: =((IF($B20<='Køle-fryseskabe'!Q$46,'Køle-fryseskabe'!Q$21,0)*'Køle-fryseskabe'!Q$42+'Køle-fryseskabe'!Q$17*'Køle-fryseskabe'!Q$42*'Køle-fryseskabe'!Q$43*$C20)*((1+'Køle-fryseskabe'!Q$60)^-$B20)) -> 0 | S20: =((IF($B20<='Køle-fryseskabe'!S$46,'Køle-fryseskabe'!S$21,0)*'Køle-fryseskabe'!S$42+'Køle-fryseskabe'!S$17*'Køle-fryseskabe'!S$42*'Køle-fryseskabe'!S$43*$C20)*((1+'Køle-fryseskabe'!S$60)^-$B20)) -> 0
B21: 18 | C21: =((C20-Fremskrivninger!E25)*(1+IF('Køle-fryseskabe'!$E$54="ja",'Køle-fryseskabe'!$E$56,'Køle-fryseskabe'!$E$58))+Fremskrivninger!E25) -> 2.033057339 | E21: =((IF($B21<='Køle-fryseskabe'!E$46,'Køle-fryseskabe'!E$21,0)*'Køle-fryseskabe'!E$42+'Køle-fryseskabe'!E$17*'Køle-fryseskabe'!E$42*'Køle-fryseskabe'!E$43*$C21)*((1+'Køle-fryseskabe'!E$60)^-$B21)) -> 0 | G21: =((IF($B21<='Køle-fryseskabe'!G$46,'Køle-fryseskabe'!G$21,0)*'Køle-fryseskabe'!G$42+'Køle-fryseskabe'!G$17*'Køle-fryseskabe'!G$42*'Køle-fryseskabe'!G$43*$C21)*((1+'Køle-fryseskabe'!G$60)^-$B21)) -> 0 | I21: =((IF($B21<='Køle-fryseskabe'!I$46,'Køle-fryseskabe'!I$21,0)*'Køle-fryseskabe'!I$42+'Køle-fryseskabe'!I$17*'Køle-fryseskabe'!I$42*'Køle-fryseskabe'!I$43*$C21)*((1+'Køle-fryseskabe'!I$60)^-$B21)) -> 0 | K21: =((IF($B21<='Køle-fryseskabe'!K$46,'Køle-fryseskabe'!K$21,0)*'Køle-fryseskabe'!K$42+'Køle-fryseskabe'!K$17*'Køle-fryseskabe'!K$42*'Køle-fryseskabe'!K$43*$C21)*((1+'Køle-fryseskabe'!K$60)^-$B21)) -> 0 | M21: =((IF($B21<='Køle-fryseskabe'!M$46,'Køle-fryseskabe'!M$21,0)*'Køle-fryseskabe'!M$42+'Køle-fryseskabe'!M$17*'Køle-fryseskabe'!M$42*'Køle-fryseskabe'!M$43*$C21)*((1+'Køle-fryseskabe'!M$60)^-$B21)) -> 0 | O21: =((IF($B21<='Køle-fryseskabe'!O$46,'Køle-fryseskabe'!O$21,0)*'Køle-fryseskabe'!O$42+'Køle-fryseskabe'!O$17*'Køle-fryseskabe'!O$42*'Køle-fryseskabe'!O$43*$C21)*((1+'Køle-fryseskabe'!O$60)^-$B21)) -> 0 | Q21: =((IF($B21<='Køle-fryseskabe'!Q$46,'Køle-fryseskabe'!Q$21,0)*'Køle-fryseskabe'!Q$42+'Køle-fryseskabe'!Q$17*'Køle-fryseskabe'!Q$42*'Køle-fryseskabe'!Q$43*$C21)*((1+'Køle-fryseskabe'!Q$60)^-$B21)) -> 0 | S21: =((IF($B21<='Køle-fryseskabe'!S$46,'Køle-fryseskabe'!S$21,0)*'Køle-fryseskabe'!S$42+'Køle-fryseskabe'!S$17*'Køle-fryseskabe'!S$42*'Køle-fryseskabe'!S$43*$C21)*((1+'Køle-fryseskabe'!S$60)^-$B21)) -> 0
B22: 19 | C22: =((C21-Fremskrivninger!E26)*(1+IF('Køle-fryseskabe'!$E$54="ja",'Køle-fryseskabe'!$E$56,'Køle-fryseskabe'!$E$58))+Fremskrivninger!E26) -> 2.045516497 | E22: =((IF($B22<='Køle-fryseskabe'!E$46,'Køle-fryseskabe'!E$21,0)*'Køle-fryseskabe'!E$42+'Køle-fryseskabe'!E$17*'Køle-fryseskabe'!E$42*'Køle-fryseskabe'!E$43*$C22)*((1+'Køle-fryseskabe'!E$60)^-$B22)) -> 0 | G22: =((IF($B22<='Køle-fryseskabe'!G$46,'Køle-fryseskabe'!G$21,0)*'Køle-fryseskabe'!G$42+'Køle-fryseskabe'!G$17*'Køle-fryseskabe'!G$42*'Køle-fryseskabe'!G$43*$C22)*((1+'Køle-fryseskabe'!G$60)^-$B22)) -> 0 | I22: =((IF($B22<='Køle-fryseskabe'!I$46,'Køle-fryseskabe'!I$21,0)*'Køle-fryseskabe'!I$42+'Køle-fryseskabe'!I$17*'Køle-fryseskabe'!I$42*'Køle-fryseskabe'!I$43*$C22)*((1+'Køle-fryseskabe'!I$60)^-$B22)) -> 0 | K22: =((IF($B22<='Køle-fryseskabe'!K$46,'Køle-fryseskabe'!K$21,0)*'Køle-fryseskabe'!K$42+'Køle-fryseskabe'!K$17*'Køle-fryseskabe'!K$42*'Køle-fryseskabe'!K$43*$C22)*((1+'Køle-fryseskabe'!K$60)^-$B22)) -> 0 | M22: =((IF($B22<='Køle-fryseskabe'!M$46,'Køle-fryseskabe'!M$21,0)*'Køle-fryseskabe'!M$42+'Køle-fryseskabe'!M$17*'Køle-fryseskabe'!M$42*'Køle-fryseskabe'!M$43*$C22)*((1+'Køle-fryseskabe'!M$60)^-$B22)) -> 0 | O22: =((IF($B22<='Køle-fryseskabe'!O$46,'Køle-fryseskabe'!O$21,0)*'Køle-fryseskabe'!O$42+'Køle-fryseskabe'!O$17*'Køle-fryseskabe'!O$42*'Køle-fryseskabe'!O$43*$C22)*((1+'Køle-fryseskabe'!O$60)^-$B22)) -> 0 | Q22: =((IF($B22<='Køle-fryseskabe'!Q$46,'Køle-fryseskabe'!Q$21,0)*'Køle-fryseskabe'!Q$42+'Køle-fryseskabe'!Q$17*'Køle-fryseskabe'!Q$42*'Køle-fryseskabe'!Q$43*$C22)*((1+'Køle-fryseskabe'!Q$60)^-$B22)) -> 0 | S22: =((IF($B22<='Køle-fryseskabe'!S$46,'Køle-fryseskabe'!S$21,0)*'Køle-fryseskabe'!S$42+'Køle-fryseskabe'!S$17*'Køle-fryseskabe'!S$42*'Køle-fryseskabe'!S$43*$C22)*((1+'Køle-fryseskabe'!S$60)^-$B22)) -> 0
B23: 20 | C23: =((C22-Fremskrivninger!E27)*(1+IF('Køle-fryseskabe'!$E$54="ja",'Køle-fryseskabe'!$E$56,'Køle-fryseskabe'!$E$58))+Fremskrivninger!E27) -> 2.058183722 | E23: =((IF($B23<='Køle-fryseskabe'!E$46,'Køle-fryseskabe'!E$21,0)*'Køle-fryseskabe'!E$42+'Køle-fryseskabe'!E$17*'Køle-fryseskabe'!E$42*'Køle-fryseskabe'!E$43*$C23)*((1+'Køle-fryseskabe'!E$60)^-$B23)) -> 0 | G23: =((IF($B23<='Køle-fryseskabe'!G$46,'Køle-fryseskabe'!G$21,0)*'Køle-fryseskabe'!G$42+'Køle-fryseskabe'!G$17*'Køle-fryseskabe'!G$42*'Køle-fryseskabe'!G$43*$C23)*((1+'Køle-fryseskabe'!G$60)^-$B23)) -> 0 | I23: =((IF($B23<='Køle-fryseskabe'!I$46,'Køle-fryseskabe'!I$21,0)*'Køle-fryseskabe'!I$42+'Køle-fryseskabe'!I$17*'Køle-fryseskabe'!I$42*'Køle-fryseskabe'!I$43*$C23)*((1+'Køle-fryseskabe'!I$60)^-$B23)) -> 0 | K23: =((IF($B23<='Køle-fryseskabe'!K$46,'Køle-fryseskabe'!K$21,0)*'Køle-fryseskabe'!K$42+'Køle-fryseskabe'!K$17*'Køle-fryseskabe'!K$42*'Køle-fryseskabe'!K$43*$C23)*((1+'Køle-fryseskabe'!K$60)^-$B23)) -> 0 | M23: =((IF($B23<='Køle-fryseskabe'!M$46,'Køle-fryseskabe'!M$21,0)*'Køle-fryseskabe'!M$42+'Køle-fryseskabe'!M$17*'Køle-fryseskabe'!M$42*'Køle-fryseskabe'!M$43*$C23)*((1+'Køle-fryseskabe'!M$60)^-$B23)) -> 0 | O23: =((IF($B23<='Køle-fryseskabe'!O$46,'Køle-fryseskabe'!O$21,0)*'Køle-fryseskabe'!O$42+'Køle-fryseskabe'!O$17*'Køle-fryseskabe'!O$42*'Køle-fryseskabe'!O$43*$C23)*((1+'Køle-fryseskabe'!O$60)^-$B23)) -> 0 | Q23: =((IF($B23<='Køle-fryseskabe'!Q$46,'Køle-fryseskabe'!Q$21,0)*'Køle-fryseskabe'!Q$42+'Køle-fryseskabe'!Q$17*'Køle-fryseskabe'!Q$42*'Køle-fryseskabe'!Q$43*$C23)*((1+'Køle-fryseskabe'!Q$60)^-$B23)) -> 0 | S23: =((IF($B23<='Køle-fryseskabe'!S$46,'Køle-fryseskabe'!S$21,0)*'Køle-fryseskabe'!S$42+'Køle-fryseskabe'!S$17*'Køle-fryseskabe'!S$42*'Køle-fryseskabe'!S$43*$C23)*((1+'Køle-fryseskabe'!S$60)^-$B23)) -> 0
B25: Samlede akkumulerede omkostninger (graf) | E25: ='Køle-fryseskabe'!E8 -> PRODUKT 1 | G25: ='Køle-fryseskabe'!G8 -> PRODUKT 2 | I25: ='Køle-fryseskabe'!I8 -> PRODUKT 3 | K25: ='Køle-fryseskabe'!K8 -> PRODUKT 4 | M25: ='Køle-fryseskabe'!M8 -> PRODUKT 5 | O25: ='Køle-fryseskabe'!O8 -> PRODUKT 6 | Q25: ='Køle-fryseskabe'!Q8 -> PRODUKT 7 | S25: ='Køle-fryseskabe'!S8 -> PRODUKT 8
B26: 1 | E26: ='Køle-fryseskabe'!E$71+E4+E49+IF($B26='Køle-fryseskabe'!E$52,'Køle-fryseskabe'!E$74,0)+IF('Køle-fryseskabe'!$E$29="ja",'IB - Køle-fryseskabe'!E142,0) -> 0 | G26: ='Køle-fryseskabe'!G$71+G4+G49+IF($B26='Køle-fryseskabe'!G$52,'Køle-fryseskabe'!G$74,0)+IF('Køle-fryseskabe'!$E$29="ja",'IB - Køle-fryseskabe'!G142,0) -> 0 | I26: ='Køle-fryseskabe'!I$71+I4+I49+IF($B26='Køle-fryseskabe'!I$52,'Køle-fryseskabe'!I$74,0)+IF('Køle-fryseskabe'!$E$29="ja",'IB - Køle-fryseskabe'!I142,0) -> 0 | K26: ='Køle-fryseskabe'!K$71+K4+K49+IF($B26='Køle-fryseskabe'!K$52,'Køle-fryseskabe'!K$74,0)+IF('Køle-fryseskabe'!$E$29="ja",'IB - Køle-fryseskabe'!K142,0) -> 0 | M26: ='Køle-fryseskabe'!M$71+M4+M49+IF($B26='Køle-fryseskabe'!M$52,'Køle-fryseskabe'!M$74,0)+IF('Køle-fryseskabe'!$E$29="ja",'IB - Køle-fryseskabe'!M142,0) -> 0 | O26: ='Køle-fryseskabe'!O$71+O4+O49+IF($B26='Køle-fryseskabe'!O$52,'Køle-fryseskabe'!O$74,0)+IF('Køle-fryseskabe'!$E$29="ja",'IB - Køle-fryseskabe'!O142,0) -> 0 | Q26: ='Køle-fryseskabe'!Q$71+Q4+Q49+IF($B26='Køle-fryseskabe'!Q$52,'Køle-fryseskabe'!Q$74,0)+IF('Køle-fryseskabe'!$E$29="ja",'IB - Køle-fryseskabe'!Q142,0) -> 0 | S26: ='Køle-fryseskabe'!S$71+S4+S49+IF($B26='Køle-fryseskabe'!S$52,'Køle-fryseskabe'!S$74,0)+IF('Køle-fryseskabe'!$E$29="ja",'IB - Køle-fryseskabe'!S142,0) -> 0 | V26: X-akse til akkummulerede omkostninger
B27: 2 | E27: =E26+E5+E50+IF($B27='Køle-fryseskabe'!E$52,'Køle-fryseskabe'!E$74,0)+IF('Køle-fryseskabe'!$E$29="ja",'IB - Køle-fryseskabe'!E143,0) -> 0 | G27: =G26+G5+G50+IF($B27='Køle-fryseskabe'!G$52,'Køle-fryseskabe'!G$74,0)+IF('Køle-fryseskabe'!$E$29="ja",'IB - Køle-fryseskabe'!G143,0) -> 0 | I27: =I26+I5+I50+IF($B27='Køle-fryseskabe'!I$52,'Køle-fryseskabe'!I$74,0)+IF('Køle-fryseskabe'!$E$29="ja",'IB - Køle-fryseskabe'!I143,0) -> 0 | K27: =K26+K5+K50+IF($B27='Køle-fryseskabe'!K$52,'Køle-fryseskabe'!K$74,0)+IF('Køle-fryseskabe'!$E$29="ja",'IB - Køle-fryseskabe'!K143,0) -> 0 | M27: =M26+M5+M50+IF($B27='Køle-fryseskabe'!M$52,'Køle-fryseskabe'!M$74,0)+IF('Køle-fryseskabe'!$E$29="ja",'IB - Køle-fryseskabe'!M143,0) -> 0 | O27: =O26+O5+O50+IF($B27='Køle-fryseskabe'!O$52,'Køle-fryseskabe'!O$74,0)+IF('Køle-fryseskabe'!$E$29="ja",'IB - Køle-fryseskabe'!O143,0) -> 0 | Q27: =Q26+Q5+Q50+IF($B27='Køle-fryseskabe'!Q$52,'Køle-fryseskabe'!Q$74,0)+IF('Køle-fryseskabe'!$E$29="ja",'IB - Køle-fryseskabe'!Q143,0) -> 0 | S27: =S26+S5+S50+IF($B27='Køle-fryseskabe'!S$52,'Køle-fryseskabe'!S$74,0)+IF('Køle-fryseskabe'!$E$29="ja",'IB - Køle-fryseskabe'!S143,0) -> 0 | V27: 1
B28: 3 | E28: =E27+E6+E51+IF($B28='Køle-fryseskabe'!E$52,'Køle-fryseskabe'!E$74,0)+IF('Køle-fryseskabe'!$E$29="ja",'IB - Køle-fryseskabe'!E144,0) -> 0 | G28: =G27+G6+G51+IF($B28='Køle-fryseskabe'!G$52,'Køle-fryseskabe'!G$74,0)+IF('Køle-fryseskabe'!$E$29="ja",'IB - Køle-fryseskabe'!G144,0) -> 0 | I28: =I27+I6+I51+IF($B28='Køle-fryseskabe'!I$52,'Køle-fryseskabe'!I$74,0)+IF('Køle-fryseskabe'!$E$29="ja",'IB - Køle-fryseskabe'!I144,0) -> 0 | K28: =K27+K6+K51+IF($B28='Køle-fryseskabe'!K$52,'Køle-fryseskabe'!K$74,0)+IF('Køle-fryseskabe'!$E$29="ja",'IB - Køle-fryseskabe'!K144,0) -> 0 | M28: =M27+M6+M51+IF($B28='Køle-fryseskabe'!M$52,'Køle-fryseskabe'!M$74,0)+IF('Køle-fryseskabe'!$E$29="ja",'IB - Køle-fryseskabe'!M144,0) -> 0 | O28: =O27+O6+O51+IF($B28='Køle-fryseskabe'!O$52,'Køle-fryseskabe'!O$74,0)+IF('Køle-fryseskabe'!$E$29="ja",'IB - Køle-fryseskabe'!O144,0) -> 0 | Q28: =Q27+Q6+Q51+IF($B28='Køle-fryseskabe'!Q$52,'Køle-fryseskabe'!Q$74,0)+IF('Køle-fryseskabe'!$E$29="ja",'IB - Køle-fryseskabe'!Q144,0) -> 0 | S28: =S27+S6+S51+IF($B28='Køle-fryseskabe'!S$52,'Køle-fryseskabe'!S$74,0)+IF('Køle-fryseskabe'!$E$29="ja",'IB - Køle-fryseskabe'!S144,0) -> 0 | V28: =IF('Køle-fryseskabe'!$E$52>=B27,B27,"") -> 
B29: 4 | E29: =E28+E7+E52+IF($B29='Køle-fryseskabe'!E$52,'Køle-fryseskabe'!E$74,0)+IF('Køle-fryseskabe'!$E$29="ja",'IB - Køle-fryseskabe'!E145,0) -> 0 | G29: =G28+G7+G52+IF($B29='Køle-fryseskabe'!G$52,'Køle-fryseskabe'!G$74,0)+IF('Køle-fryseskabe'!$E$29="ja",'IB - Køle-fryseskabe'!G145,0) -> 0 | I29: =I28+I7+I52+IF($B29='Køle-fryseskabe'!I$52,'Køle-fryseskabe'!I$74,0)+IF('Køle-fryseskabe'!$E$29="ja",'IB - Køle-fryseskabe'!I145,0) -> 0 | K29: =K28+K7+K52+IF($B29='Køle-fryseskabe'!K$52,'Køle-fryseskabe'!K$74,0)+IF('Køle-fryseskabe'!$E$29="ja",'IB - Køle-fryseskabe'!K145,0) -> 0 | M29: =M28+M7+M52+IF($B29='Køle-fryseskabe'!M$52,'Køle-fryseskabe'!M$74,0)+IF('Køle-fryseskabe'!$E$29="ja",'IB - Køle-fryseskabe'!M145,0) -> 0 | O29: =O28+O7+O52+IF($B29='Køle-fryseskabe'!O$52,'Køle-fryseskabe'!O$74,0)+IF('Køle-fryseskabe'!$E$29="ja",'IB - Køle-fryseskabe'!O145,0) -> 0 | Q29: =Q28+Q7+Q52+IF($B29='Køle-fryseskabe'!Q$52,'Køle-fryseskabe'!Q$74,0)+IF('Køle-fryseskabe'!$E$29="ja",'IB - Køle-fryseskabe'!Q145,0) -> 0 | S29: =S28+S7+S52+IF($B29='Køle-fryseskabe'!S$52,'Køle-fryseskabe'!S$74,0)+IF('Køle-fryseskabe'!$E$29="ja",'IB - Køle-fryseskabe'!S145,0) -> 0 | V29: =IF('Køle-fryseskabe'!$E$52>=B28,B28,"") -> 
B30: 5 | E30: =E29+E8+E53+IF($B30='Køle-fryseskabe'!E$52,'Køle-fryseskabe'!E$74,0)+IF('Køle-fryseskabe'!$E$29="ja",'IB - Køle-fryseskabe'!E146,0) -> 0 | G30: =G29+G8+G53+IF($B30='Køle-fryseskabe'!G$52,'Køle-fryseskabe'!G$74,0)+IF('Køle-fryseskabe'!$E$29="ja",'IB - Køle-fryseskabe'!G146,0) -> 0 | I30: =I29+I8+I53+IF($B30='Køle-fryseskabe'!I$52,'Køle-fryseskabe'!I$74,0)+IF('Køle-fryseskabe'!$E$29="ja",'IB - Køle-fryseskabe'!I146,0) -> 0 | K30: =K29+K8+K53+IF($B30='Køle-fryseskabe'!K$52,'Køle-fryseskabe'!K$74,0)+IF('Køle-fryseskabe'!$E$29="ja",'IB - Køle-fryseskabe'!K146,0) -> 0 | M30: =M29+M8+M53+IF($B30='Køle-fryseskabe'!M$52,'Køle-fryseskabe'!M$74,0)+IF('Køle-fryseskabe'!$E$29="ja",'IB - Køle-fryseskabe'!M146,0) -> 0 | O30: =O29+O8+O53+IF($B30='Køle-fryseskabe'!O$52,'Køle-fryseskabe'!O$74,0)+IF('Køle-fryseskabe'!$E$29="ja",'IB - Køle-fryseskabe'!O146,0) -> 0 | Q30: =Q29+Q8+Q53+IF($B30='Køle-fryseskabe'!Q$52,'Køle-fryseskabe'!Q$74,0)+IF('Køle-fryseskabe'!$E$29="ja",'IB - Køle-fryseskabe'!Q146,0) -> 0 | S30: =S29+S8+S53+IF($B30='Køle-fryseskabe'!S$52,'Køle-fryseskabe'!S$74,0)+IF('Køle-fryseskabe'!$E$29="ja",'IB - Køle-fryseskabe'!S146,0) -> 0 | V30: =IF('Køle-fryseskabe'!$E$52>=B29,B29,"") -> 
B31: 6 | E31: =E30+E9+E54+IF($B31='Køle-fryseskabe'!E$52,'Køle-fryseskabe'!E$74,0)+IF('Køle-fryseskabe'!$E$29="ja",'IB - Køle-fryseskabe'!E147,0) -> 0 | G31: =G30+G9+G54+IF($B31='Køle-fryseskabe'!G$52,'Køle-fryseskabe'!G$74,0)+IF('Køle-fryseskabe'!$E$29="ja",'IB - Køle-fryseskabe'!G147,0) -> 0 | I31: =I30+I9+I54+IF($B31='Køle-fryseskabe'!I$52,'Køle-fryseskabe'!I$74,0)+IF('Køle-fryseskabe'!$E$29="ja",'IB - Køle-fryseskabe'!I147,0) -> 0 | K31: =K30+K9+K54+IF($B31='Køle-fryseskabe'!K$52,'Køle-fryseskabe'!K$74,0)+IF('Køle-fryseskabe'!$E$29="ja",'IB - Køle-fryseskabe'!K147,0) -> 0 | M31: =M30+M9+M54+IF($B31='Køle-fryseskabe'!M$52,'Køle-fryseskabe'!M$74,0)+IF('Køle-fryseskabe'!$E$29="ja",'IB - Køle-fryseskabe'!M147,0) -> 0 | O31: =O30+O9+O54+IF($B31='Køle-fryseskabe'!O$52,'Køle-fryseskabe'!O$74,0)+IF('Køle-fryseskabe'!$E$29="ja",'IB - Køle-fryseskabe'!O147,0) -> 0 | Q31: =Q30+Q9+Q54+IF($B31='Køle-fryseskabe'!Q$52,'Køle-fryseskabe'!Q$74,0)+IF('Køle-fryseskabe'!$E$29="ja",'IB - Køle-fryseskabe'!Q147,0) -> 0 | S31: =S30+S9+S54+IF($B31='Køle-fryseskabe'!S$52,'Køle-fryseskabe'!S$74,0)+IF('Køle-fryseskabe'!$E$29="ja",'IB - Køle-fryseskabe'!S147,0) -> 0 | V31: =IF('Køle-fryseskabe'!$E$52>=B30,B30,"") -> 
B32: 7 | E32: =E31+E10+E55+IF($B32='Køle-fryseskabe'!E$52,'Køle-fryseskabe'!E$74,0)+IF('Køle-fryseskabe'!$E$29="ja",'IB - Køle-fryseskabe'!E148,0) -> 0 | G32: =G31+G10+G55+IF($B32='Køle-fryseskabe'!G$52,'Køle-fryseskabe'!G$74,0)+IF('Køle-fryseskabe'!$E$29="ja",'IB - Køle-fryseskabe'!G148,0) -> 0 | I32: =I31+I10+I55+IF($B32='Køle-fryseskabe'!I$52,'Køle-fryseskabe'!I$74,0)+IF('Køle-fryseskabe'!$E$29="ja",'IB - Køle-fryseskabe'!I148,0) -> 0 | K32: =K31+K10+K55+IF($B32='Køle-fryseskabe'!K$52,'Køle-fryseskabe'!K$74,0)+IF('Køle-fryseskabe'!$E$29="ja",'IB - Køle-fryseskabe'!K148,0) -> 0 | M32: =M31+M10+M55+IF($B32='Køle-fryseskabe'!M$52,'Køle-fryseskabe'!M$74,0)+IF('Køle-fryseskabe'!$E$29="ja",'IB - Køle-fryseskabe'!M148,0) -> 0 | O32: =O31+O10+O55+IF($B32='Køle-fryseskabe'!O$52,'Køle-fryseskabe'!O$74,0)+IF('Køle-fryseskabe'!$E$29="ja",'IB - Køle-fryseskabe'!O148,0) -> 0 | Q32: =Q31+Q10+Q55+IF($B32='Køle-fryseskabe'!Q$52,'Køle-fryseskabe'!Q$74,0)+IF('Køle-fryseskabe'!$E$29="ja",'IB - Køle-fryseskabe'!Q148,0) -> 0 | S32: =S31+S10+S55+IF($B32='Køle-fryseskabe'!S$52,'Køle-fryseskabe'!S$74,0)+IF('Køle-fryseskabe'!$E$29="ja",'IB - Køle-fryseskabe'!S148,0) -> 0 | V32: =IF('Køle-fryseskabe'!$E$52>=B31,B31,"") -> 
B33: 8 | E33: =E32+E11+E56+IF($B33='Køle-fryseskabe'!E$52,'Køle-fryseskabe'!E$74,0)+IF('Køle-fryseskabe'!$E$29="ja",'IB - Køle-fryseskabe'!E149,0) -> 0 | G33: =G32+G11+G56+IF($B33='Køle-fryseskabe'!G$52,'Køle-fryseskabe'!G$74,0)+IF('Køle-fryseskabe'!$E$29="ja",'IB - Køle-fryseskabe'!G149,0) -> 0 | I33: =I32+I11+I56+IF($B33='Køle-fryseskabe'!I$52,'Køle-fryseskabe'!I$74,0)+IF('Køle-fryseskabe'!$E$29="ja",'IB - Køle-fryseskabe'!I149,0) -> 0 | K33: =K32+K11+K56+IF($B33='Køle-fryseskabe'!K$52,'Køle-fryseskabe'!K$74,0)+IF('Køle-fryseskabe'!$E$29="ja",'IB - Køle-fryseskabe'!K149,0) -> 0 | M33: =M32+M11+M56+IF($B33='Køle-fryseskabe'!M$52,'Køle-fryseskabe'!M$74,0)+IF('Køle-fryseskabe'!$E$29="ja",'IB - Køle-fryseskabe'!M149,0) -> 0 | O33: =O32+O11+O56+IF($B33='Køle-fryseskabe'!O$52,'Køle-fryseskabe'!O$74,0)+IF('Køle-fryseskabe'!$E$29="ja",'IB - Køle-fryseskabe'!O149,0) -> 0 | Q33: =Q32+Q11+Q56+IF($B33='Køle-fryseskabe'!Q$52,'Køle-fryseskabe'!Q$74,0)+IF('Køle-fryseskabe'!$E$29="ja",'IB - Køle-fryseskabe'!Q149,0) -> 0 | S33: =S32+S11+S56+IF($B33='Køle-fryseskabe'!S$52,'Køle-fryseskabe'!S$74,0)+IF('Køle-fryseskabe'!$E$29="ja",'IB - Køle-fryseskabe'!S149,0) -> 0 | V33: =IF('Køle-fryseskabe'!$E$52>=B32,B32,"") -> 
B34: 9 | E34: =E33+E12+E57+IF($B34='Køle-fryseskabe'!E$52,'Køle-fryseskabe'!E$74,0)+IF('Køle-fryseskabe'!$E$29="ja",'IB - Køle-fryseskabe'!E150,0) -> 0 | G34: =G33+G12+G57+IF($B34='Køle-fryseskabe'!G$52,'Køle-fryseskabe'!G$74,0)+IF('Køle-fryseskabe'!$E$29="ja",'IB - Køle-fryseskabe'!G150,0) -> 0 | I34: =I33+I12+I57+IF($B34='Køle-fryseskabe'!I$52,'Køle-fryseskabe'!I$74,0)+IF('Køle-fryseskabe'!$E$29="ja",'IB - Køle-fryseskabe'!I150,0) -> 0 | K34: =K33+K12+K57+IF($B34='Køle-fryseskabe'!K$52,'Køle-fryseskabe'!K$74,0)+IF('Køle-fryseskabe'!$E$29="ja",'IB - Køle-fryseskabe'!K150,0) -> 0 | M34: =M33+M12+M57+IF($B34='Køle-fryseskabe'!M$52,'Køle-fryseskabe'!M$74,0)+IF('Køle-fryseskabe'!$E$29="ja",'IB - Køle-fryseskabe'!M150,0) -> 0 | O34: =O33+O12+O57+IF($B34='Køle-fryseskabe'!O$52,'Køle-fryseskabe'!O$74,0)+IF('Køle-fryseskabe'!$E$29="ja",'IB - Køle-fryseskabe'!O150,0) -> 0 | Q34: =Q33+Q12+Q57+IF($B34='Køle-fryseskabe'!Q$52,'Køle-fryseskabe'!Q$74,0)+IF('Køle-fryseskabe'!$E$29="ja",'IB - Køle-fryseskabe'!Q150,0) -> 0 | S34: =S33+S12+S57+IF($B34='Køle-fryseskabe'!S$52,'Køle-fryseskabe'!S$74,0)+IF('Køle-fryseskabe'!$E$29="ja",'IB - Køle-fryseskabe'!S150,0) -> 0 | V34: =IF('Køle-fryseskabe'!$E$52>=B33,B33,"") -> 
B35: 10 | E35: =E34+E13+E58+IF($B35='Køle-fryseskabe'!E$52,'Køle-fryseskabe'!E$74,0)+IF('Køle-fryseskabe'!$E$29="ja",'IB - Køle-fryseskabe'!E151,0) -> 0 | G35: =G34+G13+G58+IF($B35='Køle-fryseskabe'!G$52,'Køle-fryseskabe'!G$74,0)+IF('Køle-fryseskabe'!$E$29="ja",'IB - Køle-fryseskabe'!G151,0) -> 0 | I35: =I34+I13+I58+IF($B35='Køle-fryseskabe'!I$52,'Køle-fryseskabe'!I$74,0)+IF('Køle-fryseskabe'!$E$29="ja",'IB - Køle-fryseskabe'!I151,0) -> 0 | K35: =K34+K13+K58+IF($B35='Køle-fryseskabe'!K$52,'Køle-fryseskabe'!K$74,0)+IF('Køle-fryseskabe'!$E$29="ja",'IB - Køle-fryseskabe'!K151,0) -> 0 | M35: =M34+M13+M58+IF($B35='Køle-fryseskabe'!M$52,'Køle-fryseskabe'!M$74,0)+IF('Køle-fryseskabe'!$E$29="ja",'IB - Køle-fryseskabe'!M151,0) -> 0 | O35: =O34+O13+O58+IF($B35='Køle-fryseskabe'!O$52,'Køle-fryseskabe'!O$74,0)+IF('Køle-fryseskabe'!$E$29="ja",'IB - Køle-fryseskabe'!O151,0) -> 0 | Q35: =Q34+Q13+Q58+IF($B35='Køle-fryseskabe'!Q$52,'Køle-fryseskabe'!Q$74,0)+IF('Køle-fryseskabe'!$E$29="ja",'IB - Køle-fryseskabe'!Q151,0) -> 0 | S35: =S34+S13+S58+IF($B35='Køle-fryseskabe'!S$52,'Køle-fryseskabe'!S$74,0)+IF('Køle-fryseskabe'!$E$29="ja",'IB - Køle-fryseskabe'!S151,0) -> 0 | V35: =IF('Køle-fryseskabe'!$E$52>=B34,B34,"") -> 
B36: 11 | E36: =E35+E14+E59+IF($B36='Køle-fryseskabe'!E$52,'Køle-fryseskabe'!E$74,0)+IF('Køle-fryseskabe'!$E$29="ja",'IB - Køle-fryseskabe'!E152,0) -> 0 | G36: =G35+G14+G59+IF($B36='Køle-fryseskabe'!G$52,'Køle-fryseskabe'!G$74,0)+IF('Køle-fryseskabe'!$E$29="ja",'IB - Køle-fryseskabe'!G152,0) -> 0 | I36: =I35+I14+I59+IF($B36='Køle-fryseskabe'!I$52,'Køle-fryseskabe'!I$74,0)+IF('Køle-fryseskabe'!$E$29="ja",'IB - Køle-fryseskabe'!I152,0) -> 0 | K36: =K35+K14+K59+IF($B36='Køle-fryseskabe'!K$52,'Køle-fryseskabe'!K$74,0)+IF('Køle-fryseskabe'!$E$29="ja",'IB - Køle-fryseskabe'!K152,0) -> 0 | M36: =M35+M14+M59+IF($B36='Køle-fryseskabe'!M$52,'Køle-fryseskabe'!M$74,0)+IF('Køle-fryseskabe'!$E$29="ja",'IB - Køle-fryseskabe'!M152,0) -> 0 | O36: =O35+O14+O59+IF($B36='Køle-fryseskabe'!O$52,'Køle-fryseskabe'!O$74,0)+IF('Køle-fryseskabe'!$E$29="ja",'IB - Køle-fryseskabe'!O152,0) -> 0 | Q36: =Q35+Q14+Q59+IF($B36='Køle-fryseskabe'!Q$52,'Køle-fryseskabe'!Q$74,0)+IF('Køle-fryseskabe'!$E$29="ja",'IB - Køle-fryseskabe'!Q152,0) -> 0 | S36: =S35+S14+S59+IF($B36='Køle-fryseskabe'!S$52,'Køle-fryseskabe'!S$74,0)+IF('Køle-fryseskabe'!$E$29="ja",'IB - Køle-fryseskabe'!S152,0) -> 0 | V36: =IF('Køle-fryseskabe'!$E$52>=B35,B35,"") -> 
B37: 12 | E37: =E36+E15+E60+IF($B37='Køle-fryseskabe'!E$52,'Køle-fryseskabe'!E$74,0)+IF('Køle-fryseskabe'!$E$29="ja",'IB - Køle-fryseskabe'!E153,0) -> 0 | G37: =G36+G15+G60+IF($B37='Køle-fryseskabe'!G$52,'Køle-fryseskabe'!G$74,0)+IF('Køle-fryseskabe'!$E$29="ja",'IB - Køle-fryseskabe'!G153,0) -> 0 | I37: =I36+I15+I60+IF($B37='Køle-fryseskabe'!I$52,'Køle-fryseskabe'!I$74,0)+IF('Køle-fryseskabe'!$E$29="ja",'IB - Køle-fryseskabe'!I153,0) -> 0 | K37: =K36+K15+K60+IF($B37='Køle-fryseskabe'!K$52,'Køle-fryseskabe'!K$74,0)+IF('Køle-fryseskabe'!$E$29="ja",'IB - Køle-fryseskabe'!K153,0) -> 0 | M37: =M36+M15+M60+IF($B37='Køle-fryseskabe'!M$52,'Køle-fryseskabe'!M$74,0)+IF('Køle-fryseskabe'!$E$29="ja",'IB - Køle-fryseskabe'!M153,0) -> 0 | O37: =O36+O15+O60+IF($B37='Køle-fryseskabe'!O$52,'Køle-fryseskabe'!O$74,0)+IF('Køle-fryseskabe'!$E$29="ja",'IB - Køle-fryseskabe'!O153,0) -> 0 | Q37: =Q36+Q15+Q60+IF($B37='Køle-fryseskabe'!Q$52,'Køle-fryseskabe'!Q$74,0)+IF('Køle-fryseskabe'!$E$29="ja",'IB - Køle-fryseskabe'!Q153,0) -> 0 | S37: =S36+S15+S60+IF($B37='Køle-fryseskabe'!S$52,'Køle-fryseskabe'!S$74,0)+IF('Køle-fryseskabe'!$E$29="ja",'IB - Køle-fryseskabe'!S153,0) -> 0 | V37: =IF('Køle-fryseskabe'!$E$52>=B36,B36,"") -> 
B38: 13 | E38: =E37+E16+E61+IF($B38='Køle-fryseskabe'!E$52,'Køle-fryseskabe'!E$74,0)+IF('Køle-fryseskabe'!$E$29="ja",'IB - Køle-fryseskabe'!E154,0) -> 0 | G38: =G37+G16+G61+IF($B38='Køle-fryseskabe'!G$52,'Køle-fryseskabe'!G$74,0)+IF('Køle-fryseskabe'!$E$29="ja",'IB - Køle-fryseskabe'!G154,0) -> 0 | I38: =I37+I16+I61+IF($B38='Køle-fryseskabe'!I$52,'Køle-fryseskabe'!I$74,0)+IF('Køle-fryseskabe'!$E$29="ja",'IB - Køle-fryseskabe'!I154,0) -> 0 | K38: =K37+K16+K61+IF($B38='Køle-fryseskabe'!K$52,'Køle-fryseskabe'!K$74,0)+IF('Køle-fryseskabe'!$E$29="ja",'IB - Køle-fryseskabe'!K154,0) -> 0 | M38: =M37+M16+M61+IF($B38='Køle-fryseskabe'!M$52,'Køle-fryseskabe'!M$74,0)+IF('Køle-fryseskabe'!$E$29="ja",'IB - Køle-fryseskabe'!M154,0) -> 0 | O38: =O37+O16+O61+IF($B38='Køle-fryseskabe'!O$52,'Køle-fryseskabe'!O$74,0)+IF('Køle-fryseskabe'!$E$29="ja",'IB - Køle-fryseskabe'!O154,0) -> 0 | Q38: =Q37+Q16+Q61+IF($B38='Køle-fryseskabe'!Q$52,'Køle-fryseskabe'!Q$74,0)+IF('Køle-fryseskabe'!$E$29="ja",'IB - Køle-fryseskabe'!Q154,0) -> 0 | S38: =S37+S16+S61+IF($B38='Køle-fryseskabe'!S$52,'Køle-fryseskabe'!S$74,0)+IF('Køle-fryseskabe'!$E$29="ja",'IB - Køle-fryseskabe'!S154,0) -> 0 | V38: =IF('Køle-fryseskabe'!$E$52>=B37,B37,"") -> 
B39: 14 | E39: =E38+E17+E62+IF($B39='Køle-fryseskabe'!E$52,'Køle-fryseskabe'!E$74,0)+IF('Køle-fryseskabe'!$E$29="ja",'IB - Køle-fryseskabe'!E155,0) -> 0 | G39: =G38+G17+G62+IF($B39='Køle-fryseskabe'!G$52,'Køle-fryseskabe'!G$74,0)+IF('Køle-fryseskabe'!$E$29="ja",'IB - Køle-fryseskabe'!G155,0) -> 0 | I39: =I38+I17+I62+IF($B39='Køle-fryseskabe'!I$52,'Køle-fryseskabe'!I$74,0)+IF('Køle-fryseskabe'!$E$29="ja",'IB - Køle-fryseskabe'!I155,0) -> 0 | K39: =K38+K17+K62+IF($B39='Køle-fryseskabe'!K$52,'Køle-fryseskabe'!K$74,0)+IF('Køle-fryseskabe'!$E$29="ja",'IB - Køle-fryseskabe'!K155,0) -> 0 | M39: =M38+M17+M62+IF($B39='Køle-fryseskabe'!M$52,'Køle-fryseskabe'!M$74,0)+IF('Køle-fryseskabe'!$E$29="ja",'IB - Køle-fryseskabe'!M155,0) -> 0 | O39: =O38+O17+O62+IF($B39='Køle-fryseskabe'!O$52,'Køle-fryseskabe'!O$74,0)+IF('Køle-fryseskabe'!$E$29="ja",'IB - Køle-fryseskabe'!O155,0) -> 0 | Q39: =Q38+Q17+Q62+IF($B39='Køle-fryseskabe'!Q$52,'Køle-fryseskabe'!Q$74,0)+IF('Køle-fryseskabe'!$E$29="ja",'IB - Køle-fryseskabe'!Q155,0) -> 0 | S39: =S38+S17+S62+IF($B39='Køle-fryseskabe'!S$52,'Køle-fryseskabe'!S$74,0)+IF('Køle-fryseskabe'!$E$29="ja",'IB - Køle-fryseskabe'!S155,0) -> 0 | V39: =IF('Køle-fryseskabe'!$E$52>=B38,B38,"") -> 
B40: 15 | E40: =E39+E18+E63+IF($B40='Køle-fryseskabe'!E$52,'Køle-fryseskabe'!E$74,0)+IF('Køle-fryseskabe'!$E$29="ja",'IB - Køle-fryseskabe'!E156,0) -> 0 | G40: =G39+G18+G63+IF($B40='Køle-fryseskabe'!G$52,'Køle-fryseskabe'!G$74,0)+IF('Køle-fryseskabe'!$E$29="ja",'IB - Køle-fryseskabe'!G156,0) -> 0 | I40: =I39+I18+I63+IF($B40='Køle-fryseskabe'!I$52,'Køle-fryseskabe'!I$74,0)+IF('Køle-fryseskabe'!$E$29="ja",'IB - Køle-fryseskabe'!I156,0) -> 0 | K40: =K39+K18+K63+IF($B40='Køle-fryseskabe'!K$52,'Køle-fryseskabe'!K$74,0)+IF('Køle-fryseskabe'!$E$29="ja",'IB - Køle-fryseskabe'!K156,0) -> 0 | M40: =M39+M18+M63+IF($B40='Køle-fryseskabe'!M$52,'Køle-fryseskabe'!M$74,0)+IF('Køle-fryseskabe'!$E$29="ja",'IB - Køle-fryseskabe'!M156,0) -> 0 | O40: =O39+O18+O63+IF($B40='Køle-fryseskabe'!O$52,'Køle-fryseskabe'!O$74,0)+IF('Køle-fryseskabe'!$E$29="ja",'IB - Køle-fryseskabe'!O156,0) -> 0 | Q40: =Q39+Q18+Q63+IF($B40='Køle-fryseskabe'!Q$52,'Køle-fryseskabe'!Q$74,0)+IF('Køle-fryseskabe'!$E$29="ja",'IB - Køle-fryseskabe'!Q156,0) -> 0 | S40: =S39+S18+S63+IF($B40='Køle-fryseskabe'!S$52,'Køle-fryseskabe'!S$74,0)+IF('Køle-fryseskabe'!$E$29="ja",'IB - Køle-fryseskabe'!S156,0) -> 0 | V40: =IF('Køle-fryseskabe'!$E$52>=B39,B39,"") -> 
B41: 16 | E41: =E40+E19+E64+IF($B41='Køle-fryseskabe'!E$52,'Køle-fryseskabe'!E$74,0)+IF('Køle-fryseskabe'!$E$29="ja",'IB - Køle-fryseskabe'!E157,0) -> 0 | G41: =G40+G19+G64+IF($B41='Køle-fryseskabe'!G$52,'Køle-fryseskabe'!G$74,0)+IF('Køle-fryseskabe'!$E$29="ja",'IB - Køle-fryseskabe'!G157,0) -> 0 | I41: =I40+I19+I64+IF($B41='Køle-fryseskabe'!I$52,'Køle-fryseskabe'!I$74,0)+IF('Køle-fryseskabe'!$E$29="ja",'IB - Køle-fryseskabe'!I157,0) -> 0 | K41: =K40+K19+K64+IF($B41='Køle-fryseskabe'!K$52,'Køle-fryseskabe'!K$74,0)+IF('Køle-fryseskabe'!$E$29="ja",'IB - Køle-fryseskabe'!K157,0) -> 0 | M41: =M40+M19+M64+IF($B41='Køle-fryseskabe'!M$52,'Køle-fryseskabe'!M$74,0)+IF('Køle-fryseskabe'!$E$29="ja",'IB - Køle-fryseskabe'!M157,0) -> 0 | O41: =O40+O19+O64+IF($B41='Køle-fryseskabe'!O$52,'Køle-fryseskabe'!O$74,0)+IF('Køle-fryseskabe'!$E$29="ja",'IB - Køle-fryseskabe'!O157,0) -> 0 | Q41: =Q40+Q19+Q64+IF($B41='Køle-fryseskabe'!Q$52,'Køle-fryseskabe'!Q$74,0)+IF('Køle-fryseskabe'!$E$29="ja",'IB - Køle-fryseskabe'!Q157,0) -> 0 | S41: =S40+S19+S64+IF($B41='Køle-fryseskabe'!S$52,'Køle-fryseskabe'!S$74,0)+IF('Køle-fryseskabe'!$E$29="ja",'IB - Køle-fryseskabe'!S157,0) -> 0 | V41: =IF('Køle-fryseskabe'!$E$52>=B40,B40,"") -> 
B42: 17 | E42: =E41+E20+E65+IF($B42='Køle-fryseskabe'!E$52,'Køle-fryseskabe'!E$74,0)+IF('Køle-fryseskabe'!$E$29="ja",'IB - Køle-fryseskabe'!E158,0) -> 0 | G42: =G41+G20+G65+IF($B42='Køle-fryseskabe'!G$52,'Køle-fryseskabe'!G$74,0)+IF('Køle-fryseskabe'!$E$29="ja",'IB - Køle-fryseskabe'!G158,0) -> 0 | I42: =I41+I20+I65+IF($B42='Køle-fryseskabe'!I$52,'Køle-fryseskabe'!I$74,0)+IF('Køle-fryseskabe'!$E$29="ja",'IB - Køle-fryseskabe'!I158,0) -> 0 | K42: =K41+K20+K65+IF($B42='Køle-fryseskabe'!K$52,'Køle-fryseskabe'!K$74,0)+IF('Køle-fryseskabe'!$E$29="ja",'IB - Køle-fryseskabe'!K158,0) -> 0 | M42: =M41+M20+M65+IF($B42='Køle-fryseskabe'!M$52,'Køle-fryseskabe'!M$74,0)+IF('Køle-fryseskabe'!$E$29="ja",'IB - Køle-fryseskabe'!M158,0) -> 0 | O42: =O41+O20+O65+IF($B42='Køle-fryseskabe'!O$52,'Køle-fryseskabe'!O$74,0)+IF('Køle-fryseskabe'!$E$29="ja",'IB - Køle-fryseskabe'!O158,0) -> 0 | Q42: =Q41+Q20+Q65+IF($B42='Køle-fryseskabe'!Q$52,'Køle-fryseskabe'!Q$74,0)+IF('Køle-fryseskabe'!$E$29="ja",'IB - Køle-fryseskabe'!Q158,0) -> 0 | S42: =S41+S20+S65+IF($B42='Køle-fryseskabe'!S$52,'Køle-fryseskabe'!S$74,0)+IF('Køle-fryseskabe'!$E$29="ja",'IB - Køle-fryseskabe'!S158,0) -> 0 | V42: =IF('Køle-fryseskabe'!$E$52>=B41,B41,"") -> 
B43: 18 | E43: =E42+E21+E66+IF($B43='Køle-fryseskabe'!E$52,'Køle-fryseskabe'!E$74,0)+IF('Køle-fryseskabe'!$E$29="ja",'IB - Køle-fryseskabe'!E159,0) -> 0 | G43: =G42+G21+G66+IF($B43='Køle-fryseskabe'!G$52,'Køle-fryseskabe'!G$74,0)+IF('Køle-fryseskabe'!$E$29="ja",'IB - Køle-fryseskabe'!G159,0) -> 0 | I43: =I42+I21+I66+IF($B43='Køle-fryseskabe'!I$52,'Køle-fryseskabe'!I$74,0)+IF('Køle-fryseskabe'!$E$29="ja",'IB - Køle-fryseskabe'!I159,0) -> 0 | K43: =K42+K21+K66+IF($B43='Køle-fryseskabe'!K$52,'Køle-fryseskabe'!K$74,0)+IF('Køle-fryseskabe'!$E$29="ja",'IB - Køle-fryseskabe'!K159,0) -> 0 | M43: =M42+M21+M66+IF($B43='Køle-fryseskabe'!M$52,'Køle-fryseskabe'!M$74,0)+IF('Køle-fryseskabe'!$E$29="ja",'IB - Køle-fryseskabe'!M159,0) -> 0 | O43: =O42+O21+O66+IF($B43='Køle-fryseskabe'!O$52,'Køle-fryseskabe'!O$74,0)+IF('Køle-fryseskabe'!$E$29="ja",'IB - Køle-fryseskabe'!O159,0) -> 0 | Q43: =Q42+Q21+Q66+IF($B43='Køle-fryseskabe'!Q$52,'Køle-fryseskabe'!Q$74,0)+IF('Køle-fryseskabe'!$E$29="ja",'IB - Køle-fryseskabe'!Q159,0) -> 0 | S43: =S42+S21+S66+IF($B43='Køle-fryseskabe'!S$52,'Køle-fryseskabe'!S$74,0)+IF('Køle-fryseskabe'!$E$29="ja",'IB - Køle-fryseskabe'!S159,0) -> 0 | V43: =IF('Køle-fryseskabe'!$E$52>=B42,B42,"") -> 
B44: 19 | E44: =E43+E22+E67+IF($B44='Køle-fryseskabe'!E$52,'Køle-fryseskabe'!E$74,0)+IF('Køle-fryseskabe'!$E$29="ja",'IB - Køle-fryseskabe'!E160,0) -> 0 | G44: =G43+G22+G67+IF($B44='Køle-fryseskabe'!G$52,'Køle-fryseskabe'!G$74,0)+IF('Køle-fryseskabe'!$E$29="ja",'IB - Køle-fryseskabe'!G160,0) -> 0 | I44: =I43+I22+I67+IF($B44='Køle-fryseskabe'!I$52,'Køle-fryseskabe'!I$74,0)+IF('Køle-fryseskabe'!$E$29="ja",'IB - Køle-fryseskabe'!I160,0) -> 0 | K44: =K43+K22+K67+IF($B44='Køle-fryseskabe'!K$52,'Køle-fryseskabe'!K$74,0)+IF('Køle-fryseskabe'!$E$29="ja",'IB - Køle-fryseskabe'!K160,0) -> 0 | M44: =M43+M22+M67+IF($B44='Køle-fryseskabe'!M$52,'Køle-fryseskabe'!M$74,0)+IF('Køle-fryseskabe'!$E$29="ja",'IB - Køle-fryseskabe'!M160,0) -> 0 | O44: =O43+O22+O67+IF($B44='Køle-fryseskabe'!O$52,'Køle-fryseskabe'!O$74,0)+IF('Køle-fryseskabe'!$E$29="ja",'IB - Køle-fryseskabe'!O160,0) -> 0 | Q44: =Q43+Q22+Q67+IF($B44='Køle-fryseskabe'!Q$52,'Køle-fryseskabe'!Q$74,0)+IF('Køle-fryseskabe'!$E$29="ja",'IB - Køle-fryseskabe'!Q160,0) -> 0 | S44: =S43+S22+S67+IF($B44='Køle-fryseskabe'!S$52,'Køle-fryseskabe'!S$74,0)+IF('Køle-fryseskabe'!$E$29="ja",'IB - Køle-fryseskabe'!S160,0) -> 0 | V44: =IF('Køle-fryseskabe'!$E$52>=B43,B43,"") -> 
B45: 20 | E45: =E44+E23+E68+IF($B45='Køle-fryseskabe'!E$52,'Køle-fryseskabe'!E$74,0)+IF('Køle-fryseskabe'!$E$29="ja",'IB - Køle-fryseskabe'!E161,0) -> 0 | G45: =G44+G23+G68+IF($B45='Køle-fryseskabe'!G$52,'Køle-fryseskabe'!G$74,0)+IF('Køle-fryseskabe'!$E$29="ja",'IB - Køle-fryseskabe'!G161,0) -> 0 | I45: =I44+I23+I68+IF($B45='Køle-fryseskabe'!I$52,'Køle-fryseskabe'!I$74,0)+IF('Køle-fryseskabe'!$E$29="ja",'IB - Køle-fryseskabe'!I161,0) -> 0 | K45: =K44+K23+K68+IF($B45='Køle-fryseskabe'!K$52,'Køle-fryseskabe'!K$74,0)+IF('Køle-fryseskabe'!$E$29="ja",'IB - Køle-fryseskabe'!K161,0) -> 0 | M45: =M44+M23+M68+IF($B45='Køle-fryseskabe'!M$52,'Køle-fryseskabe'!M$74,0)+IF('Køle-fryseskabe'!$E$29="ja",'IB - Køle-fryseskabe'!M161,0) -> 0 | O45: =O44+O23+O68+IF($B45='Køle-fryseskabe'!O$52,'Køle-fryseskabe'!O$74,0)+IF('Køle-fryseskabe'!$E$29="ja",'IB - Køle-fryseskabe'!O161,0) -> 0 | Q45: =Q44+Q23+Q68+IF($B45='Køle-fryseskabe'!Q$52,'Køle-fryseskabe'!Q$74,0)+IF('Køle-fryseskabe'!$E$29="ja",'IB - Køle-fryseskabe'!Q161,0) -> 0 | S45: =S44+S23+S68+IF($B45='Køle-fryseskabe'!S$52,'Køle-fryseskabe'!S$74,0)+IF('Køle-fryseskabe'!$E$29="ja",'IB - Køle-fryseskabe'!S161,0) -> 0 | V45: =IF('Køle-fryseskabe'!$E$52>=B44,B44,"") -> 
V46: =IF('Køle-fryseskabe'!$E$52>=B45,B45,"") -> 
A47: Service, vedligehold og løbende omkostninger
B48: År indeks | C48: Pris på serviceaftale jf. kravspecifikation og Intern serviceomkostning - service & support | E48: PRODUKT 1 | G48: PRODUKT 2 | I48: PRODUKT 3 | K48: PRODUKT 4 | M48: PRODUKT 5 | O48: PRODUKT 6 | Q48: PRODUKT 7 | S48: PRODUKT 8
B49: 1 | C49: =B49 -> 1 | E49: =(IF($B49<='Køle-fryseskabe'!E$45,'Køle-fryseskabe'!E$20,0)+'Køle-fryseskabe'!E$61)*'Køle-fryseskabe'!E$42*(1+'Køle-fryseskabe'!E$60)^-$B49 -> 0 | G49: =(IF($B49<='Køle-fryseskabe'!G$45,'Køle-fryseskabe'!G$20,0)+'Køle-fryseskabe'!G$61)*'Køle-fryseskabe'!G$42*(1+'Køle-fryseskabe'!G$60)^-$B49 -> 0 | I49: =(IF($B49<='Køle-fryseskabe'!I$45,'Køle-fryseskabe'!I$20,0)+'Køle-fryseskabe'!I$61)*'Køle-fryseskabe'!I$42*(1+'Køle-fryseskabe'!I$60)^-$B49 -> 0 | K49: =(IF($B49<='Køle-fryseskabe'!K$45,'Køle-fryseskabe'!K$20,0)+'Køle-fryseskabe'!K$61)*'Køle-fryseskabe'!K$42*(1+'Køle-fryseskabe'!K$60)^-$B49 -> 0 | M49: =(IF($B49<='Køle-fryseskabe'!M$45,'Køle-fryseskabe'!M$20,0)+'Køle-fryseskabe'!M$61)*'Køle-fryseskabe'!M$42*(1+'Køle-fryseskabe'!M$60)^-$B49 -> 0 | O49: =(IF($B49<='Køle-fryseskabe'!O$45,'Køle-fryseskabe'!O$20,0)+'Køle-fryseskabe'!O$61)*'Køle-fryseskabe'!O$42*(1+'Køle-fryseskabe'!O$60)^-$B49 -> 0 | Q49: =(IF($B49<='Køle-fryseskabe'!Q$45,'Køle-fryseskabe'!Q$20,0)+'Køle-fryseskabe'!Q$61)*'Køle-fryseskabe'!Q$42*(1+'Køle-fryseskabe'!Q$60)^-$B49 -> 0 | S49: =(IF($B49<='Køle-fryseskabe'!S$45,'Køle-fryseskabe'!S$20,0)+'Køle-fryseskabe'!S$61)*'Køle-fryseskabe'!S$42*(1+'Køle-fryseskabe'!S$60)^-$B49 -> 0
B50: 2 | C50: =B50 -> 2 | E50: =(IF($B50<='Køle-fryseskabe'!E$45,'Køle-fryseskabe'!E$20,0)+'Køle-fryseskabe'!E$61)*'Køle-fryseskabe'!E$42*(1+'Køle-fryseskabe'!E$60)^-$B50 -> 0 | G50: =(IF($B50<='Køle-fryseskabe'!G$45,'Køle-fryseskabe'!G$20,0)+'Køle-fryseskabe'!G$61)*'Køle-fryseskabe'!G$42*(1+'Køle-fryseskabe'!G$60)^-$B50 -> 0 | I50: =(IF($B50<='Køle-fryseskabe'!I$45,'Køle-fryseskabe'!I$20,0)+'Køle-fryseskabe'!I$61)*'Køle-fryseskabe'!I$42*(1+'Køle-fryseskabe'!I$60)^-$B50 -> 0 | K50: =(IF($B50<='Køle-fryseskabe'!K$45,'Køle-fryseskabe'!K$20,0)+'Køle-fryseskabe'!K$61)*'Køle-fryseskabe'!K$42*(1+'Køle-fryseskabe'!K$60)^-$B50 -> 0 | M50: =(IF($B50<='Køle-fryseskabe'!M$45,'Køle-fryseskabe'!M$20,0)+'Køle-fryseskabe'!M$61)*'Køle-fryseskabe'!M$42*(1+'Køle-fryseskabe'!M$60)^-$B50 -> 0 | O50: =(IF($B50<='Køle-fryseskabe'!O$45,'Køle-fryseskabe'!O$20,0)+'Køle-fryseskabe'!O$61)*'Køle-fryseskabe'!O$42*(1+'Køle-fryseskabe'!O$60)^-$B50 -> 0 | Q50: =(IF($B50<='Køle-fryseskabe'!Q$45,'Køle-fryseskabe'!Q$20,0)+'Køle-fryseskabe'!Q$61)*'Køle-fryseskabe'!Q$42*(1+'Køle-fryseskabe'!Q$60)^-$B50 -> 0 | S50: =(IF($B50<='Køle-fryseskabe'!S$45,'Køle-fryseskabe'!S$20,0)+'Køle-fryseskabe'!S$61)*'Køle-fryseskabe'!S$42*(1+'Køle-fryseskabe'!S$60)^-$B50 -> 0
B51: 3 | C51: 3 | E51: =(IF($B51<='Køle-fryseskabe'!E$45,'Køle-fryseskabe'!E$20,0)+'Køle-fryseskabe'!E$61)*'Køle-fryseskabe'!E$42*(1+'Køle-fryseskabe'!E$60)^-$B51 -> 0 | G51: =(IF($B51<='Køle-fryseskabe'!G$45,'Køle-fryseskabe'!G$20,0)+'Køle-fryseskabe'!G$61)*'Køle-fryseskabe'!G$42*(1+'Køle-fryseskabe'!G$60)^-$B51 -> 0 | I51: =(IF($B51<='Køle-fryseskabe'!I$45,'Køle-fryseskabe'!I$20,0)+'Køle-fryseskabe'!I$61)*'Køle-fryseskabe'!I$42*(1+'Køle-fryseskabe'!I$60)^-$B51 -> 0 | K51: =(IF($B51<='Køle-fryseskabe'!K$45,'Køle-fryseskabe'!K$20,0)+'Køle-fryseskabe'!K$61)*'Køle-fryseskabe'!K$42*(1+'Køle-fryseskabe'!K$60)^-$B51 -> 0 | M51: =(IF($B51<='Køle-fryseskabe'!M$45,'Køle-fryseskabe'!M$20,0)+'Køle-fryseskabe'!M$61)*'Køle-fryseskabe'!M$42*(1+'Køle-fryseskabe'!M$60)^-$B51 -> 0 | O51: =(IF($B51<='Køle-fryseskabe'!O$45,'Køle-fryseskabe'!O$20,0)+'Køle-fryseskabe'!O$61)*'Køle-fryseskabe'!O$42*(1+'Køle-fryseskabe'!O$60)^-$B51 -> 0 | Q51: =(IF($B51<='Køle-fryseskabe'!Q$45,'Køle-fryseskabe'!Q$20,0)+'Køle-fryseskabe'!Q$61)*'Køle-fryseskabe'!Q$42*(1+'Køle-fryseskabe'!Q$60)^-$B51 -> 0 | S51: =(IF($B51<='Køle-fryseskabe'!S$45,'Køle-fryseskabe'!S$20,0)+'Køle-fryseskabe'!S$61)*'Køle-fryseskabe'!S$42*(1+'Køle-fryseskabe'!S$60)^-$B51 -> 0
B52: 4 | C52: 4 | E52: =(IF($B52<='Køle-fryseskabe'!E$45,'Køle-fryseskabe'!E$20,0)+'Køle-fryseskabe'!E$61)*'Køle-fryseskabe'!E$42*(1+'Køle-fryseskabe'!E$60)^-$B52 -> 0 | G52: =(IF($B52<='Køle-fryseskabe'!G$45,'Køle-fryseskabe'!G$20,0)+'Køle-fryseskabe'!G$61)*'Køle-fryseskabe'!G$42*(1+'Køle-fryseskabe'!G$60)^-$B52 -> 0 | I52: =(IF($B52<='Køle-fryseskabe'!I$45,'Køle-fryseskabe'!I$20,0)+'Køle-fryseskabe'!I$61)*'Køle-fryseskabe'!I$42*(1+'Køle-fryseskabe'!I$60)^-$B52 -> 0 | K52: =(IF($B52<='Køle-fryseskabe'!K$45,'Køle-fryseskabe'!K$20,0)+'Køle-fryseskabe'!K$61)*'Køle-fryseskabe'!K$42*(1+'Køle-fryseskabe'!K$60)^-$B52 -> 0 | M52: =(IF($B52<='Køle-fryseskabe'!M$45,'Køle-fryseskabe'!M$20,0)+'Køle-fryseskabe'!M$61)*'Køle-fryseskabe'!M$42*(1+'Køle-fryseskabe'!M$60)^-$B52 -> 0 | O52: =(IF($B52<='Køle-fryseskabe'!O$45,'Køle-fryseskabe'!O$20,0)+'Køle-fryseskabe'!O$61)*'Køle-fryseskabe'!O$42*(1+'Køle-fryseskabe'!O$60)^-$B52 -> 0 | Q52: =(IF($B52<='Køle-fryseskabe'!Q$45,'Køle-fryseskabe'!Q$20,0)+'Køle-fryseskabe'!Q$61)*'Køle-fryseskabe'!Q$42*(1+'Køle-fryseskabe'!Q$60)^-$B52 -> 0 | S52: =(IF($B52<='Køle-fryseskabe'!S$45,'Køle-fryseskabe'!S$20,0)+'Køle-fryseskabe'!S$61)*'Køle-fryseskabe'!S$42*(1+'Køle-fryseskabe'!S$60)^-$B52 -> 0
B53: 5 | C53: 5 | E53: =(IF($B53<='Køle-fryseskabe'!E$45,'Køle-fryseskabe'!E$20,0)+'Køle-fryseskabe'!E$61)*'Køle-fryseskabe'!E$42*(1+'Køle-fryseskabe'!E$60)^-$B53 -> 0 | G53: =(IF($B53<='Køle-fryseskabe'!G$45,'Køle-fryseskabe'!G$20,0)+'Køle-fryseskabe'!G$61)*'Køle-fryseskabe'!G$42*(1+'Køle-fryseskabe'!G$60)^-$B53 -> 0 | I53: =(IF($B53<='Køle-fryseskabe'!I$45,'Køle-fryseskabe'!I$20,0)+'Køle-fryseskabe'!I$61)*'Køle-fryseskabe'!I$42*(1+'Køle-fryseskabe'!I$60)^-$B53 -> 0 | K53: =(IF($B53<='Køle-fryseskabe'!K$45,'Køle-fryseskabe'!K$20,0)+'Køle-fryseskabe'!K$61)*'Køle-fryseskabe'!K$42*(1+'Køle-fryseskabe'!K$60)^-$B53 -> 0 | M53: =(IF($B53<='Køle-fryseskabe'!M$45,'Køle-fryseskabe'!M$20,0)+'Køle-fryseskabe'!M$61)*'Køle-fryseskabe'!M$42*(1+'Køle-fryseskabe'!M$60)^-$B53 -> 0 | O53: =(IF($B53<='Køle-fryseskabe'!O$45,'Køle-fryseskabe'!O$20,0)+'Køle-fryseskabe'!O$61)*'Køle-fryseskabe'!O$42*(1+'Køle-fryseskabe'!O$60)^-$B53 -> 0 | Q53: =(IF($B53<='Køle-fryseskabe'!Q$45,'Køle-fryseskabe'!Q$20,0)+'Køle-fryseskabe'!Q$61)*'Køle-fryseskabe'!Q$42*(1+'Køle-fryseskabe'!Q$60)^-$B53 -> 0 | S53: =(IF($B53<='Køle-fryseskabe'!S$45,'Køle-fryseskabe'!S$20,0)+'Køle-fryseskabe'!S$61)*'Køle-fryseskabe'!S$42*(1+'Køle-fryseskabe'!S$60)^-$B53 -> 0
B54: 6 | C54: 6 | E54: =(IF($B54<='Køle-fryseskabe'!E$45,'Køle-fryseskabe'!E$20,0)+'Køle-fryseskabe'!E$61)*'Køle-fryseskabe'!E$42*(1+'Køle-fryseskabe'!E$60)^-$B54 -> 0 | G54: =(IF($B54<='Køle-fryseskabe'!G$45,'Køle-fryseskabe'!G$20,0)+'Køle-fryseskabe'!G$61)*'Køle-fryseskabe'!G$42*(1+'Køle-fryseskabe'!G$60)^-$B54 -> 0 | I54: =(IF($B54<='Køle-fryseskabe'!I$45,'Køle-fryseskabe'!I$20,0)+'Køle-fryseskabe'!I$61)*'Køle-fryseskabe'!I$42*(1+'Køle-fryseskabe'!I$60)^-$B54 -> 0 | K54: =(IF($B54<='Køle-fryseskabe'!K$45,'Køle-fryseskabe'!K$20,0)+'Køle-fryseskabe'!K$61)*'Køle-fryseskabe'!K$42*(1+'Køle-fryseskabe'!K$60)^-$B54 -> 0 | M54: =(IF($B54<='Køle-fryseskabe'!M$45,'Køle-fryseskabe'!M$20,0)+'Køle-fryseskabe'!M$61)*'Køle-fryseskabe'!M$42*(1+'Køle-fryseskabe'!M$60)^-$B54 -> 0 | O54: =(IF($B54<='Køle-fryseskabe'!O$45,'Køle-fryseskabe'!O$20,0)+'Køle-fryseskabe'!O$61)*'Køle-fryseskabe'!O$42*(1+'Køle-fryseskabe'!O$60)^-$B54 -> 0 | Q54: =(IF($B54<='Køle-fryseskabe'!Q$45,'Køle-fryseskabe'!Q$20,0)+'Køle-fryseskabe'!Q$61)*'Køle-fryseskabe'!Q$42*(1+'Køle-fryseskabe'!Q$60)^-$B54 -> 0 | S54: =(IF($B54<='Køle-fryseskabe'!S$45,'Køle-fryseskabe'!S$20,0)+'Køle-fryseskabe'!S$61)*'Køle-fryseskabe'!S$42*(1+'Køle-fryseskabe'!S$60)^-$B54 -> 0
B55: 7 | C55: 7 | E55: =(IF($B55<='Køle-fryseskabe'!E$45,'Køle-fryseskabe'!E$20,0)+'Køle-fryseskabe'!E$61)*'Køle-fryseskabe'!E$42*(1+'Køle-fryseskabe'!E$60)^-$B55 -> 0 | G55: =(IF($B55<='Køle-fryseskabe'!G$45,'Køle-fryseskabe'!G$20,0)+'Køle-fryseskabe'!G$61)*'Køle-fryseskabe'!G$42*(1+'Køle-fryseskabe'!G$60)^-$B55 -> 0 | I55: =(IF($B55<='Køle-fryseskabe'!I$45,'Køle-fryseskabe'!I$20,0)+'Køle-fryseskabe'!I$61)*'Køle-fryseskabe'!I$42*(1+'Køle-fryseskabe'!I$60)^-$B55 -> 0 | K55: =(IF($B55<='Køle-fryseskabe'!K$45,'Køle-fryseskabe'!K$20,0)+'Køle-fryseskabe'!K$61)*'Køle-fryseskabe'!K$42*(1+'Køle-fryseskabe'!K$60)^-$B55 -> 0 | M55: =(IF($B55<='Køle-fryseskabe'!M$45,'Køle-fryseskabe'!M$20,0)+'Køle-fryseskabe'!M$61)*'Køle-fryseskabe'!M$42*(1+'Køle-fryseskabe'!M$60)^-$B55 -> 0 | O55: =(IF($B55<='Køle-fryseskabe'!O$45,'Køle-fryseskabe'!O$20,0)+'Køle-fryseskabe'!O$61)*'Køle-fryseskabe'!O$42*(1+'Køle-fryseskabe'!O$60)^-$B55 -> 0 | Q55: =(IF($B55<='Køle-fryseskabe'!Q$45,'Køle-fryseskabe'!Q$20,0)+'Køle-fryseskabe'!Q$61)*'Køle-fryseskabe'!Q$42*(1+'Køle-fryseskabe'!Q$60)^-$B55 -> 0 | S55: =(IF($B55<='Køle-fryseskabe'!S$45,'Køle-fryseskabe'!S$20,0)+'Køle-fryseskabe'!S$61)*'Køle-fryseskabe'!S$42*(1+'Køle-fryseskabe'!S$60)^-$B55 -> 0
B56: 8 | C56: 8 | E56: =(IF($B56<='Køle-fryseskabe'!E$45,'Køle-fryseskabe'!E$20,0)+'Køle-fryseskabe'!E$61)*'Køle-fryseskabe'!E$42*(1+'Køle-fryseskabe'!E$60)^-$B56 -> 0 | G56: =(IF($B56<='Køle-fryseskabe'!G$45,'Køle-fryseskabe'!G$20,0)+'Køle-fryseskabe'!G$61)*'Køle-fryseskabe'!G$42*(1+'Køle-fryseskabe'!G$60)^-$B56 -> 0 | I56: =(IF($B56<='Køle-fryseskabe'!I$45,'Køle-fryseskabe'!I$20,0)+'Køle-fryseskabe'!I$61)*'Køle-fryseskabe'!I$42*(1+'Køle-fryseskabe'!I$60)^-$B56 -> 0 | K56: =(IF($B56<='Køle-fryseskabe'!K$45,'Køle-fryseskabe'!K$20,0)+'Køle-fryseskabe'!K$61)*'Køle-fryseskabe'!K$42*(1+'Køle-fryseskabe'!K$60)^-$B56 -> 0 | M56: =(IF($B56<='Køle-fryseskabe'!M$45,'Køle-fryseskabe'!M$20,0)+'Køle-fryseskabe'!M$61)*'Køle-fryseskabe'!M$42*(1+'Køle-fryseskabe'!M$60)^-$B56 -> 0 | O56: =(IF($B56<='Køle-fryseskabe'!O$45,'Køle-fryseskabe'!O$20,0)+'Køle-fryseskabe'!O$61)*'Køle-fryseskabe'!O$42*(1+'Køle-fryseskabe'!O$60)^-$B56 -> 0 | Q56: =(IF($B56<='Køle-fryseskabe'!Q$45,'Køle-fryseskabe'!Q$20,0)+'Køle-fryseskabe'!Q$61)*'Køle-fryseskabe'!Q$42*(1+'Køle-fryseskabe'!Q$60)^-$B56 -> 0 | S56: =(IF($B56<='Køle-fryseskabe'!S$45,'Køle-fryseskabe'!S$20,0)+'Køle-fryseskabe'!S$61)*'Køle-fryseskabe'!S$42*(1+'Køle-fryseskabe'!S$60)^-$B56 -> 0
B57: 9 | C57: 9 | E57: =(IF($B57<='Køle-fryseskabe'!E$45,'Køle-fryseskabe'!E$20,0)+'Køle-fryseskabe'!E$61)*'Køle-fryseskabe'!E$42*(1+'Køle-fryseskabe'!E$60)^-$B57 -> 0 | G57: =(IF($B57<='Køle-fryseskabe'!G$45,'Køle-fryseskabe'!G$20,0)+'Køle-fryseskabe'!G$61)*'Køle-fryseskabe'!G$42*(1+'Køle-fryseskabe'!G$60)^-$B57 -> 0 | I57: =(IF($B57<='Køle-fryseskabe'!I$45,'Køle-fryseskabe'!I$20,0)+'Køle-fryseskabe'!I$61)*'Køle-fryseskabe'!I$42*(1+'Køle-fryseskabe'!I$60)^-$B57 -> 0 | K57: =(IF($B57<='Køle-fryseskabe'!K$45,'Køle-fryseskabe'!K$20,0)+'Køle-fryseskabe'!K$61)*'Køle-fryseskabe'!K$42*(1+'Køle-fryseskabe'!K$60)^-$B57 -> 0 | M57: =(IF($B57<='Køle-fryseskabe'!M$45,'Køle-fryseskabe'!M$20,0)+'Køle-fryseskabe'!M$61)*'Køle-fryseskabe'!M$42*(1+'Køle-fryseskabe'!M$60)^-$B57 -> 0 | O57: =(IF($B57<='Køle-fryseskabe'!O$45,'Køle-fryseskabe'!O$20,0)+'Køle-fryseskabe'!O$61)*'Køle-fryseskabe'!O$42*(1+'Køle-fryseskabe'!O$60)^-$B57 -> 0 | Q57: =(IF($B57<='Køle-fryseskabe'!Q$45,'Køle-fryseskabe'!Q$20,0)+'Køle-fryseskabe'!Q$61)*'Køle-fryseskabe'!Q$42*(1+'Køle-fryseskabe'!Q$60)^-$B57 -> 0 | S57: =(IF($B57<='Køle-fryseskabe'!S$45,'Køle-fryseskabe'!S$20,0)+'Køle-fryseskabe'!S$61)*'Køle-fryseskabe'!S$42*(1+'Køle-fryseskabe'!S$60)^-$B57 -> 0
B58: 10 | C58: 10 | E58: =(IF($B58<='Køle-fryseskabe'!E$45,'Køle-fryseskabe'!E$20,0)+'Køle-fryseskabe'!E$61)*'Køle-fryseskabe'!E$42*(1+'Køle-fryseskabe'!E$60)^-$B58 -> 0 | G58: =(IF($B58<='Køle-fryseskabe'!G$45,'Køle-fryseskabe'!G$20,0)+'Køle-fryseskabe'!G$61)*'Køle-fryseskabe'!G$42*(1+'Køle-fryseskabe'!G$60)^-$B58 -> 0 | I58: =(IF($B58<='Køle-fryseskabe'!I$45,'Køle-fryseskabe'!I$20,0)+'Køle-fryseskabe'!I$61)*'Køle-fryseskabe'!I$42*(1+'Køle-fryseskabe'!I$60)^-$B58 -> 0 | K58: =(IF($B58<='Køle-fryseskabe'!K$45,'Køle-fryseskabe'!K$20,0)+'Køle-fryseskabe'!K$61)*'Køle-fryseskabe'!K$42*(1+'Køle-fryseskabe'!K$60)^-$B58 -> 0 | M58: =(IF($B58<='Køle-fryseskabe'!M$45,'Køle-fryseskabe'!M$20,0)+'Køle-fryseskabe'!M$61)*'Køle-fryseskabe'!M$42*(1+'Køle-fryseskabe'!M$60)^-$B58 -> 0 | O58: =(IF($B58<='Køle-fryseskabe'!O$45,'Køle-fryseskabe'!O$20,0)+'Køle-fryseskabe'!O$61)*'Køle-fryseskabe'!O$42*(1+'Køle-fryseskabe'!O$60)^-$B58 -> 0 | Q58: =(IF($B58<='Køle-fryseskabe'!Q$45,'Køle-fryseskabe'!Q$20,0)+'Køle-fryseskabe'!Q$61)*'Køle-fryseskabe'!Q$42*(1+'Køle-fryseskabe'!Q$60)^-$B58 -> 0 | S58: =(IF($B58<='Køle-fryseskabe'!S$45,'Køle-fryseskabe'!S$20,0)+'Køle-fryseskabe'!S$61)*'Køle-fryseskabe'!S$42*(1+'Køle-fryseskabe'!S$60)^-$B58 -> 0
B59: 11 | C59: 11 | E59: =(IF($B59<='Køle-fryseskabe'!E$45,'Køle-fryseskabe'!E$20,0)+'Køle-fryseskabe'!E$61)*'Køle-fryseskabe'!E$42*(1+'Køle-fryseskabe'!E$60)^-$B59 -> 0 | G59: =(IF($B59<='Køle-fryseskabe'!G$45,'Køle-fryseskabe'!G$20,0)+'Køle-fryseskabe'!G$61)*'Køle-fryseskabe'!G$42*(1+'Køle-fryseskabe'!G$60)^-$B59 -> 0 | I59: =(IF($B59<='Køle-fryseskabe'!I$45,'Køle-fryseskabe'!I$20,0)+'Køle-fryseskabe'!I$61)*'Køle-fryseskabe'!I$42*(1+'Køle-fryseskabe'!I$60)^-$B59 -> 0 | K59: =(IF($B59<='Køle-fryseskabe'!K$45,'Køle-fryseskabe'!K$20,0)+'Køle-fryseskabe'!K$61)*'Køle-fryseskabe'!K$42*(1+'Køle-fryseskabe'!K$60)^-$B59 -> 0 | M59: =(IF($B59<='Køle-fryseskabe'!M$45,'Køle-fryseskabe'!M$20,0)+'Køle-fryseskabe'!M$61)*'Køle-fryseskabe'!M$42*(1+'Køle-fryseskabe'!M$60)^-$B59 -> 0 | O59: =(IF($B59<='Køle-fryseskabe'!O$45,'Køle-fryseskabe'!O$20,0)+'Køle-fryseskabe'!O$61)*'Køle-fryseskabe'!O$42*(1+'Køle-fryseskabe'!O$60)^-$B59 -> 0 | Q59: =(IF($B59<='Køle-fryseskabe'!Q$45,'Køle-fryseskabe'!Q$20,0)+'Køle-fryseskabe'!Q$61)*'Køle-fryseskabe'!Q$42*(1+'Køle-fryseskabe'!Q$60)^-$B59 -> 0 | S59: =(IF($B59<='Køle-fryseskabe'!S$45,'Køle-fryseskabe'!S$20,0)+'Køle-fryseskabe'!S$61)*'Køle-fryseskabe'!S$42*(1+'Køle-fryseskabe'!S$60)^-$B59 -> 0
B60: 12 | C60: 12 | E60: =(IF($B60<='Køle-fryseskabe'!E$45,'Køle-fryseskabe'!E$20,0)+'Køle-fryseskabe'!E$61)*'Køle-fryseskabe'!E$42*(1+'Køle-fryseskabe'!E$60)^-$B60 -> 0 | G60: =(IF($B60<='Køle-fryseskabe'!G$45,'Køle-fryseskabe'!G$20,0)+'Køle-fryseskabe'!G$61)*'Køle-fryseskabe'!G$42*(1+'Køle-fryseskabe'!G$60)^-$B60 -> 0 | I60: =(IF($B60<='Køle-fryseskabe'!I$45,'Køle-fryseskabe'!I$20,0)+'Køle-fryseskabe'!I$61)*'Køle-fryseskabe'!I$42*(1+'Køle-fryseskabe'!I$60)^-$B60 -> 0 | K60: =(IF($B60<='Køle-fryseskabe'!K$45,'Køle-fryseskabe'!K$20,0)+'Køle-fryseskabe'!K$61)*'Køle-fryseskabe'!K$42*(1+'Køle-fryseskabe'!K$60)^-$B60 -> 0 | M60: =(IF($B60<='Køle-fryseskabe'!M$45,'Køle-fryseskabe'!M$20,0)+'Køle-fryseskabe'!M$61)*'Køle-fryseskabe'!M$42*(1+'Køle-fryseskabe'!M$60)^-$B60 -> 0 | O60: =(IF($B60<='Køle-fryseskabe'!O$45,'Køle-fryseskabe'!O$20,0)+'Køle-fryseskabe'!O$61)*'Køle-fryseskabe'!O$42*(1+'Køle-fryseskabe'!O$60)^-$B60 -> 0 | Q60: =(IF($B60<='Køle-fryseskabe'!Q$45,'Køle-fryseskabe'!Q$20,0)+'Køle-fryseskabe'!Q$61)*'Køle-fryseskabe'!Q$42*(1+'Køle-fryseskabe'!Q$60)^-$B60 -> 0 | S60: =(IF($B60<='Køle-fryseskabe'!S$45,'Køle-fryseskabe'!S$20,0)+'Køle-fryseskabe'!S$61)*'Køle-fryseskabe'!S$42*(1+'Køle-fryseskabe'!S$60)^-$B60 -> 0
B61: 13 | C61: 13 | E61: =(IF($B61<='Køle-fryseskabe'!E$45,'Køle-fryseskabe'!E$20,0)+'Køle-fryseskabe'!E$61)*'Køle-fryseskabe'!E$42*(1+'Køle-fryseskabe'!E$60)^-$B61 -> 0 | G61: =(IF($B61<='Køle-fryseskabe'!G$45,'Køle-fryseskabe'!G$20,0)+'Køle-fryseskabe'!G$61)*'Køle-fryseskabe'!G$42*(1+'Køle-fryseskabe'!G$60)^-$B61 -> 0 | I61: =(IF($B61<='Køle-fryseskabe'!I$45,'Køle-fryseskabe'!I$20,0)+'Køle-fryseskabe'!I$61)*'Køle-fryseskabe'!I$42*(1+'Køle-fryseskabe'!I$60)^-$B61 -> 0 | K61: =(IF($B61<='Køle-fryseskabe'!K$45,'Køle-fryseskabe'!K$20,0)+'Køle-fryseskabe'!K$61)*'Køle-fryseskabe'!K$42*(1+'Køle-fryseskabe'!K$60)^-$B61 -> 0 | M61: =(IF($B61<='Køle-fryseskabe'!M$45,'Køle-fryseskabe'!M$20,0)+'Køle-fryseskabe'!M$61)*'Køle-fryseskabe'!M$42*(1+'Køle-fryseskabe'!M$60)^-$B61 -> 0 | O61: =(IF($B61<='Køle-fryseskabe'!O$45,'Køle-fryseskabe'!O$20,0)+'Køle-fryseskabe'!O$61)*'Køle-fryseskabe'!O$42*(1+'Køle-fryseskabe'!O$60)^-$B61 -> 0 | Q61: =(IF($B61<='Køle-fryseskabe'!Q$45,'Køle-fryseskabe'!Q$20,0)+'Køle-fryseskabe'!Q$61)*'Køle-fryseskabe'!Q$42*(1+'Køle-fryseskabe'!Q$60)^-$B61 -> 0 | S61: =(IF($B61<='Køle-fryseskabe'!S$45,'Køle-fryseskabe'!S$20,0)+'Køle-fryseskabe'!S$61)*'Køle-fryseskabe'!S$42*(1+'Køle-fryseskabe'!S$60)^-$B61 -> 0
B62: 14 | C62: 14 | E62: =(IF($B62<='Køle-fryseskabe'!E$45,'Køle-fryseskabe'!E$20,0)+'Køle-fryseskabe'!E$61)*'Køle-fryseskabe'!E$42*(1+'Køle-fryseskabe'!E$60)^-$B62 -> 0 | G62: =(IF($B62<='Køle-fryseskabe'!G$45,'Køle-fryseskabe'!G$20,0)+'Køle-fryseskabe'!G$61)*'Køle-fryseskabe'!G$42*(1+'Køle-fryseskabe'!G$60)^-$B62 -> 0 | I62: =(IF($B62<='Køle-fryseskabe'!I$45,'Køle-fryseskabe'!I$20,0)+'Køle-fryseskabe'!I$61)*'Køle-fryseskabe'!I$42*(1+'Køle-fryseskabe'!I$60)^-$B62 -> 0 | K62: =(IF($B62<='Køle-fryseskabe'!K$45,'Køle-fryseskabe'!K$20,0)+'Køle-fryseskabe'!K$61)*'Køle-fryseskabe'!K$42*(1+'Køle-fryseskabe'!K$60)^-$B62 -> 0 | M62: =(IF($B62<='Køle-fryseskabe'!M$45,'Køle-fryseskabe'!M$20,0)+'Køle-fryseskabe'!M$61)*'Køle-fryseskabe'!M$42*(1+'Køle-fryseskabe'!M$60)^-$B62 -> 0 | O62: =(IF($B62<='Køle-fryseskabe'!O$45,'Køle-fryseskabe'!O$20,0)+'Køle-fryseskabe'!O$61)*'Køle-fryseskabe'!O$42*(1+'Køle-fryseskabe'!O$60)^-$B62 -> 0 | Q62: =(IF($B62<='Køle-fryseskabe'!Q$45,'Køle-fryseskabe'!Q$20,0)+'Køle-fryseskabe'!Q$61)*'Køle-fryseskabe'!Q$42*(1+'Køle-fryseskabe'!Q$60)^-$B62 -> 0 | S62: =(IF($B62<='Køle-fryseskabe'!S$45,'Køle-fryseskabe'!S$20,0)+'Køle-fryseskabe'!S$61)*'Køle-fryseskabe'!S$42*(1+'Køle-fryseskabe'!S$60)^-$B62 -> 0
B63: 15 | C63: 15 | E63: =(IF($B63<='Køle-fryseskabe'!E$45,'Køle-fryseskabe'!E$20,0)+'Køle-fryseskabe'!E$61)*'Køle-fryseskabe'!E$42*(1+'Køle-fryseskabe'!E$60)^-$B63 -> 0 | G63: =(IF($B63<='Køle-fryseskabe'!G$45,'Køle-fryseskabe'!G$20,0)+'Køle-fryseskabe'!G$61)*'Køle-fryseskabe'!G$42*(1+'Køle-fryseskabe'!G$60)^-$B63 -> 0 | I63: =(IF($B63<='Køle-fryseskabe'!I$45,'Køle-fryseskabe'!I$20,0)+'Køle-fryseskabe'!I$61)*'Køle-fryseskabe'!I$42*(1+'Køle-fryseskabe'!I$60)^-$B63 -> 0 | K63: =(IF($B63<='Køle-fryseskabe'!K$45,'Køle-fryseskabe'!K$20,0)+'Køle-fryseskabe'!K$61)*'Køle-fryseskabe'!K$42*(1+'Køle-fryseskabe'!K$60)^-$B63 -> 0 | M63: =(IF($B63<='Køle-fryseskabe'!M$45,'Køle-fryseskabe'!M$20,0)+'Køle-fryseskabe'!M$61)*'Køle-fryseskabe'!M$42*(1+'Køle-fryseskabe'!M$60)^-$B63 -> 0 | O63: =(IF($B63<='Køle-fryseskabe'!O$45,'Køle-fryseskabe'!O$20,0)+'Køle-fryseskabe'!O$61)*'Køle-fryseskabe'!O$42*(1+'Køle-fryseskabe'!O$60)^-$B63 -> 0 | Q63: =(IF($B63<='Køle-fryseskabe'!Q$45,'Køle-fryseskabe'!Q$20,0)+'Køle-fryseskabe'!Q$61)*'Køle-fryseskabe'!Q$42*(1+'Køle-fryseskabe'!Q$60)^-$B63 -> 0 | S63: =(IF($B63<='Køle-fryseskabe'!S$45,'Køle-fryseskabe'!S$20,0)+'Køle-fryseskabe'!S$61)*'Køle-fryseskabe'!S$42*(1+'Køle-fryseskabe'!S$60)^-$B63 -> 0
B64: 16 | C64: =B64 -> 16 | E64: =(IF($B64<='Køle-fryseskabe'!E$45,'Køle-fryseskabe'!E$20,0)+'Køle-fryseskabe'!E$61)*'Køle-fryseskabe'!E$42*(1+'Køle-fryseskabe'!E$60)^-$B64 -> 0 | G64: =(IF($B64<='Køle-fryseskabe'!G$45,'Køle-fryseskabe'!G$20,0)+'Køle-fryseskabe'!G$61)*'Køle-fryseskabe'!G$42*(1+'Køle-fryseskabe'!G$60)^-$B64 -> 0 | I64: =(IF($B64<='Køle-fryseskabe'!I$45,'Køle-fryseskabe'!I$20,0)+'Køle-fryseskabe'!I$61)*'Køle-fryseskabe'!I$42*(1+'Køle-fryseskabe'!I$60)^-$B64 -> 0 | K64: =(IF($B64<='Køle-fryseskabe'!K$45,'Køle-fryseskabe'!K$20,0)+'Køle-fryseskabe'!K$61)*'Køle-fryseskabe'!K$42*(1+'Køle-fryseskabe'!K$60)^-$B64 -> 0 | M64: =(IF($B64<='Køle-fryseskabe'!M$45,'Køle-fryseskabe'!M$20,0)+'Køle-fryseskabe'!M$61)*'Køle-fryseskabe'!M$42*(1+'Køle-fryseskabe'!M$60)^-$B64 -> 0 | O64: =(IF($B64<='Køle-fryseskabe'!O$45,'Køle-fryseskabe'!O$20,0)+'Køle-fryseskabe'!O$61)*'Køle-fryseskabe'!O$42*(1+'Køle-fryseskabe'!O$60)^-$B64 -> 0 | Q64: =(IF($B64<='Køle-fryseskabe'!Q$45,'Køle-fryseskabe'!Q$20,0)+'Køle-fryseskabe'!Q$61)*'Køle-fryseskabe'!Q$42*(1+'Køle-fryseskabe'!Q$60)^-$B64 -> 0 | S64: =(IF($B64<='Køle-fryseskabe'!S$45,'Køle-fryseskabe'!S$20,0)+'Køle-fryseskabe'!S$61)*'Køle-fryseskabe'!S$42*(1+'Køle-fryseskabe'!S$60)^-$B64 -> 0
B65: 17 | C65: 17 | E65: =(IF($B65<='Køle-fryseskabe'!E$45,'Køle-fryseskabe'!E$20,0)+'Køle-fryseskabe'!E$61)*'Køle-fryseskabe'!E$42*(1+'Køle-fryseskabe'!E$60)^-$B65 -> 0 | G65: =(IF($B65<='Køle-fryseskabe'!G$45,'Køle-fryseskabe'!G$20,0)+'Køle-fryseskabe'!G$61)*'Køle-fryseskabe'!G$42*(1+'Køle-fryseskabe'!G$60)^-$B65 -> 0 | I65: =(IF($B65<='Køle-fryseskabe'!I$45,'Køle-fryseskabe'!I$20,0)+'Køle-fryseskabe'!I$61)*'Køle-fryseskabe'!I$42*(1+'Køle-fryseskabe'!I$60)^-$B65 -> 0 | K65: =(IF($B65<='Køle-fryseskabe'!K$45,'Køle-fryseskabe'!K$20,0)+'Køle-fryseskabe'!K$61)*'Køle-fryseskabe'!K$42*(1+'Køle-fryseskabe'!K$60)^-$B65 -> 0 | M65: =(IF($B65<='Køle-fryseskabe'!M$45,'Køle-fryseskabe'!M$20,0)+'Køle-fryseskabe'!M$61)*'Køle-fryseskabe'!M$42*(1+'Køle-fryseskabe'!M$60)^-$B65 -> 0 | O65: =(IF($B65<='Køle-fryseskabe'!O$45,'Køle-fryseskabe'!O$20,0)+'Køle-fryseskabe'!O$61)*'Køle-fryseskabe'!O$42*(1+'Køle-fryseskabe'!O$60)^-$B65 -> 0 | Q65: =(IF($B65<='Køle-fryseskabe'!Q$45,'Køle-fryseskabe'!Q$20,0)+'Køle-fryseskabe'!Q$61)*'Køle-fryseskabe'!Q$42*(1+'Køle-fryseskabe'!Q$60)^-$B65 -> 0 | S65: =(IF($B65<='Køle-fryseskabe'!S$45,'Køle-fryseskabe'!S$20,0)+'Køle-fryseskabe'!S$61)*'Køle-fryseskabe'!S$42*(1+'Køle-fryseskabe'!S$60)^-$B65 -> 0
B66: 18 | C66: 18 | E66: =(IF($B66<='Køle-fryseskabe'!E$45,'Køle-fryseskabe'!E$20,0)+'Køle-fryseskabe'!E$61)*'Køle-fryseskabe'!E$42*(1+'Køle-fryseskabe'!E$60)^-$B66 -> 0 | G66: =(IF($B66<='Køle-fryseskabe'!G$45,'Køle-fryseskabe'!G$20,0)+'Køle-fryseskabe'!G$61)*'Køle-fryseskabe'!G$42*(1+'Køle-fryseskabe'!G$60)^-$B66 -> 0 | I66: =(IF($B66<='Køle-fryseskabe'!I$45,'Køle-fryseskabe'!I$20,0)+'Køle-fryseskabe'!I$61)*'Køle-fryseskabe'!I$42*(1+'Køle-fryseskabe'!I$60)^-$B66 -> 0 | K66: =(IF($B66<='Køle-fryseskabe'!K$45,'Køle-fryseskabe'!K$20,0)+'Køle-fryseskabe'!K$61)*'Køle-fryseskabe'!K$42*(1+'Køle-fryseskabe'!K$60)^-$B66 -> 0 | M66: =(IF($B66<='Køle-fryseskabe'!M$45,'Køle-fryseskabe'!M$20,0)+'Køle-fryseskabe'!M$61)*'Køle-fryseskabe'!M$42*(1+'Køle-fryseskabe'!M$60)^-$B66 -> 0 | O66: =(IF($B66<='Køle-fryseskabe'!O$45,'Køle-fryseskabe'!O$20,0)+'Køle-fryseskabe'!O$61)*'Køle-fryseskabe'!O$42*(1+'Køle-fryseskabe'!O$60)^-$B66 -> 0 | Q66: =(IF($B66<='Køle-fryseskabe'!Q$45,'Køle-fryseskabe'!Q$20,0)+'Køle-fryseskabe'!Q$61)*'Køle-fryseskabe'!Q$42*(1+'Køle-fryseskabe'!Q$60)^-$B66 -> 0 | S66: =(IF($B66<='Køle-fryseskabe'!S$45,'Køle-fryseskabe'!S$20,0)+'Køle-fryseskabe'!S$61)*'Køle-fryseskabe'!S$42*(1+'Køle-fryseskabe'!S$60)^-$B66 -> 0
B67: 19 | C67: 19 | E67: =(IF($B67<='Køle-fryseskabe'!E$45,'Køle-fryseskabe'!E$20,0)+'Køle-fryseskabe'!E$61)*'Køle-fryseskabe'!E$42*(1+'Køle-fryseskabe'!E$60)^-$B67 -> 0 | G67: =(IF($B67<='Køle-fryseskabe'!G$45,'Køle-fryseskabe'!G$20,0)+'Køle-fryseskabe'!G$61)*'Køle-fryseskabe'!G$42*(1+'Køle-fryseskabe'!G$60)^-$B67 -> 0 | I67: =(IF($B67<='Køle-fryseskabe'!I$45,'Køle-fryseskabe'!I$20,0)+'Køle-fryseskabe'!I$61)*'Køle-fryseskabe'!I$42*(1+'Køle-fryseskabe'!I$60)^-$B67 -> 0 | K67: =(IF($B67<='Køle-fryseskabe'!K$45,'Køle-fryseskabe'!K$20,0)+'Køle-fryseskabe'!K$61)*'Køle-fryseskabe'!K$42*(1+'Køle-fryseskabe'!K$60)^-$B67 -> 0 | M67: =(IF($B67<='Køle-fryseskabe'!M$45,'Køle-fryseskabe'!M$20,0)+'Køle-fryseskabe'!M$61)*'Køle-fryseskabe'!M$42*(1+'Køle-fryseskabe'!M$60)^-$B67 -> 0 | O67: =(IF($B67<='Køle-fryseskabe'!O$45,'Køle-fryseskabe'!O$20,0)+'Køle-fryseskabe'!O$61)*'Køle-fryseskabe'!O$42*(1+'Køle-fryseskabe'!O$60)^-$B67 -> 0 | Q67: =(IF($B67<='Køle-fryseskabe'!Q$45,'Køle-fryseskabe'!Q$20,0)+'Køle-fryseskabe'!Q$61)*'Køle-fryseskabe'!Q$42*(1+'Køle-fryseskabe'!Q$60)^-$B67 -> 0 | S67: =(IF($B67<='Køle-fryseskabe'!S$45,'Køle-fryseskabe'!S$20,0)+'Køle-fryseskabe'!S$61)*'Køle-fryseskabe'!S$42*(1+'Køle-fryseskabe'!S$60)^-$B67 -> 0
B68: 20 | C68: 20 | E68: =(IF($B68<='Køle-fryseskabe'!E$45,'Køle-fryseskabe'!E$20,0)+'Køle-fryseskabe'!E$61)*'Køle-fryseskabe'!E$42*(1+'Køle-fryseskabe'!E$60)^-$B68 -> 0 | G68: =(IF($B68<='Køle-fryseskabe'!G$45,'Køle-fryseskabe'!G$20,0)+'Køle-fryseskabe'!G$61)*'Køle-fryseskabe'!G$42*(1+'Køle-fryseskabe'!G$60)^-$B68 -> 0 | I68: =(IF($B68<='Køle-fryseskabe'!I$45,'Køle-fryseskabe'!I$20,0)+'Køle-fryseskabe'!I$61)*'Køle-fryseskabe'!I$42*(1+'Køle-fryseskabe'!I$60)^-$B68 -> 0 | K68: =(IF($B68<='Køle-fryseskabe'!K$45,'Køle-fryseskabe'!K$20,0)+'Køle-fryseskabe'!K$61)*'Køle-fryseskabe'!K$42*(1+'Køle-fryseskabe'!K$60)^-$B68 -> 0 | M68: =(IF($B68<='Køle-fryseskabe'!M$45,'Køle-fryseskabe'!M$20,0)+'Køle-fryseskabe'!M$61)*'Køle-fryseskabe'!M$42*(1+'Køle-fryseskabe'!M$60)^-$B68 -> 0 | O68: =(IF($B68<='Køle-fryseskabe'!O$45,'Køle-fryseskabe'!O$20,0)+'Køle-fryseskabe'!O$61)*'Køle-fryseskabe'!O$42*(1+'Køle-fryseskabe'!O$60)^-$B68 -> 0 | Q68: =(IF($B68<='Køle-fryseskabe'!Q$45,'Køle-fryseskabe'!Q$20,0)+'Køle-fryseskabe'!Q$61)*'Køle-fryseskabe'!Q$42*(1+'Køle-fryseskabe'!Q$60)^-$B68 -> 0 | S68: =(IF($B68<='Køle-fryseskabe'!S$45,'Køle-fryseskabe'!S$20,0)+'Køle-fryseskabe'!S$61)*'Køle-fryseskabe'!S$42*(1+'Køle-fryseskabe'!S$60)^-$B68 -> 0
A71: Efterbrugsindtægter/omkostninger i det enkelte år.
B72: År indeks | E72: PRODUKT 1 | G72: PRODUKT 2 | I72: PRODUKT 3 | K72: PRODUKT 4 | M72: PRODUKT 5 | O72: PRODUKT 6 | Q72: PRODUKT 7 | S72: PRODUKT 8
B73: 1 | C73: =B73 -> 1 | E73: =(IF('Køle-fryseskabe'!E$24="nej",-IF(100-(100+'Køle-fryseskabe'!E$64)*$B73/'Køle-fryseskabe'!E$52<0,0,100-(100+'Køle-fryseskabe'!E$64)*$B73/'Køle-fryseskabe'!E$52)/100*'Køle-fryseskabe'!E$12,0)+'Køle-fryseskabe'!E$65)*'Køle-fryseskabe'!E$42*(1+'Køle-fryseskabe'!E$60/100)^-$B73 ->  | G73: =(IF('Køle-fryseskabe'!G$24="nej",-IF(100-(100+'Køle-fryseskabe'!G$64)*$B73/'Køle-fryseskabe'!G$52<0,0,100-(100+'Køle-fryseskabe'!G$64)*$B73/'Køle-fryseskabe'!G$52)/100*'Køle-fryseskabe'!G$12,0)+'Køle-fryseskabe'!G$65)*'Køle-fryseskabe'!G$42*(1+'Køle-fryseskabe'!G$60/100)^-$B73 ->  | I73: =(IF('Køle-fryseskabe'!I$24="nej",-IF(100-(100+'Køle-fryseskabe'!I$64)*$B73/'Køle-fryseskabe'!I$52<0,0,100-(100+'Køle-fryseskabe'!I$64)*$B73/'Køle-fryseskabe'!I$52)/100*'Køle-fryseskabe'!I$12,0)+'Køle-fryseskabe'!I$65)*'Køle-fryseskabe'!I$42*(1+'Køle-fryseskabe'!I$60/100)^-$B73 ->  | K73: =(IF('Køle-fryseskabe'!K$24="nej",-IF(100-(100+'Køle-fryseskabe'!K$64)*$B73/'Køle-fryseskabe'!K$52<0,0,100-(100+'Køle-fryseskabe'!K$64)*$B73/'Køle-fryseskabe'!K$52)/100*'Køle-fryseskabe'!K$12,0)+'Køle-fryseskabe'!K$65)*'Køle-fryseskabe'!K$42*(1+'Køle-fryseskabe'!K$60/100)^-$B73 ->  | M73: =(IF('Køle-fryseskabe'!M$24="nej",-IF(100-(100+'Køle-fryseskabe'!M$64)*$B73/'Køle-fryseskabe'!M$52<0,0,100-(100+'Køle-fryseskabe'!M$64)*$B73/'Køle-fryseskabe'!M$52)/100*'Køle-fryseskabe'!M$12,0)+'Køle-fryseskabe'!M$65)*'Køle-fryseskabe'!M$42*(1+'Køle-fryseskabe'!M$60/100)^-$B73 ->  | O73: =(IF('Køle-fryseskabe'!O$24="nej",-IF(100-(100+'Køle-fryseskabe'!O$64)*$B73/'Køle-fryseskabe'!O$52<0,0,100-(100+'Køle-fryseskabe'!O$64)*$B73/'Køle-fryseskabe'!O$52)/100*'Køle-fryseskabe'!O$12,0)+'Køle-fryseskabe'!O$65)*'Køle-fryseskabe'!O$42*(1+'Køle-fryseskabe'!O$60/100)^-$B73 ->  | Q73: =(IF('Køle-fryseskabe'!Q$24="nej",-IF(100-(100+'Køle-fryseskabe'!Q$64)*$B73/'Køle-fryseskabe'!Q$52<0,0,100-(100+'Køle-fryseskabe'!Q$64)*$B73/'Køle-fryseskabe'!Q$52)/100*'Køle-fryseskabe'!Q$12,0)+'Køle-fryseskabe'!Q$65)*'Køle-fryseskabe'!Q$42*(1+'Køle-fryseskabe'!Q$60/100)^-$B73 ->  | S73: =(IF('Køle-fryseskabe'!S$24="nej",-IF(100-(100+'Køle-fryseskabe'!S$64)*$B73/'Køle-fryseskabe'!S$52<0,0,100-(100+'Køle-fryseskabe'!S$64)*$B73/'Køle-fryseskabe'!S$52)/100*'Køle-fryseskabe'!S$12,0)+'Køle-fryseskabe'!S$65)*'Køle-fryseskabe'!S$42*(1+'Køle-fryseskabe'!S$60/100)^-$B73 -> 
B74: 2 | C74: =B74 -> 2 | E74: =(IF('Køle-fryseskabe'!E$24="nej",-IF(100-(100+'Køle-fryseskabe'!E$64)*$B74/'Køle-fryseskabe'!E$52<0,0,100-(100+'Køle-fryseskabe'!E$64)*$B74/'Køle-fryseskabe'!E$52)/100*'Køle-fryseskabe'!E$12,0)+'Køle-fryseskabe'!E$65)*'Køle-fryseskabe'!E$42*(1+'Køle-fryseskabe'!E$60/100)^-$B74 ->  | G74: =(IF('Køle-fryseskabe'!G$24="nej",-IF(100-(100+'Køle-fryseskabe'!G$64)*$B74/'Køle-fryseskabe'!G$52<0,0,100-(100+'Køle-fryseskabe'!G$64)*$B74/'Køle-fryseskabe'!G$52)/100*'Køle-fryseskabe'!G$12,0)+'Køle-fryseskabe'!G$65)*'Køle-fryseskabe'!G$42*(1+'Køle-fryseskabe'!G$60/100)^-$B74 ->  | I74: =(IF('Køle-fryseskabe'!I$24="nej",-IF(100-(100+'Køle-fryseskabe'!I$64)*$B74/'Køle-fryseskabe'!I$52<0,0,100-(100+'Køle-fryseskabe'!I$64)*$B74/'Køle-fryseskabe'!I$52)/100*'Køle-fryseskabe'!I$12,0)+'Køle-fryseskabe'!I$65)*'Køle-fryseskabe'!I$42*(1+'Køle-fryseskabe'!I$60/100)^-$B74 ->  | K74: =(IF('Køle-fryseskabe'!K$24="nej",-IF(100-(100+'Køle-fryseskabe'!K$64)*$B74/'Køle-fryseskabe'!K$52<0,0,100-(100+'Køle-fryseskabe'!K$64)*$B74/'Køle-fryseskabe'!K$52)/100*'Køle-fryseskabe'!K$12,0)+'Køle-fryseskabe'!K$65)*'Køle-fryseskabe'!K$42*(1+'Køle-fryseskabe'!K$60/100)^-$B74 ->  | M74: =(IF('Køle-fryseskabe'!M$24="nej",-IF(100-(100+'Køle-fryseskabe'!M$64)*$B74/'Køle-fryseskabe'!M$52<0,0,100-(100+'Køle-fryseskabe'!M$64)*$B74/'Køle-fryseskabe'!M$52)/100*'Køle-fryseskabe'!M$12,0)+'Køle-fryseskabe'!M$65)*'Køle-fryseskabe'!M$42*(1+'Køle-fryseskabe'!M$60/100)^-$B74 ->  | O74: =(IF('Køle-fryseskabe'!O$24="nej",-IF(100-(100+'Køle-fryseskabe'!O$64)*$B74/'Køle-fryseskabe'!O$52<0,0,100-(100+'Køle-fryseskabe'!O$64)*$B74/'Køle-fryseskabe'!O$52)/100*'Køle-fryseskabe'!O$12,0)+'Køle-fryseskabe'!O$65)*'Køle-fryseskabe'!O$42*(1+'Køle-fryseskabe'!O$60/100)^-$B74 ->  | Q74: =(IF('Køle-fryseskabe'!Q$24="nej",-IF(100-(100+'Køle-fryseskabe'!Q$64)*$B74/'Køle-fryseskabe'!Q$52<0,0,100-(100+'Køle-fryseskabe'!Q$64)*$B74/'Køle-fryseskabe'!Q$52)/100*'Køle-fryseskabe'!Q$12,0)+'Køle-fryseskabe'!Q$65)*'Køle-fryseskabe'!Q$42*(1+'Køle-fryseskabe'!Q$60/100)^-$B74 ->  | S74: =(IF('Køle-fryseskabe'!S$24="nej",-IF(100-(100+'Køle-fryseskabe'!S$64)*$B74/'Køle-fryseskabe'!S$52<0,0,100-(100+'Køle-fryseskabe'!S$64)*$B74/'Køle-fryseskabe'!S$52)/100*'Køle-fryseskabe'!S$12,0)+'Køle-fryseskabe'!S$65)*'Køle-fryseskabe'!S$42*(1+'Køle-fryseskabe'!S$60/100)^-$B74 -> 
B75: 3 | C75: 3 | E75: =(IF('Køle-fryseskabe'!E$24="nej",-IF(100-(100+'Køle-fryseskabe'!E$64)*$B75/'Køle-fryseskabe'!E$52<0,0,100-(100+'Køle-fryseskabe'!E$64)*$B75/'Køle-fryseskabe'!E$52)/100*'Køle-fryseskabe'!E$12,0)+'Køle-fryseskabe'!E$65)*'Køle-fryseskabe'!E$42*(1+'Køle-fryseskabe'!E$60/100)^-$B75 ->  | G75: =(IF('Køle-fryseskabe'!G$24="nej",-IF(100-(100+'Køle-fryseskabe'!G$64)*$B75/'Køle-fryseskabe'!G$52<0,0,100-(100+'Køle-fryseskabe'!G$64)*$B75/'Køle-fryseskabe'!G$52)/100*'Køle-fryseskabe'!G$12,0)+'Køle-fryseskabe'!G$65)*'Køle-fryseskabe'!G$42*(1+'Køle-fryseskabe'!G$60/100)^-$B75 ->  | I75: =(IF('Køle-fryseskabe'!I$24="nej",-IF(100-(100+'Køle-fryseskabe'!I$64)*$B75/'Køle-fryseskabe'!I$52<0,0,100-(100+'Køle-fryseskabe'!I$64)*$B75/'Køle-fryseskabe'!I$52)/100*'Køle-fryseskabe'!I$12,0)+'Køle-fryseskabe'!I$65)*'Køle-fryseskabe'!I$42*(1+'Køle-fryseskabe'!I$60/100)^-$B75 ->  | K75: =(IF('Køle-fryseskabe'!K$24="nej",-IF(100-(100+'Køle-fryseskabe'!K$64)*$B75/'Køle-fryseskabe'!K$52<0,0,100-(100+'Køle-fryseskabe'!K$64)*$B75/'Køle-fryseskabe'!K$52)/100*'Køle-fryseskabe'!K$12,0)+'Køle-fryseskabe'!K$65)*'Køle-fryseskabe'!K$42*(1+'Køle-fryseskabe'!K$60/100)^-$B75 ->  | M75: =(IF('Køle-fryseskabe'!M$24="nej",-IF(100-(100+'Køle-fryseskabe'!M$64)*$B75/'Køle-fryseskabe'!M$52<0,0,100-(100+'Køle-fryseskabe'!M$64)*$B75/'Køle-fryseskabe'!M$52)/100*'Køle-fryseskabe'!M$12,0)+'Køle-fryseskabe'!M$65)*'Køle-fryseskabe'!M$42*(1+'Køle-fryseskabe'!M$60/100)^-$B75 ->  | O75: =(IF('Køle-fryseskabe'!O$24="nej",-IF(100-(100+'Køle-fryseskabe'!O$64)*$B75/'Køle-fryseskabe'!O$52<0,0,100-(100+'Køle-fryseskabe'!O$64)*$B75/'Køle-fryseskabe'!O$52)/100*'Køle-fryseskabe'!O$12,0)+'Køle-fryseskabe'!O$65)*'Køle-fryseskabe'!O$42*(1+'Køle-fryseskabe'!O$60/100)^-$B75 ->  | Q75: =(IF('Køle-fryseskabe'!Q$24="nej",-IF(100-(100+'Køle-fryseskabe'!Q$64)*$B75/'Køle-fryseskabe'!Q$52<0,0,100-(100+'Køle-fryseskabe'!Q$64)*$B75/'Køle-fryseskabe'!Q$52)/100*'Køle-fryseskabe'!Q$12,0)+'Køle-fryseskabe'!Q$65)*'Køle-fryseskabe'!Q$42*(1+'Køle-fryseskabe'!Q$60/100)^-$B75 ->  | S75: =(IF('Køle-fryseskabe'!S$24="nej",-IF(100-(100+'Køle-fryseskabe'!S$64)*$B75/'Køle-fryseskabe'!S$52<0,0,100-(100+'Køle-fryseskabe'!S$64)*$B75/'Køle-fryseskabe'!S$52)/100*'Køle-fryseskabe'!S$12,0)+'Køle-fryseskabe'!S$65)*'Køle-fryseskabe'!S$42*(1+'Køle-fryseskabe'!S$60/100)^-$B75 -> 
B76: 4 | C76: 4 | E76: =(IF('Køle-fryseskabe'!E$24="nej",-IF(100-(100+'Køle-fryseskabe'!E$64)*$B76/'Køle-fryseskabe'!E$52<0,0,100-(100+'Køle-fryseskabe'!E$64)*$B76/'Køle-fryseskabe'!E$52)/100*'Køle-fryseskabe'!E$12,0)+'Køle-fryseskabe'!E$65)*'Køle-fryseskabe'!E$42*(1+'Køle-fryseskabe'!E$60/100)^-$B76 ->  | G76: =(IF('Køle-fryseskabe'!G$24="nej",-IF(100-(100+'Køle-fryseskabe'!G$64)*$B76/'Køle-fryseskabe'!G$52<0,0,100-(100+'Køle-fryseskabe'!G$64)*$B76/'Køle-fryseskabe'!G$52)/100*'Køle-fryseskabe'!G$12,0)+'Køle-fryseskabe'!G$65)*'Køle-fryseskabe'!G$42*(1+'Køle-fryseskabe'!G$60/100)^-$B76 ->  | I76: =(IF('Køle-fryseskabe'!I$24="nej",-IF(100-(100+'Køle-fryseskabe'!I$64)*$B76/'Køle-fryseskabe'!I$52<0,0,100-(100+'Køle-fryseskabe'!I$64)*$B76/'Køle-fryseskabe'!I$52)/100*'Køle-fryseskabe'!I$12,0)+'Køle-fryseskabe'!I$65)*'Køle-fryseskabe'!I$42*(1+'Køle-fryseskabe'!I$60/100)^-$B76 ->  | K76: =(IF('Køle-fryseskabe'!K$24="nej",-IF(100-(100+'Køle-fryseskabe'!K$64)*$B76/'Køle-fryseskabe'!K$52<0,0,100-(100+'Køle-fryseskabe'!K$64)*$B76/'Køle-fryseskabe'!K$52)/100*'Køle-fryseskabe'!K$12,0)+'Køle-fryseskabe'!K$65)*'Køle-fryseskabe'!K$42*(1+'Køle-fryseskabe'!K$60/100)^-$B76 ->  | M76: =(IF('Køle-fryseskabe'!M$24="nej",-IF(100-(100+'Køle-fryseskabe'!M$64)*$B76/'Køle-fryseskabe'!M$52<0,0,100-(100+'Køle-fryseskabe'!M$64)*$B76/'Køle-fryseskabe'!M$52)/100*'Køle-fryseskabe'!M$12,0)+'Køle-fryseskabe'!M$65)*'Køle-fryseskabe'!M$42*(1+'Køle-fryseskabe'!M$60/100)^-$B76 ->  | O76: =(IF('Køle-fryseskabe'!O$24="nej",-IF(100-(100+'Køle-fryseskabe'!O$64)*$B76/'Køle-fryseskabe'!O$52<0,0,100-(100+'Køle-fryseskabe'!O$64)*$B76/'Køle-fryseskabe'!O$52)/100*'Køle-fryseskabe'!O$12,0)+'Køle-fryseskabe'!O$65)*'Køle-fryseskabe'!O$42*(1+'Køle-fryseskabe'!O$60/100)^-$B76 ->  | Q76: =(IF('Køle-fryseskabe'!Q$24="nej",-IF(100-(100+'Køle-fryseskabe'!Q$64)*$B76/'Køle-fryseskabe'!Q$52<0,0,100-(100+'Køle-fryseskabe'!Q$64)*$B76/'Køle-fryseskabe'!Q$52)/100*'Køle-fryseskabe'!Q$12,0)+'Køle-fryseskabe'!Q$65)*'Køle-fryseskabe'!Q$42*(1+'Køle-fryseskabe'!Q$60/100)^-$B76 ->  | S76: =(IF('Køle-fryseskabe'!S$24="nej",-IF(100-(100+'Køle-fryseskabe'!S$64)*$B76/'Køle-fryseskabe'!S$52<0,0,100-(100+'Køle-fryseskabe'!S$64)*$B76/'Køle-fryseskabe'!S$52)/100*'Køle-fryseskabe'!S$12,0)+'Køle-fryseskabe'!S$65)*'Køle-fryseskabe'!S$42*(1+'Køle-fryseskabe'!S$60/100)^-$B76 -> 
B77: 5 | C77: 5 | E77: =(IF('Køle-fryseskabe'!E$24="nej",-IF(100-(100+'Køle-fryseskabe'!E$64)*$B77/'Køle-fryseskabe'!E$52<0,0,100-(100+'Køle-fryseskabe'!E$64)*$B77/'Køle-fryseskabe'!E$52)/100*'Køle-fryseskabe'!E$12,0)+'Køle-fryseskabe'!E$65)*'Køle-fryseskabe'!E$42*(1+'Køle-fryseskabe'!E$60/100)^-$B77 ->  | G77: =(IF('Køle-fryseskabe'!G$24="nej",-IF(100-(100+'Køle-fryseskabe'!G$64)*$B77/'Køle-fryseskabe'!G$52<0,0,100-(100+'Køle-fryseskabe'!G$64)*$B77/'Køle-fryseskabe'!G$52)/100*'Køle-fryseskabe'!G$12,0)+'Køle-fryseskabe'!G$65)*'Køle-fryseskabe'!G$42*(1+'Køle-fryseskabe'!G$60/100)^-$B77 ->  | I77: =(IF('Køle-fryseskabe'!I$24="nej",-IF(100-(100+'Køle-fryseskabe'!I$64)*$B77/'Køle-fryseskabe'!I$52<0,0,100-(100+'Køle-fryseskabe'!I$64)*$B77/'Køle-fryseskabe'!I$52)/100*'Køle-fryseskabe'!I$12,0)+'Køle-fryseskabe'!I$65)*'Køle-fryseskabe'!I$42*(1+'Køle-fryseskabe'!I$60/100)^-$B77 ->  | K77: =(IF('Køle-fryseskabe'!K$24="nej",-IF(100-(100+'Køle-fryseskabe'!K$64)*$B77/'Køle-fryseskabe'!K$52<0,0,100-(100+'Køle-fryseskabe'!K$64)*$B77/'Køle-fryseskabe'!K$52)/100*'Køle-fryseskabe'!K$12,0)+'Køle-fryseskabe'!K$65)*'Køle-fryseskabe'!K$42*(1+'Køle-fryseskabe'!K$60/100)^-$B77 ->  | M77: =(IF('Køle-fryseskabe'!M$24="nej",-IF(100-(100+'Køle-fryseskabe'!M$64)*$B77/'Køle-fryseskabe'!M$52<0,0,100-(100+'Køle-fryseskabe'!M$64)*$B77/'Køle-fryseskabe'!M$52)/100*'Køle-fryseskabe'!M$12,0)+'Køle-fryseskabe'!M$65)*'Køle-fryseskabe'!M$42*(1+'Køle-fryseskabe'!M$60/100)^-$B77 ->  | O77: =(IF('Køle-fryseskabe'!O$24="nej",-IF(100-(100+'Køle-fryseskabe'!O$64)*$B77/'Køle-fryseskabe'!O$52<0,0,100-(100+'Køle-fryseskabe'!O$64)*$B77/'Køle-fryseskabe'!O$52)/100*'Køle-fryseskabe'!O$12,0)+'Køle-fryseskabe'!O$65)*'Køle-fryseskabe'!O$42*(1+'Køle-fryseskabe'!O$60/100)^-$B77 ->  | Q77: =(IF('Køle-fryseskabe'!Q$24="nej",-IF(100-(100+'Køle-fryseskabe'!Q$64)*$B77/'Køle-fryseskabe'!Q$52<0,0,100-(100+'Køle-fryseskabe'!Q$64)*$B77/'Køle-fryseskabe'!Q$52)/100*'Køle-fryseskabe'!Q$12,0)+'Køle-fryseskabe'!Q$65)*'Køle-fryseskabe'!Q$42*(1+'Køle-fryseskabe'!Q$60/100)^-$B77 ->  | S77: =(IF('Køle-fryseskabe'!S$24="nej",-IF(100-(100+'Køle-fryseskabe'!S$64)*$B77/'Køle-fryseskabe'!S$52<0,0,100-(100+'Køle-fryseskabe'!S$64)*$B77/'Køle-fryseskabe'!S$52)/100*'Køle-fryseskabe'!S$12,0)+'Køle-fryseskabe'!S$65)*'Køle-fryseskabe'!S$42*(1+'Køle-fryseskabe'!S$60/100)^-$B77 -> 
B78: 6 | C78: 6 | E78: =(IF('Køle-fryseskabe'!E$24="nej",-IF(100-(100+'Køle-fryseskabe'!E$64)*$B78/'Køle-fryseskabe'!E$52<0,0,100-(100+'Køle-fryseskabe'!E$64)*$B78/'Køle-fryseskabe'!E$52)/100*'Køle-fryseskabe'!E$12,0)+'Køle-fryseskabe'!E$65)*'Køle-fryseskabe'!E$42*(1+'Køle-fryseskabe'!E$60/100)^-$B78 ->  | G78: =(IF('Køle-fryseskabe'!G$24="nej",-IF(100-(100+'Køle-fryseskabe'!G$64)*$B78/'Køle-fryseskabe'!G$52<0,0,100-(100+'Køle-fryseskabe'!G$64)*$B78/'Køle-fryseskabe'!G$52)/100*'Køle-fryseskabe'!G$12,0)+'Køle-fryseskabe'!G$65)*'Køle-fryseskabe'!G$42*(1+'Køle-fryseskabe'!G$60/100)^-$B78 ->  | I78: =(IF('Køle-fryseskabe'!I$24="nej",-IF(100-(100+'Køle-fryseskabe'!I$64)*$B78/'Køle-fryseskabe'!I$52<0,0,100-(100+'Køle-fryseskabe'!I$64)*$B78/'Køle-fryseskabe'!I$52)/100*'Køle-fryseskabe'!I$12,0)+'Køle-fryseskabe'!I$65)*'Køle-fryseskabe'!I$42*(1+'Køle-fryseskabe'!I$60/100)^-$B78 ->  | K78: =(IF('Køle-fryseskabe'!K$24="nej",-IF(100-(100+'Køle-fryseskabe'!K$64)*$B78/'Køle-fryseskabe'!K$52<0,0,100-(100+'Køle-fryseskabe'!K$64)*$B78/'Køle-fryseskabe'!K$52)/100*'Køle-fryseskabe'!K$12,0)+'Køle-fryseskabe'!K$65)*'Køle-fryseskabe'!K$42*(1+'Køle-fryseskabe'!K$60/100)^-$B78 ->  | M78: =(IF('Køle-fryseskabe'!M$24="nej",-IF(100-(100+'Køle-fryseskabe'!M$64)*$B78/'Køle-fryseskabe'!M$52<0,0,100-(100+'Køle-fryseskabe'!M$64)*$B78/'Køle-fryseskabe'!M$52)/100*'Køle-fryseskabe'!M$12,0)+'Køle-fryseskabe'!M$65)*'Køle-fryseskabe'!M$42*(1+'Køle-fryseskabe'!M$60/100)^-$B78 ->  | O78: =(IF('Køle-fryseskabe'!O$24="nej",-IF(100-(100+'Køle-fryseskabe'!O$64)*$B78/'Køle-fryseskabe'!O$52<0,0,100-(100+'Køle-fryseskabe'!O$64)*$B78/'Køle-fryseskabe'!O$52)/100*'Køle-fryseskabe'!O$12,0)+'Køle-fryseskabe'!O$65)*'Køle-fryseskabe'!O$42*(1+'Køle-fryseskabe'!O$60/100)^-$B78 ->  | Q78: =(IF('Køle-fryseskabe'!Q$24="nej",-IF(100-(100+'Køle-fryseskabe'!Q$64)*$B78/'Køle-fryseskabe'!Q$52<0,0,100-(100+'Køle-fryseskabe'!Q$64)*$B78/'Køle-fryseskabe'!Q$52)/100*'Køle-fryseskabe'!Q$12,0)+'Køle-fryseskabe'!Q$65)*'Køle-fryseskabe'!Q$42*(1+'Køle-fryseskabe'!Q$60/100)^-$B78 ->  | S78: =(IF('Køle-fryseskabe'!S$24="nej",-IF(100-(100+'Køle-fryseskabe'!S$64)*$B78/'Køle-fryseskabe'!S$52<0,0,100-(100+'Køle-fryseskabe'!S$64)*$B78/'Køle-fryseskabe'!S$52)/100*'Køle-fryseskabe'!S$12,0)+'Køle-fryseskabe'!S$65)*'Køle-fryseskabe'!S$42*(1+'Køle-fryseskabe'!S$60/100)^-$B78 -> 
B79: 7 | C79: 7 | E79: =(IF('Køle-fryseskabe'!E$24="nej",-IF(100-(100+'Køle-fryseskabe'!E$64)*$B79/'Køle-fryseskabe'!E$52<0,0,100-(100+'Køle-fryseskabe'!E$64)*$B79/'Køle-fryseskabe'!E$52)/100*'Køle-fryseskabe'!E$12,0)+'Køle-fryseskabe'!E$65)*'Køle-fryseskabe'!E$42*(1+'Køle-fryseskabe'!E$60/100)^-$B79 ->  | G79: =(IF('Køle-fryseskabe'!G$24="nej",-IF(100-(100+'Køle-fryseskabe'!G$64)*$B79/'Køle-fryseskabe'!G$52<0,0,100-(100+'Køle-fryseskabe'!G$64)*$B79/'Køle-fryseskabe'!G$52)/100*'Køle-fryseskabe'!G$12,0)+'Køle-fryseskabe'!G$65)*'Køle-fryseskabe'!G$42*(1+'Køle-fryseskabe'!G$60/100)^-$B79 ->  | I79: =(IF('Køle-fryseskabe'!I$24="nej",-IF(100-(100+'Køle-fryseskabe'!I$64)*$B79/'Køle-fryseskabe'!I$52<0,0,100-(100+'Køle-fryseskabe'!I$64)*$B79/'Køle-fryseskabe'!I$52)/100*'Køle-fryseskabe'!I$12,0)+'Køle-fryseskabe'!I$65)*'Køle-fryseskabe'!I$42*(1+'Køle-fryseskabe'!I$60/100)^-$B79 ->  | K79: =(IF('Køle-fryseskabe'!K$24="nej",-IF(100-(100+'Køle-fryseskabe'!K$64)*$B79/'Køle-fryseskabe'!K$52<0,0,100-(100+'Køle-fryseskabe'!K$64)*$B79/'Køle-fryseskabe'!K$52)/100*'Køle-fryseskabe'!K$12,0)+'Køle-fryseskabe'!K$65)*'Køle-fryseskabe'!K$42*(1+'Køle-fryseskabe'!K$60/100)^-$B79 ->  | M79: =(IF('Køle-fryseskabe'!M$24="nej",-IF(100-(100+'Køle-fryseskabe'!M$64)*$B79/'Køle-fryseskabe'!M$52<0,0,100-(100+'Køle-fryseskabe'!M$64)*$B79/'Køle-fryseskabe'!M$52)/100*'Køle-fryseskabe'!M$12,0)+'Køle-fryseskabe'!M$65)*'Køle-fryseskabe'!M$42*(1+'Køle-fryseskabe'!M$60/100)^-$B79 ->  | O79: =(IF('Køle-fryseskabe'!O$24="nej",-IF(100-(100+'Køle-fryseskabe'!O$64)*$B79/'Køle-fryseskabe'!O$52<0,0,100-(100+'Køle-fryseskabe'!O$64)*$B79/'Køle-fryseskabe'!O$52)/100*'Køle-fryseskabe'!O$12,0)+'Køle-fryseskabe'!O$65)*'Køle-fryseskabe'!O$42*(1+'Køle-fryseskabe'!O$60/100)^-$B79 ->  | Q79: =(IF('Køle-fryseskabe'!Q$24="nej",-IF(100-(100+'Køle-fryseskabe'!Q$64)*$B79/'Køle-fryseskabe'!Q$52<0,0,100-(100+'Køle-fryseskabe'!Q$64)*$B79/'Køle-fryseskabe'!Q$52)/100*'Køle-fryseskabe'!Q$12,0)+'Køle-fryseskabe'!Q$65)*'Køle-fryseskabe'!Q$42*(1+'Køle-fryseskabe'!Q$60/100)^-$B79 ->  | S79: =(IF('Køle-fryseskabe'!S$24="nej",-IF(100-(100+'Køle-fryseskabe'!S$64)*$B79/'Køle-fryseskabe'!S$52<0,0,100-(100+'Køle-fryseskabe'!S$64)*$B79/'Køle-fryseskabe'!S$52)/100*'Køle-fryseskabe'!S$12,0)+'Køle-fryseskabe'!S$65)*'Køle-fryseskabe'!S$42*(1+'Køle-fryseskabe'!S$60/100)^-$B79 -> 
B80: 8 | C80: 8 | E80: =(IF('Køle-fryseskabe'!E$24="nej",-IF(100-(100+'Køle-fryseskabe'!E$64)*$B80/'Køle-fryseskabe'!E$52<0,0,100-(100+'Køle-fryseskabe'!E$64)*$B80/'Køle-fryseskabe'!E$52)/100*'Køle-fryseskabe'!E$12,0)+'Køle-fryseskabe'!E$65)*'Køle-fryseskabe'!E$42*(1+'Køle-fryseskabe'!E$60/100)^-$B80 ->  | G80: =(IF('Køle-fryseskabe'!G$24="nej",-IF(100-(100+'Køle-fryseskabe'!G$64)*$B80/'Køle-fryseskabe'!G$52<0,0,100-(100+'Køle-fryseskabe'!G$64)*$B80/'Køle-fryseskabe'!G$52)/100*'Køle-fryseskabe'!G$12,0)+'Køle-fryseskabe'!G$65)*'Køle-fryseskabe'!G$42*(1+'Køle-fryseskabe'!G$60/100)^-$B80 ->  | I80: =(IF('Køle-fryseskabe'!I$24="nej",-IF(100-(100+'Køle-fryseskabe'!I$64)*$B80/'Køle-fryseskabe'!I$52<0,0,100-(100+'Køle-fryseskabe'!I$64)*$B80/'Køle-fryseskabe'!I$52)/100*'Køle-fryseskabe'!I$12,0)+'Køle-fryseskabe'!I$65)*'Køle-fryseskabe'!I$42*(1+'Køle-fryseskabe'!I$60/100)^-$B80 ->  | K80: =(IF('Køle-fryseskabe'!K$24="nej",-IF(100-(100+'Køle-fryseskabe'!K$64)*$B80/'Køle-fryseskabe'!K$52<0,0,100-(100+'Køle-fryseskabe'!K$64)*$B80/'Køle-fryseskabe'!K$52)/100*'Køle-fryseskabe'!K$12,0)+'Køle-fryseskabe'!K$65)*'Køle-fryseskabe'!K$42*(1+'Køle-fryseskabe'!K$60/100)^-$B80 ->  | M80: =(IF('Køle-fryseskabe'!M$24="nej",-IF(100-(100+'Køle-fryseskabe'!M$64)*$B80/'Køle-fryseskabe'!M$52<0,0,100-(100+'Køle-fryseskabe'!M$64)*$B80/'Køle-fryseskabe'!M$52)/100*'Køle-fryseskabe'!M$12,0)+'Køle-fryseskabe'!M$65)*'Køle-fryseskabe'!M$42*(1+'Køle-fryseskabe'!M$60/100)^-$B80 ->  | O80: =(IF('Køle-fryseskabe'!O$24="nej",-IF(100-(100+'Køle-fryseskabe'!O$64)*$B80/'Køle-fryseskabe'!O$52<0,0,100-(100+'Køle-fryseskabe'!O$64)*$B80/'Køle-fryseskabe'!O$52)/100*'Køle-fryseskabe'!O$12,0)+'Køle-fryseskabe'!O$65)*'Køle-fryseskabe'!O$42*(1+'Køle-fryseskabe'!O$60/100)^-$B80 ->  | Q80: =(IF('Køle-fryseskabe'!Q$24="nej",-IF(100-(100+'Køle-fryseskabe'!Q$64)*$B80/'Køle-fryseskabe'!Q$52<0,0,100-(100+'Køle-fryseskabe'!Q$64)*$B80/'Køle-fryseskabe'!Q$52)/100*'Køle-fryseskabe'!Q$12,0)+'Køle-fryseskabe'!Q$65)*'Køle-fryseskabe'!Q$42*(1+'Køle-fryseskabe'!Q$60/100)^-$B80 ->  | S80: =(IF('Køle-fryseskabe'!S$24="nej",-IF(100-(100+'Køle-fryseskabe'!S$64)*$B80/'Køle-fryseskabe'!S$52<0,0,100-(100+'Køle-fryseskabe'!S$64)*$B80/'Køle-fryseskabe'!S$52)/100*'Køle-fryseskabe'!S$12,0)+'Køle-fryseskabe'!S$65)*'Køle-fryseskabe'!S$42*(1+'Køle-fryseskabe'!S$60/100)^-$B80 -> 
B81: 9 | C81: 9 | E81: =(IF('Køle-fryseskabe'!E$24="nej",-IF(100-(100+'Køle-fryseskabe'!E$64)*$B81/'Køle-fryseskabe'!E$52<0,0,100-(100+'Køle-fryseskabe'!E$64)*$B81/'Køle-fryseskabe'!E$52)/100*'Køle-fryseskabe'!E$12,0)+'Køle-fryseskabe'!E$65)*'Køle-fryseskabe'!E$42*(1+'Køle-fryseskabe'!E$60/100)^-$B81 ->  | G81: =(IF('Køle-fryseskabe'!G$24="nej",-IF(100-(100+'Køle-fryseskabe'!G$64)*$B81/'Køle-fryseskabe'!G$52<0,0,100-(100+'Køle-fryseskabe'!G$64)*$B81/'Køle-fryseskabe'!G$52)/100*'Køle-fryseskabe'!G$12,0)+'Køle-fryseskabe'!G$65)*'Køle-fryseskabe'!G$42*(1+'Køle-fryseskabe'!G$60/100)^-$B81 ->  | I81: =(IF('Køle-fryseskabe'!I$24="nej",-IF(100-(100+'Køle-fryseskabe'!I$64)*$B81/'Køle-fryseskabe'!I$52<0,0,100-(100+'Køle-fryseskabe'!I$64)*$B81/'Køle-fryseskabe'!I$52)/100*'Køle-fryseskabe'!I$12,0)+'Køle-fryseskabe'!I$65)*'Køle-fryseskabe'!I$42*(1+'Køle-fryseskabe'!I$60/100)^-$B81 ->  | K81: =(IF('Køle-fryseskabe'!K$24="nej",-IF(100-(100+'Køle-fryseskabe'!K$64)*$B81/'Køle-fryseskabe'!K$52<0,0,100-(100+'Køle-fryseskabe'!K$64)*$B81/'Køle-fryseskabe'!K$52)/100*'Køle-fryseskabe'!K$12,0)+'Køle-fryseskabe'!K$65)*'Køle-fryseskabe'!K$42*(1+'Køle-fryseskabe'!K$60/100)^-$B81 ->  | M81: =(IF('Køle-fryseskabe'!M$24="nej",-IF(100-(100+'Køle-fryseskabe'!M$64)*$B81/'Køle-fryseskabe'!M$52<0,0,100-(100+'Køle-fryseskabe'!M$64)*$B81/'Køle-fryseskabe'!M$52)/100*'Køle-fryseskabe'!M$12,0)+'Køle-fryseskabe'!M$65)*'Køle-fryseskabe'!M$42*(1+'Køle-fryseskabe'!M$60/100)^-$B81 ->  | O81: =(IF('Køle-fryseskabe'!O$24="nej",-IF(100-(100+'Køle-fryseskabe'!O$64)*$B81/'Køle-fryseskabe'!O$52<0,0,100-(100+'Køle-fryseskabe'!O$64)*$B81/'Køle-fryseskabe'!O$52)/100*'Køle-fryseskabe'!O$12,0)+'Køle-fryseskabe'!O$65)*'Køle-fryseskabe'!O$42*(1+'Køle-fryseskabe'!O$60/100)^-$B81 ->  | Q81: =(IF('Køle-fryseskabe'!Q$24="nej",-IF(100-(100+'Køle-fryseskabe'!Q$64)*$B81/'Køle-fryseskabe'!Q$52<0,0,100-(100+'Køle-fryseskabe'!Q$64)*$B81/'Køle-fryseskabe'!Q$52)/100*'Køle-fryseskabe'!Q$12,0)+'Køle-fryseskabe'!Q$65)*'Køle-fryseskabe'!Q$42*(1+'Køle-fryseskabe'!Q$60/100)^-$B81 ->  | S81: =(IF('Køle-fryseskabe'!S$24="nej",-IF(100-(100+'Køle-fryseskabe'!S$64)*$B81/'Køle-fryseskabe'!S$52<0,0,100-(100+'Køle-fryseskabe'!S$64)*$B81/'Køle-fryseskabe'!S$52)/100*'Køle-fryseskabe'!S$12,0)+'Køle-fryseskabe'!S$65)*'Køle-fryseskabe'!S$42*(1+'Køle-fryseskabe'!S$60/100)^-$B81 -> 
B82: 10 | C82: 10 | E82: =(IF('Køle-fryseskabe'!E$24="nej",-IF(100-(100+'Køle-fryseskabe'!E$64)*$B82/'Køle-fryseskabe'!E$52<0,0,100-(100+'Køle-fryseskabe'!E$64)*$B82/'Køle-fryseskabe'!E$52)/100*'Køle-fryseskabe'!E$12,0)+'Køle-fryseskabe'!E$65)*'Køle-fryseskabe'!E$42*(1+'Køle-fryseskabe'!E$60/100)^-$B82 ->  | G82: =(IF('Køle-fryseskabe'!G$24="nej",-IF(100-(100+'Køle-fryseskabe'!G$64)*$B82/'Køle-fryseskabe'!G$52<0,0,100-(100+'Køle-fryseskabe'!G$64)*$B82/'Køle-fryseskabe'!G$52)/100*'Køle-fryseskabe'!G$12,0)+'Køle-fryseskabe'!G$65)*'Køle-fryseskabe'!G$42*(1+'Køle-fryseskabe'!G$60/100)^-$B82 ->  | I82: =(IF('Køle-fryseskabe'!I$24="nej",-IF(100-(100+'Køle-fryseskabe'!I$64)*$B82/'Køle-fryseskabe'!I$52<0,0,100-(100+'Køle-fryseskabe'!I$64)*$B82/'Køle-fryseskabe'!I$52)/100*'Køle-fryseskabe'!I$12,0)+'Køle-fryseskabe'!I$65)*'Køle-fryseskabe'!I$42*(1+'Køle-fryseskabe'!I$60/100)^-$B82 ->  | K82: =(IF('Køle-fryseskabe'!K$24="nej",-IF(100-(100+'Køle-fryseskabe'!K$64)*$B82/'Køle-fryseskabe'!K$52<0,0,100-(100+'Køle-fryseskabe'!K$64)*$B82/'Køle-fryseskabe'!K$52)/100*'Køle-fryseskabe'!K$12,0)+'Køle-fryseskabe'!K$65)*'Køle-fryseskabe'!K$42*(1+'Køle-fryseskabe'!K$60/100)^-$B82 ->  | M82: =(IF('Køle-fryseskabe'!M$24="nej",-IF(100-(100+'Køle-fryseskabe'!M$64)*$B82/'Køle-fryseskabe'!M$52<0,0,100-(100+'Køle-fryseskabe'!M$64)*$B82/'Køle-fryseskabe'!M$52)/100*'Køle-fryseskabe'!M$12,0)+'Køle-fryseskabe'!M$65)*'Køle-fryseskabe'!M$42*(1+'Køle-fryseskabe'!M$60/100)^-$B82 ->  | O82: =(IF('Køle-fryseskabe'!O$24="nej",-IF(100-(100+'Køle-fryseskabe'!O$64)*$B82/'Køle-fryseskabe'!O$52<0,0,100-(100+'Køle-fryseskabe'!O$64)*$B82/'Køle-fryseskabe'!O$52)/100*'Køle-fryseskabe'!O$12,0)+'Køle-fryseskabe'!O$65)*'Køle-fryseskabe'!O$42*(1+'Køle-fryseskabe'!O$60/100)^-$B82 ->  | Q82: =(IF('Køle-fryseskabe'!Q$24="nej",-IF(100-(100+'Køle-fryseskabe'!Q$64)*$B82/'Køle-fryseskabe'!Q$52<0,0,100-(100+'Køle-fryseskabe'!Q$64)*$B82/'Køle-fryseskabe'!Q$52)/100*'Køle-fryseskabe'!Q$12,0)+'Køle-fryseskabe'!Q$65)*'Køle-fryseskabe'!Q$42*(1+'Køle-fryseskabe'!Q$60/100)^-$B82 ->  | S82: =(IF('Køle-fryseskabe'!S$24="nej",-IF(100-(100+'Køle-fryseskabe'!S$64)*$B82/'Køle-fryseskabe'!S$52<0,0,100-(100+'Køle-fryseskabe'!S$64)*$B82/'Køle-fryseskabe'!S$52)/100*'Køle-fryseskabe'!S$12,0)+'Køle-fryseskabe'!S$65)*'Køle-fryseskabe'!S$42*(1+'Køle-fryseskabe'!S$60/100)^-$B82 -> 
B83: 11 | C83: 11 | E83: =(IF('Køle-fryseskabe'!E$24="nej",-IF(100-(100+'Køle-fryseskabe'!E$64)*$B83/'Køle-fryseskabe'!E$52<0,0,100-(100+'Køle-fryseskabe'!E$64)*$B83/'Køle-fryseskabe'!E$52)/100*'Køle-fryseskabe'!E$12,0)+'Køle-fryseskabe'!E$65)*'Køle-fryseskabe'!E$42*(1+'Køle-fryseskabe'!E$60/100)^-$B83 ->  | G83: =(IF('Køle-fryseskabe'!G$24="nej",-IF(100-(100+'Køle-fryseskabe'!G$64)*$B83/'Køle-fryseskabe'!G$52<0,0,100-(100+'Køle-fryseskabe'!G$64)*$B83/'Køle-fryseskabe'!G$52)/100*'Køle-fryseskabe'!G$12,0)+'Køle-fryseskabe'!G$65)*'Køle-fryseskabe'!G$42*(1+'Køle-fryseskabe'!G$60/100)^-$B83 ->  | I83: =(IF('Køle-fryseskabe'!I$24="nej",-IF(100-(100+'Køle-fryseskabe'!I$64)*$B83/'Køle-fryseskabe'!I$52<0,0,100-(100+'Køle-fryseskabe'!I$64)*$B83/'Køle-fryseskabe'!I$52)/100*'Køle-fryseskabe'!I$12,0)+'Køle-fryseskabe'!I$65)*'Køle-fryseskabe'!I$42*(1+'Køle-fryseskabe'!I$60/100)^-$B83 ->  | K83: =(IF('Køle-fryseskabe'!K$24="nej",-IF(100-(100+'Køle-fryseskabe'!K$64)*$B83/'Køle-fryseskabe'!K$52<0,0,100-(100+'Køle-fryseskabe'!K$64)*$B83/'Køle-fryseskabe'!K$52)/100*'Køle-fryseskabe'!K$12,0)+'Køle-fryseskabe'!K$65)*'Køle-fryseskabe'!K$42*(1+'Køle-fryseskabe'!K$60/100)^-$B83 ->  | M83: =(IF('Køle-fryseskabe'!M$24="nej",-IF(100-(100+'Køle-fryseskabe'!M$64)*$B83/'Køle-fryseskabe'!M$52<0,0,100-(100+'Køle-fryseskabe'!M$64)*$B83/'Køle-fryseskabe'!M$52)/100*'Køle-fryseskabe'!M$12,0)+'Køle-fryseskabe'!M$65)*'Køle-fryseskabe'!M$42*(1+'Køle-fryseskabe'!M$60/100)^-$B83 ->  | O83: =(IF('Køle-fryseskabe'!O$24="nej",-IF(100-(100+'Køle-fryseskabe'!O$64)*$B83/'Køle-fryseskabe'!O$52<0,0,100-(100+'Køle-fryseskabe'!O$64)*$B83/'Køle-fryseskabe'!O$52)/100*'Køle-fryseskabe'!O$12,0)+'Køle-fryseskabe'!O$65)*'Køle-fryseskabe'!O$42*(1+'Køle-fryseskabe'!O$60/100)^-$B83 ->  | Q83: =(IF('Køle-fryseskabe'!Q$24="nej",-IF(100-(100+'Køle-fryseskabe'!Q$64)*$B83/'Køle-fryseskabe'!Q$52<0,0,100-(100+'Køle-fryseskabe'!Q$64)*$B83/'Køle-fryseskabe'!Q$52)/100*'Køle-fryseskabe'!Q$12,0)+'Køle-fryseskabe'!Q$65)*'Køle-fryseskabe'!Q$42*(1+'Køle-fryseskabe'!Q$60/100)^-$B83 ->  | S83: =(IF('Køle-fryseskabe'!S$24="nej",-IF(100-(100+'Køle-fryseskabe'!S$64)*$B83/'Køle-fryseskabe'!S$52<0,0,100-(100+'Køle-fryseskabe'!S$64)*$B83/'Køle-fryseskabe'!S$52)/100*'Køle-fryseskabe'!S$12,0)+'Køle-fryseskabe'!S$65)*'Køle-fryseskabe'!S$42*(1+'Køle-fryseskabe'!S$60/100)^-$B83 -> 
B84: 12 | C84: 12 | E84: =(IF('Køle-fryseskabe'!E$24="nej",-IF(100-(100+'Køle-fryseskabe'!E$64)*$B84/'Køle-fryseskabe'!E$52<0,0,100-(100+'Køle-fryseskabe'!E$64)*$B84/'Køle-fryseskabe'!E$52)/100*'Køle-fryseskabe'!E$12,0)+'Køle-fryseskabe'!E$65)*'Køle-fryseskabe'!E$42*(1+'Køle-fryseskabe'!E$60/100)^-$B84 ->  | G84: =(IF('Køle-fryseskabe'!G$24="nej",-IF(100-(100+'Køle-fryseskabe'!G$64)*$B84/'Køle-fryseskabe'!G$52<0,0,100-(100+'Køle-fryseskabe'!G$64)*$B84/'Køle-fryseskabe'!G$52)/100*'Køle-fryseskabe'!G$12,0)+'Køle-fryseskabe'!G$65)*'Køle-fryseskabe'!G$42*(1+'Køle-fryseskabe'!G$60/100)^-$B84 ->  | I84: =(IF('Køle-fryseskabe'!I$24="nej",-IF(100-(100+'Køle-fryseskabe'!I$64)*$B84/'Køle-fryseskabe'!I$52<0,0,100-(100+'Køle-fryseskabe'!I$64)*$B84/'Køle-fryseskabe'!I$52)/100*'Køle-fryseskabe'!I$12,0)+'Køle-fryseskabe'!I$65)*'Køle-fryseskabe'!I$42*(1+'Køle-fryseskabe'!I$60/100)^-$B84 ->  | K84: =(IF('Køle-fryseskabe'!K$24="nej",-IF(100-(100+'Køle-fryseskabe'!K$64)*$B84/'Køle-fryseskabe'!K$52<0,0,100-(100+'Køle-fryseskabe'!K$64)*$B84/'Køle-fryseskabe'!K$52)/100*'Køle-fryseskabe'!K$12,0)+'Køle-fryseskabe'!K$65)*'Køle-fryseskabe'!K$42*(1+'Køle-fryseskabe'!K$60/100)^-$B84 ->  | M84: =(IF('Køle-fryseskabe'!M$24="nej",-IF(100-(100+'Køle-fryseskabe'!M$64)*$B84/'Køle-fryseskabe'!M$52<0,0,100-(100+'Køle-fryseskabe'!M$64)*$B84/'Køle-fryseskabe'!M$52)/100*'Køle-fryseskabe'!M$12,0)+'Køle-fryseskabe'!M$65)*'Køle-fryseskabe'!M$42*(1+'Køle-fryseskabe'!M$60/100)^-$B84 ->  | O84: =(IF('Køle-fryseskabe'!O$24="nej",-IF(100-(100+'Køle-fryseskabe'!O$64)*$B84/'Køle-fryseskabe'!O$52<0,0,100-(100+'Køle-fryseskabe'!O$64)*$B84/'Køle-fryseskabe'!O$52)/100*'Køle-fryseskabe'!O$12,0)+'Køle-fryseskabe'!O$65)*'Køle-fryseskabe'!O$42*(1+'Køle-fryseskabe'!O$60/100)^-$B84 ->  | Q84: =(IF('Køle-fryseskabe'!Q$24="nej",-IF(100-(100+'Køle-fryseskabe'!Q$64)*$B84/'Køle-fryseskabe'!Q$52<0,0,100-(100+'Køle-fryseskabe'!Q$64)*$B84/'Køle-fryseskabe'!Q$52)/100*'Køle-fryseskabe'!Q$12,0)+'Køle-fryseskabe'!Q$65)*'Køle-fryseskabe'!Q$42*(1+'Køle-fryseskabe'!Q$60/100)^-$B84 ->  | S84: =(IF('Køle-fryseskabe'!S$24="nej",-IF(100-(100+'Køle-fryseskabe'!S$64)*$B84/'Køle-fryseskabe'!S$52<0,0,100-(100+'Køle-fryseskabe'!S$64)*$B84/'Køle-fryseskabe'!S$52)/100*'Køle-fryseskabe'!S$12,0)+'Køle-fryseskabe'!S$65)*'Køle-fryseskabe'!S$42*(1+'Køle-fryseskabe'!S$60/100)^-$B84 -> 
B85: 13 | C85: 13 | E85: =(IF('Køle-fryseskabe'!E$24="nej",-IF(100-(100+'Køle-fryseskabe'!E$64)*$B85/'Køle-fryseskabe'!E$52<0,0,100-(100+'Køle-fryseskabe'!E$64)*$B85/'Køle-fryseskabe'!E$52)/100*'Køle-fryseskabe'!E$12,0)+'Køle-fryseskabe'!E$65)*'Køle-fryseskabe'!E$42*(1+'Køle-fryseskabe'!E$60/100)^-$B85 ->  | G85: =(IF('Køle-fryseskabe'!G$24="nej",-IF(100-(100+'Køle-fryseskabe'!G$64)*$B85/'Køle-fryseskabe'!G$52<0,0,100-(100+'Køle-fryseskabe'!G$64)*$B85/'Køle-fryseskabe'!G$52)/100*'Køle-fryseskabe'!G$12,0)+'Køle-fryseskabe'!G$65)*'Køle-fryseskabe'!G$42*(1+'Køle-fryseskabe'!G$60/100)^-$B85 ->  | I85: =(IF('Køle-fryseskabe'!I$24="nej",-IF(100-(100+'Køle-fryseskabe'!I$64)*$B85/'Køle-fryseskabe'!I$52<0,0,100-(100+'Køle-fryseskabe'!I$64)*$B85/'Køle-fryseskabe'!I$52)/100*'Køle-fryseskabe'!I$12,0)+'Køle-fryseskabe'!I$65)*'Køle-fryseskabe'!I$42*(1+'Køle-fryseskabe'!I$60/100)^-$B85 ->  | K85: =(IF('Køle-fryseskabe'!K$24="nej",-IF(100-(100+'Køle-fryseskabe'!K$64)*$B85/'Køle-fryseskabe'!K$52<0,0,100-(100+'Køle-fryseskabe'!K$64)*$B85/'Køle-fryseskabe'!K$52)/100*'Køle-fryseskabe'!K$12,0)+'Køle-fryseskabe'!K$65)*'Køle-fryseskabe'!K$42*(1+'Køle-fryseskabe'!K$60/100)^-$B85 ->  | M85: =(IF('Køle-fryseskabe'!M$24="nej",-IF(100-(100+'Køle-fryseskabe'!M$64)*$B85/'Køle-fryseskabe'!M$52<0,0,100-(100+'Køle-fryseskabe'!M$64)*$B85/'Køle-fryseskabe'!M$52)/100*'Køle-fryseskabe'!M$12,0)+'Køle-fryseskabe'!M$65)*'Køle-fryseskabe'!M$42*(1+'Køle-fryseskabe'!M$60/100)^-$B85 ->  | O85: =(IF('Køle-fryseskabe'!O$24="nej",-IF(100-(100+'Køle-fryseskabe'!O$64)*$B85/'Køle-fryseskabe'!O$52<0,0,100-(100+'Køle-fryseskabe'!O$64)*$B85/'Køle-fryseskabe'!O$52)/100*'Køle-fryseskabe'!O$12,0)+'Køle-fryseskabe'!O$65)*'Køle-fryseskabe'!O$42*(1+'Køle-fryseskabe'!O$60/100)^-$B85 ->  | Q85: =(IF('Køle-fryseskabe'!Q$24="nej",-IF(100-(100+'Køle-fryseskabe'!Q$64)*$B85/'Køle-fryseskabe'!Q$52<0,0,100-(100+'Køle-fryseskabe'!Q$64)*$B85/'Køle-fryseskabe'!Q$52)/100*'Køle-fryseskabe'!Q$12,0)+'Køle-fryseskabe'!Q$65)*'Køle-fryseskabe'!Q$42*(1+'Køle-fryseskabe'!Q$60/100)^-$B85 ->  | S85: =(IF('Køle-fryseskabe'!S$24="nej",-IF(100-(100+'Køle-fryseskabe'!S$64)*$B85/'Køle-fryseskabe'!S$52<0,0,100-(100+'Køle-fryseskabe'!S$64)*$B85/'Køle-fryseskabe'!S$52)/100*'Køle-fryseskabe'!S$12,0)+'Køle-fryseskabe'!S$65)*'Køle-fryseskabe'!S$42*(1+'Køle-fryseskabe'!S$60/100)^-$B85 -> 
B86: 14 | C86: 14 | E86: =(IF('Køle-fryseskabe'!E$24="nej",-IF(100-(100+'Køle-fryseskabe'!E$64)*$B86/'Køle-fryseskabe'!E$52<0,0,100-(100+'Køle-fryseskabe'!E$64)*$B86/'Køle-fryseskabe'!E$52)/100*'Køle-fryseskabe'!E$12,0)+'Køle-fryseskabe'!E$65)*'Køle-fryseskabe'!E$42*(1+'Køle-fryseskabe'!E$60/100)^-$B86 ->  | G86: =(IF('Køle-fryseskabe'!G$24="nej",-IF(100-(100+'Køle-fryseskabe'!G$64)*$B86/'Køle-fryseskabe'!G$52<0,0,100-(100+'Køle-fryseskabe'!G$64)*$B86/'Køle-fryseskabe'!G$52)/100*'Køle-fryseskabe'!G$12,0)+'Køle-fryseskabe'!G$65)*'Køle-fryseskabe'!G$42*(1+'Køle-fryseskabe'!G$60/100)^-$B86 ->  | I86: =(IF('Køle-fryseskabe'!I$24="nej",-IF(100-(100+'Køle-fryseskabe'!I$64)*$B86/'Køle-fryseskabe'!I$52<0,0,100-(100+'Køle-fryseskabe'!I$64)*$B86/'Køle-fryseskabe'!I$52)/100*'Køle-fryseskabe'!I$12,0)+'Køle-fryseskabe'!I$65)*'Køle-fryseskabe'!I$42*(1+'Køle-fryseskabe'!I$60/100)^-$B86 ->  | K86: =(IF('Køle-fryseskabe'!K$24="nej",-IF(100-(100+'Køle-fryseskabe'!K$64)*$B86/'Køle-fryseskabe'!K$52<0,0,100-(100+'Køle-fryseskabe'!K$64)*$B86/'Køle-fryseskabe'!K$52)/100*'Køle-fryseskabe'!K$12,0)+'Køle-fryseskabe'!K$65)*'Køle-fryseskabe'!K$42*(1+'Køle-fryseskabe'!K$60/100)^-$B86 ->  | M86: =(IF('Køle-fryseskabe'!M$24="nej",-IF(100-(100+'Køle-fryseskabe'!M$64)*$B86/'Køle-fryseskabe'!M$52<0,0,100-(100+'Køle-fryseskabe'!M$64)*$B86/'Køle-fryseskabe'!M$52)/100*'Køle-fryseskabe'!M$12,0)+'Køle-fryseskabe'!M$65)*'Køle-fryseskabe'!M$42*(1+'Køle-fryseskabe'!M$60/100)^-$B86 ->  | O86: =(IF('Køle-fryseskabe'!O$24="nej",-IF(100-(100+'Køle-fryseskabe'!O$64)*$B86/'Køle-fryseskabe'!O$52<0,0,100-(100+'Køle-fryseskabe'!O$64)*$B86/'Køle-fryseskabe'!O$52)/100*'Køle-fryseskabe'!O$12,0)+'Køle-fryseskabe'!O$65)*'Køle-fryseskabe'!O$42*(1+'Køle-fryseskabe'!O$60/100)^-$B86 ->  | Q86: =(IF('Køle-fryseskabe'!Q$24="nej",-IF(100-(100+'Køle-fryseskabe'!Q$64)*$B86/'Køle-fryseskabe'!Q$52<0,0,100-(100+'Køle-fryseskabe'!Q$64)*$B86/'Køle-fryseskabe'!Q$52)/100*'Køle-fryseskabe'!Q$12,0)+'Køle-fryseskabe'!Q$65)*'Køle-fryseskabe'!Q$42*(1+'Køle-fryseskabe'!Q$60/100)^-$B86 ->  | S86: =(IF('Køle-fryseskabe'!S$24="nej",-IF(100-(100+'Køle-fryseskabe'!S$64)*$B86/'Køle-fryseskabe'!S$52<0,0,100-(100+'Køle-fryseskabe'!S$64)*$B86/'Køle-fryseskabe'!S$52)/100*'Køle-fryseskabe'!S$12,0)+'Køle-fryseskabe'!S$65)*'Køle-fryseskabe'!S$42*(1+'Køle-fryseskabe'!S$60/100)^-$B86 -> 
B87: 15 | C87: 15 | E87: =(IF('Køle-fryseskabe'!E$24="nej",-IF(100-(100+'Køle-fryseskabe'!E$64)*$B87/'Køle-fryseskabe'!E$52<0,0,100-(100+'Køle-fryseskabe'!E$64)*$B87/'Køle-fryseskabe'!E$52)/100*'Køle-fryseskabe'!E$12,0)+'Køle-fryseskabe'!E$65)*'Køle-fryseskabe'!E$42*(1+'Køle-fryseskabe'!E$60/100)^-$B87 ->  | G87: =(IF('Køle-fryseskabe'!G$24="nej",-IF(100-(100+'Køle-fryseskabe'!G$64)*$B87/'Køle-fryseskabe'!G$52<0,0,100-(100+'Køle-fryseskabe'!G$64)*$B87/'Køle-fryseskabe'!G$52)/100*'Køle-fryseskabe'!G$12,0)+'Køle-fryseskabe'!G$65)*'Køle-fryseskabe'!G$42*(1+'Køle-fryseskabe'!G$60/100)^-$B87 ->  | I87: =(IF('Køle-fryseskabe'!I$24="nej",-IF(100-(100+'Køle-fryseskabe'!I$64)*$B87/'Køle-fryseskabe'!I$52<0,0,100-(100+'Køle-fryseskabe'!I$64)*$B87/'Køle-fryseskabe'!I$52)/100*'Køle-fryseskabe'!I$12,0)+'Køle-fryseskabe'!I$65)*'Køle-fryseskabe'!I$42*(1+'Køle-fryseskabe'!I$60/100)^-$B87 ->  | K87: =(IF('Køle-fryseskabe'!K$24="nej",-IF(100-(100+'Køle-fryseskabe'!K$64)*$B87/'Køle-fryseskabe'!K$52<0,0,100-(100+'Køle-fryseskabe'!K$64)*$B87/'Køle-fryseskabe'!K$52)/100*'Køle-fryseskabe'!K$12,0)+'Køle-fryseskabe'!K$65)*'Køle-fryseskabe'!K$42*(1+'Køle-fryseskabe'!K$60/100)^-$B87 ->  | M87: =(IF('Køle-fryseskabe'!M$24="nej",-IF(100-(100+'Køle-fryseskabe'!M$64)*$B87/'Køle-fryseskabe'!M$52<0,0,100-(100+'Køle-fryseskabe'!M$64)*$B87/'Køle-fryseskabe'!M$52)/100*'Køle-fryseskabe'!M$12,0)+'Køle-fryseskabe'!M$65)*'Køle-fryseskabe'!M$42*(1+'Køle-fryseskabe'!M$60/100)^-$B87 ->  | O87: =(IF('Køle-fryseskabe'!O$24="nej",-IF(100-(100+'Køle-fryseskabe'!O$64)*$B87/'Køle-fryseskabe'!O$52<0,0,100-(100+'Køle-fryseskabe'!O$64)*$B87/'Køle-fryseskabe'!O$52)/100*'Køle-fryseskabe'!O$12,0)+'Køle-fryseskabe'!O$65)*'Køle-fryseskabe'!O$42*(1+'Køle-fryseskabe'!O$60/100)^-$B87 ->  | Q87: =(IF('Køle-fryseskabe'!Q$24="nej",-IF(100-(100+'Køle-fryseskabe'!Q$64)*$B87/'Køle-fryseskabe'!Q$52<0,0,100-(100+'Køle-fryseskabe'!Q$64)*$B87/'Køle-fryseskabe'!Q$52)/100*'Køle-fryseskabe'!Q$12,0)+'Køle-fryseskabe'!Q$65)*'Køle-fryseskabe'!Q$42*(1+'Køle-fryseskabe'!Q$60/100)^-$B87 ->  | S87: =(IF('Køle-fryseskabe'!S$24="nej",-IF(100-(100+'Køle-fryseskabe'!S$64)*$B87/'Køle-fryseskabe'!S$52<0,0,100-(100+'Køle-fryseskabe'!S$64)*$B87/'Køle-fryseskabe'!S$52)/100*'Køle-fryseskabe'!S$12,0)+'Køle-fryseskabe'!S$65)*'Køle-fryseskabe'!S$42*(1+'Køle-fryseskabe'!S$60/100)^-$B87 -> 
B88: 16 | C88: =B88 -> 16 | E88: =(IF('Køle-fryseskabe'!E$24="nej",-IF(100-(100+'Køle-fryseskabe'!E$64)*$B88/'Køle-fryseskabe'!E$52<0,0,100-(100+'Køle-fryseskabe'!E$64)*$B88/'Køle-fryseskabe'!E$52)/100*'Køle-fryseskabe'!E$12,0)+'Køle-fryseskabe'!E$65)*'Køle-fryseskabe'!E$42*(1+'Køle-fryseskabe'!E$60/100)^-$B88 ->  | G88: =(IF('Køle-fryseskabe'!G$24="nej",-IF(100-(100+'Køle-fryseskabe'!G$64)*$B88/'Køle-fryseskabe'!G$52<0,0,100-(100+'Køle-fryseskabe'!G$64)*$B88/'Køle-fryseskabe'!G$52)/100*'Køle-fryseskabe'!G$12,0)+'Køle-fryseskabe'!G$65)*'Køle-fryseskabe'!G$42*(1+'Køle-fryseskabe'!G$60/100)^-$B88 ->  | I88: =(IF('Køle-fryseskabe'!I$24="nej",-IF(100-(100+'Køle-fryseskabe'!I$64)*$B88/'Køle-fryseskabe'!I$52<0,0,100-(100+'Køle-fryseskabe'!I$64)*$B88/'Køle-fryseskabe'!I$52)/100*'Køle-fryseskabe'!I$12,0)+'Køle-fryseskabe'!I$65)*'Køle-fryseskabe'!I$42*(1+'Køle-fryseskabe'!I$60/100)^-$B88 ->  | K88: =(IF('Køle-fryseskabe'!K$24="nej",-IF(100-(100+'Køle-fryseskabe'!K$64)*$B88/'Køle-fryseskabe'!K$52<0,0,100-(100+'Køle-fryseskabe'!K$64)*$B88/'Køle-fryseskabe'!K$52)/100*'Køle-fryseskabe'!K$12,0)+'Køle-fryseskabe'!K$65)*'Køle-fryseskabe'!K$42*(1+'Køle-fryseskabe'!K$60/100)^-$B88 ->  | M88: =(IF('Køle-fryseskabe'!M$24="nej",-IF(100-(100+'Køle-fryseskabe'!M$64)*$B88/'Køle-fryseskabe'!M$52<0,0,100-(100+'Køle-fryseskabe'!M$64)*$B88/'Køle-fryseskabe'!M$52)/100*'Køle-fryseskabe'!M$12,0)+'Køle-fryseskabe'!M$65)*'Køle-fryseskabe'!M$42*(1+'Køle-fryseskabe'!M$60/100)^-$B88 ->  | O88: =(IF('Køle-fryseskabe'!O$24="nej",-IF(100-(100+'Køle-fryseskabe'!O$64)*$B88/'Køle-fryseskabe'!O$52<0,0,100-(100+'Køle-fryseskabe'!O$64)*$B88/'Køle-fryseskabe'!O$52)/100*'Køle-fryseskabe'!O$12,0)+'Køle-fryseskabe'!O$65)*'Køle-fryseskabe'!O$42*(1+'Køle-fryseskabe'!O$60/100)^-$B88 ->  | Q88: =(IF('Køle-fryseskabe'!Q$24="nej",-IF(100-(100+'Køle-fryseskabe'!Q$64)*$B88/'Køle-fryseskabe'!Q$52<0,0,100-(100+'Køle-fryseskabe'!Q$64)*$B88/'Køle-fryseskabe'!Q$52)/100*'Køle-fryseskabe'!Q$12,0)+'Køle-fryseskabe'!Q$65)*'Køle-fryseskabe'!Q$42*(1+'Køle-fryseskabe'!Q$60/100)^-$B88 ->  | S88: =(IF('Køle-fryseskabe'!S$24="nej",-IF(100-(100+'Køle-fryseskabe'!S$64)*$B88/'Køle-fryseskabe'!S$52<0,0,100-(100+'Køle-fryseskabe'!S$64)*$B88/'Køle-fryseskabe'!S$52)/100*'Køle-fryseskabe'!S$12,0)+'Køle-fryseskabe'!S$65)*'Køle-fryseskabe'!S$42*(1+'Køle-fryseskabe'!S$60/100)^-$B88 -> 
B89: 17 | C89: 17 | E89: =(IF('Køle-fryseskabe'!E$24="nej",-IF(100-(100+'Køle-fryseskabe'!E$64)*$B89/'Køle-fryseskabe'!E$52<0,0,100-(100+'Køle-fryseskabe'!E$64)*$B89/'Køle-fryseskabe'!E$52)/100*'Køle-fryseskabe'!E$12,0)+'Køle-fryseskabe'!E$65)*'Køle-fryseskabe'!E$42*(1+'Køle-fryseskabe'!E$60/100)^-$B89 ->  | G89: =(IF('Køle-fryseskabe'!G$24="nej",-IF(100-(100+'Køle-fryseskabe'!G$64)*$B89/'Køle-fryseskabe'!G$52<0,0,100-(100+'Køle-fryseskabe'!G$64)*$B89/'Køle-fryseskabe'!G$52)/100*'Køle-fryseskabe'!G$12,0)+'Køle-fryseskabe'!G$65)*'Køle-fryseskabe'!G$42*(1+'Køle-fryseskabe'!G$60/100)^-$B89 ->  | I89: =(IF('Køle-fryseskabe'!I$24="nej",-IF(100-(100+'Køle-fryseskabe'!I$64)*$B89/'Køle-fryseskabe'!I$52<0,0,100-(100+'Køle-fryseskabe'!I$64)*$B89/'Køle-fryseskabe'!I$52)/100*'Køle-fryseskabe'!I$12,0)+'Køle-fryseskabe'!I$65)*'Køle-fryseskabe'!I$42*(1+'Køle-fryseskabe'!I$60/100)^-$B89 ->  | K89: =(IF('Køle-fryseskabe'!K$24="nej",-IF(100-(100+'Køle-fryseskabe'!K$64)*$B89/'Køle-fryseskabe'!K$52<0,0,100-(100+'Køle-fryseskabe'!K$64)*$B89/'Køle-fryseskabe'!K$52)/100*'Køle-fryseskabe'!K$12,0)+'Køle-fryseskabe'!K$65)*'Køle-fryseskabe'!K$42*(1+'Køle-fryseskabe'!K$60/100)^-$B89 ->  | M89: =(IF('Køle-fryseskabe'!M$24="nej",-IF(100-(100+'Køle-fryseskabe'!M$64)*$B89/'Køle-fryseskabe'!M$52<0,0,100-(100+'Køle-fryseskabe'!M$64)*$B89/'Køle-fryseskabe'!M$52)/100*'Køle-fryseskabe'!M$12,0)+'Køle-fryseskabe'!M$65)*'Køle-fryseskabe'!M$42*(1+'Køle-fryseskabe'!M$60/100)^-$B89 ->  | O89: =(IF('Køle-fryseskabe'!O$24="nej",-IF(100-(100+'Køle-fryseskabe'!O$64)*$B89/'Køle-fryseskabe'!O$52<0,0,100-(100+'Køle-fryseskabe'!O$64)*$B89/'Køle-fryseskabe'!O$52)/100*'Køle-fryseskabe'!O$12,0)+'Køle-fryseskabe'!O$65)*'Køle-fryseskabe'!O$42*(1+'Køle-fryseskabe'!O$60/100)^-$B89 ->  | Q89: =(IF('Køle-fryseskabe'!Q$24="nej",-IF(100-(100+'Køle-fryseskabe'!Q$64)*$B89/'Køle-fryseskabe'!Q$52<0,0,100-(100+'Køle-fryseskabe'!Q$64)*$B89/'Køle-fryseskabe'!Q$52)/100*'Køle-fryseskabe'!Q$12,0)+'Køle-fryseskabe'!Q$65)*'Køle-fryseskabe'!Q$42*(1+'Køle-fryseskabe'!Q$60/100)^-$B89 ->  | S89: =(IF('Køle-fryseskabe'!S$24="nej",-IF(100-(100+'Køle-fryseskabe'!S$64)*$B89/'Køle-fryseskabe'!S$52<0,0,100-(100+'Køle-fryseskabe'!S$64)*$B89/'Køle-fryseskabe'!S$52)/100*'Køle-fryseskabe'!S$12,0)+'Køle-fryseskabe'!S$65)*'Køle-fryseskabe'!S$42*(1+'Køle-fryseskabe'!S$60/100)^-$B89 -> 
B90: 18 | C90: 18 | E90: =(IF('Køle-fryseskabe'!E$24="nej",-IF(100-(100+'Køle-fryseskabe'!E$64)*$B90/'Køle-fryseskabe'!E$52<0,0,100-(100+'Køle-fryseskabe'!E$64)*$B90/'Køle-fryseskabe'!E$52)/100*'Køle-fryseskabe'!E$12,0)+'Køle-fryseskabe'!E$65)*'Køle-fryseskabe'!E$42*(1+'Køle-fryseskabe'!E$60/100)^-$B90 ->  | G90: =(IF('Køle-fryseskabe'!G$24="nej",-IF(100-(100+'Køle-fryseskabe'!G$64)*$B90/'Køle-fryseskabe'!G$52<0,0,100-(100+'Køle-fryseskabe'!G$64)*$B90/'Køle-fryseskabe'!G$52)/100*'Køle-fryseskabe'!G$12,0)+'Køle-fryseskabe'!G$65)*'Køle-fryseskabe'!G$42*(1+'Køle-fryseskabe'!G$60/100)^-$B90 ->  | I90: =(IF('Køle-fryseskabe'!I$24="nej",-IF(100-(100+'Køle-fryseskabe'!I$64)*$B90/'Køle-fryseskabe'!I$52<0,0,100-(100+'Køle-fryseskabe'!I$64)*$B90/'Køle-fryseskabe'!I$52)/100*'Køle-fryseskabe'!I$12,0)+'Køle-fryseskabe'!I$65)*'Køle-fryseskabe'!I$42*(1+'Køle-fryseskabe'!I$60/100)^-$B90 ->  | K90: =(IF('Køle-fryseskabe'!K$24="nej",-IF(100-(100+'Køle-fryseskabe'!K$64)*$B90/'Køle-fryseskabe'!K$52<0,0,100-(100+'Køle-fryseskabe'!K$64)*$B90/'Køle-fryseskabe'!K$52)/100*'Køle-fryseskabe'!K$12,0)+'Køle-fryseskabe'!K$65)*'Køle-fryseskabe'!K$42*(1+'Køle-fryseskabe'!K$60/100)^-$B90 ->  | M90: =(IF('Køle-fryseskabe'!M$24="nej",-IF(100-(100+'Køle-fryseskabe'!M$64)*$B90/'Køle-fryseskabe'!M$52<0,0,100-(100+'Køle-fryseskabe'!M$64)*$B90/'Køle-fryseskabe'!M$52)/100*'Køle-fryseskabe'!M$12,0)+'Køle-fryseskabe'!M$65)*'Køle-fryseskabe'!M$42*(1+'Køle-fryseskabe'!M$60/100)^-$B90 ->  | O90: =(IF('Køle-fryseskabe'!O$24="nej",-IF(100-(100+'Køle-fryseskabe'!O$64)*$B90/'Køle-fryseskabe'!O$52<0,0,100-(100+'Køle-fryseskabe'!O$64)*$B90/'Køle-fryseskabe'!O$52)/100*'Køle-fryseskabe'!O$12,0)+'Køle-fryseskabe'!O$65)*'Køle-fryseskabe'!O$42*(1+'Køle-fryseskabe'!O$60/100)^-$B90 ->  | Q90: =(IF('Køle-fryseskabe'!Q$24="nej",-IF(100-(100+'Køle-fryseskabe'!Q$64)*$B90/'Køle-fryseskabe'!Q$52<0,0,100-(100+'Køle-fryseskabe'!Q$64)*$B90/'Køle-fryseskabe'!Q$52)/100*'Køle-fryseskabe'!Q$12,0)+'Køle-fryseskabe'!Q$65)*'Køle-fryseskabe'!Q$42*(1+'Køle-fryseskabe'!Q$60/100)^-$B90 ->  | S90: =(IF('Køle-fryseskabe'!S$24="nej",-IF(100-(100+'Køle-fryseskabe'!S$64)*$B90/'Køle-fryseskabe'!S$52<0,0,100-(100+'Køle-fryseskabe'!S$64)*$B90/'Køle-fryseskabe'!S$52)/100*'Køle-fryseskabe'!S$12,0)+'Køle-fryseskabe'!S$65)*'Køle-fryseskabe'!S$42*(1+'Køle-fryseskabe'!S$60/100)^-$B90 -> 
B91: 19 | C91: 19 | E91: =(IF('Køle-fryseskabe'!E$24="nej",-IF(100-(100+'Køle-fryseskabe'!E$64)*$B91/'Køle-fryseskabe'!E$52<0,0,100-(100+'Køle-fryseskabe'!E$64)*$B91/'Køle-fryseskabe'!E$52)/100*'Køle-fryseskabe'!E$12,0)+'Køle-fryseskabe'!E$65)*'Køle-fryseskabe'!E$42*(1+'Køle-fryseskabe'!E$60/100)^-$B91 ->  | G91: =(IF('Køle-fryseskabe'!G$24="nej",-IF(100-(100+'Køle-fryseskabe'!G$64)*$B91/'Køle-fryseskabe'!G$52<0,0,100-(100+'Køle-fryseskabe'!G$64)*$B91/'Køle-fryseskabe'!G$52)/100*'Køle-fryseskabe'!G$12,0)+'Køle-fryseskabe'!G$65)*'Køle-fryseskabe'!G$42*(1+'Køle-fryseskabe'!G$60/100)^-$B91 ->  | I91: =(IF('Køle-fryseskabe'!I$24="nej",-IF(100-(100+'Køle-fryseskabe'!I$64)*$B91/'Køle-fryseskabe'!I$52<0,0,100-(100+'Køle-fryseskabe'!I$64)*$B91/'Køle-fryseskabe'!I$52)/100*'Køle-fryseskabe'!I$12,0)+'Køle-fryseskabe'!I$65)*'Køle-fryseskabe'!I$42*(1+'Køle-fryseskabe'!I$60/100)^-$B91 ->  | K91: =(IF('Køle-fryseskabe'!K$24="nej",-IF(100-(100+'Køle-fryseskabe'!K$64)*$B91/'Køle-fryseskabe'!K$52<0,0,100-(100+'Køle-fryseskabe'!K$64)*$B91/'Køle-fryseskabe'!K$52)/100*'Køle-fryseskabe'!K$12,0)+'Køle-fryseskabe'!K$65)*'Køle-fryseskabe'!K$42*(1+'Køle-fryseskabe'!K$60/100)^-$B91 ->  | M91: =(IF('Køle-fryseskabe'!M$24="nej",-IF(100-(100+'Køle-fryseskabe'!M$64)*$B91/'Køle-fryseskabe'!M$52<0,0,100-(100+'Køle-fryseskabe'!M$64)*$B91/'Køle-fryseskabe'!M$52)/100*'Køle-fryseskabe'!M$12,0)+'Køle-fryseskabe'!M$65)*'Køle-fryseskabe'!M$42*(1+'Køle-fryseskabe'!M$60/100)^-$B91 ->  | O91: =(IF('Køle-fryseskabe'!O$24="nej",-IF(100-(100+'Køle-fryseskabe'!O$64)*$B91/'Køle-fryseskabe'!O$52<0,0,100-(100+'Køle-fryseskabe'!O$64)*$B91/'Køle-fryseskabe'!O$52)/100*'Køle-fryseskabe'!O$12,0)+'Køle-fryseskabe'!O$65)*'Køle-fryseskabe'!O$42*(1+'Køle-fryseskabe'!O$60/100)^-$B91 ->  | Q91: =(IF('Køle-fryseskabe'!Q$24="nej",-IF(100-(100+'Køle-fryseskabe'!Q$64)*$B91/'Køle-fryseskabe'!Q$52<0,0,100-(100+'Køle-fryseskabe'!Q$64)*$B91/'Køle-fryseskabe'!Q$52)/100*'Køle-fryseskabe'!Q$12,0)+'Køle-fryseskabe'!Q$65)*'Køle-fryseskabe'!Q$42*(1+'Køle-fryseskabe'!Q$60/100)^-$B91 ->  | S91: =(IF('Køle-fryseskabe'!S$24="nej",-IF(100-(100+'Køle-fryseskabe'!S$64)*$B91/'Køle-fryseskabe'!S$52<0,0,100-(100+'Køle-fryseskabe'!S$64)*$B91/'Køle-fryseskabe'!S$52)/100*'Køle-fryseskabe'!S$12,0)+'Køle-fryseskabe'!S$65)*'Køle-fryseskabe'!S$42*(1+'Køle-fryseskabe'!S$60/100)^-$B91 -> 
B92: 20 | C92: 20 | E92: =(IF('Køle-fryseskabe'!E$24="nej",-IF(100-(100+'Køle-fryseskabe'!E$64)*$B92/'Køle-fryseskabe'!E$52<0,0,100-(100+'Køle-fryseskabe'!E$64)*$B92/'Køle-fryseskabe'!E$52)/100*'Køle-fryseskabe'!E$12,0)+'Køle-fryseskabe'!E$65)*'Køle-fryseskabe'!E$42*(1+'Køle-fryseskabe'!E$60/100)^-$B92 ->  | G92: =(IF('Køle-fryseskabe'!G$24="nej",-IF(100-(100+'Køle-fryseskabe'!G$64)*$B92/'Køle-fryseskabe'!G$52<0,0,100-(100+'Køle-fryseskabe'!G$64)*$B92/'Køle-fryseskabe'!G$52)/100*'Køle-fryseskabe'!G$12,0)+'Køle-fryseskabe'!G$65)*'Køle-fryseskabe'!G$42*(1+'Køle-fryseskabe'!G$60/100)^-$B92 ->  | I92: =(IF('Køle-fryseskabe'!I$24="nej",-IF(100-(100+'Køle-fryseskabe'!I$64)*$B92/'Køle-fryseskabe'!I$52<0,0,100-(100+'Køle-fryseskabe'!I$64)*$B92/'Køle-fryseskabe'!I$52)/100*'Køle-fryseskabe'!I$12,0)+'Køle-fryseskabe'!I$65)*'Køle-fryseskabe'!I$42*(1+'Køle-fryseskabe'!I$60/100)^-$B92 ->  | K92: =(IF('Køle-fryseskabe'!K$24="nej",-IF(100-(100+'Køle-fryseskabe'!K$64)*$B92/'Køle-fryseskabe'!K$52<0,0,100-(100+'Køle-fryseskabe'!K$64)*$B92/'Køle-fryseskabe'!K$52)/100*'Køle-fryseskabe'!K$12,0)+'Køle-fryseskabe'!K$65)*'Køle-fryseskabe'!K$42*(1+'Køle-fryseskabe'!K$60/100)^-$B92 ->  | M92: =(IF('Køle-fryseskabe'!M$24="nej",-IF(100-(100+'Køle-fryseskabe'!M$64)*$B92/'Køle-fryseskabe'!M$52<0,0,100-(100+'Køle-fryseskabe'!M$64)*$B92/'Køle-fryseskabe'!M$52)/100*'Køle-fryseskabe'!M$12,0)+'Køle-fryseskabe'!M$65)*'Køle-fryseskabe'!M$42*(1+'Køle-fryseskabe'!M$60/100)^-$B92 ->  | O92: =(IF('Køle-fryseskabe'!O$24="nej",-IF(100-(100+'Køle-fryseskabe'!O$64)*$B92/'Køle-fryseskabe'!O$52<0,0,100-(100+'Køle-fryseskabe'!O$64)*$B92/'Køle-fryseskabe'!O$52)/100*'Køle-fryseskabe'!O$12,0)+'Køle-fryseskabe'!O$65)*'Køle-fryseskabe'!O$42*(1+'Køle-fryseskabe'!O$60/100)^-$B92 ->  | Q92: =(IF('Køle-fryseskabe'!Q$24="nej",-IF(100-(100+'Køle-fryseskabe'!Q$64)*$B92/'Køle-fryseskabe'!Q$52<0,0,100-(100+'Køle-fryseskabe'!Q$64)*$B92/'Køle-fryseskabe'!Q$52)/100*'Køle-fryseskabe'!Q$12,0)+'Køle-fryseskabe'!Q$65)*'Køle-fryseskabe'!Q$42*(1+'Køle-fryseskabe'!Q$60/100)^-$B92 ->  | S92: =(IF('Køle-fryseskabe'!S$24="nej",-IF(100-(100+'Køle-fryseskabe'!S$64)*$B92/'Køle-fryseskabe'!S$52<0,0,100-(100+'Køle-fryseskabe'!S$64)*$B92/'Køle-fryseskabe'!S$52)/100*'Køle-fryseskabe'!S$12,0)+'Køle-fryseskabe'!S$65)*'Køle-fryseskabe'!S$42*(1+'Køle-fryseskabe'!S$60/100)^-$B92 -> 
A94: Gennemsnitlige årlige omkostninger (Grafer)
B95: År indeks | D95: TCO-evalueringsperiode | E95: PRODUKT 1 | G95: PRODUKT 2 | I95: PRODUKT 3 | K95: PRODUKT 4 | M95: PRODUKT 5 | O95: PRODUKT 6 | Q95: PRODUKT 7 | S95: PRODUKT 8
B96: 1 | C96: =B96 -> 1 | E96: =PMT('Køle-fryseskabe'!E$60,$B96,IF($B96='Køle-fryseskabe'!E$52,-E26,-(E26+'Køle-fryseskabe'!E$74))) -> 0 | G96: =PMT('Køle-fryseskabe'!G$60,$B96,IF($B96='Køle-fryseskabe'!G$52,-G26,-(G26+'Køle-fryseskabe'!G$74))) -> 0 | I96: =PMT('Køle-fryseskabe'!I$60,$B96,IF($B96='Køle-fryseskabe'!I$52,-I26,-(I26+'Køle-fryseskabe'!I$74))) -> 0 | K96: =PMT('Køle-fryseskabe'!K$60,$B96,IF($B96='Køle-fryseskabe'!K$52,-K26,-(K26+'Køle-fryseskabe'!K$74))) -> 0 | M96: =PMT('Køle-fryseskabe'!M$60,$B96,IF($B96='Køle-fryseskabe'!M$52,-M26,-(M26+'Køle-fryseskabe'!M$74))) -> 0 | O96: =PMT('Køle-fryseskabe'!O$60,$B96,IF($B96='Køle-fryseskabe'!O$52,-O26,-(O26+'Køle-fryseskabe'!O$74))) -> 0 | Q96: =PMT('Køle-fryseskabe'!Q$60,$B96,IF($B96='Køle-fryseskabe'!Q$52,-Q26,-(Q26+'Køle-fryseskabe'!Q$74))) -> 0 | S96: =PMT('Køle-fryseskabe'!S$60,$B96,IF($B96='Køle-fryseskabe'!S$52,-S26,-(S26+'Køle-fryseskabe'!S$74))) -> 0
B97: 2 | C97: =B97 -> 2 | E97: =PMT('Køle-fryseskabe'!E$60,$B97,IF($B97='Køle-fryseskabe'!E$52,-E27,-(E27+'Køle-fryseskabe'!E$74))) -> 0 | G97: =PMT('Køle-fryseskabe'!G$60,$B97,IF($B97='Køle-fryseskabe'!G$52,-G27,-(G27+'Køle-fryseskabe'!G$74))) -> 0 | I97: =PMT('Køle-fryseskabe'!I$60,$B97,IF($B97='Køle-fryseskabe'!I$52,-I27,-(I27+'Køle-fryseskabe'!I$74))) -> 0 | K97: =PMT('Køle-fryseskabe'!K$60,$B97,IF($B97='Køle-fryseskabe'!K$52,-K27,-(K27+'Køle-fryseskabe'!K$74))) -> 0 | M97: =PMT('Køle-fryseskabe'!M$60,$B97,IF($B97='Køle-fryseskabe'!M$52,-M27,-(M27+'Køle-fryseskabe'!M$74))) -> 0 | O97: =PMT('Køle-fryseskabe'!O$60,$B97,IF($B97='Køle-fryseskabe'!O$52,-O27,-(O27+'Køle-fryseskabe'!O$74))) -> 0 | Q97: =PMT('Køle-fryseskabe'!Q$60,$B97,IF($B97='Køle-fryseskabe'!Q$52,-Q27,-(Q27+'Køle-fryseskabe'!Q$74))) -> 0 | S97: =PMT('Køle-fryseskabe'!S$60,$B97,IF($B97='Køle-fryseskabe'!S$52,-S27,-(S27+'Køle-fryseskabe'!S$74))) -> 0
B98: 3 | C98: 3 | E98: =PMT('Køle-fryseskabe'!E$60,$B98,IF($B98='Køle-fryseskabe'!E$52,-E28,-(E28+'Køle-fryseskabe'!E$74))) -> 0 | G98: =PMT('Køle-fryseskabe'!G$60,$B98,IF($B98='Køle-fryseskabe'!G$52,-G28,-(G28+'Køle-fryseskabe'!G$74))) -> 0 | I98: =PMT('Køle-fryseskabe'!I$60,$B98,IF($B98='Køle-fryseskabe'!I$52,-I28,-(I28+'Køle-fryseskabe'!I$74))) -> 0 | K98: =PMT('Køle-fryseskabe'!K$60,$B98,IF($B98='Køle-fryseskabe'!K$52,-K28,-(K28+'Køle-fryseskabe'!K$74))) -> 0 | M98: =PMT('Køle-fryseskabe'!M$60,$B98,IF($B98='Køle-fryseskabe'!M$52,-M28,-(M28+'Køle-fryseskabe'!M$74))) -> 0 | O98: =PMT('Køle-fryseskabe'!O$60,$B98,IF($B98='Køle-fryseskabe'!O$52,-O28,-(O28+'Køle-fryseskabe'!O$74))) -> 0 | Q98: =PMT('Køle-fryseskabe'!Q$60,$B98,IF($B98='Køle-fryseskabe'!Q$52,-Q28,-(Q28+'Køle-fryseskabe'!Q$74))) -> 0 | S98: =PMT('Køle-fryseskabe'!S$60,$B98,IF($B98='Køle-fryseskabe'!S$52,-S28,-(S28+'Køle-fryseskabe'!S$74))) -> 0
B99: 4 | C99: 4 | E99: =PMT('Køle-fryseskabe'!E$60,$B99,IF($B99='Køle-fryseskabe'!E$52,-E29,-(E29+'Køle-fryseskabe'!E$74))) -> 0 | G99: =PMT('Køle-fryseskabe'!G$60,$B99,IF($B99='Køle-fryseskabe'!G$52,-G29,-(G29+'Køle-fryseskabe'!G$74))) -> 0 | I99: =PMT('Køle-fryseskabe'!I$60,$B99,IF($B99='Køle-fryseskabe'!I$52,-I29,-(I29+'Køle-fryseskabe'!I$74))) -> 0 | K99: =PMT('Køle-fryseskabe'!K$60,$B99,IF($B99='Køle-fryseskabe'!K$52,-K29,-(K29+'Køle-fryseskabe'!K$74))) -> 0 | M99: =PMT('Køle-fryseskabe'!M$60,$B99,IF($B99='Køle-fryseskabe'!M$52,-M29,-(M29+'Køle-fryseskabe'!M$74))) -> 0 | O99: =PMT('Køle-fryseskabe'!O$60,$B99,IF($B99='Køle-fryseskabe'!O$52,-O29,-(O29+'Køle-fryseskabe'!O$74))) -> 0 | Q99: =PMT('Køle-fryseskabe'!Q$60,$B99,IF($B99='Køle-fryseskabe'!Q$52,-Q29,-(Q29+'Køle-fryseskabe'!Q$74))) -> 0 | S99: =PMT('Køle-fryseskabe'!S$60,$B99,IF($B99='Køle-fryseskabe'!S$52,-S29,-(S29+'Køle-fryseskabe'!S$74))) -> 0
B100: 5 | C100: 5 | E100: =PMT('Køle-fryseskabe'!E$60,$B100,IF($B100='Køle-fryseskabe'!E$52,-E30,-(E30+'Køle-fryseskabe'!E$74))) -> 0 | G100: =PMT('Køle-fryseskabe'!G$60,$B100,IF($B100='Køle-fryseskabe'!G$52,-G30,-(G30+'Køle-fryseskabe'!G$74))) -> 0 | I100: =PMT('Køle-fryseskabe'!I$60,$B100,IF($B100='Køle-fryseskabe'!I$52,-I30,-(I30+'Køle-fryseskabe'!I$74))) -> 0 | K100: =PMT('Køle-fryseskabe'!K$60,$B100,IF($B100='Køle-fryseskabe'!K$52,-K30,-(K30+'Køle-fryseskabe'!K$74))) -> 0 | M100: =PMT('Køle-fryseskabe'!M$60,$B100,IF($B100='Køle-fryseskabe'!M$52,-M30,-(M30+'Køle-fryseskabe'!M$74))) -> 0 | O100: =PMT('Køle-fryseskabe'!O$60,$B100,IF($B100='Køle-fryseskabe'!O$52,-O30,-(O30+'Køle-fryseskabe'!O$74))) -> 0 | Q100: =PMT('Køle-fryseskabe'!Q$60,$B100,IF($B100='Køle-fryseskabe'!Q$52,-Q30,-(Q30+'Køle-fryseskabe'!Q$74))) -> 0 | S100: =PMT('Køle-fryseskabe'!S$60,$B100,IF($B100='Køle-fryseskabe'!S$52,-S30,-(S30+'Køle-fryseskabe'!S$74))) -> 0
B101: 6 | C101: 6 | E101: =PMT('Køle-fryseskabe'!E$60,$B101,IF($B101='Køle-fryseskabe'!E$52,-E31,-(E31+'Køle-fryseskabe'!E$74))) -> 0 | G101: =PMT('Køle-fryseskabe'!G$60,$B101,IF($B101='Køle-fryseskabe'!G$52,-G31,-(G31+'Køle-fryseskabe'!G$74))) -> 0 | I101: =PMT('Køle-fryseskabe'!I$60,$B101,IF($B101='Køle-fryseskabe'!I$52,-I31,-(I31+'Køle-fryseskabe'!I$74))) -> 0 | K101: =PMT('Køle-fryseskabe'!K$60,$B101,IF($B101='Køle-fryseskabe'!K$52,-K31,-(K31+'Køle-fryseskabe'!K$74))) -> 0 | M101: =PMT('Køle-fryseskabe'!M$60,$B101,IF($B101='Køle-fryseskabe'!M$52,-M31,-(M31+'Køle-fryseskabe'!M$74))) -> 0 | O101: =PMT('Køle-fryseskabe'!O$60,$B101,IF($B101='Køle-fryseskabe'!O$52,-O31,-(O31+'Køle-fryseskabe'!O$74))) -> 0 | Q101: =PMT('Køle-fryseskabe'!Q$60,$B101,IF($B101='Køle-fryseskabe'!Q$52,-Q31,-(Q31+'Køle-fryseskabe'!Q$74))) -> 0 | S101: =PMT('Køle-fryseskabe'!S$60,$B101,IF($B101='Køle-fryseskabe'!S$52,-S31,-(S31+'Køle-fryseskabe'!S$74))) -> 0
B102: 7 | C102: 7 | E102: =PMT('Køle-fryseskabe'!E$60,$B102,IF($B102='Køle-fryseskabe'!E$52,-E32,-(E32+'Køle-fryseskabe'!E$74))) -> 0 | G102: =PMT('Køle-fryseskabe'!G$60,$B102,IF($B102='Køle-fryseskabe'!G$52,-G32,-(G32+'Køle-fryseskabe'!G$74))) -> 0 | I102: =PMT('Køle-fryseskabe'!I$60,$B102,IF($B102='Køle-fryseskabe'!I$52,-I32,-(I32+'Køle-fryseskabe'!I$74))) -> 0 | K102: =PMT('Køle-fryseskabe'!K$60,$B102,IF($B102='Køle-fryseskabe'!K$52,-K32,-(K32+'Køle-fryseskabe'!K$74))) -> 0 | M102: =PMT('Køle-fryseskabe'!M$60,$B102,IF($B102='Køle-fryseskabe'!M$52,-M32,-(M32+'Køle-fryseskabe'!M$74))) -> 0 | O102: =PMT('Køle-fryseskabe'!O$60,$B102,IF($B102='Køle-fryseskabe'!O$52,-O32,-(O32+'Køle-fryseskabe'!O$74))) -> 0 | Q102: =PMT('Køle-fryseskabe'!Q$60,$B102,IF($B102='Køle-fryseskabe'!Q$52,-Q32,-(Q32+'Køle-fryseskabe'!Q$74))) -> 0 | S102: =PMT('Køle-fryseskabe'!S$60,$B102,IF($B102='Køle-fryseskabe'!S$52,-S32,-(S32+'Køle-fryseskabe'!S$74))) -> 0
B103: 8 | C103: 8 | E103: =PMT('Køle-fryseskabe'!E$60,$B103,IF($B103='Køle-fryseskabe'!E$52,-E33,-(E33+'Køle-fryseskabe'!E$74))) -> 0 | G103: =PMT('Køle-fryseskabe'!G$60,$B103,IF($B103='Køle-fryseskabe'!G$52,-G33,-(G33+'Køle-fryseskabe'!G$74))) -> 0 | I103: =PMT('Køle-fryseskabe'!I$60,$B103,IF($B103='Køle-fryseskabe'!I$52,-I33,-(I33+'Køle-fryseskabe'!I$74))) -> 0 | K103: =PMT('Køle-fryseskabe'!K$60,$B103,IF($B103='Køle-fryseskabe'!K$52,-K33,-(K33+'Køle-fryseskabe'!K$74))) -> 0 | M103: =PMT('Køle-fryseskabe'!M$60,$B103,IF($B103='Køle-fryseskabe'!M$52,-M33,-(M33+'Køle-fryseskabe'!M$74))) -> 0 | O103: =PMT('Køle-fryseskabe'!O$60,$B103,IF($B103='Køle-fryseskabe'!O$52,-O33,-(O33+'Køle-fryseskabe'!O$74))) -> 0 | Q103: =PMT('Køle-fryseskabe'!Q$60,$B103,IF($B103='Køle-fryseskabe'!Q$52,-Q33,-(Q33+'Køle-fryseskabe'!Q$74))) -> 0 | S103: =PMT('Køle-fryseskabe'!S$60,$B103,IF($B103='Køle-fryseskabe'!S$52,-S33,-(S33+'Køle-fryseskabe'!S$74))) -> 0
B104: 9 | C104: 9 | E104: =PMT('Køle-fryseskabe'!E$60,$B104,IF($B104='Køle-fryseskabe'!E$52,-E34,-(E34+'Køle-fryseskabe'!E$74))) -> 0 | G104: =PMT('Køle-fryseskabe'!G$60,$B104,IF($B104='Køle-fryseskabe'!G$52,-G34,-(G34+'Køle-fryseskabe'!G$74))) -> 0 | I104: =PMT('Køle-fryseskabe'!I$60,$B104,IF($B104='Køle-fryseskabe'!I$52,-I34,-(I34+'Køle-fryseskabe'!I$74))) -> 0 | K104: =PMT('Køle-fryseskabe'!K$60,$B104,IF($B104='Køle-fryseskabe'!K$52,-K34,-(K34+'Køle-fryseskabe'!K$74))) -> 0 | M104: =PMT('Køle-fryseskabe'!M$60,$B104,IF($B104='Køle-fryseskabe'!M$52,-M34,-(M34+'Køle-fryseskabe'!M$74))) -> 0 | O104: =PMT('Køle-fryseskabe'!O$60,$B104,IF($B104='Køle-fryseskabe'!O$52,-O34,-(O34+'Køle-fryseskabe'!O$74))) -> 0 | Q104: =PMT('Køle-fryseskabe'!Q$60,$B104,IF($B104='Køle-fryseskabe'!Q$52,-Q34,-(Q34+'Køle-fryseskabe'!Q$74))) -> 0 | S104: =PMT('Køle-fryseskabe'!S$60,$B104,IF($B104='Køle-fryseskabe'!S$52,-S34,-(S34+'Køle-fryseskabe'!S$74))) -> 0
B105: 10 | C105: 10 | E105: =PMT('Køle-fryseskabe'!E$60,$B105,IF($B105='Køle-fryseskabe'!E$52,-E35,-(E35+'Køle-fryseskabe'!E$74))) -> 0 | G105: =PMT('Køle-fryseskabe'!G$60,$B105,IF($B105='Køle-fryseskabe'!G$52,-G35,-(G35+'Køle-fryseskabe'!G$74))) -> 0 | I105: =PMT('Køle-fryseskabe'!I$60,$B105,IF($B105='Køle-fryseskabe'!I$52,-I35,-(I35+'Køle-fryseskabe'!I$74))) -> 0 | K105: =PMT('Køle-fryseskabe'!K$60,$B105,IF($B105='Køle-fryseskabe'!K$52,-K35,-(K35+'Køle-fryseskabe'!K$74))) -> 0 | M105: =PMT('Køle-fryseskabe'!M$60,$B105,IF($B105='Køle-fryseskabe'!M$52,-M35,-(M35+'Køle-fryseskabe'!M$74))) -> 0 | O105: =PMT('Køle-fryseskabe'!O$60,$B105,IF($B105='Køle-fryseskabe'!O$52,-O35,-(O35+'Køle-fryseskabe'!O$74))) -> 0 | Q105: =PMT('Køle-fryseskabe'!Q$60,$B105,IF($B105='Køle-fryseskabe'!Q$52,-Q35,-(Q35+'Køle-fryseskabe'!Q$74))) -> 0 | S105: =PMT('Køle-fryseskabe'!S$60,$B105,IF($B105='Køle-fryseskabe'!S$52,-S35,-(S35+'Køle-fryseskabe'!S$74))) -> 0
B106: 11 | C106: 11 | E106: =PMT('Køle-fryseskabe'!E$60,$B106,IF($B106='Køle-fryseskabe'!E$52,-E36,-(E36+'Køle-fryseskabe'!E$74))) -> 0 | G106: =PMT('Køle-fryseskabe'!G$60,$B106,IF($B106='Køle-fryseskabe'!G$52,-G36,-(G36+'Køle-fryseskabe'!G$74))) -> 0 | I106: =PMT('Køle-fryseskabe'!I$60,$B106,IF($B106='Køle-fryseskabe'!I$52,-I36,-(I36+'Køle-fryseskabe'!I$74))) -> 0 | K106: =PMT('Køle-fryseskabe'!K$60,$B106,IF($B106='Køle-fryseskabe'!K$52,-K36,-(K36+'Køle-fryseskabe'!K$74))) -> 0 | M106: =PMT('Køle-fryseskabe'!M$60,$B106,IF($B106='Køle-fryseskabe'!M$52,-M36,-(M36+'Køle-fryseskabe'!M$74))) -> 0 | O106: =PMT('Køle-fryseskabe'!O$60,$B106,IF($B106='Køle-fryseskabe'!O$52,-O36,-(O36+'Køle-fryseskabe'!O$74))) -> 0 | Q106: =PMT('Køle-fryseskabe'!Q$60,$B106,IF($B106='Køle-fryseskabe'!Q$52,-Q36,-(Q36+'Køle-fryseskabe'!Q$74))) -> 0 | S106: =PMT('Køle-fryseskabe'!S$60,$B106,IF($B106='Køle-fryseskabe'!S$52,-S36,-(S36+'Køle-fryseskabe'!S$74))) -> 0
B107: 12 | C107: 12 | E107: =PMT('Køle-fryseskabe'!E$60,$B107,IF($B107='Køle-fryseskabe'!E$52,-E37,-(E37+'Køle-fryseskabe'!E$74))) -> 0 | G107: =PMT('Køle-fryseskabe'!G$60,$B107,IF($B107='Køle-fryseskabe'!G$52,-G37,-(G37+'Køle-fryseskabe'!G$74))) -> 0 | I107: =PMT('Køle-fryseskabe'!I$60,$B107,IF($B107='Køle-fryseskabe'!I$52,-I37,-(I37+'Køle-fryseskabe'!I$74))) -> 0 | K107: =PMT('Køle-fryseskabe'!K$60,$B107,IF($B107='Køle-fryseskabe'!K$52,-K37,-(K37+'Køle-fryseskabe'!K$74))) -> 0 | M107: =PMT('Køle-fryseskabe'!M$60,$B107,IF($B107='Køle-fryseskabe'!M$52,-M37,-(M37+'Køle-fryseskabe'!M$74))) -> 0 | O107: =PMT('Køle-fryseskabe'!O$60,$B107,IF($B107='Køle-fryseskabe'!O$52,-O37,-(O37+'Køle-fryseskabe'!O$74))) -> 0 | Q107: =PMT('Køle-fryseskabe'!Q$60,$B107,IF($B107='Køle-fryseskabe'!Q$52,-Q37,-(Q37+'Køle-fryseskabe'!Q$74))) -> 0 | S107: =PMT('Køle-fryseskabe'!S$60,$B107,IF($B107='Køle-fryseskabe'!S$52,-S37,-(S37+'Køle-fryseskabe'!S$74))) -> 0
B108: 13 | C108: 13 | E108: =PMT('Køle-fryseskabe'!E$60,$B108,IF($B108='Køle-fryseskabe'!E$52,-E38,-(E38+'Køle-fryseskabe'!E$74))) -> 0 | G108: =PMT('Køle-fryseskabe'!G$60,$B108,IF($B108='Køle-fryseskabe'!G$52,-G38,-(G38+'Køle-fryseskabe'!G$74))) -> 0 | I108: =PMT('Køle-fryseskabe'!I$60,$B108,IF($B108='Køle-fryseskabe'!I$52,-I38,-(I38+'Køle-fryseskabe'!I$74))) -> 0 | K108: =PMT('Køle-fryseskabe'!K$60,$B108,IF($B108='Køle-fryseskabe'!K$52,-K38,-(K38+'Køle-fryseskabe'!K$74))) -> 0 | M108: =PMT('Køle-fryseskabe'!M$60,$B108,IF($B108='Køle-fryseskabe'!M$52,-M38,-(M38+'Køle-fryseskabe'!M$74))) -> 0 | O108: =PMT('Køle-fryseskabe'!O$60,$B108,IF($B108='Køle-fryseskabe'!O$52,-O38,-(O38+'Køle-fryseskabe'!O$74))) -> 0 | Q108: =PMT('Køle-fryseskabe'!Q$60,$B108,IF($B108='Køle-fryseskabe'!Q$52,-Q38,-(Q38+'Køle-fryseskabe'!Q$74))) -> 0 | S108: =PMT('Køle-fryseskabe'!S$60,$B108,IF($B108='Køle-fryseskabe'!S$52,-S38,-(S38+'Køle-fryseskabe'!S$74))) -> 0
B109: 14 | C109: 14 | E109: =PMT('Køle-fryseskabe'!E$60,$B109,IF($B109='Køle-fryseskabe'!E$52,-E39,-(E39+'Køle-fryseskabe'!E$74))) -> 0 | G109: =PMT('Køle-fryseskabe'!G$60,$B109,IF($B109='Køle-fryseskabe'!G$52,-G39,-(G39+'Køle-fryseskabe'!G$74))) -> 0 | I109: =PMT('Køle-fryseskabe'!I$60,$B109,IF($B109='Køle-fryseskabe'!I$52,-I39,-(I39+'Køle-fryseskabe'!I$74))) -> 0 | K109: =PMT('Køle-fryseskabe'!K$60,$B109,IF($B109='Køle-fryseskabe'!K$52,-K39,-(K39+'Køle-fryseskabe'!K$74))) -> 0 | M109: =PMT('Køle-fryseskabe'!M$60,$B109,IF($B109='Køle-fryseskabe'!M$52,-M39,-(M39+'Køle-fryseskabe'!M$74))) -> 0 | O109: =PMT('Køle-fryseskabe'!O$60,$B109,IF($B109='Køle-fryseskabe'!O$52,-O39,-(O39+'Køle-fryseskabe'!O$74))) -> 0 | Q109: =PMT('Køle-fryseskabe'!Q$60,$B109,IF($B109='Køle-fryseskabe'!Q$52,-Q39,-(Q39+'Køle-fryseskabe'!Q$74))) -> 0 | S109: =PMT('Køle-fryseskabe'!S$60,$B109,IF($B109='Køle-fryseskabe'!S$52,-S39,-(S39+'Køle-fryseskabe'!S$74))) -> 0
B110: 15 | C110: 15 | E110: =PMT('Køle-fryseskabe'!E$60,$B110,IF($B110='Køle-fryseskabe'!E$52,-E40,-(E40+'Køle-fryseskabe'!E$74))) -> 0 | G110: =PMT('Køle-fryseskabe'!G$60,$B110,IF($B110='Køle-fryseskabe'!G$52,-G40,-(G40+'Køle-fryseskabe'!G$74))) -> 0 | I110: =PMT('Køle-fryseskabe'!I$60,$B110,IF($B110='Køle-fryseskabe'!I$52,-I40,-(I40+'Køle-fryseskabe'!I$74))) -> 0 | K110: =PMT('Køle-fryseskabe'!K$60,$B110,IF($B110='Køle-fryseskabe'!K$52,-K40,-(K40+'Køle-fryseskabe'!K$74))) -> 0 | M110: =PMT('Køle-fryseskabe'!M$60,$B110,IF($B110='Køle-fryseskabe'!M$52,-M40,-(M40+'Køle-fryseskabe'!M$74))) -> 0 | O110: =PMT('Køle-fryseskabe'!O$60,$B110,IF($B110='Køle-fryseskabe'!O$52,-O40,-(O40+'Køle-fryseskabe'!O$74))) -> 0 | Q110: =PMT('Køle-fryseskabe'!Q$60,$B110,IF($B110='Køle-fryseskabe'!Q$52,-Q40,-(Q40+'Køle-fryseskabe'!Q$74))) -> 0 | S110: =PMT('Køle-fryseskabe'!S$60,$B110,IF($B110='Køle-fryseskabe'!S$52,-S40,-(S40+'Køle-fryseskabe'!S$74))) -> 0
B111: 16 | C111: =B111 -> 16 | E111: =PMT('Køle-fryseskabe'!E$60,$B111,IF($B111='Køle-fryseskabe'!E$52,-E41,-(E41+'Køle-fryseskabe'!E$74))) -> 0 | G111: =PMT('Køle-fryseskabe'!G$60,$B111,IF($B111='Køle-fryseskabe'!G$52,-G41,-(G41+'Køle-fryseskabe'!G$74))) -> 0 | I111: =PMT('Køle-fryseskabe'!I$60,$B111,IF($B111='Køle-fryseskabe'!I$52,-I41,-(I41+'Køle-fryseskabe'!I$74))) -> 0 | K111: =PMT('Køle-fryseskabe'!K$60,$B111,IF($B111='Køle-fryseskabe'!K$52,-K41,-(K41+'Køle-fryseskabe'!K$74))) -> 0 | M111: =PMT('Køle-fryseskabe'!M$60,$B111,IF($B111='Køle-fryseskabe'!M$52,-M41,-(M41+'Køle-fryseskabe'!M$74))) -> 0 | O111: =PMT('Køle-fryseskabe'!O$60,$B111,IF($B111='Køle-fryseskabe'!O$52,-O41,-(O41+'Køle-fryseskabe'!O$74))) -> 0 | Q111: =PMT('Køle-fryseskabe'!Q$60,$B111,IF($B111='Køle-fryseskabe'!Q$52,-Q41,-(Q41+'Køle-fryseskabe'!Q$74))) -> 0 | S111: =PMT('Køle-fryseskabe'!S$60,$B111,IF($B111='Køle-fryseskabe'!S$52,-S41,-(S41+'Køle-fryseskabe'!S$74))) -> 0
B112: 17 | C112: 17 | E112: =PMT('Køle-fryseskabe'!E$60,$B112,IF($B112='Køle-fryseskabe'!E$52,-E42,-(E42+'Køle-fryseskabe'!E$74))) -> 0 | G112: =PMT('Køle-fryseskabe'!G$60,$B112,IF($B112='Køle-fryseskabe'!G$52,-G42,-(G42+'Køle-fryseskabe'!G$74))) -> 0 | I112: =PMT('Køle-fryseskabe'!I$60,$B112,IF($B112='Køle-fryseskabe'!I$52,-I42,-(I42+'Køle-fryseskabe'!I$74))) -> 0 | K112: =PMT('Køle-fryseskabe'!K$60,$B112,IF($B112='Køle-fryseskabe'!K$52,-K42,-(K42+'Køle-fryseskabe'!K$74))) -> 0 | M112: =PMT('Køle-fryseskabe'!M$60,$B112,IF($B112='Køle-fryseskabe'!M$52,-M42,-(M42+'Køle-fryseskabe'!M$74))) -> 0 | O112: =PMT('Køle-fryseskabe'!O$60,$B112,IF($B112='Køle-fryseskabe'!O$52,-O42,-(O42+'Køle-fryseskabe'!O$74))) -> 0 | Q112: =PMT('Køle-fryseskabe'!Q$60,$B112,IF($B112='Køle-fryseskabe'!Q$52,-Q42,-(Q42+'Køle-fryseskabe'!Q$74))) -> 0 | S112: =PMT('Køle-fryseskabe'!S$60,$B112,IF($B112='Køle-fryseskabe'!S$52,-S42,-(S42+'Køle-fryseskabe'!S$74))) -> 0
B113: 18 | C113: 18 | E113: =PMT('Køle-fryseskabe'!E$60,$B113,IF($B113='Køle-fryseskabe'!E$52,-E43,-(E43+'Køle-fryseskabe'!E$74))) -> 0 | G113: =PMT('Køle-fryseskabe'!G$60,$B113,IF($B113='Køle-fryseskabe'!G$52,-G43,-(G43+'Køle-fryseskabe'!G$74))) -> 0 | I113: =PMT('Køle-fryseskabe'!I$60,$B113,IF($B113='Køle-fryseskabe'!I$52,-I43,-(I43+'Køle-fryseskabe'!I$74))) -> 0 | K113: =PMT('Køle-fryseskabe'!K$60,$B113,IF($B113='Køle-fryseskabe'!K$52,-K43,-(K43+'Køle-fryseskabe'!K$74))) -> 0 | M113: =PMT('Køle-fryseskabe'!M$60,$B113,IF($B113='Køle-fryseskabe'!M$52,-M43,-(M43+'Køle-fryseskabe'!M$74))) -> 0 | O113: =PMT('Køle-fryseskabe'!O$60,$B113,IF($B113='Køle-fryseskabe'!O$52,-O43,-(O43+'Køle-fryseskabe'!O$74))) -> 0 | Q113: =PMT('Køle-fryseskabe'!Q$60,$B113,IF($B113='Køle-fryseskabe'!Q$52,-Q43,-(Q43+'Køle-fryseskabe'!Q$74))) -> 0 | S113: =PMT('Køle-fryseskabe'!S$60,$B113,IF($B113='Køle-fryseskabe'!S$52,-S43,-(S43+'Køle-fryseskabe'!S$74))) -> 0
B114: 19 | C114: 19 | E114: =PMT('Køle-fryseskabe'!E$60,$B114,IF($B114='Køle-fryseskabe'!E$52,-E44,-(E44+'Køle-fryseskabe'!E$74))) -> 0 | G114: =PMT('Køle-fryseskabe'!G$60,$B114,IF($B114='Køle-fryseskabe'!G$52,-G44,-(G44+'Køle-fryseskabe'!G$74))) -> 0 | I114: =PMT('Køle-fryseskabe'!I$60,$B114,IF($B114='Køle-fryseskabe'!I$52,-I44,-(I44+'Køle-fryseskabe'!I$74))) -> 0 | K114: =PMT('Køle-fryseskabe'!K$60,$B114,IF($B114='Køle-fryseskabe'!K$52,-K44,-(K44+'Køle-fryseskabe'!K$74))) -> 0 | M114: =PMT('Køle-fryseskabe'!M$60,$B114,IF($B114='Køle-fryseskabe'!M$52,-M44,-(M44+'Køle-fryseskabe'!M$74))) -> 0 | O114: =PMT('Køle-fryseskabe'!O$60,$B114,IF($B114='Køle-fryseskabe'!O$52,-O44,-(O44+'Køle-fryseskabe'!O$74))) -> 0 | Q114: =PMT('Køle-fryseskabe'!Q$60,$B114,IF($B114='Køle-fryseskabe'!Q$52,-Q44,-(Q44+'Køle-fryseskabe'!Q$74))) -> 0 | S114: =PMT('Køle-fryseskabe'!S$60,$B114,IF($B114='Køle-fryseskabe'!S$52,-S44,-(S44+'Køle-fryseskabe'!S$74))) -> 0
B115: 20 | C115: 20 | E115: =PMT('Køle-fryseskabe'!E$60,$B115,IF($B115='Køle-fryseskabe'!E$52,-E45,-(E45+'Køle-fryseskabe'!E$74))) -> 0 | G115: =PMT('Køle-fryseskabe'!G$60,$B115,IF($B115='Køle-fryseskabe'!G$52,-G45,-(G45+'Køle-fryseskabe'!G$74))) -> 0 | I115: =PMT('Køle-fryseskabe'!I$60,$B115,IF($B115='Køle-fryseskabe'!I$52,-I45,-(I45+'Køle-fryseskabe'!I$74))) -> 0 | K115: =PMT('Køle-fryseskabe'!K$60,$B115,IF($B115='Køle-fryseskabe'!K$52,-K45,-(K45+'Køle-fryseskabe'!K$74))) -> 0 | M115: =PMT('Køle-fryseskabe'!M$60,$B115,IF($B115='Køle-fryseskabe'!M$52,-M45,-(M45+'Køle-fryseskabe'!M$74))) -> 0 | O115: =PMT('Køle-fryseskabe'!O$60,$B115,IF($B115='Køle-fryseskabe'!O$52,-O45,-(O45+'Køle-fryseskabe'!O$74))) -> 0 | Q115: =PMT('Køle-fryseskabe'!Q$60,$B115,IF($B115='Køle-fryseskabe'!Q$52,-Q45,-(Q45+'Køle-fryseskabe'!Q$74))) -> 0 | S115: =PMT('Køle-fryseskabe'!S$60,$B115,IF($B115='Køle-fryseskabe'!S$52,-S45,-(S45+'Køle-fryseskabe'!S$74))) -> 0
A117: Eksternalitetsmodul - Udledning forbundet med elforbrug I brugsfasen (tons Co2e) - Udledningen er multipliceret med antallet af produkter i ordren
B118: År indeks | D118: TCO-evalueringsperiode | E118: ='Køle-fryseskabe'!E8&" - Samlet udledning (tons CO2e/år)" -> PRODUKT 1 - Samlet udledning (tons CO2e/år) | F118: PD1 - Årligt strømforbrug (kWh/år/produkt) | G118: ='Køle-fryseskabe'!G8&" - Samlet udledning (tons CO2e/år)" -> PRODUKT 2 - Samlet udledning (tons CO2e/år) | H118: PD2 - Årligt strømforbrug (kWh/år/produkt) | I118: ='Køle-fryseskabe'!I8&" - Samlet udledning (tons CO2e/år)" -> PRODUKT 3 - Samlet udledning (tons CO2e/år) | J118: PD3 - Årligt strømforbrug (kWh/år/produkt) | K118: ='Køle-fryseskabe'!K8&" - Samlet udledning (tons CO2e/år)" -> PRODUKT 4 - Samlet udledning (tons CO2e/år) | L118: PD4 - Årligt strømforbrug (kWh/år/produkt) | M118: ='Køle-fryseskabe'!M8&" - Samlet udledning (tons CO2e/år)" -> PRODUKT 5 - Samlet udledning (tons CO2e/år) | N118: PD5 - Årligt strømforbrug (kWh/år/produkt) | O118: ='Køle-fryseskabe'!O8&" - Samlet udledning (tons CO2e/år)" -> PRODUKT 6 - Samlet udledning (tons CO2e/år) | P118: PD6 - Årligt strømforbrug (kWh/år/produkt) | Q118: ='Køle-fryseskabe'!Q8&" - Samlet udledning (tons CO2e/år)" -> PRODUKT 7 - Samlet udledning (tons CO2e/år) | R118: PD7 - Årligt strømforbrug (kWh/år/produkt) | S118: ='Køle-fryseskabe'!S8&" - Samlet udledning (tons CO2e/år)" -> PRODUKT 8 - Samlet udledning (tons CO2e/år) | T118: PD8 - Årligt strømforbrug (kWh/år/produkt)
B119: 1 | C119: =B119 -> 1 | E119: ='Køle-fryseskabe'!E$42*(F119*IF('Køle-fryseskabe'!E$31="ja",VLOOKUP('Køle-fryseskabe'!$E$51+($B119-1),Fremskrivninger!$A$9:$L$38,12),'Køle-fryseskabe'!E$33)/1000) -> 0 | F119: ='Køle-fryseskabe'!E$17*'Køle-fryseskabe'!E$43 -> 0 | G119: ='Køle-fryseskabe'!G$42*(H119*IF('Køle-fryseskabe'!G$31="ja",VLOOKUP('Køle-fryseskabe'!$E$51+($B119-1),Fremskrivninger!$A$9:$L$38,12),'Køle-fryseskabe'!G$33)/1000) -> 0 | H119: ='Køle-fryseskabe'!G$17*'Køle-fryseskabe'!G$43 -> 0 | I119: ='Køle-fryseskabe'!I$42*(J119*IF('Køle-fryseskabe'!I$31="ja",VLOOKUP('Køle-fryseskabe'!$E$51+($B119-1),Fremskrivninger!$A$9:$L$38,12),'Køle-fryseskabe'!I$33)/1000) -> 0 | J119: ='Køle-fryseskabe'!I$17*'Køle-fryseskabe'!I$43 -> 0 | K119: ='Køle-fryseskabe'!K$42*(L119*IF('Køle-fryseskabe'!K$31="ja",VLOOKUP('Køle-fryseskabe'!$E$51+($B119-1),Fremskrivninger!$A$9:$L$38,12),'Køle-fryseskabe'!K$33)/1000) -> 0 | L119: ='Køle-fryseskabe'!K$17*'Køle-fryseskabe'!K$43 -> 0 | M119: ='Køle-fryseskabe'!M$42*(N119*IF('Køle-fryseskabe'!M$31="ja",VLOOKUP('Køle-fryseskabe'!$E$51+($B119-1),Fremskrivninger!$A$9:$L$38,12),'Køle-fryseskabe'!M$33)/1000) -> 0 | N119: ='Køle-fryseskabe'!M$17*'Køle-fryseskabe'!M$43 -> 0 | O119: ='Køle-fryseskabe'!O$42*(P119*IF('Køle-fryseskabe'!O$31="ja",VLOOKUP('Køle-fryseskabe'!$E$51+($B119-1),Fremskrivninger!$A$9:$L$38,12),'Køle-fryseskabe'!O$33)/1000) -> 0 | P119: ='Køle-fryseskabe'!O$17*'Køle-fryseskabe'!O$43 -> 0 | Q119: ='Køle-fryseskabe'!Q$42*(R119*IF('Køle-fryseskabe'!Q$31="ja",VLOOKUP('Køle-fryseskabe'!$E$51+($B119-1),Fremskrivninger!$A$9:$L$38,12),'Køle-fryseskabe'!Q$33)/1000) -> 0 | R119: ='Køle-fryseskabe'!Q$17*'Køle-fryseskabe'!Q$43 -> 0 | S119: ='Køle-fryseskabe'!S$42*(T119*IF('Køle-fryseskabe'!S$31="ja",VLOOKUP('Køle-fryseskabe'!$E$51+($B119-1),Fremskrivninger!$A$9:$L$38,12),'Køle-fryseskabe'!S$33)/1000) -> 0 | T119: ='Køle-fryseskabe'!S$17*'Køle-fryseskabe'!S$43 -> 0
B120: 2 | C120: =B120 -> 2 | E120: ='Køle-fryseskabe'!E$42*(F120*IF('Køle-fryseskabe'!E$31="ja",VLOOKUP('Køle-fryseskabe'!$E$51+($B120-1),Fremskrivninger!$A$9:$L$38,12),'Køle-fryseskabe'!E$33)/1000) -> 0 | F120: ='Køle-fryseskabe'!E$17*'Køle-fryseskabe'!E$43 -> 0 | G120: ='Køle-fryseskabe'!G$42*(H120*IF('Køle-fryseskabe'!G$31="ja",VLOOKUP('Køle-fryseskabe'!$E$51+($B120-1),Fremskrivninger!$A$9:$L$38,12),'Køle-fryseskabe'!G$33)/1000) -> 0 | H120: ='Køle-fryseskabe'!G$17*'Køle-fryseskabe'!G$43 -> 0 | I120: ='Køle-fryseskabe'!I$42*(J120*IF('Køle-fryseskabe'!I$31="ja",VLOOKUP('Køle-fryseskabe'!$E$51+($B120-1),Fremskrivninger!$A$9:$L$38,12),'Køle-fryseskabe'!I$33)/1000) -> 0 | J120: ='Køle-fryseskabe'!I$17*'Køle-fryseskabe'!I$43 -> 0 | K120: ='Køle-fryseskabe'!K$42*(L120*IF('Køle-fryseskabe'!K$31="ja",VLOOKUP('Køle-fryseskabe'!$E$51+($B120-1),Fremskrivninger!$A$9:$L$38,12),'Køle-fryseskabe'!K$33)/1000) -> 0 | L120: ='Køle-fryseskabe'!K$17*'Køle-fryseskabe'!K$43 -> 0 | M120: ='Køle-fryseskabe'!M$42*(N120*IF('Køle-fryseskabe'!M$31="ja",VLOOKUP('Køle-fryseskabe'!$E$51+($B120-1),Fremskrivninger!$A$9:$L$38,12),'Køle-fryseskabe'!M$33)/1000) -> 0 | N120: ='Køle-fryseskabe'!M$17*'Køle-fryseskabe'!M$43 -> 0 | O120: ='Køle-fryseskabe'!O$42*(P120*IF('Køle-fryseskabe'!O$31="ja",VLOOKUP('Køle-fryseskabe'!$E$51+($B120-1),Fremskrivninger!$A$9:$L$38,12),'Køle-fryseskabe'!O$33)/1000) -> 0 | P120: ='Køle-fryseskabe'!O$17*'Køle-fryseskabe'!O$43 -> 0 | Q120: ='Køle-fryseskabe'!Q$42*(R120*IF('Køle-fryseskabe'!Q$31="ja",VLOOKUP('Køle-fryseskabe'!$E$51+($B120-1),Fremskrivninger!$A$9:$L$38,12),'Køle-fryseskabe'!Q$33)/1000) -> 0 | R120: ='Køle-fryseskabe'!Q$17*'Køle-fryseskabe'!Q$43 -> 0 | S120: ='Køle-fryseskabe'!S$42*(T120*IF('Køle-fryseskabe'!S$31="ja",VLOOKUP('Køle-fryseskabe'!$E$51+($B120-1),Fremskrivninger!$A$9:$L$38,12),'Køle-fryseskabe'!S$33)/1000) -> 0 | T120: ='Køle-fryseskabe'!S$17*'Køle-fryseskabe'!S$43 -> 0
B121: 3 | C121: 3 | E121: ='Køle-fryseskabe'!E$42*(F121*IF('Køle-fryseskabe'!E$31="ja",VLOOKUP('Køle-fryseskabe'!$E$51+($B121-1),Fremskrivninger!$A$9:$L$38,12),'Køle-fryseskabe'!E$33)/1000) -> 0 | F121: ='Køle-fryseskabe'!E$17*'Køle-fryseskabe'!E$43 -> 0 | G121: ='Køle-fryseskabe'!G$42*(H121*IF('Køle-fryseskabe'!G$31="ja",VLOOKUP('Køle-fryseskabe'!$E$51+($B121-1),Fremskrivninger!$A$9:$L$38,12),'Køle-fryseskabe'!G$33)/1000) -> 0 | H121: ='Køle-fryseskabe'!G$17*'Køle-fryseskabe'!G$43 -> 0 | I121: ='Køle-fryseskabe'!I$42*(J121*IF('Køle-fryseskabe'!I$31="ja",VLOOKUP('Køle-fryseskabe'!$E$51+($B121-1),Fremskrivninger!$A$9:$L$38,12),'Køle-fryseskabe'!I$33)/1000) -> 0 | J121: ='Køle-fryseskabe'!I$17*'Køle-fryseskabe'!I$43 -> 0 | K121: ='Køle-fryseskabe'!K$42*(L121*IF('Køle-fryseskabe'!K$31="ja",VLOOKUP('Køle-fryseskabe'!$E$51+($B121-1),Fremskrivninger!$A$9:$L$38,12),'Køle-fryseskabe'!K$33)/1000) -> 0 | L121: ='Køle-fryseskabe'!K$17*'Køle-fryseskabe'!K$43 -> 0 | M121: ='Køle-fryseskabe'!M$42*(N121*IF('Køle-fryseskabe'!M$31="ja",VLOOKUP('Køle-fryseskabe'!$E$51+($B121-1),Fremskrivninger!$A$9:$L$38,12),'Køle-fryseskabe'!M$33)/1000) -> 0 | N121: ='Køle-fryseskabe'!M$17*'Køle-fryseskabe'!M$43 -> 0 | O121: ='Køle-fryseskabe'!O$42*(P121*IF('Køle-fryseskabe'!O$31="ja",VLOOKUP('Køle-fryseskabe'!$E$51+($B121-1),Fremskrivninger!$A$9:$L$38,12),'Køle-fryseskabe'!O$33)/1000) -> 0 | P121: ='Køle-fryseskabe'!O$17*'Køle-fryseskabe'!O$43 -> 0 | Q121: ='Køle-fryseskabe'!Q$42*(R121*IF('Køle-fryseskabe'!Q$31="ja",VLOOKUP('Køle-fryseskabe'!$E$51+($B121-1),Fremskrivninger!$A$9:$L$38,12),'Køle-fryseskabe'!Q$33)/1000) -> 0 | R121: ='Køle-fryseskabe'!Q$17*'Køle-fryseskabe'!Q$43 -> 0 | S121: ='Køle-fryseskabe'!S$42*(T121*IF('Køle-fryseskabe'!S$31="ja",VLOOKUP('Køle-fryseskabe'!$E$51+($B121-1),Fremskrivninger!$A$9:$L$38,12),'Køle-fryseskabe'!S$33)/1000) -> 0 | T121: ='Køle-fryseskabe'!S$17*'Køle-fryseskabe'!S$43 -> 0
B122: 4 | C122: 4 | E122: ='Køle-fryseskabe'!E$42*(F122*IF('Køle-fryseskabe'!E$31="ja",VLOOKUP('Køle-fryseskabe'!$E$51+($B122-1),Fremskrivninger!$A$9:$L$38,12),'Køle-fryseskabe'!E$33)/1000) -> 0 | F122: ='Køle-fryseskabe'!E$17*'Køle-fryseskabe'!E$43 -> 0 | G122: ='Køle-fryseskabe'!G$42*(H122*IF('Køle-fryseskabe'!G$31="ja",VLOOKUP('Køle-fryseskabe'!$E$51+($B122-1),Fremskrivninger!$A$9:$L$38,12),'Køle-fryseskabe'!G$33)/1000) -> 0 | H122: ='Køle-fryseskabe'!G$17*'Køle-fryseskabe'!G$43 -> 0 | I122: ='Køle-fryseskabe'!I$42*(J122*IF('Køle-fryseskabe'!I$31="ja",VLOOKUP('Køle-fryseskabe'!$E$51+($B122-1),Fremskrivninger!$A$9:$L$38,12),'Køle-fryseskabe'!I$33)/1000) -> 0 | J122: ='Køle-fryseskabe'!I$17*'Køle-fryseskabe'!I$43 -> 0 | K122: ='Køle-fryseskabe'!K$42*(L122*IF('Køle-fryseskabe'!K$31="ja",VLOOKUP('Køle-fryseskabe'!$E$51+($B122-1),Fremskrivninger!$A$9:$L$38,12),'Køle-fryseskabe'!K$33)/1000) -> 0 | L122: ='Køle-fryseskabe'!K$17*'Køle-fryseskabe'!K$43 -> 0 | M122: ='Køle-fryseskabe'!M$42*(N122*IF('Køle-fryseskabe'!M$31="ja",VLOOKUP('Køle-fryseskabe'!$E$51+($B122-1),Fremskrivninger!$A$9:$L$38,12),'Køle-fryseskabe'!M$33)/1000) -> 0 | N122: ='Køle-fryseskabe'!M$17*'Køle-fryseskabe'!M$43 -> 0 | O122: ='Køle-fryseskabe'!O$42*(P122*IF('Køle-fryseskabe'!O$31="ja",VLOOKUP('Køle-fryseskabe'!$E$51+($B122-1),Fremskrivninger!$A$9:$L$38,12),'Køle-fryseskabe'!O$33)/1000) -> 0 | P122: ='Køle-fryseskabe'!O$17*'Køle-fryseskabe'!O$43 -> 0 | Q122: ='Køle-fryseskabe'!Q$42*(R122*IF('Køle-fryseskabe'!Q$31="ja",VLOOKUP('Køle-fryseskabe'!$E$51+($B122-1),Fremskrivninger!$A$9:$L$38,12),'Køle-fryseskabe'!Q$33)/1000) -> 0 | R122: ='Køle-fryseskabe'!Q$17*'Køle-fryseskabe'!Q$43 -> 0 | S122: ='Køle-fryseskabe'!S$42*(T122*IF('Køle-fryseskabe'!S$31="ja",VLOOKUP('Køle-fryseskabe'!$E$51+($B122-1),Fremskrivninger!$A$9:$L$38,12),'Køle-fryseskabe'!S$33)/1000) -> 0 | T122: ='Køle-fryseskabe'!S$17*'Køle-fryseskabe'!S$43 -> 0
B123: 5 | C123: 5 | E123: ='Køle-fryseskabe'!E$42*(F123*IF('Køle-fryseskabe'!E$31="ja",VLOOKUP('Køle-fryseskabe'!$E$51+($B123-1),Fremskrivninger!$A$9:$L$38,12),'Køle-fryseskabe'!E$33)/1000) -> 0 | F123: ='Køle-fryseskabe'!E$17*'Køle-fryseskabe'!E$43 -> 0 | G123: ='Køle-fryseskabe'!G$42*(H123*IF('Køle-fryseskabe'!G$31="ja",VLOOKUP('Køle-fryseskabe'!$E$51+($B123-1),Fremskrivninger!$A$9:$L$38,12),'Køle-fryseskabe'!G$33)/1000) -> 0 | H123: ='Køle-fryseskabe'!G$17*'Køle-fryseskabe'!G$43 -> 0 | I123: ='Køle-fryseskabe'!I$42*(J123*IF('Køle-fryseskabe'!I$31="ja",VLOOKUP('Køle-fryseskabe'!$E$51+($B123-1),Fremskrivninger!$A$9:$L$38,12),'Køle-fryseskabe'!I$33)/1000) -> 0 | J123: ='Køle-fryseskabe'!I$17*'Køle-fryseskabe'!I$43 -> 0 | K123: ='Køle-fryseskabe'!K$42*(L123*IF('Køle-fryseskabe'!K$31="ja",VLOOKUP('Køle-fryseskabe'!$E$51+($B123-1),Fremskrivninger!$A$9:$L$38,12),'Køle-fryseskabe'!K$33)/1000) -> 0 | L123: ='Køle-fryseskabe'!K$17*'Køle-fryseskabe'!K$43 -> 0 | M123: ='Køle-fryseskabe'!M$42*(N123*IF('Køle-fryseskabe'!M$31="ja",VLOOKUP('Køle-fryseskabe'!$E$51+($B123-1),Fremskrivninger!$A$9:$L$38,12),'Køle-fryseskabe'!M$33)/1000) -> 0 | N123: ='Køle-fryseskabe'!M$17*'Køle-fryseskabe'!M$43 -> 0 | O123: ='Køle-fryseskabe'!O$42*(P123*IF('Køle-fryseskabe'!O$31="ja",VLOOKUP('Køle-fryseskabe'!$E$51+($B123-1),Fremskrivninger!$A$9:$L$38,12),'Køle-fryseskabe'!O$33)/1000) -> 0 | P123: ='Køle-fryseskabe'!O$17*'Køle-fryseskabe'!O$43 -> 0 | Q123: ='Køle-fryseskabe'!Q$42*(R123*IF('Køle-fryseskabe'!Q$31="ja",VLOOKUP('Køle-fryseskabe'!$E$51+($B123-1),Fremskrivninger!$A$9:$L$38,12),'Køle-fryseskabe'!Q$33)/1000) -> 0 | R123: ='Køle-fryseskabe'!Q$17*'Køle-fryseskabe'!Q$43 -> 0 | S123: ='Køle-fryseskabe'!S$42*(T123*IF('Køle-fryseskabe'!S$31="ja",VLOOKUP('Køle-fryseskabe'!$E$51+($B123-1),Fremskrivninger!$A$9:$L$38,12),'Køle-fryseskabe'!S$33)/1000) -> 0 | T123: ='Køle-fryseskabe'!S$17*'Køle-fryseskabe'!S$43 -> 0
B124: 6 | C124: 6 | E124: ='Køle-fryseskabe'!E$42*(F124*IF('Køle-fryseskabe'!E$31="ja",VLOOKUP('Køle-fryseskabe'!$E$51+($B124-1),Fremskrivninger!$A$9:$L$38,12),'Køle-fryseskabe'!E$33)/1000) -> 0 | F124: ='Køle-fryseskabe'!E$17*'Køle-fryseskabe'!E$43 -> 0 | G124: ='Køle-fryseskabe'!G$42*(H124*IF('Køle-fryseskabe'!G$31="ja",VLOOKUP('Køle-fryseskabe'!$E$51+($B124-1),Fremskrivninger!$A$9:$L$38,12),'Køle-fryseskabe'!G$33)/1000) -> 0 | H124: ='Køle-fryseskabe'!G$17*'Køle-fryseskabe'!G$43 -> 0 | I124: ='Køle-fryseskabe'!I$42*(J124*IF('Køle-fryseskabe'!I$31="ja",VLOOKUP('Køle-fryseskabe'!$E$51+($B124-1),Fremskrivninger!$A$9:$L$38,12),'Køle-fryseskabe'!I$33)/1000) -> 0 | J124: ='Køle-fryseskabe'!I$17*'Køle-fryseskabe'!I$43 -> 0 | K124: ='Køle-fryseskabe'!K$42*(L124*IF('Køle-fryseskabe'!K$31="ja",VLOOKUP('Køle-fryseskabe'!$E$51+($B124-1),Fremskrivninger!$A$9:$L$38,12),'Køle-fryseskabe'!K$33)/1000) -> 0 | L124: ='Køle-fryseskabe'!K$17*'Køle-fryseskabe'!K$43 -> 0 | M124: ='Køle-fryseskabe'!M$42*(N124*IF('Køle-fryseskabe'!M$31="ja",VLOOKUP('Køle-fryseskabe'!$E$51+($B124-1),Fremskrivninger!$A$9:$L$38,12),'Køle-fryseskabe'!M$33)/1000) -> 0 | N124: ='Køle-fryseskabe'!M$17*'Køle-fryseskabe'!M$43 -> 0 | O124: ='Køle-fryseskabe'!O$42*(P124*IF('Køle-fryseskabe'!O$31="ja",VLOOKUP('Køle-fryseskabe'!$E$51+($B124-1),Fremskrivninger!$A$9:$L$38,12),'Køle-fryseskabe'!O$33)/1000) -> 0 | P124: ='Køle-fryseskabe'!O$17*'Køle-fryseskabe'!O$43 -> 0 | Q124: ='Køle-fryseskabe'!Q$42*(R124*IF('Køle-fryseskabe'!Q$31="ja",VLOOKUP('Køle-fryseskabe'!$E$51+($B124-1),Fremskrivninger!$A$9:$L$38,12),'Køle-fryseskabe'!Q$33)/1000) -> 0 | R124: ='Køle-fryseskabe'!Q$17*'Køle-fryseskabe'!Q$43 -> 0 | S124: ='Køle-fryseskabe'!S$42*(T124*IF('Køle-fryseskabe'!S$31="ja",VLOOKUP('Køle-fryseskabe'!$E$51+($B124-1),Fremskrivninger!$A$9:$L$38,12),'Køle-fryseskabe'!S$33)/1000) -> 0 | T124: ='Køle-fryseskabe'!S$17*'Køle-fryseskabe'!S$43 -> 0
B125: 7 | C125: 7 | E125: ='Køle-fryseskabe'!E$42*(F125*IF('Køle-fryseskabe'!E$31="ja",VLOOKUP('Køle-fryseskabe'!$E$51+($B125-1),Fremskrivninger!$A$9:$L$38,12),'Køle-fryseskabe'!E$33)/1000) -> 0 | F125: ='Køle-fryseskabe'!E$17*'Køle-fryseskabe'!E$43 -> 0 | G125: ='Køle-fryseskabe'!G$42*(H125*IF('Køle-fryseskabe'!G$31="ja",VLOOKUP('Køle-fryseskabe'!$E$51+($B125-1),Fremskrivninger!$A$9:$L$38,12),'Køle-fryseskabe'!G$33)/1000) -> 0 | H125: ='Køle-fryseskabe'!G$17*'Køle-fryseskabe'!G$43 -> 0 | I125: ='Køle-fryseskabe'!I$42*(J125*IF('Køle-fryseskabe'!I$31="ja",VLOOKUP('Køle-fryseskabe'!$E$51+($B125-1),Fremskrivninger!$A$9:$L$38,12),'Køle-fryseskabe'!I$33)/1000) -> 0 | J125: ='Køle-fryseskabe'!I$17*'Køle-fryseskabe'!I$43 -> 0 | K125: ='Køle-fryseskabe'!K$42*(L125*IF('Køle-fryseskabe'!K$31="ja",VLOOKUP('Køle-fryseskabe'!$E$51+($B125-1),Fremskrivninger!$A$9:$L$38,12),'Køle-fryseskabe'!K$33)/1000) -> 0 | L125: ='Køle-fryseskabe'!K$17*'Køle-fryseskabe'!K$43 -> 0 | M125: ='Køle-fryseskabe'!M$42*(N125*IF('Køle-fryseskabe'!M$31="ja",VLOOKUP('Køle-fryseskabe'!$E$51+($B125-1),Fremskrivninger!$A$9:$L$38,12),'Køle-fryseskabe'!M$33)/1000) -> 0 | N125: ='Køle-fryseskabe'!M$17*'Køle-fryseskabe'!M$43 -> 0 | O125: ='Køle-fryseskabe'!O$42*(P125*IF('Køle-fryseskabe'!O$31="ja",VLOOKUP('Køle-fryseskabe'!$E$51+($B125-1),Fremskrivninger!$A$9:$L$38,12),'Køle-fryseskabe'!O$33)/1000) -> 0 | P125: ='Køle-fryseskabe'!O$17*'Køle-fryseskabe'!O$43 -> 0 | Q125: ='Køle-fryseskabe'!Q$42*(R125*IF('Køle-fryseskabe'!Q$31="ja",VLOOKUP('Køle-fryseskabe'!$E$51+($B125-1),Fremskrivninger!$A$9:$L$38,12),'Køle-fryseskabe'!Q$33)/1000) -> 0 | R125: ='Køle-fryseskabe'!Q$17*'Køle-fryseskabe'!Q$43 -> 0 | S125: ='Køle-fryseskabe'!S$42*(T125*IF('Køle-fryseskabe'!S$31="ja",VLOOKUP('Køle-fryseskabe'!$E$51+($B125-1),Fremskrivninger!$A$9:$L$38,12),'Køle-fryseskabe'!S$33)/1000) -> 0 | T125: ='Køle-fryseskabe'!S$17*'Køle-fryseskabe'!S$43 -> 0
B126: 8 | C126: 8 | E126: ='Køle-fryseskabe'!E$42*(F126*IF('Køle-fryseskabe'!E$31="ja",VLOOKUP('Køle-fryseskabe'!$E$51+($B126-1),Fremskrivninger!$A$9:$L$38,12),'Køle-fryseskabe'!E$33)/1000) -> 0 | F126: ='Køle-fryseskabe'!E$17*'Køle-fryseskabe'!E$43 -> 0 | G126: ='Køle-fryseskabe'!G$42*(H126*IF('Køle-fryseskabe'!G$31="ja",VLOOKUP('Køle-fryseskabe'!$E$51+($B126-1),Fremskrivninger!$A$9:$L$38,12),'Køle-fryseskabe'!G$33)/1000) -> 0 | H126: ='Køle-fryseskabe'!G$17*'Køle-fryseskabe'!G$43 -> 0 | I126: ='Køle-fryseskabe'!I$42*(J126*IF('Køle-fryseskabe'!I$31="ja",VLOOKUP('Køle-fryseskabe'!$E$51+($B126-1),Fremskrivninger!$A$9:$L$38,12),'Køle-fryseskabe'!I$33)/1000) -> 0 | J126: ='Køle-fryseskabe'!I$17*'Køle-fryseskabe'!I$43 -> 0 | K126: ='Køle-fryseskabe'!K$42*(L126*IF('Køle-fryseskabe'!K$31="ja",VLOOKUP('Køle-fryseskabe'!$E$51+($B126-1),Fremskrivninger!$A$9:$L$38,12),'Køle-fryseskabe'!K$33)/1000) -> 0 | L126: ='Køle-fryseskabe'!K$17*'Køle-fryseskabe'!K$43 -> 0 | M126: ='Køle-fryseskabe'!M$42*(N126*IF('Køle-fryseskabe'!M$31="ja",VLOOKUP('Køle-fryseskabe'!$E$51+($B126-1),Fremskrivninger!$A$9:$L$38,12),'Køle-fryseskabe'!M$33)/1000) -> 0 | N126: ='Køle-fryseskabe'!M$17*'Køle-fryseskabe'!M$43 -> 0 | O126: ='Køle-fryseskabe'!O$42*(P126*IF('Køle-fryseskabe'!O$31="ja",VLOOKUP('Køle-fryseskabe'!$E$51+($B126-1),Fremskrivninger!$A$9:$L$38,12),'Køle-fryseskabe'!O$33)/1000) -> 0 | P126: ='Køle-fryseskabe'!O$17*'Køle-fryseskabe'!O$43 -> 0 | Q126: ='Køle-fryseskabe'!Q$42*(R126*IF('Køle-fryseskabe'!Q$31="ja",VLOOKUP('Køle-fryseskabe'!$E$51+($B126-1),Fremskrivninger!$A$9:$L$38,12),'Køle-fryseskabe'!Q$33)/1000) -> 0 | R126: ='Køle-fryseskabe'!Q$17*'Køle-fryseskabe'!Q$43 -> 0 | S126: ='Køle-fryseskabe'!S$42*(T126*IF('Køle-fryseskabe'!S$31="ja",VLOOKUP('Køle-fryseskabe'!$E$51+($B126-1),Fremskrivninger!$A$9:$L$38,12),'Køle-fryseskabe'!S$33)/1000) -> 0 | T126: ='Køle-fryseskabe'!S$17*'Køle-fryseskabe'!S$43 -> 0
B127: 9 | C127: 9 | E127: ='Køle-fryseskabe'!E$42*(F127*IF('Køle-fryseskabe'!E$31="ja",VLOOKUP('Køle-fryseskabe'!$E$51+($B127-1),Fremskrivninger!$A$9:$L$38,12),'Køle-fryseskabe'!E$33)/1000) -> 0 | F127: ='Køle-fryseskabe'!E$17*'Køle-fryseskabe'!E$43 -> 0 | G127: ='Køle-fryseskabe'!G$42*(H127*IF('Køle-fryseskabe'!G$31="ja",VLOOKUP('Køle-fryseskabe'!$E$51+($B127-1),Fremskrivninger!$A$9:$L$38,12),'Køle-fryseskabe'!G$33)/1000) -> 0 | H127: ='Køle-fryseskabe'!G$17*'Køle-fryseskabe'!G$43 -> 0 | I127: ='Køle-fryseskabe'!I$42*(J127*IF('Køle-fryseskabe'!I$31="ja",VLOOKUP('Køle-fryseskabe'!$E$51+($B127-1),Fremskrivninger!$A$9:$L$38,12),'Køle-fryseskabe'!I$33)/1000) -> 0 | J127: ='Køle-fryseskabe'!I$17*'Køle-fryseskabe'!I$43 -> 0 | K127: ='Køle-fryseskabe'!K$42*(L127*IF('Køle-fryseskabe'!K$31="ja",VLOOKUP('Køle-fryseskabe'!$E$51+($B127-1),Fremskrivninger!$A$9:$L$38,12),'Køle-fryseskabe'!K$33)/1000) -> 0 | L127: ='Køle-fryseskabe'!K$17*'Køle-fryseskabe'!K$43 -> 0 | M127: ='Køle-fryseskabe'!M$42*(N127*IF('Køle-fryseskabe'!M$31="ja",VLOOKUP('Køle-fryseskabe'!$E$51+($B127-1),Fremskrivninger!$A$9:$L$38,12),'Køle-fryseskabe'!M$33)/1000) -> 0 | N127: ='Køle-fryseskabe'!M$17*'Køle-fryseskabe'!M$43 -> 0 | O127: ='Køle-fryseskabe'!O$42*(P127*IF('Køle-fryseskabe'!O$31="ja",VLOOKUP('Køle-fryseskabe'!$E$51+($B127-1),Fremskrivninger!$A$9:$L$38,12),'Køle-fryseskabe'!O$33)/1000) -> 0 | P127: ='Køle-fryseskabe'!O$17*'Køle-fryseskabe'!O$43 -> 0 | Q127: ='Køle-fryseskabe'!Q$42*(R127*IF('Køle-fryseskabe'!Q$31="ja",VLOOKUP('Køle-fryseskabe'!$E$51+($B127-1),Fremskrivninger!$A$9:$L$38,12),'Køle-fryseskabe'!Q$33)/1000) -> 0 | R127: ='Køle-fryseskabe'!Q$17*'Køle-fryseskabe'!Q$43 -> 0 | S127: ='Køle-fryseskabe'!S$42*(T127*IF('Køle-fryseskabe'!S$31="ja",VLOOKUP('Køle-fryseskabe'!$E$51+($B127-1),Fremskrivninger!$A$9:$L$38,12),'Køle-fryseskabe'!S$33)/1000) -> 0 | T127: ='Køle-fryseskabe'!S$17*'Køle-fryseskabe'!S$43 -> 0
B128: 10 | C128: 10 | E128: ='Køle-fryseskabe'!E$42*(F128*IF('Køle-fryseskabe'!E$31="ja",VLOOKUP('Køle-fryseskabe'!$E$51+($B128-1),Fremskrivninger!$A$9:$L$38,12),'Køle-fryseskabe'!E$33)/1000) -> 0 | F128: ='Køle-fryseskabe'!E$17*'Køle-fryseskabe'!E$43 -> 0 | G128: ='Køle-fryseskabe'!G$42*(H128*IF('Køle-fryseskabe'!G$31="ja",VLOOKUP('Køle-fryseskabe'!$E$51+($B128-1),Fremskrivninger!$A$9:$L$38,12),'Køle-fryseskabe'!G$33)/1000) -> 0 | H128: ='Køle-fryseskabe'!G$17*'Køle-fryseskabe'!G$43 -> 0 | I128: ='Køle-fryseskabe'!I$42*(J128*IF('Køle-fryseskabe'!I$31="ja",VLOOKUP('Køle-fryseskabe'!$E$51+($B128-1),Fremskrivninger!$A$9:$L$38,12),'Køle-fryseskabe'!I$33)/1000) -> 0 | J128: ='Køle-fryseskabe'!I$17*'Køle-fryseskabe'!I$43 -> 0 | K128: ='Køle-fryseskabe'!K$42*(L128*IF('Køle-fryseskabe'!K$31="ja",VLOOKUP('Køle-fryseskabe'!$E$51+($B128-1),Fremskrivninger!$A$9:$L$38,12),'Køle-fryseskabe'!K$33)/1000) -> 0 | L128: ='Køle-fryseskabe'!K$17*'Køle-fryseskabe'!K$43 -> 0 | M128: ='Køle-fryseskabe'!M$42*(N128*IF('Køle-fryseskabe'!M$31="ja",VLOOKUP('Køle-fryseskabe'!$E$51+($B128-1),Fremskrivninger!$A$9:$L$38,12),'Køle-fryseskabe'!M$33)/1000) -> 0 | N128: ='Køle-fryseskabe'!M$17*'Køle-fryseskabe'!M$43 -> 0 | O128: ='Køle-fryseskabe'!O$42*(P128*IF('Køle-fryseskabe'!O$31="ja",VLOOKUP('Køle-fryseskabe'!$E$51+($B128-1),Fremskrivninger!$A$9:$L$38,12),'Køle-fryseskabe'!O$33)/1000) -> 0 | P128: ='Køle-fryseskabe'!O$17*'Køle-fryseskabe'!O$43 -> 0 | Q128: ='Køle-fryseskabe'!Q$42*(R128*IF('Køle-fryseskabe'!Q$31="ja",VLOOKUP('Køle-fryseskabe'!$E$51+($B128-1),Fremskrivninger!$A$9:$L$38,12),'Køle-fryseskabe'!Q$33)/1000) -> 0 | R128: ='Køle-fryseskabe'!Q$17*'Køle-fryseskabe'!Q$43 -> 0 | S128: ='Køle-fryseskabe'!S$42*(T128*IF('Køle-fryseskabe'!S$31="ja",VLOOKUP('Køle-fryseskabe'!$E$51+($B128-1),Fremskrivninger!$A$9:$L$38,12),'Køle-fryseskabe'!S$33)/1000) -> 0 | T128: ='Køle-fryseskabe'!S$17*'Køle-fryseskabe'!S$43 -> 0
B129: 11 | C129: 11 | E129: ='Køle-fryseskabe'!E$42*(F129*IF('Køle-fryseskabe'!E$31="ja",VLOOKUP('Køle-fryseskabe'!$E$51+($B129-1),Fremskrivninger!$A$9:$L$38,12),'Køle-fryseskabe'!E$33)/1000) -> 0 | F129: ='Køle-fryseskabe'!E$17*'Køle-fryseskabe'!E$43 -> 0 | G129: ='Køle-fryseskabe'!G$42*(H129*IF('Køle-fryseskabe'!G$31="ja",VLOOKUP('Køle-fryseskabe'!$E$51+($B129-1),Fremskrivninger!$A$9:$L$38,12),'Køle-fryseskabe'!G$33)/1000) -> 0 | H129: ='Køle-fryseskabe'!G$17*'Køle-fryseskabe'!G$43 -> 0 | I129: ='Køle-fryseskabe'!I$42*(J129*IF('Køle-fryseskabe'!I$31="ja",VLOOKUP('Køle-fryseskabe'!$E$51+($B129-1),Fremskrivninger!$A$9:$L$38,12),'Køle-fryseskabe'!I$33)/1000) -> 0 | J129: ='Køle-fryseskabe'!I$17*'Køle-fryseskabe'!I$43 -> 0 | K129: ='Køle-fryseskabe'!K$42*(L129*IF('Køle-fryseskabe'!K$31="ja",VLOOKUP('Køle-fryseskabe'!$E$51+($B129-1),Fremskrivninger!$A$9:$L$38,12),'Køle-fryseskabe'!K$33)/1000) -> 0 | L129: ='Køle-fryseskabe'!K$17*'Køle-fryseskabe'!K$43 -> 0 | M129: ='Køle-fryseskabe'!M$42*(N129*IF('Køle-fryseskabe'!M$31="ja",VLOOKUP('Køle-fryseskabe'!$E$51+($B129-1),Fremskrivninger!$A$9:$L$38,12),'Køle-fryseskabe'!M$33)/1000) -> 0 | N129: ='Køle-fryseskabe'!M$17*'Køle-fryseskabe'!M$43 -> 0 | O129: ='Køle-fryseskabe'!O$42*(P129*IF('Køle-fryseskabe'!O$31="ja",VLOOKUP('Køle-fryseskabe'!$E$51+($B129-1),Fremskrivninger!$A$9:$L$38,12),'Køle-fryseskabe'!O$33)/1000) -> 0 | P129: ='Køle-fryseskabe'!O$17*'Køle-fryseskabe'!O$43 -> 0 | Q129: ='Køle-fryseskabe'!Q$42*(R129*IF('Køle-fryseskabe'!Q$31="ja",VLOOKUP('Køle-fryseskabe'!$E$51+($B129-1),Fremskrivninger!$A$9:$L$38,12),'Køle-fryseskabe'!Q$33)/1000) -> 0 | R129: ='Køle-fryseskabe'!Q$17*'Køle-fryseskabe'!Q$43 -> 0 | S129: ='Køle-fryseskabe'!S$42*(T129*IF('Køle-fryseskabe'!S$31="ja",VLOOKUP('Køle-fryseskabe'!$E$51+($B129-1),Fremskrivninger!$A$9:$L$38,12),'Køle-fryseskabe'!S$33)/1000) -> 0 | T129: ='Køle-fryseskabe'!S$17*'Køle-fryseskabe'!S$43 -> 0
B130: 12 | C130: 12 | E130: ='Køle-fryseskabe'!E$42*(F130*IF('Køle-fryseskabe'!E$31="ja",VLOOKUP('Køle-fryseskabe'!$E$51+($B130-1),Fremskrivninger!$A$9:$L$38,12),'Køle-fryseskabe'!E$33)/1000) -> 0 | F130: ='Køle-fryseskabe'!E$17*'Køle-fryseskabe'!E$43 -> 0 | G130: ='Køle-fryseskabe'!G$42*(H130*IF('Køle-fryseskabe'!G$31="ja",VLOOKUP('Køle-fryseskabe'!$E$51+($B130-1),Fremskrivninger!$A$9:$L$38,12),'Køle-fryseskabe'!G$33)/1000) -> 0 | H130: ='Køle-fryseskabe'!G$17*'Køle-fryseskabe'!G$43 -> 0 | I130: ='Køle-fryseskabe'!I$42*(J130*IF('Køle-fryseskabe'!I$31="ja",VLOOKUP('Køle-fryseskabe'!$E$51+($B130-1),Fremskrivninger!$A$9:$L$38,12),'Køle-fryseskabe'!I$33)/1000) -> 0 | J130: ='Køle-fryseskabe'!I$17*'Køle-fryseskabe'!I$43 -> 0 | K130: ='Køle-fryseskabe'!K$42*(L130*IF('Køle-fryseskabe'!K$31="ja",VLOOKUP('Køle-fryseskabe'!$E$51+($B130-1),Fremskrivninger!$A$9:$L$38,12),'Køle-fryseskabe'!K$33)/1000) -> 0 | L130: ='Køle-fryseskabe'!K$17*'Køle-fryseskabe'!K$43 -> 0 | M130: ='Køle-fryseskabe'!M$42*(N130*IF('Køle-fryseskabe'!M$31="ja",VLOOKUP('Køle-fryseskabe'!$E$51+($B130-1),Fremskrivninger!$A$9:$L$38,12),'Køle-fryseskabe'!M$33)/1000) -> 0 | N130: ='Køle-fryseskabe'!M$17*'Køle-fryseskabe'!M$43 -> 0 | O130: ='Køle-fryseskabe'!O$42*(P130*IF('Køle-fryseskabe'!O$31="ja",VLOOKUP('Køle-fryseskabe'!$E$51+($B130-1),Fremskrivninger!$A$9:$L$38,12),'Køle-fryseskabe'!O$33)/1000) -> 0 | P130: ='Køle-fryseskabe'!O$17*'Køle-fryseskabe'!O$43 -> 0 | Q130: ='Køle-fryseskabe'!Q$42*(R130*IF('Køle-fryseskabe'!Q$31="ja",VLOOKUP('Køle-fryseskabe'!$E$51+($B130-1),Fremskrivninger!$A$9:$L$38,12),'Køle-fryseskabe'!Q$33)/1000) -> 0 | R130: ='Køle-fryseskabe'!Q$17*'Køle-fryseskabe'!Q$43 -> 0 | S130: ='Køle-fryseskabe'!S$42*(T130*IF('Køle-fryseskabe'!S$31="ja",VLOOKUP('Køle-fryseskabe'!$E$51+($B130-1),Fremskrivninger!$A$9:$L$38,12),'Køle-fryseskabe'!S$33)/1000) -> 0 | T130: ='Køle-fryseskabe'!S$17*'Køle-fryseskabe'!S$43 -> 0
B131: 13 | C131: 13 | E131: ='Køle-fryseskabe'!E$42*(F131*IF('Køle-fryseskabe'!E$31="ja",VLOOKUP('Køle-fryseskabe'!$E$51+($B131-1),Fremskrivninger!$A$9:$L$38,12),'Køle-fryseskabe'!E$33)/1000) -> 0 | F131: ='Køle-fryseskabe'!E$17*'Køle-fryseskabe'!E$43 -> 0 | G131: ='Køle-fryseskabe'!G$42*(H131*IF('Køle-fryseskabe'!G$31="ja",VLOOKUP('Køle-fryseskabe'!$E$51+($B131-1),Fremskrivninger!$A$9:$L$38,12),'Køle-fryseskabe'!G$33)/1000) -> 0 | H131: ='Køle-fryseskabe'!G$17*'Køle-fryseskabe'!G$43 -> 0 | I131: ='Køle-fryseskabe'!I$42*(J131*IF('Køle-fryseskabe'!I$31="ja",VLOOKUP('Køle-fryseskabe'!$E$51+($B131-1),Fremskrivninger!$A$9:$L$38,12),'Køle-fryseskabe'!I$33)/1000) -> 0 | J131: ='Køle-fryseskabe'!I$17*'Køle-fryseskabe'!I$43 -> 0 | K131: ='Køle-fryseskabe'!K$42*(L131*IF('Køle-fryseskabe'!K$31="ja",VLOOKUP('Køle-fryseskabe'!$E$51+($B131-1),Fremskrivninger!$A$9:$L$38,12),'Køle-fryseskabe'!K$33)/1000) -> 0 | L131: ='Køle-fryseskabe'!K$17*'Køle-fryseskabe'!K$43 -> 0 | M131: ='Køle-fryseskabe'!M$42*(N131*IF('Køle-fryseskabe'!M$31="ja",VLOOKUP('Køle-fryseskabe'!$E$51+($B131-1),Fremskrivninger!$A$9:$L$38,12),'Køle-fryseskabe'!M$33)/1000) -> 0 | N131: ='Køle-fryseskabe'!M$17*'Køle-fryseskabe'!M$43 -> 0 | O131: ='Køle-fryseskabe'!O$42*(P131*IF('Køle-fryseskabe'!O$31="ja",VLOOKUP('Køle-fryseskabe'!$E$51+($B131-1),Fremskrivninger!$A$9:$L$38,12),'Køle-fryseskabe'!O$33)/1000) -> 0 | P131: ='Køle-fryseskabe'!O$17*'Køle-fryseskabe'!O$43 -> 0 | Q131: ='Køle-fryseskabe'!Q$42*(R131*IF('Køle-fryseskabe'!Q$31="ja",VLOOKUP('Køle-fryseskabe'!$E$51+($B131-1),Fremskrivninger!$A$9:$L$38,12),'Køle-fryseskabe'!Q$33)/1000) -> 0 | R131: ='Køle-fryseskabe'!Q$17*'Køle-fryseskabe'!Q$43 -> 0 | S131: ='Køle-fryseskabe'!S$42*(T131*IF('Køle-fryseskabe'!S$31="ja",VLOOKUP('Køle-fryseskabe'!$E$51+($B131-1),Fremskrivninger!$A$9:$L$38,12),'Køle-fryseskabe'!S$33)/1000) -> 0 | T131: ='Køle-fryseskabe'!S$17*'Køle-fryseskabe'!S$43 -> 0
B132: 14 | C132: 14 | E132: ='Køle-fryseskabe'!E$42*(F132*IF('Køle-fryseskabe'!E$31="ja",VLOOKUP('Køle-fryseskabe'!$E$51+($B132-1),Fremskrivninger!$A$9:$L$38,12),'Køle-fryseskabe'!E$33)/1000) -> 0 | F132: ='Køle-fryseskabe'!E$17*'Køle-fryseskabe'!E$43 -> 0 | G132: ='Køle-fryseskabe'!G$42*(H132*IF('Køle-fryseskabe'!G$31="ja",VLOOKUP('Køle-fryseskabe'!$E$51+($B132-1),Fremskrivninger!$A$9:$L$38,12),'Køle-fryseskabe'!G$33)/1000) -> 0 | H132: ='Køle-fryseskabe'!G$17*'Køle-fryseskabe'!G$43 -> 0 | I132: ='Køle-fryseskabe'!I$42*(J132*IF('Køle-fryseskabe'!I$31="ja",VLOOKUP('Køle-fryseskabe'!$E$51+($B132-1),Fremskrivninger!$A$9:$L$38,12),'Køle-fryseskabe'!I$33)/1000) -> 0 | J132: ='Køle-fryseskabe'!I$17*'Køle-fryseskabe'!I$43 -> 0 | K132: ='Køle-fryseskabe'!K$42*(L132*IF('Køle-fryseskabe'!K$31="ja",VLOOKUP('Køle-fryseskabe'!$E$51+($B132-1),Fremskrivninger!$A$9:$L$38,12),'Køle-fryseskabe'!K$33)/1000) -> 0 | L132: ='Køle-fryseskabe'!K$17*'Køle-fryseskabe'!K$43 -> 0 | M132: ='Køle-fryseskabe'!M$42*(N132*IF('Køle-fryseskabe'!M$31="ja",VLOOKUP('Køle-fryseskabe'!$E$51+($B132-1),Fremskrivninger!$A$9:$L$38,12),'Køle-fryseskabe'!M$33)/1000) -> 0 | N132: ='Køle-fryseskabe'!M$17*'Køle-fryseskabe'!M$43 -> 0 | O132: ='Køle-fryseskabe'!O$42*(P132*IF('Køle-fryseskabe'!O$31="ja",VLOOKUP('Køle-fryseskabe'!$E$51+($B132-1),Fremskrivninger!$A$9:$L$38,12),'Køle-fryseskabe'!O$33)/1000) -> 0 | P132: ='Køle-fryseskabe'!O$17*'Køle-fryseskabe'!O$43 -> 0 | Q132: ='Køle-fryseskabe'!Q$42*(R132*IF('Køle-fryseskabe'!Q$31="ja",VLOOKUP('Køle-fryseskabe'!$E$51+($B132-1),Fremskrivninger!$A$9:$L$38,12),'Køle-fryseskabe'!Q$33)/1000) -> 0 | R132: ='Køle-fryseskabe'!Q$17*'Køle-fryseskabe'!Q$43 -> 0 | S132: ='Køle-fryseskabe'!S$42*(T132*IF('Køle-fryseskabe'!S$31="ja",VLOOKUP('Køle-fryseskabe'!$E$51+($B132-1),Fremskrivninger!$A$9:$L$38,12),'Køle-fryseskabe'!S$33)/1000) -> 0 | T132: ='Køle-fryseskabe'!S$17*'Køle-fryseskabe'!S$43 -> 0
B133: 15 | C133: 15 | E133: ='Køle-fryseskabe'!E$42*(F133*IF('Køle-fryseskabe'!E$31="ja",VLOOKUP('Køle-fryseskabe'!$E$51+($B133-1),Fremskrivninger!$A$9:$L$38,12),'Køle-fryseskabe'!E$33)/1000) -> 0 | F133: ='Køle-fryseskabe'!E$17*'Køle-fryseskabe'!E$43 -> 0 | G133: ='Køle-fryseskabe'!G$42*(H133*IF('Køle-fryseskabe'!G$31="ja",VLOOKUP('Køle-fryseskabe'!$E$51+($B133-1),Fremskrivninger!$A$9:$L$38,12),'Køle-fryseskabe'!G$33)/1000) -> 0 | H133: ='Køle-fryseskabe'!G$17*'Køle-fryseskabe'!G$43 -> 0 | I133: ='Køle-fryseskabe'!I$42*(J133*IF('Køle-fryseskabe'!I$31="ja",VLOOKUP('Køle-fryseskabe'!$E$51+($B133-1),Fremskrivninger!$A$9:$L$38,12),'Køle-fryseskabe'!I$33)/1000) -> 0 | J133: ='Køle-fryseskabe'!I$17*'Køle-fryseskabe'!I$43 -> 0 | K133: ='Køle-fryseskabe'!K$42*(L133*IF('Køle-fryseskabe'!K$31="ja",VLOOKUP('Køle-fryseskabe'!$E$51+($B133-1),Fremskrivninger!$A$9:$L$38,12),'Køle-fryseskabe'!K$33)/1000) -> 0 | L133: ='Køle-fryseskabe'!K$17*'Køle-fryseskabe'!K$43 -> 0 | M133: ='Køle-fryseskabe'!M$42*(N133*IF('Køle-fryseskabe'!M$31="ja",VLOOKUP('Køle-fryseskabe'!$E$51+($B133-1),Fremskrivninger!$A$9:$L$38,12),'Køle-fryseskabe'!M$33)/1000) -> 0 | N133: ='Køle-fryseskabe'!M$17*'Køle-fryseskabe'!M$43 -> 0 | O133: ='Køle-fryseskabe'!O$42*(P133*IF('Køle-fryseskabe'!O$31="ja",VLOOKUP('Køle-fryseskabe'!$E$51+($B133-1),Fremskrivninger!$A$9:$L$38,12),'Køle-fryseskabe'!O$33)/1000) -> 0 | P133: ='Køle-fryseskabe'!O$17*'Køle-fryseskabe'!O$43 -> 0 | Q133: ='Køle-fryseskabe'!Q$42*(R133*IF('Køle-fryseskabe'!Q$31="ja",VLOOKUP('Køle-fryseskabe'!$E$51+($B133-1),Fremskrivninger!$A$9:$L$38,12),'Køle-fryseskabe'!Q$33)/1000) -> 0 | R133: ='Køle-fryseskabe'!Q$17*'Køle-fryseskabe'!Q$43 -> 0 | S133: ='Køle-fryseskabe'!S$42*(T133*IF('Køle-fryseskabe'!S$31="ja",VLOOKUP('Køle-fryseskabe'!$E$51+($B133-1),Fremskrivninger!$A$9:$L$38,12),'Køle-fryseskabe'!S$33)/1000) -> 0 | T133: ='Køle-fryseskabe'!S$17*'Køle-fryseskabe'!S$43 -> 0
B134: 16 | C134: 16 | E134: ='Køle-fryseskabe'!E$42*(F134*IF('Køle-fryseskabe'!E$31="ja",VLOOKUP('Køle-fryseskabe'!$E$51+($B134-1),Fremskrivninger!$A$9:$L$38,12),'Køle-fryseskabe'!E$33)/1000) -> 0 | F134: ='Køle-fryseskabe'!E$17*'Køle-fryseskabe'!E$43 -> 0 | G134: ='Køle-fryseskabe'!G$42*(H134*IF('Køle-fryseskabe'!G$31="ja",VLOOKUP('Køle-fryseskabe'!$E$51+($B134-1),Fremskrivninger!$A$9:$L$38,12),'Køle-fryseskabe'!G$33)/1000) -> 0 | H134: ='Køle-fryseskabe'!G$17*'Køle-fryseskabe'!G$43 -> 0 | I134: ='Køle-fryseskabe'!I$42*(J134*IF('Køle-fryseskabe'!I$31="ja",VLOOKUP('Køle-fryseskabe'!$E$51+($B134-1),Fremskrivninger!$A$9:$L$38,12),'Køle-fryseskabe'!I$33)/1000) -> 0 | J134: ='Køle-fryseskabe'!I$17*'Køle-fryseskabe'!I$43 -> 0 | K134: ='Køle-fryseskabe'!K$42*(L134*IF('Køle-fryseskabe'!K$31="ja",VLOOKUP('Køle-fryseskabe'!$E$51+($B134-1),Fremskrivninger!$A$9:$L$38,12),'Køle-fryseskabe'!K$33)/1000) -> 0 | L134: ='Køle-fryseskabe'!K$17*'Køle-fryseskabe'!K$43 -> 0 | M134: ='Køle-fryseskabe'!M$42*(N134*IF('Køle-fryseskabe'!M$31="ja",VLOOKUP('Køle-fryseskabe'!$E$51+($B134-1),Fremskrivninger!$A$9:$L$38,12),'Køle-fryseskabe'!M$33)/1000) -> 0 | N134: ='Køle-fryseskabe'!M$17*'Køle-fryseskabe'!M$43 -> 0 | O134: ='Køle-fryseskabe'!O$42*(P134*IF('Køle-fryseskabe'!O$31="ja",VLOOKUP('Køle-fryseskabe'!$E$51+($B134-1),Fremskrivninger!$A$9:$L$38,12),'Køle-fryseskabe'!O$33)/1000) -> 0 | P134: ='Køle-fryseskabe'!O$17*'Køle-fryseskabe'!O$43 -> 0 | Q134: ='Køle-fryseskabe'!Q$42*(R134*IF('Køle-fryseskabe'!Q$31="ja",VLOOKUP('Køle-fryseskabe'!$E$51+($B134-1),Fremskrivninger!$A$9:$L$38,12),'Køle-fryseskabe'!Q$33)/1000) -> 0 | R134: ='Køle-fryseskabe'!Q$17*'Køle-fryseskabe'!Q$43 -> 0 | S134: ='Køle-fryseskabe'!S$42*(T134*IF('Køle-fryseskabe'!S$31="ja",VLOOKUP('Køle-fryseskabe'!$E$51+($B134-1),Fremskrivninger!$A$9:$L$38,12),'Køle-fryseskabe'!S$33)/1000) -> 0 | T134: ='Køle-fryseskabe'!S$17*'Køle-fryseskabe'!S$43 -> 0
B135: 17 | C135: 17 | E135: ='Køle-fryseskabe'!E$42*(F135*IF('Køle-fryseskabe'!E$31="ja",VLOOKUP('Køle-fryseskabe'!$E$51+($B135-1),Fremskrivninger!$A$9:$L$38,12),'Køle-fryseskabe'!E$33)/1000) -> 0 | F135: ='Køle-fryseskabe'!E$17*'Køle-fryseskabe'!E$43 -> 0 | G135: ='Køle-fryseskabe'!G$42*(H135*IF('Køle-fryseskabe'!G$31="ja",VLOOKUP('Køle-fryseskabe'!$E$51+($B135-1),Fremskrivninger!$A$9:$L$38,12),'Køle-fryseskabe'!G$33)/1000) -> 0 | H135: ='Køle-fryseskabe'!G$17*'Køle-fryseskabe'!G$43 -> 0 | I135: ='Køle-fryseskabe'!I$42*(J135*IF('Køle-fryseskabe'!I$31="ja",VLOOKUP('Køle-fryseskabe'!$E$51+($B135-1),Fremskrivninger!$A$9:$L$38,12),'Køle-fryseskabe'!I$33)/1000) -> 0 | J135: ='Køle-fryseskabe'!I$17*'Køle-fryseskabe'!I$43 -> 0 | K135: ='Køle-fryseskabe'!K$42*(L135*IF('Køle-fryseskabe'!K$31="ja",VLOOKUP('Køle-fryseskabe'!$E$51+($B135-1),Fremskrivninger!$A$9:$L$38,12),'Køle-fryseskabe'!K$33)/1000) -> 0 | L135: ='Køle-fryseskabe'!K$17*'Køle-fryseskabe'!K$43 -> 0 | M135: ='Køle-fryseskabe'!M$42*(N135*IF('Køle-fryseskabe'!M$31="ja",VLOOKUP('Køle-fryseskabe'!$E$51+($B135-1),Fremskrivninger!$A$9:$L$38,12),'Køle-fryseskabe'!M$33)/1000) -> 0 | N135: ='Køle-fryseskabe'!M$17*'Køle-fryseskabe'!M$43 -> 0 | O135: ='Køle-fryseskabe'!O$42*(P135*IF('Køle-fryseskabe'!O$31="ja",VLOOKUP('Køle-fryseskabe'!$E$51+($B135-1),Fremskrivninger!$A$9:$L$38,12),'Køle-fryseskabe'!O$33)/1000) -> 0 | P135: ='Køle-fryseskabe'!O$17*'Køle-fryseskabe'!O$43 -> 0 | Q135: ='Køle-fryseskabe'!Q$42*(R135*IF('Køle-fryseskabe'!Q$31="ja",VLOOKUP('Køle-fryseskabe'!$E$51+($B135-1),Fremskrivninger!$A$9:$L$38,12),'Køle-fryseskabe'!Q$33)/1000) -> 0 | R135: ='Køle-fryseskabe'!Q$17*'Køle-fryseskabe'!Q$43 -> 0 | S135: ='Køle-fryseskabe'!S$42*(T135*IF('Køle-fryseskabe'!S$31="ja",VLOOKUP('Køle-fryseskabe'!$E$51+($B135-1),Fremskrivninger!$A$9:$L$38,12),'Køle-fryseskabe'!S$33)/1000) -> 0 | T135: ='Køle-fryseskabe'!S$17*'Køle-fryseskabe'!S$43 -> 0
B136: 18 | C136: 18 | E136: ='Køle-fryseskabe'!E$42*(F136*IF('Køle-fryseskabe'!E$31="ja",VLOOKUP('Køle-fryseskabe'!$E$51+($B136-1),Fremskrivninger!$A$9:$L$38,12),'Køle-fryseskabe'!E$33)/1000) -> 0 | F136: ='Køle-fryseskabe'!E$17*'Køle-fryseskabe'!E$43 -> 0 | G136: ='Køle-fryseskabe'!G$42*(H136*IF('Køle-fryseskabe'!G$31="ja",VLOOKUP('Køle-fryseskabe'!$E$51+($B136-1),Fremskrivninger!$A$9:$L$38,12),'Køle-fryseskabe'!G$33)/1000) -> 0 | H136: ='Køle-fryseskabe'!G$17*'Køle-fryseskabe'!G$43 -> 0 | I136: ='Køle-fryseskabe'!I$42*(J136*IF('Køle-fryseskabe'!I$31="ja",VLOOKUP('Køle-fryseskabe'!$E$51+($B136-1),Fremskrivninger!$A$9:$L$38,12),'Køle-fryseskabe'!I$33)/1000) -> 0 | J136: ='Køle-fryseskabe'!I$17*'Køle-fryseskabe'!I$43 -> 0 | K136: ='Køle-fryseskabe'!K$42*(L136*IF('Køle-fryseskabe'!K$31="ja",VLOOKUP('Køle-fryseskabe'!$E$51+($B136-1),Fremskrivninger!$A$9:$L$38,12),'Køle-fryseskabe'!K$33)/1000) -> 0 | L136: ='Køle-fryseskabe'!K$17*'Køle-fryseskabe'!K$43 -> 0 | M136: ='Køle-fryseskabe'!M$42*(N136*IF('Køle-fryseskabe'!M$31="ja",VLOOKUP('Køle-fryseskabe'!$E$51+($B136-1),Fremskrivninger!$A$9:$L$38,12),'Køle-fryseskabe'!M$33)/1000) -> 0 | N136: ='Køle-fryseskabe'!M$17*'Køle-fryseskabe'!M$43 -> 0 | O136: ='Køle-fryseskabe'!O$42*(P136*IF('Køle-fryseskabe'!O$31="ja",VLOOKUP('Køle-fryseskabe'!$E$51+($B136-1),Fremskrivninger!$A$9:$L$38,12),'Køle-fryseskabe'!O$33)/1000) -> 0 | P136: ='Køle-fryseskabe'!O$17*'Køle-fryseskabe'!O$43 -> 0 | Q136: ='Køle-fryseskabe'!Q$42*(R136*IF('Køle-fryseskabe'!Q$31="ja",VLOOKUP('Køle-fryseskabe'!$E$51+($B136-1),Fremskrivninger!$A$9:$L$38,12),'Køle-fryseskabe'!Q$33)/1000) -> 0 | R136: ='Køle-fryseskabe'!Q$17*'Køle-fryseskabe'!Q$43 -> 0 | S136: ='Køle-fryseskabe'!S$42*(T136*IF('Køle-fryseskabe'!S$31="ja",VLOOKUP('Køle-fryseskabe'!$E$51+($B136-1),Fremskrivninger!$A$9:$L$38,12),'Køle-fryseskabe'!S$33)/1000) -> 0 | T136: ='Køle-fryseskabe'!S$17*'Køle-fryseskabe'!S$43 -> 0
B137: 19 | C137: 19 | E137: ='Køle-fryseskabe'!E$42*(F137*IF('Køle-fryseskabe'!E$31="ja",VLOOKUP('Køle-fryseskabe'!$E$51+($B137-1),Fremskrivninger!$A$9:$L$38,12),'Køle-fryseskabe'!E$33)/1000) -> 0 | F137: ='Køle-fryseskabe'!E$17*'Køle-fryseskabe'!E$43 -> 0 | G137: ='Køle-fryseskabe'!G$42*(H137*IF('Køle-fryseskabe'!G$31="ja",VLOOKUP('Køle-fryseskabe'!$E$51+($B137-1),Fremskrivninger!$A$9:$L$38,12),'Køle-fryseskabe'!G$33)/1000) -> 0 | H137: ='Køle-fryseskabe'!G$17*'Køle-fryseskabe'!G$43 -> 0 | I137: ='Køle-fryseskabe'!I$42*(J137*IF('Køle-fryseskabe'!I$31="ja",VLOOKUP('Køle-fryseskabe'!$E$51+($B137-1),Fremskrivninger!$A$9:$L$38,12),'Køle-fryseskabe'!I$33)/1000) -> 0 | J137: ='Køle-fryseskabe'!I$17*'Køle-fryseskabe'!I$43 -> 0 | K137: ='Køle-fryseskabe'!K$42*(L137*IF('Køle-fryseskabe'!K$31="ja",VLOOKUP('Køle-fryseskabe'!$E$51+($B137-1),Fremskrivninger!$A$9:$L$38,12),'Køle-fryseskabe'!K$33)/1000) -> 0 | L137: ='Køle-fryseskabe'!K$17*'Køle-fryseskabe'!K$43 -> 0 | M137: ='Køle-fryseskabe'!M$42*(N137*IF('Køle-fryseskabe'!M$31="ja",VLOOKUP('Køle-fryseskabe'!$E$51+($B137-1),Fremskrivninger!$A$9:$L$38,12),'Køle-fryseskabe'!M$33)/1000) -> 0 | N137: ='Køle-fryseskabe'!M$17*'Køle-fryseskabe'!M$43 -> 0 | O137: ='Køle-fryseskabe'!O$42*(P137*IF('Køle-fryseskabe'!O$31="ja",VLOOKUP('Køle-fryseskabe'!$E$51+($B137-1),Fremskrivninger!$A$9:$L$38,12),'Køle-fryseskabe'!O$33)/1000) -> 0 | P137: ='Køle-fryseskabe'!O$17*'Køle-fryseskabe'!O$43 -> 0 | Q137: ='Køle-fryseskabe'!Q$42*(R137*IF('Køle-fryseskabe'!Q$31="ja",VLOOKUP('Køle-fryseskabe'!$E$51+($B137-1),Fremskrivninger!$A$9:$L$38,12),'Køle-fryseskabe'!Q$33)/1000) -> 0 | R137: ='Køle-fryseskabe'!Q$17*'Køle-fryseskabe'!Q$43 -> 0 | S137: ='Køle-fryseskabe'!S$42*(T137*IF('Køle-fryseskabe'!S$31="ja",VLOOKUP('Køle-fryseskabe'!$E$51+($B137-1),Fremskrivninger!$A$9:$L$38,12),'Køle-fryseskabe'!S$33)/1000) -> 0 | T137: ='Køle-fryseskabe'!S$17*'Køle-fryseskabe'!S$43 -> 0
B138: 20 | C138: 20 | E138: ='Køle-fryseskabe'!E$42*(F138*IF('Køle-fryseskabe'!E$31="ja",VLOOKUP('Køle-fryseskabe'!$E$51+($B138-1),Fremskrivninger!$A$9:$L$38,12),'Køle-fryseskabe'!E$33)/1000) -> 0 | F138: ='Køle-fryseskabe'!E$17*'Køle-fryseskabe'!E$43 -> 0 | G138: ='Køle-fryseskabe'!G$42*(H138*IF('Køle-fryseskabe'!G$31="ja",VLOOKUP('Køle-fryseskabe'!$E$51+($B138-1),Fremskrivninger!$A$9:$L$38,12),'Køle-fryseskabe'!G$33)/1000) -> 0 | H138: ='Køle-fryseskabe'!G$17*'Køle-fryseskabe'!G$43 -> 0 | I138: ='Køle-fryseskabe'!I$42*(J138*IF('Køle-fryseskabe'!I$31="ja",VLOOKUP('Køle-fryseskabe'!$E$51+($B138-1),Fremskrivninger!$A$9:$L$38,12),'Køle-fryseskabe'!I$33)/1000) -> 0 | J138: ='Køle-fryseskabe'!I$17*'Køle-fryseskabe'!I$43 -> 0 | K138: ='Køle-fryseskabe'!K$42*(L138*IF('Køle-fryseskabe'!K$31="ja",VLOOKUP('Køle-fryseskabe'!$E$51+($B138-1),Fremskrivninger!$A$9:$L$38,12),'Køle-fryseskabe'!K$33)/1000) -> 0 | L138: ='Køle-fryseskabe'!K$17*'Køle-fryseskabe'!K$43 -> 0 | M138: ='Køle-fryseskabe'!M$42*(N138*IF('Køle-fryseskabe'!M$31="ja",VLOOKUP('Køle-fryseskabe'!$E$51+($B138-1),Fremskrivninger!$A$9:$L$38,12),'Køle-fryseskabe'!M$33)/1000) -> 0 | N138: ='Køle-fryseskabe'!M$17*'Køle-fryseskabe'!M$43 -> 0 | O138: ='Køle-fryseskabe'!O$42*(P138*IF('Køle-fryseskabe'!O$31="ja",VLOOKUP('Køle-fryseskabe'!$E$51+($B138-1),Fremskrivninger!$A$9:$L$38,12),'Køle-fryseskabe'!O$33)/1000) -> 0 | P138: ='Køle-fryseskabe'!O$17*'Køle-fryseskabe'!O$43 -> 0 | Q138: ='Køle-fryseskabe'!Q$42*(R138*IF('Køle-fryseskabe'!Q$31="ja",VLOOKUP('Køle-fryseskabe'!$E$51+($B138-1),Fremskrivninger!$A$9:$L$38,12),'Køle-fryseskabe'!Q$33)/1000) -> 0 | R138: ='Køle-fryseskabe'!Q$17*'Køle-fryseskabe'!Q$43 -> 0 | S138: ='Køle-fryseskabe'!S$42*(T138*IF('Køle-fryseskabe'!S$31="ja",VLOOKUP('Køle-fryseskabe'!$E$51+($B138-1),Fremskrivninger!$A$9:$L$38,12),'Køle-fryseskabe'!S$33)/1000) -> 0 | T138: ='Køle-fryseskabe'!S$17*'Køle-fryseskabe'!S$43 -> 0
A140: Eksternalitetsmodul - Samfundsøkonomiske omkostninger fra energiforbrug (kr.)
B141: År indeks | D141: TCO-evalueringsperiode | E141: ='Køle-fryseskabe'!E8&" - Samfundsøkonomiske omkostninger (kr.)" -> PRODUKT 1 - Samfundsøkonomiske omkostninger (kr.) | F141: =E118 -> PRODUKT 1 - Samlet udledning (tons CO2e/år) | G141: ='Køle-fryseskabe'!G8&" - Samfundsøkonomiske omkostninger (kr.)" -> PRODUKT 2 - Samfundsøkonomiske omkostninger (kr.) | H141: =G118 -> PRODUKT 2 - Samlet udledning (tons CO2e/år) | I141: ='Køle-fryseskabe'!I8&" - Samfundsøkonomiske omkostninger (kr.)" -> PRODUKT 3 - Samfundsøkonomiske omkostninger (kr.) | J141: =I118 -> PRODUKT 3 - Samlet udledning (tons CO2e/år) | K141: ='Køle-fryseskabe'!K8&" - Samfundsøkonomiske omkostninger (kr.)" -> PRODUKT 4 - Samfundsøkonomiske omkostninger (kr.) | L141: =K118 -> PRODUKT 4 - Samlet udledning (tons CO2e/år) | M141: ='Køle-fryseskabe'!M8&" - Samfundsøkonomiske omkostninger (kr.)" -> PRODUKT 5 - Samfundsøkonomiske omkostninger (kr.) | N141: =M118 -> PRODUKT 5 - Samlet udledning (tons CO2e/år) | O141: ='Køle-fryseskabe'!O8&" - Samfundsøkonomiske omkostninger (kr.)" -> PRODUKT 6 - Samfundsøkonomiske omkostninger (kr.) | P141: =O118 -> PRODUKT 6 - Samlet udledning (tons CO2e/år) | Q141: ='Køle-fryseskabe'!Q8&" - Samfundsøkonomiske omkostninger (kr.)" -> PRODUKT 7 - Samfundsøkonomiske omkostninger (kr.) | R141: =Q118 -> PRODUKT 7 - Samlet udledning (tons CO2e/år) | S141: ='Køle-fryseskabe'!S8&" - Samfundsøkonomiske omkostninger (kr.)" -> PRODUKT 8 - Samfundsøkonomiske omkostninger (kr.) | T141: =S118 -> PRODUKT 8 - Samlet udledning (tons CO2e/år)
B142: 1 | C142: =B142 -> 1 | E142: =F142*IF('Køle-fryseskabe'!E$29="nej",0,IF('Køle-fryseskabe'!E$35="ja",'Køle-fryseskabe'!E$36,'Køle-fryseskabe'!E$37))*(1+'Køle-fryseskabe'!E$60)^-$C142 -> 0 | F142: =E119 -> 0 | G142: =H142*IF('Køle-fryseskabe'!G$29="nej",0,IF('Køle-fryseskabe'!G$35="ja",'Køle-fryseskabe'!G$36,'Køle-fryseskabe'!G$37))*(1+'Køle-fryseskabe'!G$60)^-$C142 -> 0 | H142: =G119 -> 0 | I142: =J142*IF('Køle-fryseskabe'!I$29="nej",0,IF('Køle-fryseskabe'!I$35="ja",'Køle-fryseskabe'!I$36,'Køle-fryseskabe'!I$37))*(1+'Køle-fryseskabe'!I$60)^-$C142 -> 0 | J142: =I119 -> 0 | K142: =L142*IF('Køle-fryseskabe'!K$29="nej",0,IF('Køle-fryseskabe'!K$35="ja",'Køle-fryseskabe'!K$36,'Køle-fryseskabe'!K$37))*(1+'Køle-fryseskabe'!K$60)^-$C142 -> 0 | L142: =K119 -> 0 | M142: =N142*IF('Køle-fryseskabe'!M$29="nej",0,IF('Køle-fryseskabe'!M$35="ja",'Køle-fryseskabe'!M$36,'Køle-fryseskabe'!M$37))*(1+'Køle-fryseskabe'!M$60)^-$C142 -> 0 | N142: =M119 -> 0 | O142: =P142*IF('Køle-fryseskabe'!O$29="nej",0,IF('Køle-fryseskabe'!O$35="ja",'Køle-fryseskabe'!O$36,'Køle-fryseskabe'!O$37))*(1+'Køle-fryseskabe'!O$60)^-$C142 -> 0 | P142: =O119 -> 0 | Q142: =R142*IF('Køle-fryseskabe'!Q$29="nej",0,IF('Køle-fryseskabe'!Q$35="ja",'Køle-fryseskabe'!Q$36,'Køle-fryseskabe'!Q$37))*(1+'Køle-fryseskabe'!Q$60)^-$C142 -> 0 | R142: =Q119 -> 0 | S142: =T142*IF('Køle-fryseskabe'!S$29="nej",0,IF('Køle-fryseskabe'!S$35="ja",'Køle-fryseskabe'!S$36,'Køle-fryseskabe'!S$37))*(1+'Køle-fryseskabe'!S$60)^-$C142 -> 0 | T142: =S119 -> 0
B143: 2 | C143: =B143 -> 2 | E143: =F143*IF('Køle-fryseskabe'!E$29="nej",0,IF('Køle-fryseskabe'!E$35="ja",'Køle-fryseskabe'!E$36,'Køle-fryseskabe'!E$37))*(1+'Køle-fryseskabe'!E$60)^-$C143 -> 0 | F143: =E120 -> 0 | G143: =H143*IF('Køle-fryseskabe'!G$29="nej",0,IF('Køle-fryseskabe'!G$35="ja",'Køle-fryseskabe'!G$36,'Køle-fryseskabe'!G$37))*(1+'Køle-fryseskabe'!G$60)^-$C143 -> 0 | H143: 0 | I143: =J143*IF('Køle-fryseskabe'!I$29="nej",0,IF('Køle-fryseskabe'!I$35="ja",'Køle-fryseskabe'!I$36,'Køle-fryseskabe'!I$37))*(1+'Køle-fryseskabe'!I$60)^-$C143 -> 0 | J143: =I120 -> 0 | K143: =L143*IF('Køle-fryseskabe'!K$29="nej",0,IF('Køle-fryseskabe'!K$35="ja",'Køle-fryseskabe'!K$36,'Køle-fryseskabe'!K$37))*(1+'Køle-fryseskabe'!K$60)^-$C143 -> 0 | L143: =K120 -> 0 | M143: =N143*IF('Køle-fryseskabe'!M$29="nej",0,IF('Køle-fryseskabe'!M$35="ja",'Køle-fryseskabe'!M$36,'Køle-fryseskabe'!M$37))*(1+'Køle-fryseskabe'!M$60)^-$C143 -> 0 | N143: =M120 -> 0 | O143: =P143*IF('Køle-fryseskabe'!O$29="nej",0,IF('Køle-fryseskabe'!O$35="ja",'Køle-fryseskabe'!O$36,'Køle-fryseskabe'!O$37))*(1+'Køle-fryseskabe'!O$60)^-$C143 -> 0 | P143: =O120 -> 0 | Q143: =R143*IF('Køle-fryseskabe'!Q$29="nej",0,IF('Køle-fryseskabe'!Q$35="ja",'Køle-fryseskabe'!Q$36,'Køle-fryseskabe'!Q$37))*(1+'Køle-fryseskabe'!Q$60)^-$C143 -> 0 | R143: =Q120 -> 0 | S143: =T143*IF('Køle-fryseskabe'!S$29="nej",0,IF('Køle-fryseskabe'!S$35="ja",'Køle-fryseskabe'!S$36,'Køle-fryseskabe'!S$37))*(1+'Køle-fryseskabe'!S$60)^-$C143 -> 0 | T143: =S120 -> 0
B144: 3 | C144: 3 | E144: =F144*IF('Køle-fryseskabe'!E$29="nej",0,IF('Køle-fryseskabe'!E$35="ja",'Køle-fryseskabe'!E$36,'Køle-fryseskabe'!E$37))*(1+'Køle-fryseskabe'!E$60)^-$C144 -> 0 | F144: 0 | G144: =H144*IF('Køle-fryseskabe'!G$29="nej",0,IF('Køle-fryseskabe'!G$35="ja",'Køle-fryseskabe'!G$36,'Køle-fryseskabe'!G$37))*(1+'Køle-fryseskabe'!G$60)^-$C144 -> 0 | H144: 0 | I144: =J144*IF('Køle-fryseskabe'!I$29="nej",0,IF('Køle-fryseskabe'!I$35="ja",'Køle-fryseskabe'!I$36,'Køle-fryseskabe'!I$37))*(1+'Køle-fryseskabe'!I$60)^-$C144 -> 0 | J144: =I121 -> 0 | K144: =L144*IF('Køle-fryseskabe'!K$29="nej",0,IF('Køle-fryseskabe'!K$35="ja",'Køle-fryseskabe'!K$36,'Køle-fryseskabe'!K$37))*(1+'Køle-fryseskabe'!K$60)^-$C144 -> 0 | L144: =K121 -> 0 | M144: =N144*IF('Køle-fryseskabe'!M$29="nej",0,IF('Køle-fryseskabe'!M$35="ja",'Køle-fryseskabe'!M$36,'Køle-fryseskabe'!M$37))*(1+'Køle-fryseskabe'!M$60)^-$C144 -> 0 | N144: =M121 -> 0 | O144: =P144*IF('Køle-fryseskabe'!O$29="nej",0,IF('Køle-fryseskabe'!O$35="ja",'Køle-fryseskabe'!O$36,'Køle-fryseskabe'!O$37))*(1+'Køle-fryseskabe'!O$60)^-$C144 -> 0 | P144: =O121 -> 0 | Q144: =R144*IF('Køle-fryseskabe'!Q$29="nej",0,IF('Køle-fryseskabe'!Q$35="ja",'Køle-fryseskabe'!Q$36,'Køle-fryseskabe'!Q$37))*(1+'Køle-fryseskabe'!Q$60)^-$C144 -> 0 | R144: =Q121 -> 0 | S144: =T144*IF('Køle-fryseskabe'!S$29="nej",0,IF('Køle-fryseskabe'!S$35="ja",'Køle-fryseskabe'!S$36,'Køle-fryseskabe'!S$37))*(1+'Køle-fryseskabe'!S$60)^-$C144 -> 0 | T144: =S121 -> 0
B145: 4 | C145: 4 | E145: =F145*IF('Køle-fryseskabe'!E$29="nej",0,IF('Køle-fryseskabe'!E$35="ja",'Køle-fryseskabe'!E$36,'Køle-fryseskabe'!E$37))*(1+'Køle-fryseskabe'!E$60)^-$C145 -> 0 | F145: 0 | G145: =H145*IF('Køle-fryseskabe'!G$29="nej",0,IF('Køle-fryseskabe'!G$35="ja",'Køle-fryseskabe'!G$36,'Køle-fryseskabe'!G$37))*(1+'Køle-fryseskabe'!G$60)^-$C145 -> 0 | H145: 0 | I145: =J145*IF('Køle-fryseskabe'!I$29="nej",0,IF('Køle-fryseskabe'!I$35="ja",'Køle-fryseskabe'!I$36,'Køle-fryseskabe'!I$37))*(1+'Køle-fryseskabe'!I$60)^-$C145 -> 0 | J145: =I122 -> 0 | K145: =L145*IF('Køle-fryseskabe'!K$29="nej",0,IF('Køle-fryseskabe'!K$35="ja",'Køle-fryseskabe'!K$36,'Køle-fryseskabe'!K$37))*(1+'Køle-fryseskabe'!K$60)^-$C145 -> 0 | L145: =K122 -> 0 | M145: =N145*IF('Køle-fryseskabe'!M$29="nej",0,IF('Køle-fryseskabe'!M$35="ja",'Køle-fryseskabe'!M$36,'Køle-fryseskabe'!M$37))*(1+'Køle-fryseskabe'!M$60)^-$C145 -> 0 | N145: =M122 -> 0 | O145: =P145*IF('Køle-fryseskabe'!O$29="nej",0,IF('Køle-fryseskabe'!O$35="ja",'Køle-fryseskabe'!O$36,'Køle-fryseskabe'!O$37))*(1+'Køle-fryseskabe'!O$60)^-$C145 -> 0 | P145: =O122 -> 0 | Q145: =R145*IF('Køle-fryseskabe'!Q$29="nej",0,IF('Køle-fryseskabe'!Q$35="ja",'Køle-fryseskabe'!Q$36,'Køle-fryseskabe'!Q$37))*(1+'Køle-fryseskabe'!Q$60)^-$C145 -> 0 | R145: =Q122 -> 0 | S145: =T145*IF('Køle-fryseskabe'!S$29="nej",0,IF('Køle-fryseskabe'!S$35="ja",'Køle-fryseskabe'!S$36,'Køle-fryseskabe'!S$37))*(1+'Køle-fryseskabe'!S$60)^-$C145 -> 0 | T145: =S122 -> 0
B146: 5 | C146: 5 | E146: =F146*IF('Køle-fryseskabe'!E$29="nej",0,IF('Køle-fryseskabe'!E$35="ja",'Køle-fryseskabe'!E$36,'Køle-fryseskabe'!E$37))*(1+'Køle-fryseskabe'!E$60)^-$C146 -> 0 | F146: 0 | G146: =H146*IF('Køle-fryseskabe'!G$29="nej",0,IF('Køle-fryseskabe'!G$35="ja",'Køle-fryseskabe'!G$36,'Køle-fryseskabe'!G$37))*(1+'Køle-fryseskabe'!G$60)^-$C146 -> 0 | H146: 0 | I146: =J146*IF('Køle-fryseskabe'!I$29="nej",0,IF('Køle-fryseskabe'!I$35="ja",'Køle-fryseskabe'!I$36,'Køle-fryseskabe'!I$37))*(1+'Køle-fryseskabe'!I$60)^-$C146 -> 0 | J146: =I123 -> 0 | K146: =L146*IF('Køle-fryseskabe'!K$29="nej",0,IF('Køle-fryseskabe'!K$35="ja",'Køle-fryseskabe'!K$36,'Køle-fryseskabe'!K$37))*(1+'Køle-fryseskabe'!K$60)^-$C146 -> 0 | L146: =K123 -> 0 | M146: =N146*IF('Køle-fryseskabe'!M$29="nej",0,IF('Køle-fryseskabe'!M$35="ja",'Køle-fryseskabe'!M$36,'Køle-fryseskabe'!M$37))*(1+'Køle-fryseskabe'!M$60)^-$C146 -> 0 | N146: =M123 -> 0 | O146: =P146*IF('Køle-fryseskabe'!O$29="nej",0,IF('Køle-fryseskabe'!O$35="ja",'Køle-fryseskabe'!O$36,'Køle-fryseskabe'!O$37))*(1+'Køle-fryseskabe'!O$60)^-$C146 -> 0 | P146: =O123 -> 0 | Q146: =R146*IF('Køle-fryseskabe'!Q$29="nej",0,IF('Køle-fryseskabe'!Q$35="ja",'Køle-fryseskabe'!Q$36,'Køle-fryseskabe'!Q$37))*(1+'Køle-fryseskabe'!Q$60)^-$C146 -> 0 | R146: =Q123 -> 0 | S146: =T146*IF('Køle-fryseskabe'!S$29="nej",0,IF('Køle-fryseskabe'!S$35="ja",'Køle-fryseskabe'!S$36,'Køle-fryseskabe'!S$37))*(1+'Køle-fryseskabe'!S$60)^-$C146 -> 0 | T146: =S123 -> 0
B147: 6 | C147: 6 | E147: =F147*IF('Køle-fryseskabe'!E$29="nej",0,IF('Køle-fryseskabe'!E$35="ja",'Køle-fryseskabe'!E$36,'Køle-fryseskabe'!E$37))*(1+'Køle-fryseskabe'!E$60)^-$C147 -> 0 | F147: 0 | G147: =H147*IF('Køle-fryseskabe'!G$29="nej",0,IF('Køle-fryseskabe'!G$35="ja",'Køle-fryseskabe'!G$36,'Køle-fryseskabe'!G$37))*(1+'Køle-fryseskabe'!G$60)^-$C147 -> 0 | H147: 0 | I147: =J147*IF('Køle-fryseskabe'!I$29="nej",0,IF('Køle-fryseskabe'!I$35="ja",'Køle-fryseskabe'!I$36,'Køle-fryseskabe'!I$37))*(1+'Køle-fryseskabe'!I$60)^-$C147 -> 0 | J147: =I124 -> 0 | K147: =L147*IF('Køle-fryseskabe'!K$29="nej",0,IF('Køle-fryseskabe'!K$35="ja",'Køle-fryseskabe'!K$36,'Køle-fryseskabe'!K$37))*(1+'Køle-fryseskabe'!K$60)^-$C147 -> 0 | L147: =K124 -> 0 | M147: =N147*IF('Køle-fryseskabe'!M$29="nej",0,IF('Køle-fryseskabe'!M$35="ja",'Køle-fryseskabe'!M$36,'Køle-fryseskabe'!M$37))*(1+'Køle-fryseskabe'!M$60)^-$C147 -> 0 | N147: =M124 -> 0 | O147: =P147*IF('Køle-fryseskabe'!O$29="nej",0,IF('Køle-fryseskabe'!O$35="ja",'Køle-fryseskabe'!O$36,'Køle-fryseskabe'!O$37))*(1+'Køle-fryseskabe'!O$60)^-$C147 -> 0 | P147: =O124 -> 0 | Q147: =R147*IF('Køle-fryseskabe'!Q$29="nej",0,IF('Køle-fryseskabe'!Q$35="ja",'Køle-fryseskabe'!Q$36,'Køle-fryseskabe'!Q$37))*(1+'Køle-fryseskabe'!Q$60)^-$C147 -> 0 | R147: =Q124 -> 0 | S147: =T147*IF('Køle-fryseskabe'!S$29="nej",0,IF('Køle-fryseskabe'!S$35="ja",'Køle-fryseskabe'!S$36,'Køle-fryseskabe'!S$37))*(1+'Køle-fryseskabe'!S$60)^-$C147 -> 0 | T147: =S124 -> 0
B148: 7 | C148: 7 | E148: =F148*IF('Køle-fryseskabe'!E$29="nej",0,IF('Køle-fryseskabe'!E$35="ja",'Køle-fryseskabe'!E$36,'Køle-fryseskabe'!E$37))*(1+'Køle-fryseskabe'!E$60)^-$C148 -> 0 | F148: 0 | G148: =H148*IF('Køle-fryseskabe'!G$29="nej",0,IF('Køle-fryseskabe'!G$35="ja",'Køle-fryseskabe'!G$36,'Køle-fryseskabe'!G$37))*(1+'Køle-fryseskabe'!G$60)^-$C148 -> 0 | H148: 0 | I148: =J148*IF('Køle-fryseskabe'!I$29="nej",0,IF('Køle-fryseskabe'!I$35="ja",'Køle-fryseskabe'!I$36,'Køle-fryseskabe'!I$37))*(1+'Køle-fryseskabe'!I$60)^-$C148 -> 0 | J148: =I125 -> 0 | K148: =L148*IF('Køle-fryseskabe'!K$29="nej",0,IF('Køle-fryseskabe'!K$35="ja",'Køle-fryseskabe'!K$36,'Køle-fryseskabe'!K$37))*(1+'Køle-fryseskabe'!K$60)^-$C148 -> 0 | L148: =K125 -> 0 | M148: =N148*IF('Køle-fryseskabe'!M$29="nej",0,IF('Køle-fryseskabe'!M$35="ja",'Køle-fryseskabe'!M$36,'Køle-fryseskabe'!M$37))*(1+'Køle-fryseskabe'!M$60)^-$C148 -> 0 | N148: =M125 -> 0 | O148: =P148*IF('Køle-fryseskabe'!O$29="nej",0,IF('Køle-fryseskabe'!O$35="ja",'Køle-fryseskabe'!O$36,'Køle-fryseskabe'!O$37))*(1+'Køle-fryseskabe'!O$60)^-$C148 -> 0 | P148: =O125 -> 0 | Q148: =R148*IF('Køle-fryseskabe'!Q$29="nej",0,IF('Køle-fryseskabe'!Q$35="ja",'Køle-fryseskabe'!Q$36,'Køle-fryseskabe'!Q$37))*(1+'Køle-fryseskabe'!Q$60)^-$C148 -> 0 | R148: =Q125 -> 0 | S148: =T148*IF('Køle-fryseskabe'!S$29="nej",0,IF('Køle-fryseskabe'!S$35="ja",'Køle-fryseskabe'!S$36,'Køle-fryseskabe'!S$37))*(1+'Køle-fryseskabe'!S$60)^-$C148 -> 0 | T148: =S125 -> 0
B149: 8 | C149: 8 | E149: =F149*IF('Køle-fryseskabe'!E$29="nej",0,IF('Køle-fryseskabe'!E$35="ja",'Køle-fryseskabe'!E$36,'Køle-fryseskabe'!E$37))*(1+'Køle-fryseskabe'!E$60)^-$C149 -> 0 | F149: 0 | G149: =H149*IF('Køle-fryseskabe'!G$29="nej",0,IF('Køle-fryseskabe'!G$35="ja",'Køle-fryseskabe'!G$36,'Køle-fryseskabe'!G$37))*(1+'Køle-fryseskabe'!G$60)^-$C149 -> 0 | H149: 0 | I149: =J149*IF('Køle-fryseskabe'!I$29="nej",0,IF('Køle-fryseskabe'!I$35="ja",'Køle-fryseskabe'!I$36,'Køle-fryseskabe'!I$37))*(1+'Køle-fryseskabe'!I$60)^-$C149 -> 0 | J149: =I126 -> 0 | K149: =L149*IF('Køle-fryseskabe'!K$29="nej",0,IF('Køle-fryseskabe'!K$35="ja",'Køle-fryseskabe'!K$36,'Køle-fryseskabe'!K$37))*(1+'Køle-fryseskabe'!K$60)^-$C149 -> 0 | L149: =K126 -> 0 | M149: =N149*IF('Køle-fryseskabe'!M$29="nej",0,IF('Køle-fryseskabe'!M$35="ja",'Køle-fryseskabe'!M$36,'Køle-fryseskabe'!M$37))*(1+'Køle-fryseskabe'!M$60)^-$C149 -> 0 | N149: =M126 -> 0 | O149: =P149*IF('Køle-fryseskabe'!O$29="nej",0,IF('Køle-fryseskabe'!O$35="ja",'Køle-fryseskabe'!O$36,'Køle-fryseskabe'!O$37))*(1+'Køle-fryseskabe'!O$60)^-$C149 -> 0 | P149: =O126 -> 0 | Q149: =R149*IF('Køle-fryseskabe'!Q$29="nej",0,IF('Køle-fryseskabe'!Q$35="ja",'Køle-fryseskabe'!Q$36,'Køle-fryseskabe'!Q$37))*(1+'Køle-fryseskabe'!Q$60)^-$C149 -> 0 | R149: =Q126 -> 0 | S149: =T149*IF('Køle-fryseskabe'!S$29="nej",0,IF('Køle-fryseskabe'!S$35="ja",'Køle-fryseskabe'!S$36,'Køle-fryseskabe'!S$37))*(1+'Køle-fryseskabe'!S$60)^-$C149 -> 0 | T149: =S126 -> 0
B150: 9 | C150: 9 | E150: =F150*IF('Køle-fryseskabe'!E$29="nej",0,IF('Køle-fryseskabe'!E$35="ja",'Køle-fryseskabe'!E$36,'Køle-fryseskabe'!E$37))*(1+'Køle-fryseskabe'!E$60)^-$C150 -> 0 | F150: 0 | G150: =H150*IF('Køle-fryseskabe'!G$29="nej",0,IF('Køle-fryseskabe'!G$35="ja",'Køle-fryseskabe'!G$36,'Køle-fryseskabe'!G$37))*(1+'Køle-fryseskabe'!G$60)^-$C150 -> 0 | H150: 0 | I150: =J150*IF('Køle-fryseskabe'!I$29="nej",0,IF('Køle-fryseskabe'!I$35="ja",'Køle-fryseskabe'!I$36,'Køle-fryseskabe'!I$37))*(1+'Køle-fryseskabe'!I$60)^-$C150 -> 0 | J150: =I127 -> 0 | K150: =L150*IF('Køle-fryseskabe'!K$29="nej",0,IF('Køle-fryseskabe'!K$35="ja",'Køle-fryseskabe'!K$36,'Køle-fryseskabe'!K$37))*(1+'Køle-fryseskabe'!K$60)^-$C150 -> 0 | L150: =K127 -> 0 | M150: =N150*IF('Køle-fryseskabe'!M$29="nej",0,IF('Køle-fryseskabe'!M$35="ja",'Køle-fryseskabe'!M$36,'Køle-fryseskabe'!M$37))*(1+'Køle-fryseskabe'!M$60)^-$C150 -> 0 | N150: =M127 -> 0 | O150: =P150*IF('Køle-fryseskabe'!O$29="nej",0,IF('Køle-fryseskabe'!O$35="ja",'Køle-fryseskabe'!O$36,'Køle-fryseskabe'!O$37))*(1+'Køle-fryseskabe'!O$60)^-$C150 -> 0 | P150: =O127 -> 0 | Q150: =R150*IF('Køle-fryseskabe'!Q$29="nej",0,IF('Køle-fryseskabe'!Q$35="ja",'Køle-fryseskabe'!Q$36,'Køle-fryseskabe'!Q$37))*(1+'Køle-fryseskabe'!Q$60)^-$C150 -> 0 | R150: =Q127 -> 0 | S150: =T150*IF('Køle-fryseskabe'!S$29="nej",0,IF('Køle-fryseskabe'!S$35="ja",'Køle-fryseskabe'!S$36,'Køle-fryseskabe'!S$37))*(1+'Køle-fryseskabe'!S$60)^-$C150 -> 0 | T150: =S127 -> 0
B151: 10 | C151: 10 | E151: =F151*IF('Køle-fryseskabe'!E$29="nej",0,IF('Køle-fryseskabe'!E$35="ja",'Køle-fryseskabe'!E$36,'Køle-fryseskabe'!E$37))*(1+'Køle-fryseskabe'!E$60)^-$C151 -> 0 | F151: 0 | G151: =H151*IF('Køle-fryseskabe'!G$29="nej",0,IF('Køle-fryseskabe'!G$35="ja",'Køle-fryseskabe'!G$36,'Køle-fryseskabe'!G$37))*(1+'Køle-fryseskabe'!G$60)^-$C151 -> 0 | H151: 0 | I151: =J151*IF('Køle-fryseskabe'!I$29="nej",0,IF('Køle-fryseskabe'!I$35="ja",'Køle-fryseskabe'!I$36,'Køle-fryseskabe'!I$37))*(1+'Køle-fryseskabe'!I$60)^-$C151 -> 0 | J151: =I128 -> 0 | K151: =L151*IF('Køle-fryseskabe'!K$29="nej",0,IF('Køle-fryseskabe'!K$35="ja",'Køle-fryseskabe'!K$36,'Køle-fryseskabe'!K$37))*(1+'Køle-fryseskabe'!K$60)^-$C151 -> 0 | L151: =K128 -> 0 | M151: =N151*IF('Køle-fryseskabe'!M$29="nej",0,IF('Køle-fryseskabe'!M$35="ja",'Køle-fryseskabe'!M$36,'Køle-fryseskabe'!M$37))*(1+'Køle-fryseskabe'!M$60)^-$C151 -> 0 | N151: =M128 -> 0 | O151: =P151*IF('Køle-fryseskabe'!O$29="nej",0,IF('Køle-fryseskabe'!O$35="ja",'Køle-fryseskabe'!O$36,'Køle-fryseskabe'!O$37))*(1+'Køle-fryseskabe'!O$60)^-$C151 -> 0 | P151: =O128 -> 0 | Q151: =R151*IF('Køle-fryseskabe'!Q$29="nej",0,IF('Køle-fryseskabe'!Q$35="ja",'Køle-fryseskabe'!Q$36,'Køle-fryseskabe'!Q$37))*(1+'Køle-fryseskabe'!Q$60)^-$C151 -> 0 | R151: =Q128 -> 0 | S151: =T151*IF('Køle-fryseskabe'!S$29="nej",0,IF('Køle-fryseskabe'!S$35="ja",'Køle-fryseskabe'!S$36,'Køle-fryseskabe'!S$37))*(1+'Køle-fryseskabe'!S$60)^-$C151 -> 0 | T151: =S128 -> 0
B152: 11 | C152: 11 | E152: =F152*IF('Køle-fryseskabe'!E$29="nej",0,IF('Køle-fryseskabe'!E$35="ja",'Køle-fryseskabe'!E$36,'Køle-fryseskabe'!E$37))*(1+'Køle-fryseskabe'!E$60)^-$C152 -> 0 | F152: 0 | G152: =H152*IF('Køle-fryseskabe'!G$29="nej",0,IF('Køle-fryseskabe'!G$35="ja",'Køle-fryseskabe'!G$36,'Køle-fryseskabe'!G$37))*(1+'Køle-fryseskabe'!G$60)^-$C152 -> 0 | H152: 0 | I152: =J152*IF('Køle-fryseskabe'!I$29="nej",0,IF('Køle-fryseskabe'!I$35="ja",'Køle-fryseskabe'!I$36,'Køle-fryseskabe'!I$37))*(1+'Køle-fryseskabe'!I$60)^-$C152 -> 0 | J152: =I129 -> 0 | K152: =L152*IF('Køle-fryseskabe'!K$29="nej",0,IF('Køle-fryseskabe'!K$35="ja",'Køle-fryseskabe'!K$36,'Køle-fryseskabe'!K$37))*(1+'Køle-fryseskabe'!K$60)^-$C152 -> 0 | L152: =K129 -> 0 | M152: =N152*IF('Køle-fryseskabe'!M$29="nej",0,IF('Køle-fryseskabe'!M$35="ja",'Køle-fryseskabe'!M$36,'Køle-fryseskabe'!M$37))*(1+'Køle-fryseskabe'!M$60)^-$C152 -> 0 | N152: =M129 -> 0 | O152: =P152*IF('Køle-fryseskabe'!O$29="nej",0,IF('Køle-fryseskabe'!O$35="ja",'Køle-fryseskabe'!O$36,'Køle-fryseskabe'!O$37))*(1+'Køle-fryseskabe'!O$60)^-$C152 -> 0 | P152: =O129 -> 0 | Q152: =R152*IF('Køle-fryseskabe'!Q$29="nej",0,IF('Køle-fryseskabe'!Q$35="ja",'Køle-fryseskabe'!Q$36,'Køle-fryseskabe'!Q$37))*(1+'Køle-fryseskabe'!Q$60)^-$C152 -> 0 | R152: =Q129 -> 0 | S152: =T152*IF('Køle-fryseskabe'!S$29="nej",0,IF('Køle-fryseskabe'!S$35="ja",'Køle-fryseskabe'!S$36,'Køle-fryseskabe'!S$37))*(1+'Køle-fryseskabe'!S$60)^-$C152 -> 0 | T152: =S129 -> 0
B153: 12 | C153: 12 | E153: =F153*IF('Køle-fryseskabe'!E$29="nej",0,IF('Køle-fryseskabe'!E$35="ja",'Køle-fryseskabe'!E$36,'Køle-fryseskabe'!E$37))*(1+'Køle-fryseskabe'!E$60)^-$C153 -> 0 | F153: 0 | G153: =H153*IF('Køle-fryseskabe'!G$29="nej",0,IF('Køle-fryseskabe'!G$35="ja",'Køle-fryseskabe'!G$36,'Køle-fryseskabe'!G$37))*(1+'Køle-fryseskabe'!G$60)^-$C153 -> 0 | H153: 0 | I153: =J153*IF('Køle-fryseskabe'!I$29="nej",0,IF('Køle-fryseskabe'!I$35="ja",'Køle-fryseskabe'!I$36,'Køle-fryseskabe'!I$37))*(1+'Køle-fryseskabe'!I$60)^-$C153 -> 0 | J153: =I130 -> 0 | K153: =L153*IF('Køle-fryseskabe'!K$29="nej",0,IF('Køle-fryseskabe'!K$35="ja",'Køle-fryseskabe'!K$36,'Køle-fryseskabe'!K$37))*(1+'Køle-fryseskabe'!K$60)^-$C153 -> 0 | L153: =K130 -> 0 | M153: =N153*IF('Køle-fryseskabe'!M$29="nej",0,IF('Køle-fryseskabe'!M$35="ja",'Køle-fryseskabe'!M$36,'Køle-fryseskabe'!M$37))*(1+'Køle-fryseskabe'!M$60)^-$C153 -> 0 | N153: =M130 -> 0 | O153: =P153*IF('Køle-fryseskabe'!O$29="nej",0,IF('Køle-fryseskabe'!O$35="ja",'Køle-fryseskabe'!O$36,'Køle-fryseskabe'!O$37))*(1+'Køle-fryseskabe'!O$60)^-$C153 -> 0 | P153: =O130 -> 0 | Q153: =R153*IF('Køle-fryseskabe'!Q$29="nej",0,IF('Køle-fryseskabe'!Q$35="ja",'Køle-fryseskabe'!Q$36,'Køle-fryseskabe'!Q$37))*(1+'Køle-fryseskabe'!Q$60)^-$C153 -> 0 | R153: =Q130 -> 0 | S153: =T153*IF('Køle-fryseskabe'!S$29="nej",0,IF('Køle-fryseskabe'!S$35="ja",'Køle-fryseskabe'!S$36,'Køle-fryseskabe'!S$37))*(1+'Køle-fryseskabe'!S$60)^-$C153 -> 0 | T153: =S130 -> 0
B154: 13 | C154: 13 | E154: =F154*IF('Køle-fryseskabe'!E$29="nej",0,IF('Køle-fryseskabe'!E$35="ja",'Køle-fryseskabe'!E$36,'Køle-fryseskabe'!E$37))*(1+'Køle-fryseskabe'!E$60)^-$C154 -> 0 | F154: 0 | G154: =H154*IF('Køle-fryseskabe'!G$29="nej",0,IF('Køle-fryseskabe'!G$35="ja",'Køle-fryseskabe'!G$36,'Køle-fryseskabe'!G$37))*(1+'Køle-fryseskabe'!G$60)^-$C154 -> 0 | H154: 0 | I154: =J154*IF('Køle-fryseskabe'!I$29="nej",0,IF('Køle-fryseskabe'!I$35="ja",'Køle-fryseskabe'!I$36,'Køle-fryseskabe'!I$37))*(1+'Køle-fryseskabe'!I$60)^-$C154 -> 0 | J154: =I131 -> 0 | K154: =L154*IF('Køle-fryseskabe'!K$29="nej",0,IF('Køle-fryseskabe'!K$35="ja",'Køle-fryseskabe'!K$36,'Køle-fryseskabe'!K$37))*(1+'Køle-fryseskabe'!K$60)^-$C154 -> 0 | L154: =K131 -> 0 | M154: =N154*IF('Køle-fryseskabe'!M$29="nej",0,IF('Køle-fryseskabe'!M$35="ja",'Køle-fryseskabe'!M$36,'Køle-fryseskabe'!M$37))*(1+'Køle-fryseskabe'!M$60)^-$C154 -> 0 | N154: =M131 -> 0 | O154: =P154*IF('Køle-fryseskabe'!O$29="nej",0,IF('Køle-fryseskabe'!O$35="ja",'Køle-fryseskabe'!O$36,'Køle-fryseskabe'!O$37))*(1+'Køle-fryseskabe'!O$60)^-$C154 -> 0 | P154: =O131 -> 0 | Q154: =R154*IF('Køle-fryseskabe'!Q$29="nej",0,IF('Køle-fryseskabe'!Q$35="ja",'Køle-fryseskabe'!Q$36,'Køle-fryseskabe'!Q$37))*(1+'Køle-fryseskabe'!Q$60)^-$C154 -> 0 | R154: =Q131 -> 0 | S154: =T154*IF('Køle-fryseskabe'!S$29="nej",0,IF('Køle-fryseskabe'!S$35="ja",'Køle-fryseskabe'!S$36,'Køle-fryseskabe'!S$37))*(1+'Køle-fryseskabe'!S$60)^-$C154 -> 0 | T154: =S131 -> 0
B155: 14 | C155: 14 | E155: =F155*IF('Køle-fryseskabe'!E$29="nej",0,IF('Køle-fryseskabe'!E$35="ja",'Køle-fryseskabe'!E$36,'Køle-fryseskabe'!E$37))*(1+'Køle-fryseskabe'!E$60)^-$C155 -> 0 | F155: 0 | G155: =H155*IF('Køle-fryseskabe'!G$29="nej",0,IF('Køle-fryseskabe'!G$35="ja",'Køle-fryseskabe'!G$36,'Køle-fryseskabe'!G$37))*(1+'Køle-fryseskabe'!G$60)^-$C155 -> 0 | H155: 0 | I155: =J155*IF('Køle-fryseskabe'!I$29="nej",0,IF('Køle-fryseskabe'!I$35="ja",'Køle-fryseskabe'!I$36,'Køle-fryseskabe'!I$37))*(1+'Køle-fryseskabe'!I$60)^-$C155 -> 0 | J155: =I132 -> 0 | K155: =L155*IF('Køle-fryseskabe'!K$29="nej",0,IF('Køle-fryseskabe'!K$35="ja",'Køle-fryseskabe'!K$36,'Køle-fryseskabe'!K$37))*(1+'Køle-fryseskabe'!K$60)^-$C155 -> 0 | L155: =K132 -> 0 | M155: =N155*IF('Køle-fryseskabe'!M$29="nej",0,IF('Køle-fryseskabe'!M$35="ja",'Køle-fryseskabe'!M$36,'Køle-fryseskabe'!M$37))*(1+'Køle-fryseskabe'!M$60)^-$C155 -> 0 | N155: =M132 -> 0 | O155: =P155*IF('Køle-fryseskabe'!O$29="nej",0,IF('Køle-fryseskabe'!O$35="ja",'Køle-fryseskabe'!O$36,'Køle-fryseskabe'!O$37))*(1+'Køle-fryseskabe'!O$60)^-$C155 -> 0 | P155: =O132 -> 0 | Q155: =R155*IF('Køle-fryseskabe'!Q$29="nej",0,IF('Køle-fryseskabe'!Q$35="ja",'Køle-fryseskabe'!Q$36,'Køle-fryseskabe'!Q$37))*(1+'Køle-fryseskabe'!Q$60)^-$C155 -> 0 | R155: =Q132 -> 0 | S155: =T155*IF('Køle-fryseskabe'!S$29="nej",0,IF('Køle-fryseskabe'!S$35="ja",'Køle-fryseskabe'!S$36,'Køle-fryseskabe'!S$37))*(1+'Køle-fryseskabe'!S$60)^-$C155 -> 0 | T155: =S132 -> 0
B156: 15 | C156: 15 | E156: =F156*IF('Køle-fryseskabe'!E$29="nej",0,IF('Køle-fryseskabe'!E$35="ja",'Køle-fryseskabe'!E$36,'Køle-fryseskabe'!E$37))*(1+'Køle-fryseskabe'!E$60)^-$C156 -> 0 | F156: 0 | G156: =H156*IF('Køle-fryseskabe'!G$29="nej",0,IF('Køle-fryseskabe'!G$35="ja",'Køle-fryseskabe'!G$36,'Køle-fryseskabe'!G$37))*(1+'Køle-fryseskabe'!G$60)^-$C156 -> 0 | H156: 0 | I156: =J156*IF('Køle-fryseskabe'!I$29="nej",0,IF('Køle-fryseskabe'!I$35="ja",'Køle-fryseskabe'!I$36,'Køle-fryseskabe'!I$37))*(1+'Køle-fryseskabe'!I$60)^-$C156 -> 0 | J156: =I133 -> 0 | K156: =L156*IF('Køle-fryseskabe'!K$29="nej",0,IF('Køle-fryseskabe'!K$35="ja",'Køle-fryseskabe'!K$36,'Køle-fryseskabe'!K$37))*(1+'Køle-fryseskabe'!K$60)^-$C156 -> 0 | L156: =K133 -> 0 | M156: =N156*IF('Køle-fryseskabe'!M$29="nej",0,IF('Køle-fryseskabe'!M$35="ja",'Køle-fryseskabe'!M$36,'Køle-fryseskabe'!M$37))*(1+'Køle-fryseskabe'!M$60)^-$C156 -> 0 | N156: =M133 -> 0 | O156: =P156*IF('Køle-fryseskabe'!O$29="nej",0,IF('Køle-fryseskabe'!O$35="ja",'Køle-fryseskabe'!O$36,'Køle-fryseskabe'!O$37))*(1+'Køle-fryseskabe'!O$60)^-$C156 -> 0 | P156: =O133 -> 0 | Q156: =R156*IF('Køle-fryseskabe'!Q$29="nej",0,IF('Køle-fryseskabe'!Q$35="ja",'Køle-fryseskabe'!Q$36,'Køle-fryseskabe'!Q$37))*(1+'Køle-fryseskabe'!Q$60)^-$C156 -> 0 | R156: =Q133 -> 0 | S156: =T156*IF('Køle-fryseskabe'!S$29="nej",0,IF('Køle-fryseskabe'!S$35="ja",'Køle-fryseskabe'!S$36,'Køle-fryseskabe'!S$37))*(1+'Køle-fryseskabe'!S$60)^-$C156 -> 0 | T156: =S133 -> 0
B157: 16 | C157: 16 | E157: =F157*IF('Køle-fryseskabe'!E$29="nej",0,IF('Køle-fryseskabe'!E$35="ja",'Køle-fryseskabe'!E$36,'Køle-fryseskabe'!E$37))*(1+'Køle-fryseskabe'!E$60)^-$C157 -> 0 | F157: 0 | G157: =H157*IF('Køle-fryseskabe'!G$29="nej",0,IF('Køle-fryseskabe'!G$35="ja",'Køle-fryseskabe'!G$36,'Køle-fryseskabe'!G$37))*(1+'Køle-fryseskabe'!G$60)^-$C157 -> 0 | H157: 0 | I157: =J157*IF('Køle-fryseskabe'!I$29="nej",0,IF('Køle-fryseskabe'!I$35="ja",'Køle-fryseskabe'!I$36,'Køle-fryseskabe'!I$37))*(1+'Køle-fryseskabe'!I$60)^-$C157 -> 0 | J157: =I134 -> 0 | K157: =L157*IF('Køle-fryseskabe'!K$29="nej",0,IF('Køle-fryseskabe'!K$35="ja",'Køle-fryseskabe'!K$36,'Køle-fryseskabe'!K$37))*(1+'Køle-fryseskabe'!K$60)^-$C157 -> 0 | L157: =K134 -> 0 | M157: =N157*IF('Køle-fryseskabe'!M$29="nej",0,IF('Køle-fryseskabe'!M$35="ja",'Køle-fryseskabe'!M$36,'Køle-fryseskabe'!M$37))*(1+'Køle-fryseskabe'!M$60)^-$C157 -> 0 | N157: =M134 -> 0 | O157: =P157*IF('Køle-fryseskabe'!O$29="nej",0,IF('Køle-fryseskabe'!O$35="ja",'Køle-fryseskabe'!O$36,'Køle-fryseskabe'!O$37))*(1+'Køle-fryseskabe'!O$60)^-$C157 -> 0 | P157: =O134 -> 0 | Q157: =R157*IF('Køle-fryseskabe'!Q$29="nej",0,IF('Køle-fryseskabe'!Q$35="ja",'Køle-fryseskabe'!Q$36,'Køle-fryseskabe'!Q$37))*(1+'Køle-fryseskabe'!Q$60)^-$C157 -> 0 | R157: =Q134 -> 0 | S157: =T157*IF('Køle-fryseskabe'!S$29="nej",0,IF('Køle-fryseskabe'!S$35="ja",'Køle-fryseskabe'!S$36,'Køle-fryseskabe'!S$37))*(1+'Køle-fryseskabe'!S$60)^-$C157 -> 0 | T157: =S134 -> 0
B158: 17 | C158: 17 | E158: =F158*IF('Køle-fryseskabe'!E$29="nej",0,IF('Køle-fryseskabe'!E$35="ja",'Køle-fryseskabe'!E$36,'Køle-fryseskabe'!E$37))*(1+'Køle-fryseskabe'!E$60)^-$C158 -> 0 | F158: 0 | G158: =H158*IF('Køle-fryseskabe'!G$29="nej",0,IF('Køle-fryseskabe'!G$35="ja",'Køle-fryseskabe'!G$36,'Køle-fryseskabe'!G$37))*(1+'Køle-fryseskabe'!G$60)^-$C158 -> 0 | H158: 0 | I158: =J158*IF('Køle-fryseskabe'!I$29="nej",0,IF('Køle-fryseskabe'!I$35="ja",'Køle-fryseskabe'!I$36,'Køle-fryseskabe'!I$37))*(1+'Køle-fryseskabe'!I$60)^-$C158 -> 0 | J158: =I135 -> 0 | K158: =L158*IF('Køle-fryseskabe'!K$29="nej",0,IF('Køle-fryseskabe'!K$35="ja",'Køle-fryseskabe'!K$36,'Køle-fryseskabe'!K$37))*(1+'Køle-fryseskabe'!K$60)^-$C158 -> 0 | L158: =K135 -> 0 | M158: =N158*IF('Køle-fryseskabe'!M$29="nej",0,IF('Køle-fryseskabe'!M$35="ja",'Køle-fryseskabe'!M$36,'Køle-fryseskabe'!M$37))*(1+'Køle-fryseskabe'!M$60)^-$C158 -> 0 | N158: =M135 -> 0 | O158: =P158*IF('Køle-fryseskabe'!O$29="nej",0,IF('Køle-fryseskabe'!O$35="ja",'Køle-fryseskabe'!O$36,'Køle-fryseskabe'!O$37))*(1+'Køle-fryseskabe'!O$60)^-$C158 -> 0 | P158: =O135 -> 0 | Q158: =R158*IF('Køle-fryseskabe'!Q$29="nej",0,IF('Køle-fryseskabe'!Q$35="ja",'Køle-fryseskabe'!Q$36,'Køle-fryseskabe'!Q$37))*(1+'Køle-fryseskabe'!Q$60)^-$C158 -> 0 | R158: =Q135 -> 0 | S158: =T158*IF('Køle-fryseskabe'!S$29="nej",0,IF('Køle-fryseskabe'!S$35="ja",'Køle-fryseskabe'!S$36,'Køle-fryseskabe'!S$37))*(1+'Køle-fryseskabe'!S$60)^-$C158 -> 0 | T158: =S135 -> 0
B159: 18 | C159: 18 | E159: =F159*IF('Køle-fryseskabe'!E$29="nej",0,IF('Køle-fryseskabe'!E$35="ja",'Køle-fryseskabe'!E$36,'Køle-fryseskabe'!E$37))*(1+'Køle-fryseskabe'!E$60)^-$C159 -> 0 | F159: 0 | G159: =H159*IF('Køle-fryseskabe'!G$29="nej",0,IF('Køle-fryseskabe'!G$35="ja",'Køle-fryseskabe'!G$36,'Køle-fryseskabe'!G$37))*(1+'Køle-fryseskabe'!G$60)^-$C159 -> 0 | H159: 0 | I159: =J159*IF('Køle-fryseskabe'!I$29="nej",0,IF('Køle-fryseskabe'!I$35="ja",'Køle-fryseskabe'!I$36,'Køle-fryseskabe'!I$37))*(1+'Køle-fryseskabe'!I$60)^-$C159 -> 0 | J159: =I136 -> 0 | K159: =L159*IF('Køle-fryseskabe'!K$29="nej",0,IF('Køle-fryseskabe'!K$35="ja",'Køle-fryseskabe'!K$36,'Køle-fryseskabe'!K$37))*(1+'Køle-fryseskabe'!K$60)^-$C159 -> 0 | L159: =K136 -> 0 | M159: =N159*IF('Køle-fryseskabe'!M$29="nej",0,IF('Køle-fryseskabe'!M$35="ja",'Køle-fryseskabe'!M$36,'Køle-fryseskabe'!M$37))*(1+'Køle-fryseskabe'!M$60)^-$C159 -> 0 | N159: =M136 -> 0 | O159: =P159*IF('Køle-fryseskabe'!O$29="nej",0,IF('Køle-fryseskabe'!O$35="ja",'Køle-fryseskabe'!O$36,'Køle-fryseskabe'!O$37))*(1+'Køle-fryseskabe'!O$60)^-$C159 -> 0 | P159: =O136 -> 0 | Q159: =R159*IF('Køle-fryseskabe'!Q$29="nej",0,IF('Køle-fryseskabe'!Q$35="ja",'Køle-fryseskabe'!Q$36,'Køle-fryseskabe'!Q$37))*(1+'Køle-fryseskabe'!Q$60)^-$C159 -> 0 | R159: =Q136 -> 0 | S159: =T159*IF('Køle-fryseskabe'!S$29="nej",0,IF('Køle-fryseskabe'!S$35="ja",'Køle-fryseskabe'!S$36,'Køle-fryseskabe'!S$37))*(1+'Køle-fryseskabe'!S$60)^-$C159 -> 0 | T159: =S136 -> 0
B160: 19 | C160: 19 | E160: =F160*IF('Køle-fryseskabe'!E$29="nej",0,IF('Køle-fryseskabe'!E$35="ja",'Køle-fryseskabe'!E$36,'Køle-fryseskabe'!E$37))*(1+'Køle-fryseskabe'!E$60)^-$C160 -> 0 | F160: 0 | G160: =H160*IF('Køle-fryseskabe'!G$29="nej",0,IF('Køle-fryseskabe'!G$35="ja",'Køle-fryseskabe'!G$36,'Køle-fryseskabe'!G$37))*(1+'Køle-fryseskabe'!G$60)^-$C160 -> 0 | H160: 0 | I160: =J160*IF('Køle-fryseskabe'!I$29="nej",0,IF('Køle-fryseskabe'!I$35="ja",'Køle-fryseskabe'!I$36,'Køle-fryseskabe'!I$37))*(1+'Køle-fryseskabe'!I$60)^-$C160 -> 0 | J160: =I137 -> 0 | K160: =L160*IF('Køle-fryseskabe'!K$29="nej",0,IF('Køle-fryseskabe'!K$35="ja",'Køle-fryseskabe'!K$36,'Køle-fryseskabe'!K$37))*(1+'Køle-fryseskabe'!K$60)^-$C160 -> 0 | L160: =K137 -> 0 | M160: =N160*IF('Køle-fryseskabe'!M$29="nej",0,IF('Køle-fryseskabe'!M$35="ja",'Køle-fryseskabe'!M$36,'Køle-fryseskabe'!M$37))*(1+'Køle-fryseskabe'!M$60)^-$C160 -> 0 | N160: =M137 -> 0 | O160: =P160*IF('Køle-fryseskabe'!O$29="nej",0,IF('Køle-fryseskabe'!O$35="ja",'Køle-fryseskabe'!O$36,'Køle-fryseskabe'!O$37))*(1+'Køle-fryseskabe'!O$60)^-$C160 -> 0 | P160: =O137 -> 0 | Q160: =R160*IF('Køle-fryseskabe'!Q$29="nej",0,IF('Køle-fryseskabe'!Q$35="ja",'Køle-fryseskabe'!Q$36,'Køle-fryseskabe'!Q$37))*(1+'Køle-fryseskabe'!Q$60)^-$C160 -> 0 | R160: =Q137 -> 0 | S160: =T160*IF('Køle-fryseskabe'!S$29="nej",0,IF('Køle-fryseskabe'!S$35="ja",'Køle-fryseskabe'!S$36,'Køle-fryseskabe'!S$37))*(1+'Køle-fryseskabe'!S$60)^-$C160 -> 0 | T160: =S137 -> 0
B161: 20 | C161: 20 | E161: =F161*IF('Køle-fryseskabe'!E$29="nej",0,IF('Køle-fryseskabe'!E$35="ja",'Køle-fryseskabe'!E$36,'Køle-fryseskabe'!E$37))*(1+'Køle-fryseskabe'!E$60)^-$C161 -> 0 | F161: 0 | G161: =H161*IF('Køle-fryseskabe'!G$29="nej",0,IF('Køle-fryseskabe'!G$35="ja",'Køle-fryseskabe'!G$36,'Køle-fryseskabe'!G$37))*(1+'Køle-fryseskabe'!G$60)^-$C161 -> 0 | H161: 0 | I161: =J161*IF('Køle-fryseskabe'!I$29="nej",0,IF('Køle-fryseskabe'!I$35="ja",'Køle-fryseskabe'!I$36,'Køle-fryseskabe'!I$37))*(1+'Køle-fryseskabe'!I$60)^-$C161 -> 0 | J161: =I138 -> 0 | K161: =L161*IF('Køle-fryseskabe'!K$29="nej",0,IF('Køle-fryseskabe'!K$35="ja",'Køle-fryseskabe'!K$36,'Køle-fryseskabe'!K$37))*(1+'Køle-fryseskabe'!K$60)^-$C161 -> 0 | L161: =K138 -> 0 | M161: =N161*IF('Køle-fryseskabe'!M$29="nej",0,IF('Køle-fryseskabe'!M$35="ja",'Køle-fryseskabe'!M$36,'Køle-fryseskabe'!M$37))*(1+'Køle-fryseskabe'!M$60)^-$C161 -> 0 | N161: =M138 -> 0 | O161: =P161*IF('Køle-fryseskabe'!O$29="nej",0,IF('Køle-fryseskabe'!O$35="ja",'Køle-fryseskabe'!O$36,'Køle-fryseskabe'!O$37))*(1+'Køle-fryseskabe'!O$60)^-$C161 -> 0 | P161: =O138 -> 0 | Q161: =R161*IF('Køle-fryseskabe'!Q$29="nej",0,IF('Køle-fryseskabe'!Q$35="ja",'Køle-fryseskabe'!Q$36,'Køle-fryseskabe'!Q$37))*(1+'Køle-fryseskabe'!Q$60)^-$C161 -> 0 | R161: =Q138 -> 0 | S161: =T161*IF('Køle-fryseskabe'!S$29="nej",0,IF('Køle-fryseskabe'!S$35="ja",'Køle-fryseskabe'!S$36,'Køle-fryseskabe'!S$37))*(1+'Køle-fryseskabe'!S$60)^-$C161 -> 0 | T161: =S138 -> 0

Sheet Køle-frys (1 - 200 produkter)
A3: 1 Ordregiver: Baggrundsdata | B3: Årstal for evalueringsperiodens påbegyndelse | D3: Årstal | E3: 2021
B4: Evalueringsperiode | D4: år | E4: 10
B6: Anvendelse af standardelpriser med gennemsnitlig fremskrivning? | D6: Ja/nej (drop-down) | E6: Ja
E7: Standardværdi | F7: Egen værdi
B8: Elpris (inkl. afgifter og ekskl. moms) | D8: kr./kWh | E8: =VLOOKUP(E3,Fremskrivninger!$A$9:$C$38,3) -> 1.851
B9: Elprisstigning (årligt, ud over inflation) | D9: %/år | E9: 0.01671037391
B11: Anvendelse af standard diskonteringsrente og interne service-omkostninger? | D11: Ja/nej (drop-down) | E11: Ja
E12: Standardværdi | F12: Egen værdi
B13: Diskonteringsrente | D13: %/år | E13: 0.035
B14: Intern serviceomkostning - service & support | D14: kr./stk./år
A16: 3 Ordregiver: Værdisætning af samfundsøkonomiske omkostninger ved eksterne virkninger på miljøet | B16: Skal de eksterne virkninger på miljøet inkluderes i denne TCO-beregning? | E16: Ja
B18: Anvendelse af standard-CO2-emissionsfaktor for elforbrug? | D18: Ja/nej (drop-down) | E18: Ja
E19: Standardværdi | F19: Egen værdi
B20: Emissionsfaktor for elforbrug | D20: kg CO2e/kWh | E20: =VLOOKUP(E3,Fremskrivninger!$A$9:$L$38,12) -> 0.089 | F20: 0
B22: Anvendelse af standard-værdisætning af samfundsøkonomiske omkostninger? | D22: Ja/nej (drop-down) | E22: Ja
E23: Standardværdi | F23: Egen værdi
B24: Værdi for CO2e-omkostninger pr. ton CO2e | D24: Kr./ton CO2e | E24: 1500 | F24: 0
A27: 5 Resultater (overblik) | C27: Samlet beløb (kr.) | D27: Gennemsnitlige omkostninger pr. år (kr./år) | E27: ID | F27: Produktnavn
B28: TCO inkl. værdisætning af eksterne virkninger på miljøet
B29: Billigste bud | C29: =SMALL($Y$50:$Y$323,COUNTIF($Y$50:$Y$323,0)+1) ->  | D29: =INDEX($A$50:$AA$323,MATCH(C29,$Y$50:$Y$369,0),26) ->  | E29: =INDEX($A$50:$AA$323,MATCH($C29&$D29,$Y$50:$Y$323&$Z$50:$Z$323,0),1) ->  | F29: =VLOOKUP(E29,$A$50:$B$323,2) -> 
B30: 2. billigste bud | C30: =SMALL($Y$50:$Y$323,COUNTIF($Y$50:$Y$323,0)+2) ->  | D30: =INDEX($A$50:$AA$323,MATCH(C30,$Y$50:$Y$369,0),26) ->  | E30: =INDEX($A$50:$AA$323,MATCH($C30&$D30,$Y$50:$Y$323&$Z$50:$Z$323,0),1) ->  | F30: =VLOOKUP(E30,$A$50:$B$323,2) -> 
B31: 3. billigste bud | C31: =SMALL($Y$50:$Y$323,COUNTIF($Y$50:$Y$323,0)+3) ->  | D31: =INDEX($A$50:$AA$323,MATCH(C31,$Y$50:$Y$369,0),26) ->  | E31: =INDEX($A$50:$AA$323,MATCH($C31&$D31,$Y$50:$Y$323&$Z$50:$Z$323,0),1) ->  | F31: =VLOOKUP(E31,$A$50:$B$323,2) -> 
B32: 4. billigste bud | C32: =SMALL($Y$50:$Y$323,COUNTIF($Y$50:$Y$323,0)+4) ->  | D32: =INDEX($A$50:$AA$323,MATCH(C32,$Y$50:$Y$369,0),26) ->  | E32: =INDEX($A$50:$AA$323,MATCH($C32&$D32,$Y$50:$Y$323&$Z$50:$Z$323,0),1) ->  | F32: =VLOOKUP(E32,$A$50:$B$323,2) -> 
B33: 5. billigste bud | C33: =SMALL($Y$50:$Y$323,COUNTIF($Y$50:$Y$323,0)+5) ->  | D33: =INDEX($A$50:$AA$323,MATCH(C33,$Y$50:$Y$369,0),26) ->  | E33: =INDEX($A$50:$AA$323,MATCH($C33&$D33,$Y$50:$Y$323&$Z$50:$Z$323,0),1) ->  | F33: =VLOOKUP(E33,$A$50:$B$323,2) -> 
C34: Tons CO2e | D34: Gennemsnitlige omkostninger pr. år (kr./år) | E34: ID | F34: Produktnavn
B35: Mindste eksterne virkning på miljøet
B37: Laveste emission | C37: =SMALL($AA$50:$AA$379,COUNTIF($AA$50:$AA$323,0)+1) ->  | D37: =INDEX($A$50:$AA$323,MATCH(C37,$AA$50:$AA$369,0),26) ->  | E37: =INDEX($A$50:$AA$323,MATCH(C37,$AA$50:$AA$369,0),1) ->  | F37: =VLOOKUP(E37,$A$50:$B$323,2) -> 
B38: 2. laveste emission | C38: =SMALL($AA$50:$AA$379,COUNTIF($AA$50:$AA$323,0)+2) ->  | D38: =INDEX($A$50:$AA$323,MATCH(C38,$AA$50:$AA$369,0),26) ->  | E38: =INDEX($A$50:$AA$323,MATCH(C38,$AA$50:$AA$369,0),1) ->  | F38: =VLOOKUP(E38,$A$50:$B$323,2) -> 
B39: 3. laveste emission | C39: =SMALL($AA$50:$AA$379,COUNTIF($AA$50:$AA$323,0)+3) ->  | D39: =INDEX($A$50:$AA$323,MATCH(C39,$AA$50:$AA$369,0),26) ->  | E39: =INDEX($A$50:$AA$323,MATCH(C39,$AA$50:$AA$369,0),1) ->  | F39: =VLOOKUP(E39,$A$50:$B$323,2) -> 
B40: 4. laveste emission | C40: =SMALL($AA$50:$AA$379,COUNTIF($AA$50:$AA$323,0)+4) ->  | D40: =INDEX($A$50:$AA$323,MATCH(C40,$AA$50:$AA$369,0),26) ->  | E40: =INDEX($A$50:$AA$323,MATCH(C40,$AA$50:$AA$369,0),1) ->  | F40: =VLOOKUP(E40,$A$50:$B$323,2) -> 
B41: 5. laveste emission | C41: =SMALL($AA$50:$AA$379,COUNTIF($AA$50:$AA$323,0)+5) ->  | D41: =INDEX($A$50:$AA$323,MATCH(C41,$AA$50:$AA$369,0),26) ->  | E41: =INDEX($A$50:$AA$323,MATCH(C41,$AA$50:$AA$369,0),1) ->  | F41: =VLOOKUP(E41,$A$50:$B$323,2) -> 
A44: 4 Tilbudsgiver: Oplysninger om produktet | F44: 1 Ordregiver: Baggrundsdata | H44: 2 Ordregiver: Oplysninger om brugen | L44: 4 Tilbudsgiver: Oplysninger om produktet | T44: 5 Resultater
A46: Indledende beskrivelse | F46: Efterbrug | H46: Brug | J46: Aftalelængde | L46: Indkøbsomkostninger | N46: Driftsomkostninger | P46: Service, vedligeholdelse og løbende omkostninger | R46: Årligt forbrug (interne beregninger) | S46: Efterbrug | T46: Omkostningsposter | Y46: TCO (nutidsværdi inkl. værdisætning af ekstern virkning på miljøet) | AA46: Samlet eksterne virkninger på miljøet
A49: ID | B49: Produktnavn | C49: Produktbeskrivelse | E49: Varenr. | F49: Efterbrugsindtægts (gensalgspris) andel af investering (%) | G49: Efterbrugsomkostninger (transport, lønomkostninger mv.) (kr/stk) | H49: Antal (stk.) | I49: Antal brugsdage pr. år (dage) | J49: Serviceaftale-periode, jf. kravspecifikation (serviceomkostning) (antal år) | K49: Leasingaftale-periode, jf. kravspecifikation (driftsomkostning) (antal år) | L49: Indkøbspris (kr./produkt) | M49: Installationsomkostninger jf. kravspecifikation (kr./produkt) | N49: Skabets indvendige volumen (m3/produkt) | O49: Elforbrug (kWh/24timer/produkt) | P49: Pris for serviceaftale jf. kravspecifikationen (kr./år/produkt) | Q49: Evt. betaling for leje, leasing, licens eller abonnement jf. kravspecifikationen (kr./år/produkt) | R49: Årlig elforbrug (kWh/år) | S49: Bliver produktet taget tilbage uden mulighed for gensalg og uden omkostninger? | T49: Investeringsomkostninger i alt (kr.) | U49: Driftsomkostninger i alt (kr.) | V49: Service, vedligehold og løbende omkostninger I alt (kr.) | W49: Efterbrug, omkostninger og indtægter i alt (kr.) | X49: Samfundsøkonomiske omkostninger fra udledningerne i brugsfasen. (kr.) | Y49: TCO (nutidsværdi inkl. ekstern virkning på miljøet) (kr.) | Z49: Gennemsnitlige årlige omkostninger (kr./år) | AA49: Samlet udledning fra brugsfasen (tons CO2e)
A50: 1 | R50: =I50*O50 -> 0 | S50: Klik for at vælge | T50: =IFERROR((L50+M50)*H50,0) -> 0 | U50: =SUMIFS('IB - 1-200 produkter'!H$5:H$19,'IB - 1-200 produkter'!$E$5:$E$19,"<="&$E$4) -> 0 | V50: =SUMIFS('IB - 1-200 produkter'!I$5:I$19,'IB - 1-200 produkter'!$E$5:$E$19,"<="&$E$4) -> 0 | W50: =IF(S50="nej",(-F50*L50+G50)*H50*(1+IF($E$11="ja",$E$13,$F$13))^-$E$4,0) -> 0 | X50: =IF($E$16="Ja",SUMIFS('IB - 1-200 produkter'!$M$5:$M$19,'IB - 1-200 produkter'!$E$5:$E$19,"<="&$E$4),0) -> 0 | Y50: =IFERROR(T50+U50+V50+W50+X50,0) -> 0 | Z50: =PMT(IF($E$6="nej",$F$13,$E$13),$E$4,-(Y50)) -> 0 | AA50: =SUMIFS('IB - 1-200 produkter'!$L$5:$L$19,'IB - 1-200 produkter'!$E$5:$E$19,"<="&$E$4) -> 0
A51: 2 | R51: =I51*O51 -> 0 | S51: Klik for at vælge | T51: =IFERROR((L51+M51)*H51,0) -> 0 | U51: =SUMIFS('IB - 1-200 produkter'!H$25:H$39,'IB - 1-200 produkter'!$E25:$E39,"<="&$E$4) -> 0 | V51: =SUMIFS('IB - 1-200 produkter'!I$25:I$39,'IB - 1-200 produkter'!$E25:$E39,"<="&$E$4) -> 0 | W51: =IF(S51="nej",(-F51*L51+G51)*H51*(1+IF($E$11="ja",$E$13,$F$13))^-$E$4,0) -> 0 | X51: =IF($E$16="Ja",SUMIFS('IB - 1-200 produkter'!$M$25:$M$39,'IB - 1-200 produkter'!$E$25:$E$39,"<="&$E$4),0) -> 0 | Y51: =IFERROR(T51+U51+V51+W51+X51,0) -> 0 | Z51: =PMT(IF($E$6="nej",$F$13,$E$13),$E$4,-(Y51)) -> 0 | AA51: =SUMIFS('IB - 1-200 produkter'!$L$25:$L$39,'IB - 1-200 produkter'!$E$25:$E$39,"<="&$E$4) -> 0
A52: 3 | R52: 0 | S52: Klik for at vælge | T52: 0 | U52: =SUMIFS('IB - 1-200 produkter'!H$45:H$59,'IB - 1-200 produkter'!$E45:$E59,"<="&$E$4) -> 0 | V52: =SUMIFS('IB - 1-200 produkter'!I$45:I$59,'IB - 1-200 produkter'!$E45:$E59,"<="&$E$4) -> 0 | W52: 0 | X52: =IF($E$16="Ja",SUMIFS('IB - 1-200 produkter'!$M$45:$M$59,'IB - 1-200 produkter'!$E$45:$E$59,"<="&$E$4),0) -> 0 | Y52: =IFERROR(T52+U52+V52+W52+X52,0) -> 0 | Z52: 0 | AA52: =SUMIFS('IB - 1-200 produkter'!$L$45:$L$59,'IB - 1-200 produkter'!$E$45:$E$59,"<="&$E$4) -> 0
A53: 4 | R53: 0 | S53: Klik for at vælge | T53: 0 | U53: =SUMIFS('IB - 1-200 produkter'!H$65:H$79,'IB - 1-200 produkter'!$E65:$E79,"<="&$E$4) -> 0 | V53: =SUMIFS('IB - 1-200 produkter'!I$65:I$79,'IB - 1-200 produkter'!$E65:$E79,"<="&$E$4) -> 0 | W53: 0 | X53: =IF($E$16="Ja",SUMIFS('IB - 1-200 produkter'!$M$65:$M$79,'IB - 1-200 produkter'!$E$65:$E$79,"<="&$E$4),0) -> 0 | Y53: 0 | Z53: 0 | AA53: =SUMIFS('IB - 1-200 produkter'!$L$65:$L$79,'IB - 1-200 produkter'!$E$65:$E$79,"<="&$E$4) -> 0
A54: 5 | R54: 0 | S54: Klik for at vælge | T54: 0 | U54: =SUMIFS('IB - 1-200 produkter'!H$85:H$99,'IB - 1-200 produkter'!$E85:$E99,"<="&$E$4) -> 0 | V54: =SUMIFS('IB - 1-200 produkter'!I$85:I$99,'IB - 1-200 produkter'!$E85:$E99,"<="&$E$4) -> 0 | W54: 0 | X54: =IF($E$16="Ja",SUMIFS('IB - 1-200 produkter'!$M$85:$M$99,'IB - 1-200 produkter'!$E$85:$E$99,"<="&$E$4),0) -> 0 | Y54: 0 | Z54: 0 | AA54: =SUMIFS('IB - 1-200 produkter'!$L$85:$L$99,'IB - 1-200 produkter'!$E$85:$E$99,"<="&$E$4) -> 0
A55: 6 | R55: 0 | S55: Klik for at vælge | T55: 0 | U55: =SUMIFS('IB - 1-200 produkter'!H$105:H$119,'IB - 1-200 produkter'!$E105:$E119,"<="&$E$4) -> 0 | V55: =SUMIFS('IB - 1-200 produkter'!I$105:I$119,'IB - 1-200 produkter'!$E105:$E119,"<="&$E$4) -> 0 | W55: 0 | X55: =IF($E$16="Ja",SUMIFS('IB - 1-200 produkter'!$M$105:$M$119,'IB - 1-200 produkter'!$E$105:$E$119,"<="&$E$4),0) -> 0 | Y55: 0 | Z55: 0 | AA55: =SUMIFS('IB - 1-200 produkter'!$L$105:$L$119,'IB - 1-200 produkter'!$E$105:$E$119,"<="&$E$4) -> 0
A56: 7 | R56: 0 | S56: Klik for at vælge | T56: 0 | U56: =SUMIFS('IB - 1-200 produkter'!H125:H139,'IB - 1-200 produkter'!$E125:$E139,"<="&$E$4) -> 0 | V56: =SUMIFS('IB - 1-200 produkter'!I125:I139,'IB - 1-200 produkter'!$E125:$E139,"<="&$E$4) -> 0 | W56: 0 | X56: =IF($E$16="Ja",SUMIFS('IB - 1-200 produkter'!$M$125:$M$139,'IB - 1-200 produkter'!$E$125:$E$139,"<="&$E$4),0) -> 0 | Y56: 0 | Z56: 0 | AA56: =SUMIFS('IB - 1-200 produkter'!$L$125:$L$139,'IB - 1-200 produkter'!$E$125:$E$139,"<="&$E$4) -> 0
A57: 8 | R57: 0 | S57: Klik for at vælge | T57: 0 | U57: =SUMIFS('IB - 1-200 produkter'!H$145:H159,'IB - 1-200 produkter'!$E145:$E159,"<="&$E$4) -> 0 | V57: =SUMIFS('IB - 1-200 produkter'!I$145:I159,'IB - 1-200 produkter'!$E145:$E159,"<="&$E$4) -> 0 | W57: 0 | X57: =IF($E$16="Ja",SUMIFS('IB - 1-200 produkter'!$M$145:$M$159,'IB - 1-200 produkter'!$E$145:$E$159,"<="&$E$4),0) -> 0 | Y57: 0 | Z57: 0 | AA57: =SUMIFS('IB - 1-200 produkter'!$L$145:$L$159,'IB - 1-200 produkter'!$E$145:$E$159,"<="&$E$4) -> 0
A58: 9 | R58: 0 | S58: Klik for at vælge | T58: 0 | U58: =SUMIFS('IB - 1-200 produkter'!H$165:H$179,'IB - 1-200 produkter'!$E165:$E179,"<="&$E$4) -> 0 | V58: =SUMIFS('IB - 1-200 produkter'!I$165:I$179,'IB - 1-200 produkter'!$E165:$E179,"<="&$E$4) -> 0 | W58: 0 | X58: =IF($E$16="Ja",SUMIFS('IB - 1-200 produkter'!$M$165:$M$179,'IB - 1-200 produkter'!$E$165:$E$179,"<="&$E$4),0) -> 0 | Y58: 0 | Z58: 0 | AA58: =SUMIFS('IB - 1-200 produkter'!$L$165:$L$179,'IB - 1-200 produkter'!$E$165:$E$179,"<="&$E$4) -> 0
A59: 10 | R59: 0 | S59: Klik for at vælge | T59: 0 | U59: =SUMIFS('IB - 1-200 produkter'!H$185:H$199,'IB - 1-200 produkter'!$E185:$E199,"<="&$E$4) -> 0 | V59: =SUMIFS('IB - 1-200 produkter'!I$185:I$199,'IB - 1-200 produkter'!$E185:$E199,"<="&$E$4) -> 0 | W59: 0 | X59: =IF($E$16="Ja",SUMIFS('IB - 1-200 produkter'!$M$185:$M$199,'IB - 1-200 produkter'!$E$185:$E$199,"<="&$E$4),0) -> 0 | Y59: 0 | Z59: 0 | AA59: =SUMIFS('IB - 1-200 produkter'!$L$185:$L$199,'IB - 1-200 produkter'!$E$185:$E$199,"<="&$E$4) -> 0
A60: 11 | R60: 0 | S60: Klik for at vælge | T60: 0 | U60: =SUMIFS('IB - 1-200 produkter'!H205:H219,'IB - 1-200 produkter'!$E205:$E219,"<="&$E$4) -> 0 | V60: =SUMIFS('IB - 1-200 produkter'!I205:I219,'IB - 1-200 produkter'!$E205:$E219,"<="&$E$4) -> 0 | W60: 0 | X60: =IF($E$16="Ja",SUMIFS('IB - 1-200 produkter'!$M$205:$M$219,'IB - 1-200 produkter'!$E$205:$E$219,"<="&$E$4),0) -> 0 | Y60: 0 | Z60: 0 | AA60: =SUMIFS('IB - 1-200 produkter'!$L$205:$L$219,'IB - 1-200 produkter'!$E$205:$E$219,"<="&$E$4) -> 0
A61: 12 | R61: 0 | S61: Klik for at vælge | T61: 0 | U61: =SUMIFS('IB - 1-200 produkter'!H225:H239,'IB - 1-200 produkter'!$E225:$E239,"<="&$E$4) -> 0 | V61: =SUMIFS('IB - 1-200 produkter'!I225:I239,'IB - 1-200 produkter'!$E225:$E239,"<="&$E$4) -> 0 | W61: 0 | X61: =IF($E$16="Ja",SUMIFS('IB - 1-200 produkter'!$M$225:$M$239,'IB - 1-200 produkter'!$E$225:$E$239,"<="&$E$4),0) -> 0 | Y61: 0 | Z61: 0 | AA61: =SUMIFS('IB - 1-200 produkter'!$L$225:$L$239,'IB - 1-200 produkter'!$E$225:$E$239,"<="&$E$4) -> 0
A62: 13 | R62: 0 | S62: Klik for at vælge | T62: 0 | U62: =SUMIFS('IB - 1-200 produkter'!H245:H259,'IB - 1-200 produkter'!$E245:$E259,"<="&$E$4) -> 0 | V62: =SUMIFS('IB - 1-200 produkter'!I245:I259,'IB - 1-200 produkter'!$E245:$E259,"<="&$E$4) -> 0 | W62: 0 | X62: =IF($E$16="Ja",SUMIFS('IB - 1-200 produkter'!$M$245:$M$259,'IB - 1-200 produkter'!$E$245:$E$259,"<="&$E$4),0) -> 0 | Y62: 0 | Z62: 0 | AA62: =SUMIFS('IB - 1-200 produkter'!$L$245:$L$259,'IB - 1-200 produkter'!$E$245:$E$259,"<="&$E$4) -> 0
A63: 14 | R63: 0 | S63: Klik for at vælge | T63: 0 | U63: =SUMIFS('IB - 1-200 produkter'!H265:H279,'IB - 1-200 produkter'!$E265:$E279,"<="&$E$4) -> 0 | V63: =SUMIFS('IB - 1-200 produkter'!I265:I279,'IB - 1-200 produkter'!$E265:$E279,"<="&$E$4) -> 0 | W63: 0 | X63: =IF($E$16="Ja",SUMIFS('IB - 1-200 produkter'!$M$265:$M$279,'IB - 1-200 produkter'!$E$265:$E$279,"<="&$E$4),0) -> 0 | Y63: 0 | Z63: 0 | AA63: =SUMIFS('IB - 1-200 produkter'!$L$265:$L$279,'IB - 1-200 produkter'!$E$265:$E$279,"<="&$E$4) -> 0
A64: 15 | R64: 0 | S64: Klik for at vælge | T64: 0 | U64: =SUMIFS('IB - 1-200 produkter'!H285:H299,'IB - 1-200 produkter'!$E285:$E299,"<="&$E$4) -> 0 | V64: =SUMIFS('IB - 1-200 produkter'!I285:I299,'IB - 1-200 produkter'!$E285:$E299,"<="&$E$4) -> 0 | W64: 0 | X64: =IF($E$16="Ja",SUMIFS('IB - 1-200 produkter'!$M$285:$M$299,'IB - 1-200 produkter'!$E$285:$E$299,"<="&$E$4),0) -> 0 | Y64: 0 | Z64: 0 | AA64: =SUMIFS('IB - 1-200 produkter'!$L$285:$L$299,'IB - 1-200 produkter'!$E$285:$E$299,"<="&$E$4) -> 0
A65: 16 | R65: 0 | S65: Klik for at vælge | T65: 0 | U65: =SUMIFS('IB - 1-200 produkter'!H305:H319,'IB - 1-200 produkter'!$E305:$E319,"<="&$E$4) -> 0 | V65: =SUMIFS('IB - 1-200 produkter'!I305:I319,'IB - 1-200 produkter'!$E305:$E319,"<="&$E$4) -> 0 | W65: 0 | X65: =IF($E$16="Ja",SUMIFS('IB - 1-200 produkter'!$M$305:$M$319,'IB - 1-200 produkter'!$E$305:$E$319,"<="&$E$4),0) -> 0 | Y65: 0 | Z65: 0 | AA65: =SUMIFS('IB - 1-200 produkter'!$L$305:$L$319,'IB - 1-200 produkter'!$E$305:$E$319,"<="&$E$4) -> 0
A66: 17 | R66: 0 | S66: Klik for at vælge | T66: 0 | U66: =SUMIFS('IB - 1-200 produkter'!H325:H339,'IB - 1-200 produkter'!$E325:$E339,"<="&$E$4) -> 0 | V66: =SUMIFS('IB - 1-200 produkter'!I325:I339,'IB - 1-200 produkter'!$E325:$E339,"<="&$E$4) -> 0 | W66: 0 | X66: =IF($E$16="Ja",SUMIFS('IB - 1-200 produkter'!$M$325:$M$339,'IB - 1-200 produkter'!$E$325:$E$339,"<="&$E$4),0) -> 0 | Y66: 0 | Z66: 0 | AA66: =SUMIFS('IB - 1-200 produkter'!$L$325:$L$339,'IB - 1-200 produkter'!$E$325:$E$339,"<="&$E$4) -> 0
A67: 18 | R67: 0 | S67: Klik for at vælge | T67: 0 | U67: =SUMIFS('IB - 1-200 produkter'!H345:H359,'IB - 1-200 produkter'!$E345:$E359,"<="&$E$4) -> 0 | V67: =SUMIFS('IB - 1-200 produkter'!I345:I359,'IB - 1-200 produkter'!$E345:$E359,"<="&$E$4) -> 0 | W67: 0 | X67: =IF($E$16="Ja",SUMIFS('IB - 1-200 produkter'!$M$345:$M$359,'IB - 1-200 produkter'!$E$345:$E$359,"<="&$E$4),0) -> 0 | Y67: 0 | Z67: 0 | AA67: =SUMIFS('IB - 1-200 produkter'!$L$345:$L$359,'IB - 1-200 produkter'!$E$345:$E$359,"<="&$E$4) -> 0
A68: 19 | R68: 0 | S68: Klik for at vælge | T68: 0 | U68: =SUMIFS('IB - 1-200 produkter'!H365:H379,'IB - 1-200 produkter'!$E365:$E379,"<="&$E$4) -> 0 | V68: =SUMIFS('IB - 1-200 produkter'!I365:I379,'IB - 1-200 produkter'!$E365:$E379,"<="&$E$4) -> 0 | W68: 0 | X68: =IF($E$16="Ja",SUMIFS('IB - 1-200 produkter'!$M$365:$M$379,'IB - 1-200 produkter'!$E$365:$E$379,"<="&$E$4),0) -> 0 | Y68: 0 | Z68: 0 | AA68: =SUMIFS('IB - 1-200 produkter'!$L$365:$L$379,'IB - 1-200 produkter'!$E$365:$E$379,"<="&$E$4) -> 0
A69: 20 | R69: 0 | S69: Klik for at vælge | T69: 0 | U69: =SUMIFS('IB - 1-200 produkter'!H385:H399,'IB - 1-200 produkter'!$E385:$E399,"<="&$E$4) -> 0 | V69: =SUMIFS('IB - 1-200 produkter'!I385:I399,'IB - 1-200 produkter'!$E385:$E399,"<="&$E$4) -> 0 | W69: 0 | X69: =IF($E$16="Ja",SUMIFS('IB - 1-200 produkter'!$M$385:$M$399,'IB - 1-200 produkter'!$E$385:$E$399,"<="&$E$4),0) -> 0 | Y69: 0 | Z69: 0 | AA69: =SUMIFS('IB - 1-200 produkter'!$L$385:$L$399,'IB - 1-200 produkter'!$E$385:$E$399,"<="&$E$4) -> 0
A70: 21 | R70: 0 | S70: Klik for at vælge | T70: 0 | U70: =SUMIFS('IB - 1-200 produkter'!H405:H419,'IB - 1-200 produkter'!$E405:$E419,"<="&$E$4) -> 0 | V70: =SUMIFS('IB - 1-200 produkter'!I405:I419,'IB - 1-200 produkter'!$E405:$E419,"<="&$E$4) -> 0 | W70: 0 | X70: =IF($E$16="Ja",SUMIFS('IB - 1-200 produkter'!$M$405:$M$419,'IB - 1-200 produkter'!$E$405:$E$419,"<="&$E$4),0) -> 0 | Y70: 0 | Z70: 0 | AA70: =SUMIFS('IB - 1-200 produkter'!$L$405:$L$419,'IB - 1-200 produkter'!$E$405:$E$419,"<="&$E$4) -> 0
A71: 22 | R71: 0 | S71: Klik for at vælge | T71: 0 | U71: =SUMIFS('IB - 1-200 produkter'!H425:H439,'IB - 1-200 produkter'!$E425:$E439,"<="&$E$4) -> 0 | V71: =SUMIFS('IB - 1-200 produkter'!I425:I439,'IB - 1-200 produkter'!$E425:$E439,"<="&$E$4) -> 0 | W71: 0 | X71: =IF($E$16="Ja",SUMIFS('IB - 1-200 produkter'!$M$425:$M$439,'IB - 1-200 produkter'!$E$425:$E$439,"<="&$E$4),0) -> 0 | Y71: 0 | Z71: 0 | AA71: =SUMIFS('IB - 1-200 produkter'!$L$425:$L$439,'IB - 1-200 produkter'!$E$425:$E$439,"<="&$E$4) -> 0
A72: 23 | R72: 0 | S72: Klik for at vælge | T72: 0 | U72: =SUMIFS('IB - 1-200 produkter'!H445:H459,'IB - 1-200 produkter'!$E445:$E459,"<="&$E$4) -> 0 | V72: =SUMIFS('IB - 1-200 produkter'!I445:I459,'IB - 1-200 produkter'!$E445:$E459,"<="&$E$4) -> 0 | W72: 0 | X72: =IF($E$16="Ja",SUMIFS('IB - 1-200 produkter'!$M$445:$M$459,'IB - 1-200 produkter'!$E$445:$E$459,"<="&$E$4),0) -> 0 | Y72: 0 | Z72: 0 | AA72: =SUMIFS('IB - 1-200 produkter'!$L$445:$L$459,'IB - 1-200 produkter'!$E$445:$E$459,"<="&$E$4) -> 0
A73: 24 | R73: 0 | S73: Klik for at vælge | T73: 0 | U73: =SUMIFS('IB - 1-200 produkter'!H465:H479,'IB - 1-200 produkter'!$E465:$E479,"<="&$E$4) -> 0 | V73: =SUMIFS('IB - 1-200 produkter'!I465:I479,'IB - 1-200 produkter'!$E465:$E479,"<="&$E$4) -> 0 | W73: 0 | X73: =IF($E$16="Ja",SUMIFS('IB - 1-200 produkter'!$M$465:$M$479,'IB - 1-200 produkter'!$E$465:$E$479,"<="&$E$4),0) -> 0 | Y73: 0 | Z73: 0 | AA73: =SUMIFS('IB - 1-200 produkter'!$L$465:$L$479,'IB - 1-200 produkter'!$E$465:$E$479,"<="&$E$4) -> 0
A74: 25 | R74: 0 | S74: Klik for at vælge | T74: 0 | U74: =SUMIFS('IB - 1-200 produkter'!H485:H499,'IB - 1-200 produkter'!$E485:$E499,"<="&$E$4) -> 0 | V74: =SUMIFS('IB - 1-200 produkter'!I485:I499,'IB - 1-200 produkter'!$E485:$E499,"<="&$E$4) -> 0 | W74: 0 | X74: =IF($E$16="Ja",SUMIFS('IB - 1-200 produkter'!$M$485:$M$499,'IB - 1-200 produkter'!$E$485:$E$499,"<="&$E$4),0) -> 0 | Y74: 0 | Z74: 0 | AA74: =SUMIFS('IB - 1-200 produkter'!$L$485:$L$499,'IB - 1-200 produkter'!$E$485:$E$499,"<="&$E$4) -> 0
A75: 26 | R75: 0 | S75: Klik for at vælge | T75: 0 | U75: =SUMIFS('IB - 1-200 produkter'!H505:H519,'IB - 1-200 produkter'!$E505:$E519,"<="&$E$4) -> 0 | V75: =SUMIFS('IB - 1-200 produkter'!I505:I519,'IB - 1-200 produkter'!$E505:$E519,"<="&$E$4) -> 0 | W75: 0 | X75: =IF($E$16="Ja",SUMIFS('IB - 1-200 produkter'!$M$505:$M$519,'IB - 1-200 produkter'!$E$505:$E$519,"<="&$E$4),0) -> 0 | Y75: 0 | Z75: 0 | AA75: =SUMIFS('IB - 1-200 produkter'!$L$505:$L$519,'IB - 1-200 produkter'!$E$505:$E$519,"<="&$E$4) -> 0
A76: 27 | R76: 0 | S76: Klik for at vælge | T76: 0 | U76: =SUMIFS('IB - 1-200 produkter'!H525:H539,'IB - 1-200 produkter'!$E525:$E539,"<="&$E$4) -> 0 | V76: =SUMIFS('IB - 1-200 produkter'!I525:I539,'IB - 1-200 produkter'!$E525:$E539,"<="&$E$4) -> 0 | W76: 0 | X76: =IF($E$16="Ja",SUMIFS('IB - 1-200 produkter'!$M$525:$M$539,'IB - 1-200 produkter'!$E$525:$E$539,"<="&$E$4),0) -> 0 | Y76: 0 | Z76: 0 | AA76: =SUMIFS('IB - 1-200 produkter'!$L$525:$L$539,'IB - 1-200 produkter'!$E$525:$E$539,"<="&$E$4) -> 0
A77: 28 | R77: 0 | S77: Klik for at vælge | T77: 0 | U77: =SUMIFS('IB - 1-200 produkter'!H545:H559,'IB - 1-200 produkter'!$E545:$E559,"<="&$E$4) -> 0 | V77: =SUMIFS('IB - 1-200 produkter'!I545:I559,'IB - 1-200 produkter'!$E545:$E559,"<="&$E$4) -> 0 | W77: 0 | X77: =IF($E$16="Ja",SUMIFS('IB - 1-200 produkter'!$M$545:$M$559,'IB - 1-200 produkter'!$E$545:$E$559,"<="&$E$4),0) -> 0 | Y77: 0 | Z77: 0 | AA77: =SUMIFS('IB - 1-200 produkter'!$L$545:$L$559,'IB - 1-200 produkter'!$E$545:$E$559,"<="&$E$4) -> 0
A78: 29 | R78: 0 | S78: Klik for at vælge | T78: 0 | U78: =SUMIFS('IB - 1-200 produkter'!H565:H579,'IB - 1-200 produkter'!$E565:$E579,"<="&$E$4) -> 0 | V78: =SUMIFS('IB - 1-200 produkter'!I565:I579,'IB - 1-200 produkter'!$E565:$E579,"<="&$E$4) -> 0 | W78: 0 | X78: =IF($E$16="Ja",SUMIFS('IB - 1-200 produkter'!$M$565:$M$579,'IB - 1-200 produkter'!$E$565:$E$579,"<="&$E$4),0) -> 0 | Y78: 0 | Z78: 0 | AA78: =SUMIFS('IB - 1-200 produkter'!$L$565:$L$579,'IB - 1-200 produkter'!$E$565:$E$579,"<="&$E$4) -> 0
A79: 30 | R79: 0 | S79: Klik for at vælge | T79: 0 | U79: =SUMIFS('IB - 1-200 produkter'!H585:H599,'IB - 1-200 produkter'!$E585:$E599,"<="&$E$4) -> 0 | V79: =SUMIFS('IB - 1-200 produkter'!I585:I599,'IB - 1-200 produkter'!$E585:$E599,"<="&$E$4) -> 0 | W79: 0 | X79: =IF($E$16="Ja",SUMIFS('IB - 1-200 produkter'!$M$585:$M$599,'IB - 1-200 produkter'!$E$585:$E$599,"<="&$E$4),0) -> 0 | Y79: 0 | Z79: 0 | AA79: =SUMIFS('IB - 1-200 produkter'!$L$585:$L$599,'IB - 1-200 produkter'!$E$585:$E$599,"<="&$E$4) -> 0
A80: 31 | R80: 0 | S80: Klik for at vælge | T80: 0 | U80: =SUMIFS('IB - 1-200 produkter'!H605:H619,'IB - 1-200 produkter'!$E605:$E619,"<="&$E$4) -> 0 | V80: =SUMIFS('IB - 1-200 produkter'!I605:I619,'IB - 1-200 produkter'!$E605:$E619,"<="&$E$4) -> 0 | W80: 0 | X80: =IF($E$16="Ja",SUMIFS('IB - 1-200 produkter'!$M$605:$M$619,'IB - 1-200 produkter'!$E$605:$E$619,"<="&$E$4),0) -> 0 | Y80: 0 | Z80: 0 | AA80: =SUMIFS('IB - 1-200 produkter'!$L$605:$L$619,'IB - 1-200 produkter'!$E$605:$E$619,"<="&$E$4) -> 0
A81: 32 | R81: 0 | S81: Klik for at vælge | T81: 0 | U81: =SUMIFS('IB - 1-200 produkter'!H625:H639,'IB - 1-200 produkter'!$E625:$E639,"<="&$E$4) -> 0 | V81: =SUMIFS('IB - 1-200 produkter'!I625:I639,'IB - 1-200 produkter'!$E625:$E639,"<="&$E$4) -> 0 | W81: 0 | X81: =IF($E$16="Ja",SUMIFS('IB - 1-200 produkter'!$M$625:$M$639,'IB - 1-200 produkter'!$E$625:$E$639,"<="&$E$4),0) -> 0 | Y81: 0 | Z81: 0 | AA81: =SUMIFS('IB - 1-200 produkter'!$L$625:$L$639,'IB - 1-200 produkter'!$E$625:$E$639,"<="&$E$4) -> 0
A82: 33 | R82: 0 | S82: Klik for at vælge | T82: 0 | U82: =SUMIFS('IB - 1-200 produkter'!H645:H659,'IB - 1-200 produkter'!$E645:$E659,"<="&$E$4) -> 0 | V82: =SUMIFS('IB - 1-200 produkter'!I645:I659,'IB - 1-200 produkter'!$E645:$E659,"<="&$E$4) -> 0 | W82: 0 | X82: =IF($E$16="Ja",SUMIFS('IB - 1-200 produkter'!$M$645:$M$659,'IB - 1-200 produkter'!$E$645:$E$659,"<="&$E$4),0) -> 0 | Y82: 0 | Z82: 0 | AA82: =SUMIFS('IB - 1-200 produkter'!$L$645:$L$659,'IB - 1-200 produkter'!$E$645:$E$659,"<="&$E$4) -> 0
A83: 34 | R83: 0 | S83: Klik for at vælge | T83: 0 | U83: =SUMIFS('IB - 1-200 produkter'!H665:H679,'IB - 1-200 produkter'!$E665:$E679,"<="&$E$4) -> 0 | V83: =SUMIFS('IB - 1-200 produkter'!I665:I679,'IB - 1-200 produkter'!$E665:$E679,"<="&$E$4) -> 0 | W83: 0 | X83: =IF($E$16="Ja",SUMIFS('IB - 1-200 produkter'!$M$665:$M$679,'IB - 1-200 produkter'!$E$665:$E$679,"<="&$E$4),0) -> 0 | Y83: 0 | Z83: 0 | AA83: =SUMIFS('IB - 1-200 produkter'!$L$665:$L$679,'IB - 1-200 produkter'!$E$665:$E$679,"<="&$E$4) -> 0
A84: 35 | R84: 0 | S84: Klik for at vælge | T84: 0 | U84: =SUMIFS('IB - 1-200 produkter'!H685:H699,'IB - 1-200 produkter'!$E685:$E699,"<="&$E$4) -> 0 | V84: =SUMIFS('IB - 1-200 produkter'!I685:I699,'IB - 1-200 produkter'!$E685:$E699,"<="&$E$4) -> 0 | W84: 0 | X84: =IF($E$16="Ja",SUMIFS('IB - 1-200 produkter'!$M$685:$M$699,'IB - 1-200 produkter'!$E$685:$E$699,"<="&$E$4),0) -> 0 | Y84: 0 | Z84: 0 | AA84: =SUMIFS('IB - 1-200 produkter'!$L$685:$L$699,'IB - 1-200 produkter'!$E$685:$E$699,"<="&$E$4) -> 0
A85: 36 | R85: 0 | S85: Klik for at vælge | T85: 0 | U85: =SUMIFS('IB - 1-200 produkter'!H705:H719,'IB - 1-200 produkter'!$E705:$E719,"<="&$E$4) -> 0 | V85: =SUMIFS('IB - 1-200 produkter'!I705:I719,'IB - 1-200 produkter'!$E705:$E719,"<="&$E$4) -> 0 | W85: 0 | X85: =IF($E$16="Ja",SUMIFS('IB - 1-200 produkter'!$M$705:$M$719,'IB - 1-200 produkter'!$E$705:$E$719,"<="&$E$4),0) -> 0 | Y85: 0 | Z85: 0 | AA85: =SUMIFS('IB - 1-200 produkter'!$L$705:$L$719,'IB - 1-200 produkter'!$E$705:$E$719,"<="&$E$4) -> 0
A86: 37 | R86: 0 | S86: Klik for at vælge | T86: 0 | U86: =SUMIFS('IB - 1-200 produkter'!H725:H739,'IB - 1-200 produkter'!$E725:$E739,"<="&$E$4) -> 0 | V86: =SUMIFS('IB - 1-200 produkter'!I725:I739,'IB - 1-200 produkter'!$E725:$E739,"<="&$E$4) -> 0 | W86: 0 | X86: =IF($E$16="Ja",SUMIFS('IB - 1-200 produkter'!$M$725:$M$739,'IB - 1-200 produkter'!$E$725:$E$739,"<="&$E$4),0) -> 0 | Y86: 0 | Z86: 0 | AA86: =SUMIFS('IB - 1-200 produkter'!$L$725:$L$739,'IB - 1-200 produkter'!$E$725:$E$739,"<="&$E$4) -> 0
A87: 38 | R87: 0 | S87: Klik for at vælge | T87: 0 | U87: =SUMIFS('IB - 1-200 produkter'!H745:H759,'IB - 1-200 produkter'!$E745:$E759,"<="&$E$4) -> 0 | V87: =SUMIFS('IB - 1-200 produkter'!I745:I759,'IB - 1-200 produkter'!$E745:$E759,"<="&$E$4) -> 0 | W87: 0 | X87: =IF($E$16="Ja",SUMIFS('IB - 1-200 produkter'!$M$745:$M$759,'IB - 1-200 produkter'!$E$745:$E$759,"<="&$E$4),0) -> 0 | Y87: 0 | Z87: 0 | AA87: =SUMIFS('IB - 1-200 produkter'!$L$745:$L$759,'IB - 1-200 produkter'!$E$745:$E$759,"<="&$E$4) -> 0
A88: 39 | R88: 0 | S88: Klik for at vælge | T88: 0 | U88: =SUMIFS('IB - 1-200 produkter'!H765:H779,'IB - 1-200 produkter'!$E765:$E779,"<="&$E$4) -> 0 | V88: =SUMIFS('IB - 1-200 produkter'!I765:I779,'IB - 1-200 produkter'!$E765:$E779,"<="&$E$4) -> 0 | W88: 0 | X88: =IF($E$16="Ja",SUMIFS('IB - 1-200 produkter'!$M$765:$M$779,'IB - 1-200 produkter'!$E$765:$E$779,"<="&$E$4),0) -> 0 | Y88: 0 | Z88: 0 | AA88: =SUMIFS('IB - 1-200 produkter'!$L$765:$L$779,'IB - 1-200 produkter'!$E$765:$E$779,"<="&$E$4) -> 0
A89: 40 | R89: 0 | S89: Klik for at vælge | T89: 0 | U89: =SUMIFS('IB - 1-200 produkter'!H785:H799,'IB - 1-200 produkter'!$E785:$E799,"<="&$E$4) -> 0 | V89: =SUMIFS('IB - 1-200 produkter'!I785:I799,'IB - 1-200 produkter'!$E785:$E799,"<="&$E$4) -> 0 | W89: 0 | X89: =IF($E$16="Ja",SUMIFS('IB - 1-200 produkter'!$M$785:$M$799,'IB - 1-200 produkter'!$E$785:$E$799,"<="&$E$4),0) -> 0 | Y89: 0 | Z89: 0 | AA89: =SUMIFS('IB - 1-200 produkter'!$L$785:$L$799,'IB - 1-200 produkter'!$E$785:$E$799,"<="&$E$4) -> 0
A90: 41 | R90: 0 | S90: Klik for at vælge | T90: 0 | U90: =SUMIFS('IB - 1-200 produkter'!H805:H819,'IB - 1-200 produkter'!$E805:$E819,"<="&$E$4) -> 0 | V90: =SUMIFS('IB - 1-200 produkter'!I805:I819,'IB - 1-200 produkter'!$E805:$E819,"<="&$E$4) -> 0 | W90: 0 | X90: =IF($E$16="Ja",SUMIFS('IB - 1-200 produkter'!$M$805:$M$819,'IB - 1-200 produkter'!$E$805:$E$819,"<="&$E$4),0) -> 0 | Y90: 0 | Z90: 0 | AA90: =SUMIFS('IB - 1-200 produkter'!$L$805:$L$819,'IB - 1-200 produkter'!$E$805:$E$819,"<="&$E$4) -> 0
A91: 42 | R91: 0 | S91: Klik for at vælge | T91: 0 | U91: =SUMIFS('IB - 1-200 produkter'!H825:H839,'IB - 1-200 produkter'!$E825:$E839,"<="&$E$4) -> 0 | V91: =SUMIFS('IB - 1-200 produkter'!I825:I839,'IB - 1-200 produkter'!$E825:$E839,"<="&$E$4) -> 0 | W91: 0 | X91: =IF($E$16="Ja",SUMIFS('IB - 1-200 produkter'!$M$825:$M$839,'IB - 1-200 produkter'!$E$825:$E$839,"<="&$E$4),0) -> 0 | Y91: 0 | Z91: 0 | AA91: =SUMIFS('IB - 1-200 produkter'!$L$825:$L$839,'IB - 1-200 produkter'!$E$825:$E$839,"<="&$E$4) -> 0
A92: 43 | R92: 0 | S92: Klik for at vælge | T92: 0 | U92: =SUMIFS('IB - 1-200 produkter'!H845:H859,'IB - 1-200 produkter'!$E845:$E859,"<="&$E$4) -> 0 | V92: =SUMIFS('IB - 1-200 produkter'!I845:I859,'IB - 1-200 produkter'!$E845:$E859,"<="&$E$4) -> 0 | W92: 0 | X92: =IF($E$16="Ja",SUMIFS('IB - 1-200 produkter'!$M$845:$M$859,'IB - 1-200 produkter'!$E$845:$E$859,"<="&$E$4),0) -> 0 | Y92: 0 | Z92: 0 | AA92: =SUMIFS('IB - 1-200 produkter'!$L$845:$L$859,'IB - 1-200 produkter'!$E$845:$E$859,"<="&$E$4) -> 0
A93: 44 | R93: 0 | S93: Klik for at vælge | T93: 0 | U93: =SUMIFS('IB - 1-200 produkter'!H865:H879,'IB - 1-200 produkter'!$E865:$E879,"<="&$E$4) -> 0 | V93: =SUMIFS('IB - 1-200 produkter'!I865:I879,'IB - 1-200 produkter'!$E865:$E879,"<="&$E$4) -> 0 | W93: 0 | X93: =IF($E$16="Ja",SUMIFS('IB - 1-200 produkter'!$M$865:$M$879,'IB - 1-200 produkter'!$E$865:$E$879,"<="&$E$4),0) -> 0 | Y93: 0 | Z93: 0 | AA93: =SUMIFS('IB - 1-200 produkter'!$L$865:$L$879,'IB - 1-200 produkter'!$E$865:$E$879,"<="&$E$4) -> 0
A94: 45 | R94: 0 | S94: Klik for at vælge | T94: 0 | U94: =SUMIFS('IB - 1-200 produkter'!H885:H899,'IB - 1-200 produkter'!$E885:$E899,"<="&$E$4) -> 0 | V94: =SUMIFS('IB - 1-200 produkter'!I885:I899,'IB - 1-200 produkter'!$E885:$E899,"<="&$E$4) -> 0 | W94: 0 | X94: =IF($E$16="Ja",SUMIFS('IB - 1-200 produkter'!$M$885:$M$899,'IB - 1-200 produkter'!$E$885:$E$899,"<="&$E$4),0) -> 0 | Y94: 0 | Z94: 0 | AA94: =SUMIFS('IB - 1-200 produkter'!$L$885:$L$899,'IB - 1-200 produkter'!$E$885:$E$899,"<="&$E$4) -> 0
A95: 46 | R95: 0 | S95: Klik for at vælge | T95: 0 | U95: =SUMIFS('IB - 1-200 produkter'!H905:H919,'IB - 1-200 produkter'!$E905:$E919,"<="&$E$4) -> 0 | V95: =SUMIFS('IB - 1-200 produkter'!I905:I919,'IB - 1-200 produkter'!$E905:$E919,"<="&$E$4) -> 0 | W95: 0 | X95: =IF($E$16="Ja",SUMIFS('IB - 1-200 produkter'!$M$905:$M$919,'IB - 1-200 produkter'!$E$905:$E$919,"<="&$E$4),0) -> 0 | Y95: 0 | Z95: 0 | AA95: =SUMIFS('IB - 1-200 produkter'!$L$905:$L$919,'IB - 1-200 produkter'!$E$905:$E$919,"<="&$E$4) -> 0
A96: 47 | R96: 0 | S96: Klik for at vælge | T96: 0 | U96: =SUMIFS('IB - 1-200 produkter'!H925:H939,'IB - 1-200 produkter'!$E925:$E939,"<="&$E$4) -> 0 | V96: =SUMIFS('IB - 1-200 produkter'!I925:I939,'IB - 1-200 produkter'!$E925:$E939,"<="&$E$4) -> 0 | W96: 0 | X96: =IF($E$16="Ja",SUMIFS('IB - 1-200 produkter'!$M$925:$M$939,'IB - 1-200 produkter'!$E$925:$E$939,"<="&$E$4),0) -> 0 | Y96: 0 | Z96: 0 | AA96: =SUMIFS('IB - 1-200 produkter'!$L$925:$L$939,'IB - 1-200 produkter'!$E$925:$E$939,"<="&$E$4) -> 0
A97: 48 | R97: 0 | S97: Klik for at vælge | T97: 0 | U97: =SUMIFS('IB - 1-200 produkter'!H945:H959,'IB - 1-200 produkter'!$E945:$E959,"<="&$E$4) -> 0 | V97: =SUMIFS('IB - 1-200 produkter'!I945:I959,'IB - 1-200 produkter'!$E945:$E959,"<="&$E$4) -> 0 | W97: 0 | X97: =IF($E$16="Ja",SUMIFS('IB - 1-200 produkter'!$M$945:$M$959,'IB - 1-200 produkter'!$E$945:$E$959,"<="&$E$4),0) -> 0 | Y97: 0 | Z97: 0 | AA97: =SUMIFS('IB - 1-200 produkter'!$L$945:$L$959,'IB - 1-200 produkter'!$E$945:$E$959,"<="&$E$4) -> 0
A98: 49 | R98: 0 | S98: Klik for at vælge | T98: 0 | U98: =SUMIFS('IB - 1-200 produkter'!H965:H979,'IB - 1-200 produkter'!$E965:$E979,"<="&$E$4) -> 0 | V98: =SUMIFS('IB - 1-200 produkter'!I965:I979,'IB - 1-200 produkter'!$E965:$E979,"<="&$E$4) -> 0 | W98: 0 | X98: =IF($E$16="Ja",SUMIFS('IB - 1-200 produkter'!$M$965:$M$979,'IB - 1-200 produkter'!$E$965:$E$979,"<="&$E$4),0) -> 0 | Y98: 0 | Z98: 0 | AA98: =SUMIFS('IB - 1-200 produkter'!$L$965:$L$979,'IB - 1-200 produkter'!$E$965:$E$979,"<="&$E$4) -> 0
A99: 50 | R99: 0 | S99: Klik for at vælge | T99: 0 | U99: =SUMIFS('IB - 1-200 produkter'!H985:H999,'IB - 1-200 produkter'!$E985:$E999,"<="&$E$4) -> 0 | V99: =SUMIFS('IB - 1-200 produkter'!I985:I999,'IB - 1-200 produkter'!$E985:$E999,"<="&$E$4) -> 0 | W99: 0 | X99: =IF($E$16="Ja",SUMIFS('IB - 1-200 produkter'!$M$985:$M$999,'IB - 1-200 produkter'!$E$985:$E$999,"<="&$E$4),0) -> 0 | Y99: 0 | Z99: 0 | AA99: =SUMIFS('IB - 1-200 produkter'!$L$985:$L$999,'IB - 1-200 produkter'!$E$985:$E$999,"<="&$E$4) -> 0
A100: 51 | R100: 0 | S100: Klik for at vælge | T100: 0 | U100: =SUMIFS('IB - 1-200 produkter'!H1005:H1019,'IB - 1-200 produkter'!$E1005:$E1019,"<="&$E$4) -> 0 | V100: =SUMIFS('IB - 1-200 produkter'!I1005:I1019,'IB - 1-200 produkter'!$E1005:$E1019,"<="&$E$4) -> 0 | W100: 0 | X100: =IF($E$16="Ja",SUMIFS('IB - 1-200 produkter'!$M1005:$M1019,'IB - 1-200 produkter'!$E1005:$E1019,"<="&$E$4),0) -> 0 | Y100: 0 | Z100: 0 | AA100: =SUMIFS('IB - 1-200 produkter'!$L$1005:$L$1019,'IB - 1-200 produkter'!$E$1005:$E$1019,"<="&$E$4) -> 0
A101: 52 | R101: 0 | S101: Klik for at vælge | T101: 0 | U101: =SUMIFS('IB - 1-200 produkter'!H1025:H1039,'IB - 1-200 produkter'!$E1025:$E1039,"<="&$E$4) -> 0 | V101: =SUMIFS('IB - 1-200 produkter'!I1025:I1039,'IB - 1-200 produkter'!$E1025:$E1039,"<="&$E$4) -> 0 | W101: 0 | X101: =IF($E$16="Ja",SUMIFS('IB - 1-200 produkter'!$M$1025:$M$1039,'IB - 1-200 produkter'!$E$1025:$E$1039,"<="&$E$4),0) -> 0 | Y101: 0 | Z101: 0 | AA101: =SUMIFS('IB - 1-200 produkter'!$L$1025:$L$1039,'IB - 1-200 produkter'!$E$1025:$E$1039,"<="&$E$4) -> 0
A102: 53 | R102: 0 | S102: Klik for at vælge | T102: 0 | U102: =SUMIFS('IB - 1-200 produkter'!H1045:H1059,'IB - 1-200 produkter'!$E1045:$E1059,"<="&$E$4) -> 0 | V102: =SUMIFS('IB - 1-200 produkter'!I1045:I1059,'IB - 1-200 produkter'!$E1045:$E1059,"<="&$E$4) -> 0 | W102: 0 | X102: =IF($E$16="Ja",SUMIFS('IB - 1-200 produkter'!$M$1045:$M$1059,'IB - 1-200 produkter'!$E$1045:$E$1059,"<="&$E$4),0) -> 0 | Y102: 0 | Z102: 0 | AA102: =SUMIFS('IB - 1-200 produkter'!$L$1045:$L$1059,'IB - 1-200 produkter'!$E$1045:$E$1059,"<="&$E$4) -> 0
A103: 54 | R103: 0 | S103: Klik for at vælge | T103: 0 | U103: =SUMIFS('IB - 1-200 produkter'!H1065:H1079,'IB - 1-200 produkter'!$E1065:$E1079,"<="&$E$4) -> 0 | V103: =SUMIFS('IB - 1-200 produkter'!I1065:I1079,'IB - 1-200 produkter'!$E1065:$E1079,"<="&$E$4) -> 0 | W103: 0 | X103: =IF($E$16="Ja",SUMIFS('IB - 1-200 produkter'!$M$1065:$M$1079,'IB - 1-200 produkter'!$E$1065:$E$1079,"<="&$E$4),0) -> 0 | Y103: 0 | Z103: 0 | AA103: =SUMIFS('IB - 1-200 produkter'!$L$1065:$L$1079,'IB - 1-200 produkter'!$E$1065:$E$1079,"<="&$E$4) -> 0
A104: 55 | R104: 0 | S104: Klik for at vælge | T104: 0 | U104: =SUMIFS('IB - 1-200 produkter'!H1085:H1099,'IB - 1-200 produkter'!$E1085:$E1099,"<="&$E$4) -> 0 | V104: =SUMIFS('IB - 1-200 produkter'!I1085:I1099,'IB - 1-200 produkter'!$E1085:$E1099,"<="&$E$4) -> 0 | W104: 0 | X104: =IF($E$16="Ja",SUMIFS('IB - 1-200 produkter'!$M$1085:$M$1099,'IB - 1-200 produkter'!$E$1085:$E$1099,"<="&$E$4),0) -> 0 | Y104: 0 | Z104: 0 | AA104: =SUMIFS('IB - 1-200 produkter'!$L$1085:$L$1099,'IB - 1-200 produkter'!$E$1085:$E$1099,"<="&$E$4) -> 0
A105: 56 | R105: 0 | S105: Klik for at vælge | T105: 0 | U105: =SUMIFS('IB - 1-200 produkter'!H1105:H1119,'IB - 1-200 produkter'!$E1105:$E1119,"<="&$E$4) -> 0 | V105: =SUMIFS('IB - 1-200 produkter'!I1105:I1119,'IB - 1-200 produkter'!$E1105:$E1119,"<="&$E$4) -> 0 | W105: 0 | X105: =IF($E$16="Ja",SUMIFS('IB - 1-200 produkter'!$M1105:$M1119,'IB - 1-200 produkter'!$E1105:$E1119,"<="&$E$4),0) -> 0 | Y105: 0 | Z105: 0 | AA105: =SUMIFS('IB - 1-200 produkter'!$L$1105:$L$1119,'IB - 1-200 produkter'!$E$1105:$E$1119,"<="&$E$4) -> 0
A106: 57 | R106: 0 | S106: Klik for at vælge | T106: 0 | U106: =SUMIFS('IB - 1-200 produkter'!H1125:H1139,'IB - 1-200 produkter'!$E1125:$E1139,"<="&$E$4) -> 0 | V106: =SUMIFS('IB - 1-200 produkter'!I1125:I1139,'IB - 1-200 produkter'!$E1125:$E1139,"<="&$E$4) -> 0 | W106: 0 | X106: =IF($E$16="Ja",SUMIFS('IB - 1-200 produkter'!$M$1125:$M$1139,'IB - 1-200 produkter'!$E$1125:$E$1139,"<="&$E$4),0) -> 0 | Y106: 0 | Z106: 0 | AA106: =SUMIFS('IB - 1-200 produkter'!$L$1125:$L$1139,'IB - 1-200 produkter'!$E$1125:$E$1139,"<="&$E$4) -> 0
A107: 58 | R107: 0 | S107: Klik for at vælge | T107: 0 | U107: =SUMIFS('IB - 1-200 produkter'!H1145:H1159,'IB - 1-200 produkter'!$E1145:$E1159,"<="&$E$4) -> 0 | V107: =SUMIFS('IB - 1-200 produkter'!I1145:I1159,'IB - 1-200 produkter'!$E1145:$E1159,"<="&$E$4) -> 0 | W107: 0 | X107: =IF($E$16="Ja",SUMIFS('IB - 1-200 produkter'!$M$1145:$M$1159,'IB - 1-200 produkter'!$E$1145:$E$1159,"<="&$E$4),0) -> 0 | Y107: 0 | Z107: 0 | AA107: =SUMIFS('IB - 1-200 produkter'!$L$1145:$L$1159,'IB - 1-200 produkter'!$E$1145:$E$1159,"<="&$E$4) -> 0
A108: 59 | R108: 0 | S108: Klik for at vælge | T108: 0 | U108: =SUMIFS('IB - 1-200 produkter'!H1165:H1179,'IB - 1-200 produkter'!$E1165:$E1179,"<="&$E$4) -> 0 | V108: =SUMIFS('IB - 1-200 produkter'!I1165:I1179,'IB - 1-200 produkter'!$E1165:$E1179,"<="&$E$4) -> 0 | W108: 0 | X108: =IF($E$16="Ja",SUMIFS('IB - 1-200 produkter'!$M$1165:$M$1179,'IB - 1-200 produkter'!$E$1165:$E$1179,"<="&$E$4),0) -> 0 | Y108: 0 | Z108: 0 | AA108: =SUMIFS('IB - 1-200 produkter'!$L$1165:$L$1179,'IB - 1-200 produkter'!$E$1165:$E$1179,"<="&$E$4) -> 0
A109: 60 | R109: 0 | S109: Klik for at vælge | T109: 0 | U109: =SUMIFS('IB - 1-200 produkter'!H1185:H1199,'IB - 1-200 produkter'!$E1185:$E1199,"<="&$E$4) -> 0 | V109: =SUMIFS('IB - 1-200 produkter'!I1185:I1199,'IB - 1-200 produkter'!$E1185:$E1199,"<="&$E$4) -> 0 | W109: 0 | X109: =IF($E$16="Ja",SUMIFS('IB - 1-200 produkter'!$M$1185:$M$1199,'IB - 1-200 produkter'!$E$1185:$E$1199,"<="&$E$4),0) -> 0 | Y109: 0 | Z109: 0 | AA109: =SUMIFS('IB - 1-200 produkter'!$L$1185:$L$1199,'IB - 1-200 produkter'!$E$1185:$E$1199,"<="&$E$4) -> 0
A110: 61 | R110: 0 | S110: Klik for at vælge | T110: 0 | U110: =SUMIFS('IB - 1-200 produkter'!H1205:H1219,'IB - 1-200 produkter'!$E1205:$E1219,"<="&$E$4) -> 0 | V110: =SUMIFS('IB - 1-200 produkter'!I1205:I1219,'IB - 1-200 produkter'!$E1205:$E1219,"<="&$E$4) -> 0 | W110: 0 | X110: =IF($E$16="Ja",SUMIFS('IB - 1-200 produkter'!$M$1205:$M$1219,'IB - 1-200 produkter'!$E$1205:$E$1219,"<="&$E$4),0) -> 0 | Y110: 0 | Z110: 0 | AA110: =SUMIFS('IB - 1-200 produkter'!$L$1205:$L$1219,'IB - 1-200 produkter'!$E$1205:$E$1219,"<="&$E$4) -> 0
A111: 62 | R111: 0 | S111: Klik for at vælge | T111: 0 | U111: =SUMIFS('IB - 1-200 produkter'!H1225:H1239,'IB - 1-200 produkter'!$E1225:$E1239,"<="&$E$4) -> 0 | V111: =SUMIFS('IB - 1-200 produkter'!I1225:I1239,'IB - 1-200 produkter'!$E1225:$E1239,"<="&$E$4) -> 0 | W111: 0 | X111: =IF($E$16="Ja",SUMIFS('IB - 1-200 produkter'!$M$1225:$M$1239,'IB - 1-200 produkter'!$E$1225:$E$1239,"<="&$E$4),0) -> 0 | Y111: 0 | Z111: 0 | AA111: =SUMIFS('IB - 1-200 produkter'!$L$1225:$L$1239,'IB - 1-200 produkter'!$E$1225:$E$1239,"<="&$E$4) -> 0
A112: 63 | R112: 0 | S112: Klik for at vælge | T112: 0 | U112: =SUMIFS('IB - 1-200 produkter'!H1245:H1259,'IB - 1-200 produkter'!$E1245:$E1259,"<="&$E$4) -> 0 | V112: =SUMIFS('IB - 1-200 produkter'!I1245:I1259,'IB - 1-200 produkter'!$E1245:$E1259,"<="&$E$4) -> 0 | W112: 0 | X112: =IF($E$16="Ja",SUMIFS('IB - 1-200 produkter'!$M$1245:$M$1259,'IB - 1-200 produkter'!$E$1245:$E$1259,"<="&$E$4),0) -> 0 | Y112: 0 | Z112: 0 | AA112: =SUMIFS('IB - 1-200 produkter'!$L$1245:$L$1259,'IB - 1-200 produkter'!$E$1245:$E$1259,"<="&$E$4) -> 0
A113: 64 | R113: 0 | S113: Klik for at vælge | T113: 0 | U113: =SUMIFS('IB - 1-200 produkter'!H1265:H1279,'IB - 1-200 produkter'!$E1265:$E1279,"<="&$E$4) -> 0 | V113: =SUMIFS('IB - 1-200 produkter'!I1265:I1279,'IB - 1-200 produkter'!$E1265:$E1279,"<="&$E$4) -> 0 | W113: 0 | X113: =IF($E$16="Ja",SUMIFS('IB - 1-200 produkter'!$M$1265:$M$1279,'IB - 1-200 produkter'!$E$1265:$E$1279,"<="&$E$4),0) -> 0 | Y113: 0 | Z113: 0 | AA113: =SUMIFS('IB - 1-200 produkter'!$L$1265:$L$1279,'IB - 1-200 produkter'!$E$1265:$E$1279,"<="&$E$4) -> 0
A114: 65 | R114: 0 | S114: Klik for at vælge | T114: 0 | U114: =SUMIFS('IB - 1-200 produkter'!H1285:H1299,'IB - 1-200 produkter'!$E1285:$E1299,"<="&$E$4) -> 0 | V114: =SUMIFS('IB - 1-200 produkter'!I1285:I1299,'IB - 1-200 produkter'!$E1285:$E1299,"<="&$E$4) -> 0 | W114: 0 | X114: =IF($E$16="Ja",SUMIFS('IB - 1-200 produkter'!$M$1285:$M$1299,'IB - 1-200 produkter'!$E$1285:$E$1299,"<="&$E$4),0) -> 0 | Y114: 0 | Z114: 0 | AA114: =SUMIFS('IB - 1-200 produkter'!$L$1285:$L$1299,'IB - 1-200 produkter'!$E$1285:$E$1299,"<="&$E$4) -> 0
A115: 66 | R115: =I115*O115 -> 0 | S115: Klik for at vælge | T115: =IFERROR((L115+M115)*H115,0) -> 0 | U115: =SUMIFS('IB - 1-200 produkter'!H1305:H1319,'IB - 1-200 produkter'!$E1305:$E1319,"<="&$E$4) -> 0 | V115: =SUMIFS('IB - 1-200 produkter'!I1305:I1319,'IB - 1-200 produkter'!$E1305:$E1319,"<="&$E$4) -> 0 | W115: =IF(S115="nej",(-F115*L115+G115)*H115*(1+IF($E$11="ja",$E$13,$F$13))^-$E$4,0) -> 0 | X115: =IF($E$16="Ja",SUMIFS('IB - 1-200 produkter'!$M$1305:$M$1319,'IB - 1-200 produkter'!$E$1305:$E$1319,"<="&$E$4),0) -> 0 | Y115: 0 | Z115: =PMT(IF($E$6="nej",$F$13,$E$13),$E$4,-(Y115)) -> 0 | AA115: =SUMIFS('IB - 1-200 produkter'!$L$1305:$L$1319,'IB - 1-200 produkter'!$E$1305:$E$1319,"<="&$E$4) -> 0
A116: 67 | R116: 0 | S116: Klik for at vælge | T116: 0 | U116: =SUMIFS('IB - 1-200 produkter'!H1325:H1339,'IB - 1-200 produkter'!$E1325:$E1339,"<="&$E$4) -> 0 | V116: =SUMIFS('IB - 1-200 produkter'!I1325:I1339,'IB - 1-200 produkter'!$E1325:$E1339,"<="&$E$4) -> 0 | W116: 0 | X116: =IF($E$16="Ja",SUMIFS('IB - 1-200 produkter'!$M$1325:$M$1339,'IB - 1-200 produkter'!$E$1325:$E$1339,"<="&$E$4),0) -> 0 | Y116: =IFERROR(T116+U116+V116+W116+X116,0) -> 0 | Z116: 0 | AA116: =SUMIFS('IB - 1-200 produkter'!$L$1325:$L$1339,'IB - 1-200 produkter'!$E$1325:$E$1339,"<="&$E$4) -> 0
A117: 68 | R117: 0 | S117: Klik for at vælge | T117: 0 | U117: =SUMIFS('IB - 1-200 produkter'!H1345:H1359,'IB - 1-200 produkter'!$E1345:$E1359,"<="&$E$4) -> 0 | V117: =SUMIFS('IB - 1-200 produkter'!I1345:I1359,'IB - 1-200 produkter'!$E1345:$E1359,"<="&$E$4) -> 0 | W117: 0 | X117: =IF($E$16="Ja",SUMIFS('IB - 1-200 produkter'!$M$1345:$M$1359,'IB - 1-200 produkter'!$E$1345:$E$1359,"<="&$E$4),0) -> 0 | Y117: 0 | Z117: 0 | AA117: =SUMIFS('IB - 1-200 produkter'!$L$1345:$L$1359,'IB - 1-200 produkter'!$E$1345:$E$1359,"<="&$E$4) -> 0
A118: 69 | R118: 0 | S118: Klik for at vælge | T118: 0 | U118: =SUMIFS('IB - 1-200 produkter'!H1365:H1379,'IB - 1-200 produkter'!$E1365:$E1379,"<="&$E$4) -> 0 | V118: =SUMIFS('IB - 1-200 produkter'!I1365:I1379,'IB - 1-200 produkter'!$E1365:$E1379,"<="&$E$4) -> 0 | W118: 0 | X118: =IF($E$16="Ja",SUMIFS('IB - 1-200 produkter'!$M$1365:$M$1379,'IB - 1-200 produkter'!$E$1365:$E$1379,"<="&$E$4),0) -> 0 | Y118: 0 | Z118: 0 | AA118: =SUMIFS('IB - 1-200 produkter'!$L$1365:$L$1379,'IB - 1-200 produkter'!$E$1365:$E$1379,"<="&$E$4) -> 0
A119: 70 | R119: 0 | S119: Klik for at vælge | T119: 0 | U119: =SUMIFS('IB - 1-200 produkter'!H1385:H1399,'IB - 1-200 produkter'!$E1385:$E1399,"<="&$E$4) -> 0 | V119: =SUMIFS('IB - 1-200 produkter'!I1385:I1399,'IB - 1-200 produkter'!$E1385:$E1399,"<="&$E$4) -> 0 | W119: 0 | X119: =IF($E$16="Ja",SUMIFS('IB - 1-200 produkter'!$M$1385:$M$1399,'IB - 1-200 produkter'!$E$1385:$E$1399,"<="&$E$4),0) -> 0 | Y119: 0 | Z119: 0 | AA119: =SUMIFS('IB - 1-200 produkter'!$L$1385:$L$1399,'IB - 1-200 produkter'!$E$1385:$E$1399,"<="&$E$4) -> 0
A120: 71 | R120: 0 | S120: Klik for at vælge | T120: 0 | U120: =SUMIFS('IB - 1-200 produkter'!H1405:H1419,'IB - 1-200 produkter'!$E1405:$E1419,"<="&$E$4) -> 0 | V120: =SUMIFS('IB - 1-200 produkter'!I1405:I1419,'IB - 1-200 produkter'!$E1405:$E1419,"<="&$E$4) -> 0 | W120: 0 | X120: =IF($E$16="Ja",SUMIFS('IB - 1-200 produkter'!$M$1405:$M$1419,'IB - 1-200 produkter'!$E$1405:$E$1419,"<="&$E$4),0) -> 0 | Y120: 0 | Z120: 0 | AA120: =SUMIFS('IB - 1-200 produkter'!$L$1405:$L$1419,'IB - 1-200 produkter'!$E$1405:$E$1419,"<="&$E$4) -> 0
A121: 72 | R121: 0 | S121: Klik for at vælge | T121: 0 | U121: =SUMIFS('IB - 1-200 produkter'!H1425:H1439,'IB - 1-200 produkter'!$E1425:$E1439,"<="&$E$4) -> 0 | V121: =SUMIFS('IB - 1-200 produkter'!I1425:I1439,'IB - 1-200 produkter'!$E1425:$E1439,"<="&$E$4) -> 0 | W121: 0 | X121: =IF($E$16="Ja",SUMIFS('IB - 1-200 produkter'!$M$1425:$M$1439,'IB - 1-200 produkter'!$E$1425:$E$1439,"<="&$E$4),0) -> 0 | Y121: 0 | Z121: 0 | AA121: =SUMIFS('IB - 1-200 produkter'!$L$1425:$L$1439,'IB - 1-200 produkter'!$E$1425:$E$1439,"<="&$E$4) -> 0
A122: 73 | R122: 0 | S122: Klik for at vælge | T122: 0 | U122: =SUMIFS('IB - 1-200 produkter'!H1445:H1459,'IB - 1-200 produkter'!$E1445:$E1459,"<="&$E$4) -> 0 | V122: =SUMIFS('IB - 1-200 produkter'!I1445:I1459,'IB - 1-200 produkter'!$E1445:$E1459,"<="&$E$4) -> 0 | W122: 0 | X122: =IF($E$16="Ja",SUMIFS('IB - 1-200 produkter'!$M$1445:$M$1459,'IB - 1-200 produkter'!$E$1445:$E$1459,"<="&$E$4),0) -> 0 | Y122: 0 | Z122: 0 | AA122: =SUMIFS('IB - 1-200 produkter'!$L$1445:$L$1459,'IB - 1-200 produkter'!$E$1445:$E$1459,"<="&$E$4) -> 0
A123: 74 | R123: 0 | S123: Klik for at vælge | T123: 0 | U123: =SUMIFS('IB - 1-200 produkter'!H1465:H1479,'IB - 1-200 produkter'!$E1465:$E1479,"<="&$E$4) -> 0 | V123: =SUMIFS('IB - 1-200 produkter'!I1465:I1479,'IB - 1-200 produkter'!$E1465:$E1479,"<="&$E$4) -> 0 | W123: 0 | X123: =IF($E$16="Ja",SUMIFS('IB - 1-200 produkter'!$M$1465:$M$1479,'IB - 1-200 produkter'!$E$1465:$E$1479,"<="&$E$4),0) -> 0 | Y123: 0 | Z123: 0 | AA123: =SUMIFS('IB - 1-200 produkter'!$L$1465:$L$1479,'IB - 1-200 produkter'!$E$1465:$E$1479,"<="&$E$4) -> 0
A124: 75 | R124: 0 | S124: Klik for at vælge | T124: 0 | U124: =SUMIFS('IB - 1-200 produkter'!H1485:H1499,'IB - 1-200 produkter'!$E1485:$E1499,"<="&$E$4) -> 0 | V124: =SUMIFS('IB - 1-200 produkter'!I1485:I1499,'IB - 1-200 produkter'!$E1485:$E1499,"<="&$E$4) -> 0 | W124: 0 | X124: =IF($E$16="Ja",SUMIFS('IB - 1-200 produkter'!$M$1485:$M$1499,'IB - 1-200 produkter'!$E$1485:$E$1499,"<="&$E$4),0) -> 0 | Y124: 0 | Z124: 0 | AA124: =SUMIFS('IB - 1-200 produkter'!$L$1485:$L$1499,'IB - 1-200 produkter'!$E$1485:$E$1499,"<="&$E$4) -> 0
A125: 76 | R125: 0 | S125: Klik for at vælge | T125: 0 | U125: =SUMIFS('IB - 1-200 produkter'!H1505:H1519,'IB - 1-200 produkter'!$E1505:$E1519,"<="&$E$4) -> 0 | V125: =SUMIFS('IB - 1-200 produkter'!I1505:I1519,'IB - 1-200 produkter'!$E1505:$E1519,"<="&$E$4) -> 0 | W125: 0 | X125: =IF($E$16="Ja",SUMIFS('IB - 1-200 produkter'!$M$1505:$M$1519,'IB - 1-200 produkter'!$E$1505:$E$1519,"<="&$E$4),0) -> 0 | Y125: 0 | Z125: 0 | AA125: =SUMIFS('IB - 1-200 produkter'!$L$1505:$L$1519,'IB - 1-200 produkter'!$E$1505:$E$1519,"<="&$E$4) -> 0
A126: 77 | R126: 0 | S126: Klik for at vælge | T126: 0 | U126: =SUMIFS('IB - 1-200 produkter'!H1525:H1539,'IB - 1-200 produkter'!$E1525:$E1539,"<="&$E$4) -> 0 | V126: =SUMIFS('IB - 1-200 produkter'!I1525:I1539,'IB - 1-200 produkter'!$E1525:$E1539,"<="&$E$4) -> 0 | W126: 0 | X126: =IF($E$16="Ja",SUMIFS('IB - 1-200 produkter'!$M$1525:$M$1539,'IB - 1-200 produkter'!$E$1525:$E$1539,"<="&$E$4),0) -> 0 | Y126: 0 | Z126: 0 | AA126: =SUMIFS('IB - 1-200 produkter'!$L$1525:$L$1539,'IB - 1-200 produkter'!$E$1525:$E$1539,"<="&$E$4) -> 0
A127: 78 | R127: 0 | S127: Klik for at vælge | T127: 0 | U127: =SUMIFS('IB - 1-200 produkter'!H1545:H1559,'IB - 1-200 produkter'!$E1545:$E1559,"<="&$E$4) -> 0 | V127: =SUMIFS('IB - 1-200 produkter'!I1545:I1559,'IB - 1-200 produkter'!$E1545:$E1559,"<="&$E$4) -> 0 | W127: 0 | X127: =IF($E$16="Ja",SUMIFS('IB - 1-200 produkter'!$M$1545:$M$1559,'IB - 1-200 produkter'!$E$1545:$E$1559,"<="&$E$4),0) -> 0 | Y127: 0 | Z127: 0 | AA127: =SUMIFS('IB - 1-200 produkter'!$L$1545:$L$1559,'IB - 1-200 produkter'!$E$1545:$E$1559,"<="&$E$4) -> 0
A128: 79 | R128: 0 | S128: Klik for at vælge | T128: 0 | U128: =SUMIFS('IB - 1-200 produkter'!H1565:H1579,'IB - 1-200 produkter'!$E1565:$E1579,"<="&$E$4) -> 0 | V128: =SUMIFS('IB - 1-200 produkter'!I1565:I1579,'IB - 1-200 produkter'!$E1565:$E1579,"<="&$E$4) -> 0 | W128: 0 | X128: =IF($E$16="Ja",SUMIFS('IB - 1-200 produkter'!$M$1565:$M$1579,'IB - 1-200 produkter'!$E$1565:$E$1579,"<="&$E$4),0) -> 0 | Y128: 0 | Z128: 0 | AA128: =SUMIFS('IB - 1-200 produkter'!$L$1565:$L$1579,'IB - 1-200 produkter'!$E$1565:$E$1579,"<="&$E$4) -> 0
A129: 80 | R129: 0 | S129: Klik for at vælge | T129: 0 | U129: =SUMIFS('IB - 1-200 produkter'!H1585:H1599,'IB - 1-200 produkter'!$E1585:$E1599,"<="&$E$4) -> 0 | V129: =SUMIFS('IB - 1-200 produkter'!I1585:I1599,'IB - 1-200 produkter'!$E1585:$E1599,"<="&$E$4) -> 0 | W129: 0 | X129: =IF($E$16="Ja",SUMIFS('IB - 1-200 produkter'!$M$1585:$M$1599,'IB - 1-200 produkter'!$E$1585:$E$1599,"<="&$E$4),0) -> 0 | Y129: 0 | Z129: 0 | AA129: =SUMIFS('IB - 1-200 produkter'!$L$1585:$L$1599,'IB - 1-200 produkter'!$E$1585:$E$1599,"<="&$E$4) -> 0
A130: 81 | R130: 0 | S130: Klik for at vælge | T130: 0 | U130: =SUMIFS('IB - 1-200 produkter'!H1605:H1619,'IB - 1-200 produkter'!$E1605:$E1619,"<="&$E$4) -> 0 | V130: =SUMIFS('IB - 1-200 produkter'!I1605:I1619,'IB - 1-200 produkter'!$E1605:$E1619,"<="&$E$4) -> 0 | W130: 0 | X130: =IF($E$16="Ja",SUMIFS('IB - 1-200 produkter'!$M$1605:$M$1619,'IB - 1-200 produkter'!$E$1605:$E$1619,"<="&$E$4),0) -> 0 | Y130: 0 | Z130: 0 | AA130: =SUMIFS('IB - 1-200 produkter'!$L$1605:$L$1619,'IB - 1-200 produkter'!$E$1605:$E$1619,"<="&$E$4) -> 0
A131: 82 | R131: 0 | S131: Klik for at vælge | T131: 0 | U131: =SUMIFS('IB - 1-200 produkter'!H1625:H1639,'IB - 1-200 produkter'!$E1625:$E1639,"<="&$E$4) -> 0 | V131: =SUMIFS('IB - 1-200 produkter'!I1625:I1639,'IB - 1-200 produkter'!$E1625:$E1639,"<="&$E$4) -> 0 | W131: 0 | X131: =IF($E$16="Ja",SUMIFS('IB - 1-200 produkter'!$M$1625:$M$1639,'IB - 1-200 produkter'!$E$1625:$E$1639,"<="&$E$4),0) -> 0 | Y131: 0 | Z131: 0 | AA131: =SUMIFS('IB - 1-200 produkter'!$L$1625:$L$1639,'IB - 1-200 produkter'!$E$1625:$E$1639,"<="&$E$4) -> 0
A132: 83 | R132: 0 | S132: Klik for at vælge | T132: 0 | U132: =SUMIFS('IB - 1-200 produkter'!H1645:H1659,'IB - 1-200 produkter'!$E1645:$E1659,"<="&$E$4) -> 0 | V132: =SUMIFS('IB - 1-200 produkter'!I1645:I1659,'IB - 1-200 produkter'!$E1645:$E1659,"<="&$E$4) -> 0 | W132: 0 | X132: =IF($E$16="Ja",SUMIFS('IB - 1-200 produkter'!$M$1645:$M$1659,'IB - 1-200 produkter'!$E$1645:$E$1659,"<="&$E$4),0) -> 0 | Y132: 0 | Z132: 0 | AA132: =SUMIFS('IB - 1-200 produkter'!$L$1645:$L$1659,'IB - 1-200 produkter'!$E$1645:$E$1659,"<="&$E$4) -> 0
A133: 84 | R133: 0 | S133: Klik for at vælge | T133: 0 | U133: =SUMIFS('IB - 1-200 produkter'!H1665:H1679,'IB - 1-200 produkter'!$E1665:$E1679,"<="&$E$4) -> 0 | V133: =SUMIFS('IB - 1-200 produkter'!I1665:I1679,'IB - 1-200 produkter'!$E1665:$E1679,"<="&$E$4) -> 0 | W133: 0 | X133: =IF($E$16="Ja",SUMIFS('IB - 1-200 produkter'!$M$1665:$M$1679,'IB - 1-200 produkter'!$E$1665:$E$1679,"<="&$E$4),0) -> 0 | Y133: 0 | Z133: 0 | AA133: =SUMIFS('IB - 1-200 produkter'!$L$1665:$L$1679,'IB - 1-200 produkter'!$E$1665:$E$1679,"<="&$E$4) -> 0
A134: 85 | R134: 0 | S134: Klik for at vælge | T134: 0 | U134: =SUMIFS('IB - 1-200 produkter'!H1685:H1699,'IB - 1-200 produkter'!$E1685:$E1699,"<="&$E$4) -> 0 | V134: =SUMIFS('IB - 1-200 produkter'!I1685:I1699,'IB - 1-200 produkter'!$E1685:$E1699,"<="&$E$4) -> 0 | W134: 0 | X134: =IF($E$16="Ja",SUMIFS('IB - 1-200 produkter'!$M$1685:$M$1699,'IB - 1-200 produkter'!$E$1685:$E$1699,"<="&$E$4),0) -> 0 | Y134: 0 | Z134: 0 | AA134: =SUMIFS('IB - 1-200 produkter'!$L$1685:$L$1699,'IB - 1-200 produkter'!$E$1685:$E$1699,"<="&$E$4) -> 0
A135: 86 | R135: 0 | S135: Klik for at vælge | T135: 0 | U135: =SUMIFS('IB - 1-200 produkter'!H1705:H1719,'IB - 1-200 produkter'!$E1705:$E1719,"<="&$E$4) -> 0 | V135: =SUMIFS('IB - 1-200 produkter'!I1705:I1719,'IB - 1-200 produkter'!$E1705:$E1719,"<="&$E$4) -> 0 | W135: 0 | X135: =IF($E$16="Ja",SUMIFS('IB - 1-200 produkter'!$M$1705:$M$1719,'IB - 1-200 produkter'!$E$1705:$E$1719,"<="&$E$4),0) -> 0 | Y135: 0 | Z135: 0 | AA135: =SUMIFS('IB - 1-200 produkter'!$L$1705:$L$1719,'IB - 1-200 produkter'!$E$1705:$E$1719,"<="&$E$4) -> 0
A136: 87 | R136: 0 | S136: Klik for at vælge | T136: 0 | U136: =SUMIFS('IB - 1-200 produkter'!H1725:H1739,'IB - 1-200 produkter'!$E1725:$E1739,"<="&$E$4) -> 0 | V136: =SUMIFS('IB - 1-200 produkter'!I1725:I1739,'IB - 1-200 produkter'!$E1725:$E1739,"<="&$E$4) -> 0 | W136: 0 | X136: =IF($E$16="Ja",SUMIFS('IB - 1-200 produkter'!$M$1725:$M$1739,'IB - 1-200 produkter'!$E$1725:$E$1739,"<="&$E$4),0) -> 0 | Y136: 0 | Z136: 0 | AA136: =SUMIFS('IB - 1-200 produkter'!$L$1725:$L$1739,'IB - 1-200 produkter'!$E$1725:$E$1739,"<="&$E$4) -> 0
